Workbook

Sheet LDC Info
Z3: 1 | AA3: Alectra Utilities Corporation-Brampton Rate Zone
Z4: 2 | AA4: Alectra Utilities Corporation-Enersource Rate Zone
Z5: 3 | AA5: Alectra Utilities Corporation-Horizon Utilities Rate Zone
Z6: 4 | AA6: Alectra Utilities Corporation-PowerStream Rate Zone
Z7: 5 | AA7: Alectra Utilities Corporation-Guelph Rate Zone
Z8: 6 | AA8: Algoma Power Inc.
Z9: 7 | AA9: Atikokan Hydro Inc.
Z10: 8 | AA10: Bluewater Power Distribution Corporation
Z11: 9 | AA11: Brantford Power Inc.
Z12: 10 | AA12: Burlington Hydro Inc.
Z13: 11 | AA13: Canadian Niagara Power Inc.
D14: Utility Name | E14: Ottawa River Power Corporation | Z14: 12 | AA14: Centre Wellington Hydro Ltd.
Z15: 13 | AA15: Chapleau Public Utilities Corporation
D16: Assigned EB Number | E16: EB-2021-0052 | Z16: 14 | AA16: Cooperative Hydro Embrun Inc.
Z17: 15 | AA17: E.L.K. Energy Inc.
D18: Name of Contact and Title | E18: Jeffrey Roy, Chief Financial Officer | Z18: 16 | AA18: Elexicon Energy Inc.-Whitby Rate Zone
Z19: 17 | AA19: Elexicon Energy Inc.-Veridian Rate Zone
D20: Phone Number | E20: (613)732-3687x227 | Z20: 18 | AA20: Energy+ Inc.
Z21: 19 | AA21: Entegrus Powerlines Inc.-For Entegrus-Main Rate Zone
D22: Email Address | E22: jroy@orpowercorp.com | Z22: 20 | AA22: Entegrus Powerlines Inc.-For Former St. Thomas Energy Rate Zone
Z23: 21 | AA23: ENWIN Utilities Ltd.
D24: Test Year | E24: 2022 | Z24: 22 | AA24: EPCOR Electricity Distribution Ontario Inc.
Z25: 23 | AA25: ERTH Power Corporation - ERTH Power Main Rate Zone
D26: Bridge Year | E26: =IF(ISBLANK(E24), "", E24-1) -> 2021 | Z26: 24 | AA26: ERTH POWER CORPORATION – GODERICH RATE ZONE
Z27: 25 | AA27: Essex Powerlines Corporation
D28: Last Rebasing Year | E28: 2016 | Z28: 26 | AA28: Festival Hydro Inc.
Z29: 27 | AA29: Fort Frances Power Corporation
A30: Identify the accounting standard used for the test year | Z30: 28 | AA30: Greater Sudbury Hydro Inc.
E31: MIFRS | Z31: 29 | AA31: Grimsby Power Incorporated
Z32: 30 | AA32: Halton Hills Hydro Inc.
A33: ="Did "& E14 &" update its depreciation and capitalization policies?" -> Did Ottawa River Power Corporation update its depreciation and capitalization policies? | Z33: 31 | AA33: Hearst Power Distribution Co. Ltd.
E34: Yes | Z34: 32 | AA34: Hydro 2000 Inc.
Z35: 33 | AA35: Hydro Hawkesbury Inc.
A36: If "yes" to cell E34, were the changes in policies reflected in a prior rebasing application? | Z36: 34 | AA36: Hydro One Networks Inc.
E37: Yes | Z37: 35 | AA37: Hydro One Networks Inc.-Former Haldimand County Hydro Inc. Service Area
Z38: 36 | AA38: Hydro One Networks Inc.-Former Norfolk Power Distribution Inc. Service Area
A39: ="When did "&E14&" update its actual depreciation and capitalization policies?" -> When did Ottawa River Power Corporation update its actual depreciation and capitalization policies? | Z39: 37 | AA39: Hydro One Networks Inc.-Former Woodstock Hydro Services Inc. Service Area
E40: 2001-01-01 | F40: 2013 | Z40: 38 | AA40: Hydro One Remote Communites Inc.
Z41: 39 | AA41: Hydro Ottawa Limited
A42: Identify the year the applicant adopted IFRS for financial reporting purposes | Z42: 40 | AA42: InnPower Corporation
E43: 2013 | Z43: 41 | AA43: Kingston Hydro Corporation
Z44: 42 | AA44: Kitchener-Wilmot Hydro Inc.
Z45: 43 | AA45: Lakefront Utilities Inc.
A46: ="Is " & E14 & " applying for cost recovery for the test and/or future year(s) for Green Energy initiatives?" -> Is Ottawa River Power Corporation applying for cost recovery for the test and/or future year(s) for Green Energy initiatives? | Z46: 44 | AA46: Lakeland Power Distribution Ltd.
E47: No | Z47: 45 | AA47: Lakeland Power Distribution Ltd.-Parry Sound Service Area
Z48: 46 | AA48: London Hydro Inc.
A49: ="Is " & E14 & " an embedded distributor?" -> Is Ottawa River Power Corporation an embedded distributor? | E49: Yes | Z49: 47 | AA49: Milton Hydro Distribution Inc.
Z50: 48 | AA50: Newmarket-Tay Power Distribution Ltd.-For Former Midland Power Utility Rate Zone
Z51: 49 | AA51: Newmarket-Tay Power Distribution Ltd.-For Newmarket-Tay Power Main Rate Zone
B52: Notes | Z52: 50 | AA52: Niagara Peninsula Energy Inc.
Z53: 51 | AA53: Niagara-on-the-Lake Hydro Inc.
C54: Pale green cells represent input cells. | Z54: 52 | AA54: North Bay Hydro Distribution Limited - Espanola service territory
Z55: 53 | AA55: North Bay Hydro Distribution Limited - North Bay service territory
C56: Pale blue cells represent drop-down lists. The applicant should select the appropriate item from the drop-down list. | Z56: 54 | AA56: Northern Ontario Wires Inc.
Z57: 55 | AA57: Oakville Hydro Electricity Distribution Inc.
C58: White cells contain fixed values, automatically generated values or formulae. | N58: =IF(LEN($G58)>1, (SUMPRODUCT(--($C$81:$C$1003=$C58),--($A$81:$A$1003=$D58), --($B$81:$B$1003=$B58&"_TOTAL"), $L$1:$L$889)), "") ->  | O58: =IF(LEN($G58)>1, (SUMPRODUCT(--($C$81:$C$1003=$C58),--($A$81:$A$1003=$D58), --($B$81:$B$1003=$B58&"_TOTAL"), $M$1:$M$889)), "") ->  | Z58: 56 | AA58: Orangeville Hydro Limited
Z59: 57 | AA59: Orillia Power Distribution Corporation
Z60: 58 | AA60: Oshawa PUC Networks Inc.
Z61: 59 | AA61: Ottawa River Power Corporation
Z62: 60 | AA62: Peterborough Distribution Incorporated
Z63: 61 | AA63: PUC Distribution Inc.
Z64: 62 | AA64: Renfrew Hydro Inc.
Z65: 63 | AA65: Rideau St. Lawrence Distribution Inc.
Z66: 64 | AA66: Sioux Lookout Hydro Inc.
Z67: 65 | AA67: Synergy North Corporation-Kenora Rate Zone
Z68: 66 | AA68: Synergy North Corporation-Thunder Bay Rate Zone
Z69: 67 | AA69: Tillsonburg Hydro Inc.
Z70: 68 | AA70: Toronto Hydro-Electric System Limited
Z71: 69 | AA71: Wasaga Distribution Inc.
Z72: 70 | AA72: Waterloo North Hydro Inc.
Z73: 71 | AA73: Welland Hydro-Electric System Corp.
Z74: 72 | AA74: Wellington North Power Inc.
Z75: 73 | AA75: Westario Power Inc.

Sheet Index
A15: 1 | B15: LDC Information Sheet | E15: 20 | F15: App.2-G: Service Reliability Indicators
A16: 2 | B16: Index | E16: 21 | F16: App.2-H: Other Operating Revenue (TO BE UPDATED AT THE DRAFT RATE ORDER STAGE)
A17: 3 | B17: Cost of Service Application Flowchart | E17: 22 | F17: App.2-I: Load Forecast CDM Adjustment Workform
A18: 4 | B18: List of Key References | E18: 23 | F18: App.2-IA: Load Forecast Data Instructions
A19: 5 | B19: App.2-A: List of Requested Approvals | E19: 24 | F19: App.2-IB: Actual and Forecast Load and Customer Data
A20: 6 | B20: App.2-AA: Capital Projects Table | E20: 25 | F20: App.2-JA: OM&A Summary Analysis (TO BE UPDATED AT THE DRAFT RATE ORDER STAGE)
A21: 7 | B21: App.2-AB: Capital Expenditures (TO BE UPDATED AT THE DRAFT RATE ORDER STAGE) | E21: 26 | F21: App.2-JB: Recoverable OM&A Cost Driver Table
A22: 8 | B22: App. 2-AC: Customer Engagement Worksheet | E22: 27 | F22: App.2-JC: OM&A Programs Table
A23: 9 | B23: App.2-B: General Accounting Instructions Relating to MIFRS Transition - CONTACT OEB STAFF IF TAB REQUIRED | E23: 28 | F23: App.2-K: Employee Costs (TO BE UPDATED AT THE DRAFT RATE ORDER STAGE)
A24: 10 | B24: App.2-BA: Fixed Asset Continuity Schedule | E24: 29 | F24: App.2-L: Recoverable OM&A Cost per Customer and per FTE
A25: 11 | B25: Appendix 2-BB: Service Life Comparison | E25: 30 | F25: App.2-M: Regulatory Costs Schedule (TO BE UPDATED AT THE DRAFT RATE ORDER STAGE)
A26: 12 | B26: App.2-C_DepExp: Depreciation and Amortization Expense | E26: 31 | F26: App.2-N: Shared Services and Corporate Cost Allocation
A27: 13 | B27: App.2-D: Overhead Expenses | E27: 32 | F27: App.2-OA: Capital Structure and Cost of Capital
A28: 14 | B28: App.2-EA: Account 1575 PP&E Deferral Account (2015 IFRS Adopters) - CONTACT OEB STAFF IF TAB REQUIRED | E28: 33 | F28: App.2-OB: Debt Instruments
A29: 15 | B29: App.2-EB: Account 1576 - Accounting Changes Under CGAAP (2012 Changes) - CONTACT OEB STAFF IF TAB REQUIRED | E29: 34 | F29: App.2-Q: Cost of Serving Embedded Distributor(s)
A30: 16 | B30: App.2-EC: Account 1576 - Accounting Changes Under CGAAP (2013 Changes) - CONTACT OEB STAFF IF TAB REQUIRED | E30: 35 | F30: App.2-R: Loss Factors
A31: 17 | B31: App.2-FA: Renewable Generation Connection Investment Summary (TO BE UPDATED AT THE DRAFT RATE ORDER STAGE) | E31: 36 | F31: App.2-S: Stranded Meter Treatment- CONTACT OEB STAFF IF TAB REQUIRED
A32: 18 | B32: App.2-FB: Calculation of Renewable Generation Connection Direct Benefits/Provincial Amount: Renewable Enabling Improvement Investments (TO BE UPDATED AT THE DRAFT RATE ORDER STAGE) | E32: 37 | F32: App.2-Y: Transition to MIFRS Summary Impact - CONTACT OEB STAFF IF TAB REQUIRED
A33: 19 | B33: App.2-FC: Calculation of Renewable Generation Connection Direct Benefits/Provincial Amount: Renewable Expansion Investments (TO BE UPDATED AT THE DRAFT RATE ORDER STAGE) | E33: 38 | F33: App.2-YA: One-Time Incremental IFRS Transition Costs - CONTACT OEB STAFF IF TAB REQUIRED
E34: 39 | F34: App.2-ZA: Commodity Expense
E35: 40 | F35: App.2-ZB: Cost of Power
A42: Note: | B42: Appendices for the Tariff of Rates and Charges at Current and Proposed Rates, and for the Bill Impacts are now in a separate spreadsheet model. These appendices were formerly 2-Z and 2-W.

Sheet COS Flowchart
B4: Cost of Service Rate Application Schematic
B6: The Cost of Service Rate Application Schematic is a flowchart that is included as a guide for the components of an application. The schematic demonstrates how demand and costs interrelate to derive the revenue requirement and how the revenue requirement is allocated between classes and through fixed/variable splits to derive rates that will be compensatory for the annual revenue requirement, based on the the forecasted demand. There is no form to be filled out; therefore, this Schedule is not required to be filed.

Sheet List of Key References

Sheet App.2-A_Requested_Approvals
G1: File Number: | H1: =EBNUMBER -> EB-2021-0052
G2: Exhibit:
G3: Tab:
G4: Schedule:
G5: Page:
G7: Date:
B9: Appendix 2-A
B10: List of Requested Approvals
B12: The distributor must fill out the following sheet with the complete list of specific approvals requested and relevant section(s) of the legislation must be provided. All approvals, including accounting orders (deferral and variance accounts) new rate classes, revised specific service charges or retail service charges which the applicant is seeking, must be separately identified, as well being clearly documented in the appropriate sections of the application.
B14: Additional requests may be added by copying and pasting blank input rows, as needed.
B16: If additional requests arise, or requested approvals are removed, during the processing of the application, the distributor should update this list.
B18: =CONCATENATE('LDC Info'!E14," is seeking the following approvals in this application:") -> Ottawa River Power Corporation is seeking the following approvals in this application:
B20: 1 | F20: Approval to charge distribution rates effective May 1, 2022 to recover a Base Revenue requirement and revenue deficiency, as detailed in the Revenue Requirement Workform and discussed in Exhibit 6, through applying the proposed rates as set out in the Tariff Schedule & Bill Impact model and Exhibit 8.
B22: 2 | F22: Approval of the Applicant’s Distribution System Plan as included in Exhibit 2 and filed as a stand-alone document with this Application.
B24: 3 | F24: Approval of revised Low Voltage Rates as proposed and described in Exhibit 8
B26: 4 | F26: Approval for an adjustment to the Retail Transmission Service Rates approved in the Applicant’s 2021 IRM application as detailed in Exhibit 8.
B28: 5 | F28: Approval to continue to charge Wholesale Market Services, Capacity -Based Recovery and Rural Rate Protection charges as approved by the OEB and detailed in Exhibit 8.
B30: 6 | F30: Approval to continue the specific Service Charges (with the exception of the MicroFIT Monthly Service charge) and Transformer Allowance as previously approved by the OEB and as detailed in Exhibit 8.
B32: 7 | F32: Approval to continue applying the MicroFIT monthly service charge of $4.55 as approved in the Applicant's 2016 Cost of Service (EB-2014-0105), updated in its 2020 IRM application (EB-2019-0062) and detailed in Exhibit 3, to recover operating costs in calculating and validating generation data to enable monthly settlement with the IESO.
B34: 8 | F34: Approval of the proposed Loss Factor as detailed in Exhibit 8 and calculated in Chapter 2 Filing Requirements Appendix worksheet App2-R Loss Factors.
B36: 9 | F36: Approval of the Rate Riders for a one year disposition of the Group 1 Deferral and Variance account balances as at December 31, 2020 along with the projected carrying charges in accordance with the Report of the Board on Electricity Distributors’ Deferral and Variance Account Review Initiative (EDDVAR – July 31, 2009) as detailed in Exhibit 9.
B38: 10 | F38: Approval of the Rate Riders for a one year disposition of the Group 2 Deferral and Variance account balances as at December 31, 2020 along with the projected carrying charges in accordance with the Report of the Board on Electricity Distributors’ Deferral and Variance Account Review Initiative (EDDVAR – July 31, 2009) as detailed in Exhibit 9.
B40: 11 | F40: Approval of the Rate Riders for a one year disposition for the Loss Revenue Adjustment Mechanism variance account (“LRAMVA”) for lost revenue resulting from the Conservation First Framework programs as detailed in Exhibit 4. Account disposition requested as a final balance.
B42: 12 | F42: Approval to include assets relating to a new substation (built and energized in 2020) into the Applicant’s 2022 Rate Base as detailed in Exhibit 2
B44: 13 | F44: Disposal of the balance in the wireline pole attachment variance account as at December 31st 2020 as recorded in account 1508.
B46: 14
B48: 15
B50: 16
B52: 17
B54: 18
B56: 19
B58: 20

Sheet App.2-AA_Capital Projects
A9: Appendix 2-AA
A10: Capital Projects Table
B13: 2016 | C13: 2017 | D13: 2018 | E13: 2019 | F13: 2020 | G13: 2021 | H13: 2022
A14: Account | B14: Total | C14: Total | D14: Total | E14: Total | F14: Total | G14: Total | H14: Total
A16: System Access
A17: New Services and Service Upgrades | B17: -3918.01
A18: Orchard View by the Mississippi Almonte | B18: 79811.58
A19: New Services and Service Upgrades | C19: 176517.86
A20: Martin Street Pole Upgrades | C20: 30728.86
A21: Riverfront Phase 4 | C21: 86543.5
A22: Upper Valley Drive Upgrades | C22: 44899.17
A23: Boundary Road - SRB Technologies | C23: 24950.8
A24: Contributions | C24: -263532.76
A25: New Services and Service Upgrades | D25: 239569.38
A26: Firehall | D26: 39434.08
A27: Tie Line - Horace Street | D27: 43910.7
A28: Pembroke Place Condo | D28: 57115.72
A29: Orchardview | D29: 38617.34
A30: Riverfront Phase 4 and Phase 5 | D30: 57466.94
A31: Patricia Street Townhomes | D31: 17385.59
A32: Contributions | D32: -136450
A33: New Services and Service Upgrades | E33: 414367.27
A34: Orchardview | E34: 2605.79
A35: Riverfront Phase 5 | E35: 172940.3
A36: Petro Canada | E36: 12156.88
A37: Install and Connect Pad Mount Transformer | E37: 38230.21
A38: Blakely Crescent | E38: 10865.48
A39: Contributions | E39: -183075.03
A40: New Services and Service Upgrades | F40: 70361.99
A41: UG Primary - Town Homes on Blakely Crescent | F41: 100
A42: Bennett Street - Cell Tower | F42: 19962.84
A43: Food Basics - 1500 kVa Padmounted Transformer | F43: 39829.15
A44: Victoria Street Reconstruction - Pole Removals, Cable U/G | F44: 14853.95
A45: Patricia Street - Robert Morre 10 Unit Building | F45: 1665.22
A46: Guy Bourgon - Offer to Connect | F46: -23050
A47: New Services and Service Upgrades | G47: 93686.33
A48: 4 Semi-detached Single Storey Homes | G48: 4315.09
A49: Roger Telecom Tower | G49: 3215.85
A50: Pembroke Street West Upgrade (Phase 2) | G50: 23276.43
A51: Pembroke Street West Upgrade (Phase 1 - Strut Guy) | G51: 501.62
A52: 4-Plex at 759 Mary Street | G52: 7423.73
A53: Golfview Subdivision | G53: 43655.29
A54: 143 Marshall Street | G54: 4078.43
A55: Mississippi Mills Industrial Park Phase 3 | G55: 6502.04
A56: New Services and Service Upgrades | H56: 61605.91
A57: 44 kV O/H Line Relocation | H57: 93599.96
A58: 4 Semi-Detached Single Storey Homes | H58: 2196.49
A59: 3 Commercial Buildings | H59: -3576.91
A60: Car Wash | H60: -3391.38
A61: Orchard View Suites (Phase 2) | H61: 64502.11
A62: 42 Unit Apartment Building | H62: 33263.44
A63: Burcom Development - 48 Houses | H63: 42500
A64: Highway 148 Upgrade | H64: 100000
A65: 9 Houston Drive Service Upgrade | H65: 7000
A66: 9 Townhomes at 627 Nelson Street Pembroke | H66: 12000
A68: Sub-Total | B68: =SUM(B17:B67) -> 75893.57 | C68: 100107.43 | D68: 357049.75 | E68: 468090.9 | F68: 123723.15 | G68: 186654.81 | H68: 409699.62
A69: System Renewal
A70: Minor Capital Betterments | B70: 293696.48
A71: Martin Street and Paul Street | B71: 124628.18
A72: Sub 4 Cable Replacement | B72: 13799.81
A73: Paul Martin Drive Pole Conflicts Road Rebuild | B73: 107281.77
A74: Paul Martin Drive Install New 60' 44kV Pole | B74: 12994.66
A75: Boundary Road East Pole Upgrade | B75: 15938.28
A76: Alfred and Cecelia Upgrade Secondary Conductors | B76: 12444.4
A77: Minor Capital Betterments | C77: 320674.97
A78: Almonte Martin Street and St Paul Street Renewal | C78: 34853.01
A79: Angus Campbell Drive Damage | C79: 18227.44
A80: Boundary Road - Pole Replacements | C80: 86692
A81: Beachburg Road Pole and Secondary Replacement | C81: 46057.18
A82: Replace 1000kVa Transformer | C82: 33903.12
A83: Pembroke MS#4 Feeder#1 Rebuild | C83: 12316.2
A84: Pembroke MS#4 Pole Upgrades | C84: 31075.3
A85: Boundary Road - 44KV Upgrade | C85: 22167.33
A86: Minor Capital Betterments | D86: 216311.97
A87: Replace U/G Riser | D87: 11450.94
A88: Pole Upgrade - Pembroke Street East | D88: 18487.54
A89: Shepherd Street | D89: 39211.1
A90: Euphemia Street | D90: 42785.01
A91: Beachburg Road | D91: 19759.95
A92: O'Brien Street | D92: 36418.75
A93: Industrial Drive 44kV Pole Installation | D93: 12427.67
A94: Pembroke Voltage Conversion MS#1 and MS#3 | D94: 371389.06
A95: Almonte MS#2 and 3 Station Insulator Upgrades | D95: 10324.31
A96: Almonte MS#3 Station Upgrades | D96: 64812.59
A97: Pembroke MS#6 Copper | D97: 17277.94
A98: Minor Capital Betterments | E98: 88885.31
A99: Voltage Conversion - Feeder 1 - 1 | E99: 4419.27
A100: Voltage Conversion - Feeder 1 - 2 | E100: 55662.68
A101: Voltage Conversion - Feeder 1 - 3 | E101: 35885.63
A102: Voltage Conversion - Feeder 1 - 4 | E102: 35703.06
A103: Voltage Conversion - Feeder 3 - 1 | E103: 27114.67
A104: Voltage Conversion - Feeder 3 - 2 | E104: 254.47
A105: Almonte MS#3 Station Upgrades | E105: 9320.32
A106: Beachburg Road Pole Replacement | E106: 55479.74
A107: Victoria Street Underground Conversion | E107: 16023.36
A108: Minor Capital Betterments | F108: 111442.16
A109: Voltage Conversion - Feeder 1 - 1 | F109: 254.47
A110: Voltage Conversion - Feeder 1 - 2 | F110: 1259.29
A111: PCB Transformer - T550 1283 Pembroke Street West | F111: 2911.74
A112: PCB Transformer - 183 Cecil Street | F112: 966.47
A113: PCB Transformer - 201 Cecil Street | F113: 1451.54
A114: Esther Street - OH Secondary Service Replacement | F114: 4536.26
A115: PCB Transformer - T438 Boundary and McGee | F115: 3704.82
A116: 32 Pembroke Street West - Replace Pole | F116: 6836.36
A117: Upgrade Riser Disconnects at L557 and T1011 | F117: 1687.77
A118: 672 & 708 Gordon Street Pole Replacements | F118: 8947.08
A119: 174 Albert Street - Replace pole and transformers | F119: 16353.11
A120: Garden Street - Replace Leaking Padmount Transformer | F120: 3032.37
A121: O'Brien Street North - Install Underground Road Crossings | F121: 12232.07
A122: John Street Killaloe - Re-insulate 2 poles | F122: 2481.12
A123: 277 Cecelia Street - Replace wood pole | F123: 6107.21
A124: 5 Smith Street - Replace wood pole and install new anchor | F124: 7301.34
A125: Beachburg Road - Replace 3 wood poles | F125: 17038.52
A126: 119 Arnolds Lane - Replace wood pole | F126: 3947.83
A127: 473 Christink Lane - Replace wood pole | F127: 3692.11
A128: 281 Maple Avenue - Replace wood pole | F128: 5212.06
A129: Minor Capital Betterments | G129: 134030.58
A130: Gemmell Park Project | G130: 31925.59
A131: Re-Insulate and Adjust Sage on Feeder 6-2 | G131: 6144.88
A132: Install New Tie Switches 4-4 TS 4-5 Coolidge Street | G132: 4863.79
A133: Pole Replacement due to Fire on Pembroke SW at Blakely | G133: 11683.13
A134: Pole Replacement due to Fire on Sussex at John | G134: 10937.31
A135: Replace 45' Pole at481 Isabella Street | G135: 6009.71
A136: Replace 2 40' Wood Poles with New 45'/3 Wood Poles | G136: 8721.88
A137: Set Pole for Bell Canada | G137: 10285.97
A138: Install 44kV Pole on Front Street at Alongquin Trail | G138: 10151.72
A139: Pole and Transformer Upgrade at Beachburg Arena | G139: 19305
A140: Stub Pole Relocation | G140: 5611.81
A141: 44kV OHL Relocation | G141: 106390.64
A142: Replace 6 45' and 1 50' Pole on Mill Street Killaloe | G142: 48746.66
A143: PCB Transformer Replacements | G143: 30000
A144: Pembroke Voltage Conversion | G144: 29840.05
A145: Minor Capital Betterments | H145: 32080.85
A146: Esther Street Pembroke | H146: 51590.81
A147: Replace 4 pole due to rot at ground level. Feeder 6M1 and 6M2. | H147: 45414.83
A148: John Street Pembroke | H148: 43349.01
A149: McKenzie Street Pembroke | H149: 24993.24
A150: Third Avenue Pembroke | H150: 61320.64
A151: Thompson Street Pembroke | H151: 26105.33
A152: Larose Street Almonte | H152: 80958.96
A153: Naismith Drive Almonte | H153: 37491.44
A154: Evelyn Street Almonte | H154: 50591.79
A155: Florence Street Almonte | H155: 43882.69
A156: Pembroke MS6 - Transformer Replacement | H156: 750000
A158: Sub-Total | B158: =SUM(B70:B157) -> 580783.58 | C158: 605966.55 | D158: 860656.83 | E158: 328748.51 | F158: 221395.7 | G158: 474648.72 | H158: 1247779.59
A159: System Service
A160: Sub 2 Rebuild | B160: 61445.48
A161: Sub 3 and 7 Ground Grid & Fence | B161: 34011.34
A162: Sub 6 Ground Grid | B162: 72422.21
A163: Almonte MS#1 Scada Upgrade | C163: 58745.44
A164: Almonte MS#1 Land | C164: 39130
A165: Almonte MS#2 Upgrades | C165: 58599.3
A166: Minor Capital Betterments | D166: 4718.16
A167: Almonte MS#1 Scada Upgrades | D167: 12648.09
A168: Almonte MS#2 Upgrades | D168: 56942.81
A169: Almonte MS#4 Construction | D169: 147575.24
A170: Almonte Feeder Relocation | E170: 64349.53
A171: Almonte MS#4 Line Extension | E171: 42126.47
A172: Almonte MS#4 Construction | E172: -58854.18
A173: Almonte Feeder Relocation | F173: -16438.06
A174: 1F3 Switch Upgrade | F174: 4840.14
A175: Pembroke MS#6 Insulation Upgrades | F175: 12161.77
A176: Almonte MS#3 Upgrades | F176: 15684.12
A177: Almonte MS#4 Line Extension | F177: 27983.24
A178: Battery | G178: 1134
A179: Assessment, Scout and Configuration | H179: 45000
A180: Pembroke MS4 - Replace RTU and Relay | H180: 60000
A182: Sub-Total | B182: =SUM(B160:B181) -> 167879.03 | C182: 156474.74 | D182: 221884.3 | E182: 47621.82 | F182: 44231.21 | G182: 1134 | H182: 105000
A183: General Plant
A184: Office Equipment | B184: 27072.09 | C184: 4397.75 | D184: 4.58 | F184: 5574.39
A185: Computer Equipment - Hardware | B185: 1668.77 | C185: 6396.67 | D185: 5446.05 | E185: 13428.49 | F185: 32756.85
A186: Computer Software | B186: 21070 | C186: 33880.61 | D186: 11474.01 | E186: 11265.5 | F186: 5473.34
A187: Transportation Equipment - Misc | B187: 3040 | C187: 2508.24
A188: Transportation Equipment - Truck Purchase (Cab & Chassis) | B188: 113525 | C188: 319920
A189: Small Tools | B189: 14006.95 | C189: 3354.45 | D189: 368.11 | E189: 1834 | F189: 4971.36
A190: Measurement and Testing Equipment | B190: 0 | C190: 999 | D190: 3180.25
A191: Leasehold Improvement | B191: 54222.45 | C191: 3278.27 | E191: 4189.19
A192: Transportation Equipment - Truck #8 Exhaust | D192: 16465.63
A193: Transportation Equipment - Truck #31 Exhaust | D193: 14531.6
A194: Computer Software - Cyber Security | E194: 5394.66
A195: Transportation Equipment - Trailer | E195: 26500
A196: Transportation Equipment - New Truck | E196: 364485
A197: Transportation Equipment | F197: 53553.9
A198: Stores Equipment | F198: 3472.21
A199: Miscellaneous Equipment | F199: 2499
A200: System Supervisory Equipment | F200: 3247
A201: Leasehold Improvements - Pembroke Office Glass Barrier | F201: 10264.58
A202: Leasehold Improvements - Air Conditioner Repair | F202: 8775.97
A203: Leasehold Improvements - Paving | F203: 16500
A204: Leasehold Improvements - Wall | F204: 1167.79
A205: Leasehold Improvements - Almonte Pole Barn | F205: 2941.54
A206: Leasehold Improvements - Almonte New Office | F206: 10542.01
A207: Server | G207: 106585.32
A208: Switches, Hard Drives, Networking, Laptops, Printers | G208: 35267.94
A209: Garage Fixtures, Paint and Blinds | G209: 10343.36
A210: Patch Management Platform | G210: 3316.95
A211: Elster Connexo Upgrade | G211: 76153
A212: Engine Control Unit | G212: 3602.08
A213: Tools, Shop and Garage Equipment | G213: 2000
A214: Truck 8 and 31 Painting | G214: 10000
... 15 more rows

Sheet App.2-AB_Capital Expenditures
AE1: File Number: | AG1: =EBNUMBER -> EB-2021-0052
AE2: Exhibit:
AE3: Tab:
AE4: Schedule:
A5: TO BE UPDATED AT THE DRAFT RATE ORDER STAGE | AE5: Page:
AE7: Date:
A9: Appendix 2-AB
A10: Table 2 - Capital Expenditure Summary from Chapter 5 Consolidated Distribution System Plan Filing Requirements
A11: First year of Forecast Period:
A12: =TestYear -> 2022
A13: CATEGORY | B13: Historical Period (previous plan1 & actual) | AC13: Forecast Period (planned)
B14: =E14-1 -> 2013 | E14: =H14-1 -> 2014 | H14: =K14-1 -> 2015 | K14: =N14-1 -> 2016 | N14: =Q14-1 -> 2017 | Q14: =T14-1 -> 2018 | T14: =W14-1 -> 2019 | W14: =Z14-1 -> 2020 | Z14: =AC14-1 -> 2021 | AC14: =A12 -> 2022 | AD14: =AC14+1 -> 2023 | AE14: =AD14+1 -> 2024 | AF14: =AE14+1 -> 2025 | AG14: =AF14+1 -> 2026
B15: Plan | C15: Actual | D15: Var | E15: Plan | F15: Actual | G15: Var | H15: Plan | I15: Actual | J15: Var | K15: Plan | L15: Actual | M15: Var | N15: Plan | O15: Actual | P15: Var | Q15: Plan | R15: Actual | S15: Var | T15: Plan | U15: Actual | V15: Var | W15: Plan | X15: Actual | Y15: Var | Z15: Plan | AA15: Actual2 | AB15: Var
B16: $ '000 | D16: % | E16: $ '000 | G16: % | H16: $ '000 | J16: % | K16: $ '000 | M16: % | N16: $ '000 | P16: % | Q16: $ '000 | S16: % | T16: $ '000 | V16: % | W16: $ '000 | Y16: % | Z16: $ '000 | AB16: % | AC16: $ '000
A17: System Access | D17: =IF(ISERROR((C17-B17)/B17),"--",(C17-B17)/B17) -> -- | G17: =IF(ISERROR((F17-E17)/E17),"--",(F17-E17)/E17) -> -- | J17: =IF(ISERROR((I17-H17)/H17),"--",(I17-H17)/H17) -> -- | K17: 500850 | L17: 172793 | M17: =IF(ISERROR((L17-K17)/K17),"--",(L17-K17)/K17) -> -0.6550004992 | N17: 452200 | O17: =100107.43+263533 -> 363640.43 | P17: =IF(ISERROR((O17-N17)/N17),"--",(O17-N17)/N17) -> -0.1958415966 | Q17: 392700 | R17: =357049.75+136450 -> 493499.75 | S17: =IF(ISERROR((R17-Q17)/Q17),"--",(R17-Q17)/Q17) -> 0.2566838554 | T17: 392700 | U17: =468090.9+183075 -> 651165.9 | V17: =IF(ISERROR((U17-T17)/T17),"--",(U17-T17)/T17) -> 0.6581764706 | W17: 392700 | X17: =123723.15+69352 -> 193075.15 | Y17: =IF(ISERROR((X17-W17)/W17),"--",(X17-W17)/W17) -> -0.5083393175 | Z17: =186654.9+194750 -> 381404.9 | AB17: =IF(ISERROR((AA17-Z17)/Z17),"--",(AA17-Z17)/Z17) -> -1 | AC17: =409699.62+423652 -> 833351.62 | AD17: 546770 | AE17: 661500 | AF17: 542300 | AG17: 526430
A18: System Renewal | D18: =IF(ISERROR((C18-B18)/B18),"--",(C18-B18)/B18) -> -- | G18: =IF(ISERROR((F18-E18)/E18),"--",(F18-E18)/E18) -> -- | J18: =IF(ISERROR((I18-H18)/H18),"--",(I18-H18)/H18) -> -- | K18: 194100 | L18: 580783.58 | M18: =IF(ISERROR((L18-K18)/K18),"--",(L18-K18)/K18) -> 1.992187429 | N18: 248750 | O18: 605966.55 | P18: =IF(ISERROR((O18-N18)/N18),"--",(O18-N18)/N18) -> 1.436046432 | Q18: 193200 | R18: 860656.83 | S18: =IF(ISERROR((R18-Q18)/Q18),"--",(R18-Q18)/Q18) -> 3.454745497 | T18: 193200 | U18: =328748.51+129225 -> 457973.51 | V18: =IF(ISERROR((U18-T18)/T18),"--",(U18-T18)/T18) -> 1.370463302 | W18: 193200 | X18: 221395.7 | Y18: =IF(ISERROR((X18-W18)/W18),"--",(X18-W18)/W18) -> 0.1459404762 | Z18: 474649 | AB18: =IF(ISERROR((AA18-Z18)/Z18),"--",(AA18-Z18)/Z18) -> -1 | AC18: 1247780 | AD18: 738610 | AE18: 770790 | AF18: 861310 | AG18: 793060
A19: System Service | D19: -- | G19: -- | J19: -- | K19: 474800 | L19: 167879.03 | M19: -0.646421588 | N19: 345849 | O19: 156474.74 | P19: -0.5475634164 | Q19: 573650 | R19: =221884.3 -> 221884.3 | S19: -0.6132061361 | T19: 293200 | U19: =106476-58854 -> 47622 | V19: -0.8375784447 | W19: 293200 | X19: =44231.2099999999+31941 -> 76172.21 | Y19: -0.7402039222 | Z19: 1134 | AB19: -1 | AC19: 105000 | AD19: 161910 | AE19: 62300 | AF19: 70080 | AG19: 75270
A20: General Plant | D20: -- | G20: -- | J20: -- | K20: 376200 | L20: 234605.26 | M20: -0.3763815524 | N20: 255200 | O20: 374734.99 | P20: 0.4683972962 | Q20: 116200 | R20: 51470.23 | S20: -0.5570548193 | T20: 134200 | U20: 427096.84 | V20: 2.182539791 | W20: 134200 | X20: 161739.94 | Y20: 0.2052156483 | Z20: 398779 | AB20: -1 | AC20: 139210 | AD20: 19400 | AE20: 29900 | AF20: 7400 | AG20: 428400
A21: TOTAL EXPENDITURE | B21: =SUM(B17:B20) -> 0 | C21: =SUM(C17:C20) -> 0 | D21: -- | E21: =SUM(E17:E20) -> 0 | F21: =SUM(F17:F20) -> 0 | G21: -- | H21: =SUM(H17:H20) -> 0 | I21: =SUM(I17:I20) -> 0 | J21: -- | K21: =SUM(K17:K20) -> 1545950 | L21: =SUM(L17:L20) -> 1156060.87 | M21: -0.2522003493 | N21: =SUM(N17:N20) -> 1301999 | O21: =SUM(O17:O20) -> 1500816.71 | P21: 0.1527018915 | Q21: 1275750 | R21: 1627511.11 | S21: 0.2757288732 | T21: 1013300 | U21: 1583858.25 | V21: 0.5630694266 | W21: 1013300 | X21: 652383 | Y21: -0.3561798085 | Z21: 1255966.9 | AA21: 0 | AB21: -1 | AC21: 2325341.62 | AD21: 1466690 | AE21: 1524490 | AF21: 1481090 | AG21: =SUM(AG17:AG20) -> 1823160
A22: Capital Contributions | D22: -- | G22: -- | J22: -- | K22: -300000 | L22: -96899 | M22: -0.6770033333 | O22: -263533 | P22: -- | R22: -136450 | S22: -- | U22: -312300 | V22: -- | X22: -101293 | Y22: -- | Z22: -194750 | AB22: -1 | AC22: -423652 | AD22: -334230 | AE22: -426150 | AF22: -336500 | AG22: -347010
A23: Net Capital Expenditures | D23: -- | G23: -- | J23: -- | K23: =K21+K22 -> 1245950 | L23: =L21+L22 -> 1059161.87 | M23: -0.1499162326 | N23: =N21+N22 -> 1301999 | O23: =O21+O22 -> 1237283.71 | P23: -0.04970456199 | Q23: =Q21+Q22 -> 1275750 | R23: =R21+R22 -> 1491061.11 | S23: 0.1687721811 | T23: =T21+T22 -> 1013300 | U23: =U21+U22 -> 1271558.25 | V23: 0.254868499 | W23: =W21+W22 -> 1013300 | X23: =X21+X22 -> 551090 | Y23: -0.4561432942 | Z23: =Z21+Z22 -> 1061216.9 | AA23: =AA21+AA22 -> 0 | AB23: -1 | AC23: =AC21+AC22 -> 1901689.62 | AD23: =AD21+AD22 -> 1132460 | AE23: =AE21+AE22 -> 1098340 | AF23: =AF21+AF22 -> 1144590 | AG23: =AG21+AG22 -> 1476150
A24: System O&M | D24: -- | G24: -- | J24: -- | K24: 1300590 | L24: 1243810 | M24: -0.04365710947 | O24: 1257805 | P24: -- | R24: 984636 | S24: -- | U24: 1158895 | V24: -- | X24: 1286976 | Y24: -- | Z24: 1378298 | AB24: -1 | AC24: 1477837 | AD24: 1507400 | AE24: 1537540 | AF24: 1568300 | AG24: 1599660
A26: Notes to the Table:
A27: 1. Historical “previous plan” data is not required unless a plan has previously been filed. However, use the last OEB-approved, at least on a Total (Capital) Expenditure basis for the last cost of service rebasing year, and the applicant should include their planned budget in each subsequent historical year up to and including the Bridge Year.
A28: 2. Indicate the number of months of 'actual' data included in the last year of the Historical Period (normally a 'bridge' year):
A30: Explanatory Notes on Variances (complete only if applicable)
A31: Notes on shifts in forecast vs. historical budgets by category
A34: Notes on year over year Plan vs. Actual variances for Total Expenditures
A37: Notes on Plan vs. Actual variance trends for individual expenditure categories

Sheet Hidden_CAPEX (hidden)
A1: Utility Name | B1: EB Number | C1: Test Year | D1: Bridge Year | E1: Last Rebasing Year | F1: Category | G1: Year | H1: Plan | I1: Actual
A2: ='LDC Info'!$E$14 -> Ottawa River Power Corporation | B2: =EBNUMBER -> EB-2021-0052 | C2: =TestYear -> 2022 | D2: =BridgeYear -> 2021 | E2: =RebaseYear -> 2016 | F2: System Access | G2: ='App.2-AB_Capital Expenditures'!B14 -> 2013 | H2: ='App.2-AB_Capital Expenditures'!B17 -> 0 | I2: ='App.2-AB_Capital Expenditures'!C17 -> 0
A3: ='LDC Info'!$E$14 -> Ottawa River Power Corporation | B3: EB-2021-0052 | C3: 2022 | D3: 2021 | E3: 2016 | F3: System Renewal | G3: ='App.2-AB_Capital Expenditures'!B14 -> 2013 | H3: ='App.2-AB_Capital Expenditures'!B18 -> 0 | I3: ='App.2-AB_Capital Expenditures'!C18 -> 0
A4: ='LDC Info'!$E$14 -> Ottawa River Power Corporation | B4: EB-2021-0052 | C4: 2022 | D4: 2021 | E4: 2016 | F4: System Service | G4: ='App.2-AB_Capital Expenditures'!B14 -> 2013 | H4: ='App.2-AB_Capital Expenditures'!B19 -> 0 | I4: ='App.2-AB_Capital Expenditures'!C19 -> 0
A5: ='LDC Info'!$E$14 -> Ottawa River Power Corporation | B5: EB-2021-0052 | C5: 2022 | D5: 2021 | E5: 2016 | F5: General Plant | G5: ='App.2-AB_Capital Expenditures'!B14 -> 2013 | H5: ='App.2-AB_Capital Expenditures'!B20 -> 0 | I5: ='App.2-AB_Capital Expenditures'!C20 -> 0
A6: ='LDC Info'!$E$14 -> Ottawa River Power Corporation | B6: EB-2021-0052 | C6: 2022 | D6: 2021 | E6: 2016 | F6: Total Expenditure | G6: ='App.2-AB_Capital Expenditures'!B14 -> 2013 | H6: ='App.2-AB_Capital Expenditures'!B21 -> 0 | I6: ='App.2-AB_Capital Expenditures'!C21 -> 0
A7: ='LDC Info'!$E$14 -> Ottawa River Power Corporation | B7: EB-2021-0052 | C7: 2022 | D7: 2021 | E7: 2016 | F7: Capital Contributions | G7: ='App.2-AB_Capital Expenditures'!B14 -> 2013 | H7: ='App.2-AB_Capital Expenditures'!B22 -> 0 | I7: ='App.2-AB_Capital Expenditures'!C22 -> 0
A8: ='LDC Info'!$E$14 -> Ottawa River Power Corporation | B8: EB-2021-0052 | C8: 2022 | D8: 2021 | E8: 2016 | F8: Net Capital Expenditures | G8: ='App.2-AB_Capital Expenditures'!B14 -> 2013 | H8: ='App.2-AB_Capital Expenditures'!B23 -> 0 | I8: ='App.2-AB_Capital Expenditures'!C23 -> 0
A9: ='LDC Info'!$E$14 -> Ottawa River Power Corporation | B9: EB-2021-0052 | C9: 2022 | D9: 2021 | E9: 2016 | F9: System O&M | G9: ='App.2-AB_Capital Expenditures'!B14 -> 2013 | H9: ='App.2-AB_Capital Expenditures'!B24 -> 0 | I9: ='App.2-AB_Capital Expenditures'!C24 -> 0
A10: ='LDC Info'!$E$14 -> Ottawa River Power Corporation | B10: EB-2021-0052 | C10: 2022 | D10: 2021 | E10: 2016 | F10: System Access | G10: ='App.2-AB_Capital Expenditures'!E14 -> 2014 | H10: ='App.2-AB_Capital Expenditures'!E17 -> 0 | I10: ='App.2-AB_Capital Expenditures'!F17 -> 0
A11: ='LDC Info'!$E$14 -> Ottawa River Power Corporation | B11: EB-2021-0052 | C11: 2022 | D11: 2021 | E11: 2016 | F11: System Renewal | G11: ='App.2-AB_Capital Expenditures'!E14 -> 2014 | H11: ='App.2-AB_Capital Expenditures'!E18 -> 0 | I11: ='App.2-AB_Capital Expenditures'!F18 -> 0
A12: ='LDC Info'!$E$14 -> Ottawa River Power Corporation | B12: EB-2021-0052 | C12: 2022 | D12: 2021 | E12: 2016 | F12: System Service | G12: ='App.2-AB_Capital Expenditures'!E14 -> 2014 | H12: ='App.2-AB_Capital Expenditures'!E19 -> 0 | I12: ='App.2-AB_Capital Expenditures'!F19 -> 0
A13: ='LDC Info'!$E$14 -> Ottawa River Power Corporation | B13: EB-2021-0052 | C13: 2022 | D13: 2021 | E13: 2016 | F13: General Plant | G13: ='App.2-AB_Capital Expenditures'!E14 -> 2014 | H13: ='App.2-AB_Capital Expenditures'!E20 -> 0 | I13: ='App.2-AB_Capital Expenditures'!F20 -> 0
A14: ='LDC Info'!$E$14 -> Ottawa River Power Corporation | B14: EB-2021-0052 | C14: 2022 | D14: 2021 | E14: 2016 | F14: Total Expenditure | G14: ='App.2-AB_Capital Expenditures'!E14 -> 2014 | H14: ='App.2-AB_Capital Expenditures'!E21 -> 0 | I14: ='App.2-AB_Capital Expenditures'!F21 -> 0
A15: ='LDC Info'!$E$14 -> Ottawa River Power Corporation | B15: EB-2021-0052 | C15: 2022 | D15: 2021 | E15: 2016 | F15: Capital Contributions | G15: ='App.2-AB_Capital Expenditures'!E14 -> 2014 | H15: ='App.2-AB_Capital Expenditures'!E22 -> 0 | I15: ='App.2-AB_Capital Expenditures'!F22 -> 0
A16: ='LDC Info'!$E$14 -> Ottawa River Power Corporation | B16: EB-2021-0052 | C16: 2022 | D16: 2021 | E16: 2016 | F16: Net Capital Expenditures | G16: ='App.2-AB_Capital Expenditures'!E14 -> 2014 | H16: ='App.2-AB_Capital Expenditures'!E23 -> 0 | I16: ='App.2-AB_Capital Expenditures'!F23 -> 0
A17: ='LDC Info'!$E$14 -> Ottawa River Power Corporation | B17: EB-2021-0052 | C17: 2022 | D17: 2021 | E17: 2016 | F17: System O&M | G17: ='App.2-AB_Capital Expenditures'!E14 -> 2014 | H17: ='App.2-AB_Capital Expenditures'!E24 -> 0 | I17: ='App.2-AB_Capital Expenditures'!F24 -> 0
A18: ='LDC Info'!$E$14 -> Ottawa River Power Corporation | B18: EB-2021-0052 | C18: 2022 | D18: 2021 | E18: 2016 | F18: System Access | G18: ='App.2-AB_Capital Expenditures'!H14 -> 2015 | H18: ='App.2-AB_Capital Expenditures'!H17 -> 0 | I18: ='App.2-AB_Capital Expenditures'!I17 -> 0
A19: ='LDC Info'!$E$14 -> Ottawa River Power Corporation | B19: EB-2021-0052 | C19: 2022 | D19: 2021 | E19: 2016 | F19: System Renewal | G19: ='App.2-AB_Capital Expenditures'!H14 -> 2015 | H19: ='App.2-AB_Capital Expenditures'!H18 -> 0 | I19: ='App.2-AB_Capital Expenditures'!I18 -> 0
A20: ='LDC Info'!$E$14 -> Ottawa River Power Corporation | B20: EB-2021-0052 | C20: 2022 | D20: 2021 | E20: 2016 | F20: System Service | G20: ='App.2-AB_Capital Expenditures'!H14 -> 2015 | H20: ='App.2-AB_Capital Expenditures'!H19 -> 0 | I20: ='App.2-AB_Capital Expenditures'!I19 -> 0
A21: ='LDC Info'!$E$14 -> Ottawa River Power Corporation | B21: EB-2021-0052 | C21: 2022 | D21: 2021 | E21: 2016 | F21: General Plant | G21: ='App.2-AB_Capital Expenditures'!H14 -> 2015 | H21: ='App.2-AB_Capital Expenditures'!H20 -> 0 | I21: ='App.2-AB_Capital Expenditures'!I20 -> 0
A22: ='LDC Info'!$E$14 -> Ottawa River Power Corporation | B22: EB-2021-0052 | C22: 2022 | D22: 2021 | E22: 2016 | F22: Total Expenditure | G22: ='App.2-AB_Capital Expenditures'!H14 -> 2015 | H22: ='App.2-AB_Capital Expenditures'!H21 -> 0 | I22: ='App.2-AB_Capital Expenditures'!I21 -> 0
A23: ='LDC Info'!$E$14 -> Ottawa River Power Corporation | B23: EB-2021-0052 | C23: 2022 | D23: 2021 | E23: 2016 | F23: Capital Contributions | G23: ='App.2-AB_Capital Expenditures'!H14 -> 2015 | H23: ='App.2-AB_Capital Expenditures'!H22 -> 0 | I23: ='App.2-AB_Capital Expenditures'!I22 -> 0
A24: ='LDC Info'!$E$14 -> Ottawa River Power Corporation | B24: EB-2021-0052 | C24: 2022 | D24: 2021 | E24: 2016 | F24: Net Capital Expenditures | G24: ='App.2-AB_Capital Expenditures'!H14 -> 2015 | H24: ='App.2-AB_Capital Expenditures'!H23 -> 0 | I24: ='App.2-AB_Capital Expenditures'!I23 -> 0
A25: ='LDC Info'!$E$14 -> Ottawa River Power Corporation | B25: EB-2021-0052 | C25: 2022 | D25: 2021 | E25: 2016 | F25: System O&M | G25: ='App.2-AB_Capital Expenditures'!H14 -> 2015 | H25: ='App.2-AB_Capital Expenditures'!H24 -> 0 | I25: ='App.2-AB_Capital Expenditures'!I24 -> 0
A26: ='LDC Info'!$E$14 -> Ottawa River Power Corporation | B26: EB-2021-0052 | C26: 2022 | D26: 2021 | E26: 2016 | F26: System Access | G26: ='App.2-AB_Capital Expenditures'!K14 -> 2016 | H26: ='App.2-AB_Capital Expenditures'!K17 -> 500850 | I26: ='App.2-AB_Capital Expenditures'!L17 -> 172793
A27: ='LDC Info'!$E$14 -> Ottawa River Power Corporation | B27: EB-2021-0052 | C27: 2022 | D27: 2021 | E27: 2016 | F27: System Renewal | G27: ='App.2-AB_Capital Expenditures'!K14 -> 2016 | H27: ='App.2-AB_Capital Expenditures'!K18 -> 194100 | I27: ='App.2-AB_Capital Expenditures'!L18 -> 580783.58
A28: ='LDC Info'!$E$14 -> Ottawa River Power Corporation | B28: EB-2021-0052 | C28: 2022 | D28: 2021 | E28: 2016 | F28: System Service | G28: ='App.2-AB_Capital Expenditures'!K14 -> 2016 | H28: ='App.2-AB_Capital Expenditures'!K19 -> 474800 | I28: ='App.2-AB_Capital Expenditures'!L19 -> 167879.03
A29: ='LDC Info'!$E$14 -> Ottawa River Power Corporation | B29: EB-2021-0052 | C29: 2022 | D29: 2021 | E29: 2016 | F29: General Plant | G29: ='App.2-AB_Capital Expenditures'!K14 -> 2016 | H29: ='App.2-AB_Capital Expenditures'!K20 -> 376200 | I29: ='App.2-AB_Capital Expenditures'!L20 -> 234605.26
A30: ='LDC Info'!$E$14 -> Ottawa River Power Corporation | B30: EB-2021-0052 | C30: 2022 | D30: 2021 | E30: 2016 | F30: Total Expenditure | G30: ='App.2-AB_Capital Expenditures'!K14 -> 2016 | H30: ='App.2-AB_Capital Expenditures'!K21 -> 1545950 | I30: ='App.2-AB_Capital Expenditures'!L21 -> 1156060.87
A31: ='LDC Info'!$E$14 -> Ottawa River Power Corporation | B31: EB-2021-0052 | C31: 2022 | D31: 2021 | E31: 2016 | F31: Capital Contributions | G31: ='App.2-AB_Capital Expenditures'!K14 -> 2016 | H31: ='App.2-AB_Capital Expenditures'!K22 -> -300000 | I31: ='App.2-AB_Capital Expenditures'!L22 -> -96899
A32: ='LDC Info'!$E$14 -> Ottawa River Power Corporation | B32: EB-2021-0052 | C32: 2022 | D32: 2021 | E32: 2016 | F32: Net Capital Expenditures | G32: ='App.2-AB_Capital Expenditures'!K14 -> 2016 | H32: ='App.2-AB_Capital Expenditures'!K23 -> 1245950 | I32: ='App.2-AB_Capital Expenditures'!L23 -> 1059161.87
A33: ='LDC Info'!$E$14 -> Ottawa River Power Corporation | B33: EB-2021-0052 | C33: 2022 | D33: 2021 | E33: 2016 | F33: System O&M | G33: ='App.2-AB_Capital Expenditures'!K14 -> 2016 | H33: ='App.2-AB_Capital Expenditures'!K24 -> 1300590 | I33: ='App.2-AB_Capital Expenditures'!L24 -> 1243810
A34: ='LDC Info'!$E$14 -> Ottawa River Power Corporation | B34: =EBNUMBER -> EB-2021-0052 | C34: =TestYear -> 2022 | D34: =BridgeYear -> 2021 | E34: =RebaseYear -> 2016 | F34: System Access | G34: ='App.2-AB_Capital Expenditures'!N14 -> 2017 | H34: ='App.2-AB_Capital Expenditures'!N17 -> 452200 | I34: ='App.2-AB_Capital Expenditures'!O17 -> 363640.43
A35: ='LDC Info'!$E$14 -> Ottawa River Power Corporation | B35: EB-2021-0052 | C35: 2022 | D35: 2021 | E35: 2016 | F35: System Renewal | G35: ='App.2-AB_Capital Expenditures'!N14 -> 2017 | H35: ='App.2-AB_Capital Expenditures'!N18 -> 248750 | I35: ='App.2-AB_Capital Expenditures'!O18 -> 605966.55
A36: ='LDC Info'!$E$14 -> Ottawa River Power Corporation | B36: EB-2021-0052 | C36: 2022 | D36: 2021 | E36: 2016 | F36: System Service | G36: ='App.2-AB_Capital Expenditures'!N14 -> 2017 | H36: ='App.2-AB_Capital Expenditures'!N19 -> 345849 | I36: ='App.2-AB_Capital Expenditures'!O19 -> 156474.74
A37: ='LDC Info'!$E$14 -> Ottawa River Power Corporation | B37: EB-2021-0052 | C37: 2022 | D37: 2021 | E37: 2016 | F37: General Plant | G37: ='App.2-AB_Capital Expenditures'!N14 -> 2017 | H37: ='App.2-AB_Capital Expenditures'!N20 -> 255200 | I37: ='App.2-AB_Capital Expenditures'!O20 -> 374734.99
A38: ='LDC Info'!$E$14 -> Ottawa River Power Corporation | B38: EB-2021-0052 | C38: 2022 | D38: 2021 | E38: 2016 | F38: Total Expenditure | G38: ='App.2-AB_Capital Expenditures'!N14 -> 2017 | H38: ='App.2-AB_Capital Expenditures'!N21 -> 1301999 | I38: ='App.2-AB_Capital Expenditures'!O21 -> 1500816.71
A39: ='LDC Info'!$E$14 -> Ottawa River Power Corporation | B39: EB-2021-0052 | C39: 2022 | D39: 2021 | E39: 2016 | F39: Capital Contributions | G39: ='App.2-AB_Capital Expenditures'!N14 -> 2017 | H39: ='App.2-AB_Capital Expenditures'!N22 -> 0 | I39: ='App.2-AB_Capital Expenditures'!O22 -> -263533
A40: ='LDC Info'!$E$14 -> Ottawa River Power Corporation | B40: EB-2021-0052 | C40: 2022 | D40: 2021 | E40: 2016 | F40: Net Capital Expenditures | G40: ='App.2-AB_Capital Expenditures'!N14 -> 2017 | H40: ='App.2-AB_Capital Expenditures'!N23 -> 1301999 | I40: ='App.2-AB_Capital Expenditures'!O23 -> 1237283.71
A41: ='LDC Info'!$E$14 -> Ottawa River Power Corporation | B41: EB-2021-0052 | C41: 2022 | D41: 2021 | E41: 2016 | F41: System O&M | G41: ='App.2-AB_Capital Expenditures'!N14 -> 2017 | H41: ='App.2-AB_Capital Expenditures'!N24 -> 0 | I41: ='App.2-AB_Capital Expenditures'!O24 -> 1257805
A42: ='LDC Info'!$E$14 -> Ottawa River Power Corporation | B42: EB-2021-0052 | C42: 2022 | D42: 2021 | E42: 2016 | F42: System Access | G42: ='App.2-AB_Capital Expenditures'!Q14 -> 2018 | H42: ='App.2-AB_Capital Expenditures'!Q17 -> 392700 | I42: ='App.2-AB_Capital Expenditures'!R17 -> 493499.75
A43: ='LDC Info'!$E$14 -> Ottawa River Power Corporation | B43: EB-2021-0052 | C43: 2022 | D43: 2021 | E43: 2016 | F43: System Renewal | G43: ='App.2-AB_Capital Expenditures'!Q14 -> 2018 | H43: ='App.2-AB_Capital Expenditures'!Q18 -> 193200 | I43: ='App.2-AB_Capital Expenditures'!R18 -> 860656.83
A44: ='LDC Info'!$E$14 -> Ottawa River Power Corporation | B44: EB-2021-0052 | C44: 2022 | D44: 2021 | E44: 2016 | F44: System Service | G44: ='App.2-AB_Capital Expenditures'!Q14 -> 2018 | H44: ='App.2-AB_Capital Expenditures'!Q19 -> 573650 | I44: ='App.2-AB_Capital Expenditures'!R19 -> 221884.3
A45: ='LDC Info'!$E$14 -> Ottawa River Power Corporation | B45: EB-2021-0052 | C45: 2022 | D45: 2021 | E45: 2016 | F45: General Plant | G45: ='App.2-AB_Capital Expenditures'!Q14 -> 2018 | H45: ='App.2-AB_Capital Expenditures'!Q20 -> 116200 | I45: ='App.2-AB_Capital Expenditures'!R20 -> 51470.23
A46: ='LDC Info'!$E$14 -> Ottawa River Power Corporation | B46: EB-2021-0052 | C46: 2022 | D46: 2021 | E46: 2016 | F46: Total Expenditure | G46: ='App.2-AB_Capital Expenditures'!Q14 -> 2018 | H46: ='App.2-AB_Capital Expenditures'!Q21 -> 1275750 | I46: ='App.2-AB_Capital Expenditures'!R21 -> 1627511.11
A47: ='LDC Info'!$E$14 -> Ottawa River Power Corporation | B47: EB-2021-0052 | C47: 2022 | D47: 2021 | E47: 2016 | F47: Capital Contributions | G47: ='App.2-AB_Capital Expenditures'!Q14 -> 2018 | H47: ='App.2-AB_Capital Expenditures'!Q22 -> 0 | I47: ='App.2-AB_Capital Expenditures'!R22 -> -136450
A48: ='LDC Info'!$E$14 -> Ottawa River Power Corporation | B48: EB-2021-0052 | C48: 2022 | D48: 2021 | E48: 2016 | F48: Net Capital Expenditures | G48: ='App.2-AB_Capital Expenditures'!Q14 -> 2018 | H48: ='App.2-AB_Capital Expenditures'!Q23 -> 1275750 | I48: ='App.2-AB_Capital Expenditures'!R23 -> 1491061.11
A49: ='LDC Info'!$E$14 -> Ottawa River Power Corporation | B49: EB-2021-0052 | C49: 2022 | D49: 2021 | E49: 2016 | F49: System O&M | G49: ='App.2-AB_Capital Expenditures'!Q14 -> 2018 | H49: ='App.2-AB_Capital Expenditures'!Q24 -> 0 | I49: ='App.2-AB_Capital Expenditures'!R24 -> 984636
A50: ='LDC Info'!$E$14 -> Ottawa River Power Corporation | B50: EB-2021-0052 | C50: 2022 | D50: 2021 | E50: 2016 | F50: System Access | G50: ='App.2-AB_Capital Expenditures'!T14 -> 2019 | H50: ='App.2-AB_Capital Expenditures'!T17 -> 392700 | I50: ='App.2-AB_Capital Expenditures'!U17 -> 651165.9
A51: ='LDC Info'!$E$14 -> Ottawa River Power Corporation | B51: EB-2021-0052 | C51: 2022 | D51: 2021 | E51: 2016 | F51: System Renewal | G51: ='App.2-AB_Capital Expenditures'!T14 -> 2019 | H51: ='App.2-AB_Capital Expenditures'!T18 -> 193200 | I51: ='App.2-AB_Capital Expenditures'!U18 -> 457973.51
A52: ='LDC Info'!$E$14 -> Ottawa River Power Corporation | B52: EB-2021-0052 | C52: 2022 | D52: 2021 | E52: 2016 | F52: System Service | G52: ='App.2-AB_Capital Expenditures'!T14 -> 2019 | H52: ='App.2-AB_Capital Expenditures'!T19 -> 293200 | I52: ='App.2-AB_Capital Expenditures'!U19 -> 47622
A53: ='LDC Info'!$E$14 -> Ottawa River Power Corporation | B53: EB-2021-0052 | C53: 2022 | D53: 2021 | E53: 2016 | F53: General Plant | G53: ='App.2-AB_Capital Expenditures'!T14 -> 2019 | H53: ='App.2-AB_Capital Expenditures'!T20 -> 134200 | I53: ='App.2-AB_Capital Expenditures'!U20 -> 427096.84
A54: ='LDC Info'!$E$14 -> Ottawa River Power Corporation | B54: EB-2021-0052 | C54: 2022 | D54: 2021 | E54: 2016 | F54: Total Expenditure | G54: ='App.2-AB_Capital Expenditures'!T14 -> 2019 | H54: ='App.2-AB_Capital Expenditures'!T21 -> 1013300 | I54: ='App.2-AB_Capital Expenditures'!U21 -> 1583858.25
A55: ='LDC Info'!$E$14 -> Ottawa River Power Corporation | B55: EB-2021-0052 | C55: 2022 | D55: 2021 | E55: 2016 | F55: Capital Contributions | G55: ='App.2-AB_Capital Expenditures'!T14 -> 2019 | H55: ='App.2-AB_Capital Expenditures'!T22 -> 0 | I55: ='App.2-AB_Capital Expenditures'!U22 -> -312300
A56: ='LDC Info'!$E$14 -> Ottawa River Power Corporation | B56: EB-2021-0052 | C56: 2022 | D56: 2021 | E56: 2016 | F56: Net Capital Expenditures | G56: ='App.2-AB_Capital Expenditures'!T14 -> 2019 | H56: ='App.2-AB_Capital Expenditures'!T23 -> 1013300 | I56: ='App.2-AB_Capital Expenditures'!U23 -> 1271558.25
A57: ='LDC Info'!$E$14 -> Ottawa River Power Corporation | B57: EB-2021-0052 | C57: 2022 | D57: 2021 | E57: 2016 | F57: System O&M | G57: ='App.2-AB_Capital Expenditures'!T14 -> 2019 | H57: ='App.2-AB_Capital Expenditures'!T24 -> 0 | I57: ='App.2-AB_Capital Expenditures'!U24 -> 1158895
A58: ='LDC Info'!$E$14 -> Ottawa River Power Corporation | B58: EB-2021-0052 | C58: 2022 | D58: 2021 | E58: 2016 | F58: System Access | G58: ='App.2-AB_Capital Expenditures'!W14 -> 2020 | H58: ='App.2-AB_Capital Expenditures'!W17 -> 392700 | I58: ='App.2-AB_Capital Expenditures'!X17 -> 193075.15
A59: ='LDC Info'!$E$14 -> Ottawa River Power Corporation | B59: EB-2021-0052 | C59: 2022 | D59: 2021 | E59: 2016 | F59: System Renewal | G59: ='App.2-AB_Capital Expenditures'!W14 -> 2020 | H59: ='App.2-AB_Capital Expenditures'!W18 -> 193200 | I59: ='App.2-AB_Capital Expenditures'!X18 -> 221395.7
A60: ='LDC Info'!$E$14 -> Ottawa River Power Corporation | B60: EB-2021-0052 | C60: 2022 | D60: 2021 | E60: 2016 | F60: System Service | G60: ='App.2-AB_Capital Expenditures'!W14 -> 2020 | H60: ='App.2-AB_Capital Expenditures'!W19 -> 293200 | I60: ='App.2-AB_Capital Expenditures'!X19 -> 76172.21
A61: ='LDC Info'!$E$14 -> Ottawa River Power Corporation | B61: EB-2021-0052 | C61: 2022 | D61: 2021 | E61: 2016 | F61: General Plant | G61: ='App.2-AB_Capital Expenditures'!W14 -> 2020 | H61: ='App.2-AB_Capital Expenditures'!W20 -> 134200 | I61: ='App.2-AB_Capital Expenditures'!X20 -> 161739.94
A62: ='LDC Info'!$E$14 -> Ottawa River Power Corporation | B62: EB-2021-0052 | C62: 2022 | D62: 2021 | E62: 2016 | F62: Total Expenditure | G62: ='App.2-AB_Capital Expenditures'!W14 -> 2020 | H62: ='App.2-AB_Capital Expenditures'!W21 -> 1013300 | I62: ='App.2-AB_Capital Expenditures'!X21 -> 652383
A63: ='LDC Info'!$E$14 -> Ottawa River Power Corporation | B63: EB-2021-0052 | C63: 2022 | D63: 2021 | E63: 2016 | F63: Capital Contributions | G63: ='App.2-AB_Capital Expenditures'!W14 -> 2020 | H63: ='App.2-AB_Capital Expenditures'!W22 -> 0 | I63: ='App.2-AB_Capital Expenditures'!X22 -> -101293
A64: ='LDC Info'!$E$14 -> Ottawa River Power Corporation | B64: EB-2021-0052 | C64: 2022 | D64: 2021 | E64: 2016 | F64: Net Capital Expenditures | G64: ='App.2-AB_Capital Expenditures'!W14 -> 2020 | H64: ='App.2-AB_Capital Expenditures'!W23 -> 1013300 | I64: ='App.2-AB_Capital Expenditures'!X23 -> 551090
A65: ='LDC Info'!$E$14 -> Ottawa River Power Corporation | B65: EB-2021-0052 | C65: 2022 | D65: 2021 | E65: 2016 | F65: System O&M | G65: ='App.2-AB_Capital Expenditures'!W14 -> 2020 | H65: ='App.2-AB_Capital Expenditures'!W24 -> 0 | I65: ='App.2-AB_Capital Expenditures'!X24 -> 1286976
A66: ='LDC Info'!$E$14 -> Ottawa River Power Corporation | B66: =EBNUMBER -> EB-2021-0052 | C66: =TestYear -> 2022 | D66: =BridgeYear -> 2021 | E66: =RebaseYear -> 2016 | F66: System Access | G66: ='App.2-AB_Capital Expenditures'!Z14 -> 2021 | H66: ='App.2-AB_Capital Expenditures'!Z17 -> 381404.9 | I66: ='App.2-AB_Capital Expenditures'!AA17 -> 0
A67: ='LDC Info'!$E$14 -> Ottawa River Power Corporation | B67: EB-2021-0052 | C67: 2022 | D67: 2021 | E67: 2016 | F67: System Renewal | G67: ='App.2-AB_Capital Expenditures'!Z14 -> 2021 | H67: ='App.2-AB_Capital Expenditures'!Z18 -> 474649 | I67: ='App.2-AB_Capital Expenditures'!AA18 -> 0
A68: ='LDC Info'!$E$14 -> Ottawa River Power Corporation | B68: EB-2021-0052 | C68: 2022 | D68: 2021 | E68: 2016 | F68: System Service | G68: ='App.2-AB_Capital Expenditures'!Z14 -> 2021 | H68: ='App.2-AB_Capital Expenditures'!Z19 -> 1134 | I68: ='App.2-AB_Capital Expenditures'!AA19 -> 0
A69: ='LDC Info'!$E$14 -> Ottawa River Power Corporation | B69: EB-2021-0052 | C69: 2022 | D69: 2021 | E69: 2016 | F69: General Plant | G69: ='App.2-AB_Capital Expenditures'!Z14 -> 2021 | H69: ='App.2-AB_Capital Expenditures'!Z20 -> 398779 | I69: ='App.2-AB_Capital Expenditures'!AA20 -> 0
A70: ='LDC Info'!$E$14 -> Ottawa River Power Corporation | B70: EB-2021-0052 | C70: 2022 | D70: 2021 | E70: 2016 | F70: Total Expenditure | G70: ='App.2-AB_Capital Expenditures'!Z14 -> 2021 | H70: ='App.2-AB_Capital Expenditures'!Z21 -> 1255966.9 | I70: ='App.2-AB_Capital Expenditures'!AA21 -> 0
A71: ='LDC Info'!$E$14 -> Ottawa River Power Corporation | B71: EB-2021-0052 | C71: 2022 | D71: 2021 | E71: 2016 | F71: Capital Contributions | G71: ='App.2-AB_Capital Expenditures'!Z14 -> 2021 | H71: ='App.2-AB_Capital Expenditures'!Z22 -> -194750 | I71: ='App.2-AB_Capital Expenditures'!AA22 -> 0
A72: ='LDC Info'!$E$14 -> Ottawa River Power Corporation | B72: EB-2021-0052 | C72: 2022 | D72: 2021 | E72: 2016 | F72: Net Capital Expenditures | G72: ='App.2-AB_Capital Expenditures'!Z14 -> 2021 | H72: ='App.2-AB_Capital Expenditures'!Z23 -> 1061216.9 | I72: ='App.2-AB_Capital Expenditures'!AA23 -> 0
A73: ='LDC Info'!$E$14 -> Ottawa River Power Corporation | B73: EB-2021-0052 | C73: 2022 | D73: 2021 | E73: 2016 | F73: System O&M | G73: ='App.2-AB_Capital Expenditures'!Z14 -> 2021 | H73: ='App.2-AB_Capital Expenditures'!Z24 -> 1378298 | I73: ='App.2-AB_Capital Expenditures'!AA24 -> 0
A74: ='LDC Info'!$E$14 -> Ottawa River Power Corporation | B74: EB-2021-0052 | C74: 2022 | D74: 2021 | E74: 2016 | F74: System Access | G74: ='App.2-AB_Capital Expenditures'!AC14 -> 2022 | H74: ='App.2-AB_Capital Expenditures'!AC17 -> 833351.62
A75: ='LDC Info'!$E$14 -> Ottawa River Power Corporation | B75: EB-2021-0052 | C75: 2022 | D75: 2021 | E75: 2016 | F75: System Renewal | G75: ='App.2-AB_Capital Expenditures'!AC14 -> 2022 | H75: ='App.2-AB_Capital Expenditures'!AC18 -> 1247780
A76: ='LDC Info'!$E$14 -> Ottawa River Power Corporation | B76: EB-2021-0052 | C76: 2022 | D76: 2021 | E76: 2016 | F76: System Service | G76: ='App.2-AB_Capital Expenditures'!AC14 -> 2022 | H76: ='App.2-AB_Capital Expenditures'!AC19 -> 105000
A77: ='LDC Info'!$E$14 -> Ottawa River Power Corporation | B77: EB-2021-0052 | C77: 2022 | D77: 2021 | E77: 2016 | F77: General Plant | G77: ='App.2-AB_Capital Expenditures'!AC14 -> 2022 | H77: ='App.2-AB_Capital Expenditures'!AC20 -> 139210
A78: ='LDC Info'!$E$14 -> Ottawa River Power Corporation | B78: EB-2021-0052 | C78: 2022 | D78: 2021 | E78: 2016 | F78: Total Expenditure | G78: ='App.2-AB_Capital Expenditures'!AC14 -> 2022 | H78: ='App.2-AB_Capital Expenditures'!AC21 -> 2325341.62
A79: ='LDC Info'!$E$14 -> Ottawa River Power Corporation | B79: EB-2021-0052 | C79: 2022 | D79: 2021 | E79: 2016 | F79: Capital Contributions | G79: ='App.2-AB_Capital Expenditures'!AC14 -> 2022 | H79: ='App.2-AB_Capital Expenditures'!AC22 -> -423652
A80: ='LDC Info'!$E$14 -> Ottawa River Power Corporation | B80: EB-2021-0052 | C80: 2022 | D80: 2021 | E80: 2016 | F80: Net Capital Expenditures | G80: ='App.2-AB_Capital Expenditures'!AC14 -> 2022 | H80: ='App.2-AB_Capital Expenditures'!AC23 -> 1901689.62
A81: ='LDC Info'!$E$14 -> Ottawa River Power Corporation | B81: EB-2021-0052 | C81: 2022 | D81: 2021 | E81: 2016 | F81: System O&M | G81: ='App.2-AB_Capital Expenditures'!AC14 -> 2022 | H81: ='App.2-AB_Capital Expenditures'!AC24 -> 1477837
A82: ='LDC Info'!$E$14 -> Ottawa River Power Corporation | B82: EB-2021-0052 | C82: 2022 | D82: 2021 | E82: 2016 | F82: System Access | G82: ='App.2-AB_Capital Expenditures'!AD14 -> 2023 | H82: ='App.2-AB_Capital Expenditures'!AD17 -> 546770
A83: ='LDC Info'!$E$14 -> Ottawa River Power Corporation | B83: EB-2021-0052 | C83: 2022 | D83: 2021 | E83: 2016 | F83: System Renewal | G83: ='App.2-AB_Capital Expenditures'!AD14 -> 2023 | H83: ='App.2-AB_Capital Expenditures'!AD18 -> 738610
A84: ='LDC Info'!$E$14 -> Ottawa River Power Corporation | B84: EB-2021-0052 | C84: 2022 | D84: 2021 | E84: 2016 | F84: System Service | G84: ='App.2-AB_Capital Expenditures'!AD14 -> 2023 | H84: ='App.2-AB_Capital Expenditures'!AD19 -> 161910
A85: ='LDC Info'!$E$14 -> Ottawa River Power Corporation | B85: EB-2021-0052 | C85: 2022 | D85: 2021 | E85: 2016 | F85: General Plant | G85: ='App.2-AB_Capital Expenditures'!AD14 -> 2023 | H85: ='App.2-AB_Capital Expenditures'!AD20 -> 19400
A86: ='LDC Info'!$E$14 -> Ottawa River Power Corporation | B86: EB-2021-0052 | C86: 2022 | D86: 2021 | E86: 2016 | F86: Total Expenditure | G86: ='App.2-AB_Capital Expenditures'!AD14 -> 2023 | H86: ='App.2-AB_Capital Expenditures'!AD21 -> 1466690
A87: ='LDC Info'!$E$14 -> Ottawa River Power Corporation | B87: EB-2021-0052 | C87: 2022 | D87: 2021 | E87: 2016 | F87: Capital Contributions | G87: ='App.2-AB_Capital Expenditures'!AD14 -> 2023 | H87: ='App.2-AB_Capital Expenditures'!AD22 -> -334230
A88: ='LDC Info'!$E$14 -> Ottawa River Power Corporation | B88: EB-2021-0052 | C88: 2022 | D88: 2021 | E88: 2016 | F88: Net Capital Expenditures | G88: ='App.2-AB_Capital Expenditures'!AD14 -> 2023 | H88: ='App.2-AB_Capital Expenditures'!AD23 -> 1132460
A89: ='LDC Info'!$E$14 -> Ottawa River Power Corporation | B89: EB-2021-0052 | C89: 2022 | D89: 2021 | E89: 2016 | F89: System O&M | G89: ='App.2-AB_Capital Expenditures'!AD14 -> 2023 | H89: ='App.2-AB_Capital Expenditures'!AD24 -> 1507400
A90: ='LDC Info'!$E$14 -> Ottawa River Power Corporation | B90: EB-2021-0052 | C90: 2022 | D90: 2021 | E90: 2016 | F90: System Access | G90: ='App.2-AB_Capital Expenditures'!AE14 -> 2024 | H90: ='App.2-AB_Capital Expenditures'!AE17 -> 661500
A91: ='LDC Info'!$E$14 -> Ottawa River Power Corporation | B91: EB-2021-0052 | C91: 2022 | D91: 2021 | E91: 2016 | F91: System Renewal | G91: ='App.2-AB_Capital Expenditures'!AE14 -> 2024 | H91: ='App.2-AB_Capital Expenditures'!AE18 -> 770790
A92: ='LDC Info'!$E$14 -> Ottawa River Power Corporation | B92: EB-2021-0052 | C92: 2022 | D92: 2021 | E92: 2016 | F92: System Service | G92: ='App.2-AB_Capital Expenditures'!AE14 -> 2024 | H92: ='App.2-AB_Capital Expenditures'!AE19 -> 62300
A93: ='LDC Info'!$E$14 -> Ottawa River Power Corporation | B93: EB-2021-0052 | C93: 2022 | D93: 2021 | E93: 2016 | F93: General Plant | G93: ='App.2-AB_Capital Expenditures'!AE14 -> 2024 | H93: ='App.2-AB_Capital Expenditures'!AE20 -> 29900
A94: ='LDC Info'!$E$14 -> Ottawa River Power Corporation | B94: EB-2021-0052 | C94: 2022 | D94: 2021 | E94: 2016 | F94: Total Expenditure | G94: ='App.2-AB_Capital Expenditures'!AE14 -> 2024 | H94: ='App.2-AB_Capital Expenditures'!AE21 -> 1524490
A95: ='LDC Info'!$E$14 -> Ottawa River Power Corporation | B95: EB-2021-0052 | C95: 2022 | D95: 2021 | E95: 2016 | F95: Capital Contributions | G95: ='App.2-AB_Capital Expenditures'!AE14 -> 2024 | H95: ='App.2-AB_Capital Expenditures'!AE22 -> -426150
A96: ='LDC Info'!$E$14 -> Ottawa River Power Corporation | B96: EB-2021-0052 | C96: 2022 | D96: 2021 | E96: 2016 | F96: Net Capital Expenditures | G96: ='App.2-AB_Capital Expenditures'!AE14 -> 2024 | H96: ='App.2-AB_Capital Expenditures'!AE23 -> 1098340
A97: ='LDC Info'!$E$14 -> Ottawa River Power Corporation | B97: EB-2021-0052 | C97: 2022 | D97: 2021 | E97: 2016 | F97: System O&M | G97: ='App.2-AB_Capital Expenditures'!AE14 -> 2024 | H97: ='App.2-AB_Capital Expenditures'!AE24 -> 1537540
A98: ='LDC Info'!$E$14 -> Ottawa River Power Corporation | B98: =EBNUMBER -> EB-2021-0052 | C98: =TestYear -> 2022 | D98: =BridgeYear -> 2021 | E98: =RebaseYear -> 2016 | F98: System Access | G98: ='App.2-AB_Capital Expenditures'!AF14 -> 2025 | H98: ='App.2-AB_Capital Expenditures'!AF17 -> 542300
A99: ='LDC Info'!$E$14 -> Ottawa River Power Corporation | B99: EB-2021-0052 | C99: 2022 | D99: 2021 | E99: 2016 | F99: System Renewal | G99: ='App.2-AB_Capital Expenditures'!AF14 -> 2025 | H99: ='App.2-AB_Capital Expenditures'!AF18 -> 861310
A100: ='LDC Info'!$E$14 -> Ottawa River Power Corporation | B100: EB-2021-0052 | C100: 2022 | D100: 2021 | E100: 2016 | F100: System Service | G100: ='App.2-AB_Capital Expenditures'!AF14 -> 2025 | H100: ='App.2-AB_Capital Expenditures'!AF19 -> 70080
A101: ='LDC Info'!$E$14 -> Ottawa River Power Corporation | B101: EB-2021-0052 | C101: 2022 | D101: 2021 | E101: 2016 | F101: General Plant | G101: ='App.2-AB_Capital Expenditures'!AF14 -> 2025 | H101: ='App.2-AB_Capital Expenditures'!AF20 -> 7400
A102: ='LDC Info'!$E$14 -> Ottawa River Power Corporation | B102: EB-2021-0052 | C102: 2022 | D102: 2021 | E102: 2016 | F102: Total Expenditure | G102: ='App.2-AB_Capital Expenditures'!AF14 -> 2025 | H102: ='App.2-AB_Capital Expenditures'!AF21 -> 1481090
A103: ='LDC Info'!$E$14 -> Ottawa River Power Corporation | B103: EB-2021-0052 | C103: 2022 | D103: 2021 | E103: 2016 | F103: Capital Contributions | G103: ='App.2-AB_Capital Expenditures'!AF14 -> 2025 | H103: ='App.2-AB_Capital Expenditures'!AF22 -> -336500
A104: ='LDC Info'!$E$14 -> Ottawa River Power Corporation | B104: EB-2021-0052 | C104: 2022 | D104: 2021 | E104: 2016 | F104: Net Capital Expenditures | G104: ='App.2-AB_Capital Expenditures'!AF14 -> 2025 | H104: ='App.2-AB_Capital Expenditures'!AF23 -> 1144590
A105: ='LDC Info'!$E$14 -> Ottawa River Power Corporation | B105: EB-2021-0052 | C105: 2022 | D105: 2021 | E105: 2016 | F105: System O&M | G105: ='App.2-AB_Capital Expenditures'!AF14 -> 2025 | H105: ='App.2-AB_Capital Expenditures'!AF24 -> 1568300
A106: ='LDC Info'!$E$14 -> Ottawa River Power Corporation | B106: EB-2021-0052 | C106: 2022 | D106: 2021 | E106: 2016 | F106: System Access | G106: ='App.2-AB_Capital Expenditures'!AG14 -> 2026 | H106: ='App.2-AB_Capital Expenditures'!AG17 -> 526430
A107: ='LDC Info'!$E$14 -> Ottawa River Power Corporation | B107: EB-2021-0052 | C107: 2022 | D107: 2021 | E107: 2016 | F107: System Renewal | G107: ='App.2-AB_Capital Expenditures'!AG14 -> 2026 | H107: ='App.2-AB_Capital Expenditures'!AG18 -> 793060
A108: ='LDC Info'!$E$14 -> Ottawa River Power Corporation | B108: EB-2021-0052 | C108: 2022 | D108: 2021 | E108: 2016 | F108: System Service | G108: ='App.2-AB_Capital Expenditures'!AG14 -> 2026 | H108: ='App.2-AB_Capital Expenditures'!AG19 -> 75270
A109: ='LDC Info'!$E$14 -> Ottawa River Power Corporation | B109: EB-2021-0052 | C109: 2022 | D109: 2021 | E109: 2016 | F109: General Plant | G109: ='App.2-AB_Capital Expenditures'!AG14 -> 2026 | H109: ='App.2-AB_Capital Expenditures'!AG20 -> 428400
A110: ='LDC Info'!$E$14 -> Ottawa River Power Corporation | B110: EB-2021-0052 | C110: 2022 | D110: 2021 | E110: 2016 | F110: Total Expenditure | G110: ='App.2-AB_Capital Expenditures'!AG14 -> 2026 | H110: ='App.2-AB_Capital Expenditures'!AG21 -> 1823160
A111: ='LDC Info'!$E$14 -> Ottawa River Power Corporation | B111: EB-2021-0052 | C111: 2022 | D111: 2021 | E111: 2016 | F111: Capital Contributions | G111: ='App.2-AB_Capital Expenditures'!AG14 -> 2026 | H111: ='App.2-AB_Capital Expenditures'!AG22 -> -347010
A112: ='LDC Info'!$E$14 -> Ottawa River Power Corporation | B112: EB-2021-0052 | C112: 2022 | D112: 2021 | E112: 2016 | F112: Net Capital Expenditures | G112: ='App.2-AB_Capital Expenditures'!AG14 -> 2026 | H112: ='App.2-AB_Capital Expenditures'!AG23 -> 1476150
A113: ='LDC Info'!$E$14 -> Ottawa River Power Corporation | B113: EB-2021-0052 | C113: 2022 | D113: 2021 | E113: 2016 | F113: System O&M | G113: ='App.2-AB_Capital Expenditures'!AG14 -> 2026 | H113: ='App.2-AB_Capital Expenditures'!AG24 -> 1599660

Sheet App.2-AC_Customer Engagement
B1: File Number: | C1: =EBNUMBER -> EB-2021-0052
B2: Exhibit:
B3: Tab:
B4: Schedule:
B5: Page:
B7: Date:
A9: Appendix 2-AC
A10: Customer Engagement Activities Summary
A12: Provide a list of customer engagement activities | B12: Provide a list of customer needs and preferences identified through each engagement activity | C12: Actions taken to respond to identified needs and preferences. If no action was taken, explain why.
A13: While preparing for the Cost of Service, ORPC conducted Customer Surveys inviting Residential, Small Business and Industrial & Commercial customers to provide feedback. This was completed in Q3 and Q4 2020. | B13: Day-to-day reliability Reasonable distribution rates Length of power outages Customer service New types of electrical services Preparing the network for new uses such as electric vehicles and renewable generation Sustainability - reducing the environmental impact of ORPC's operations Helping customers reduce and manage their electricity consumption | C13: Customer needs and preferences will be addressed through actionalable items within the DSP.
A14: Social Media/Website | B14: Customers have shown a preference for more frequent and responsive communication during power outages (location, ETR, cause etc.). They have also demonstrated positive reactions to news, tips, or other important information that is shared through ORPC's online platforms (social media and website). | C14: ORPC is utilizing a mix of social media and website outage maps to provide near real-time updates of outages. These platforms are also utilized to promote safety, conservation and events that related to the distribution of electricity.
A15: In office engagment | B15: - Customers are often brining in examples of scams related to fraudlent companies trying to determine if the information is trustworthy - Customers will come in with comments or suggestions related to areas of the distribution system that may require attention (tree trimming, BELL wire hanging, easement questions etc.) -Customers will come in and ask questions about usage or bills | C15: Customers are greeted by staff in office every attempt is made to achieve a first encounter resolution. Occasionally another department or service call may be required, further information is gathered and actions are taken to answer questions or resolve an issue. Customer follow up is performed to determine if issue is resolved.
A16: Written correspondence/mailers | B16: Some customers to not utilize technology to access information provided by the utility, they would prefer mail correspondence. | C16: ORPC includes information for customers via mail in their utility bills. This includes information on regulatory changes, assistance programs and various other important items of interest.
A17: Regional Planning Engagements | B17: ORPC engages with both the IESO (the regional planning) and HONI to ensure customer needs are met. | C17: ORPC advocates on behalf of it's customers regarding reliability, supply and future planning considerations.
A18: Customer Surveys (OEB Mandated) - 2017 & 2019 | B18: Customer have shown a preference for reasonable rates, reliability and, effective communication. | C18: ORPC has made great effort to address reliability and rates in the Cost of Service and DSP. Communication efforts are reviewed and improved on an going basis.
A19: Financial Assistance Programs a] Low-Income Emergency Assistance Program (LEAP) b] Ontario Electricity Support Program d] COVID-19 Emergency Assistance Program (CEAP) e] COVID-19 Emergency Assistance Program - Small Business (CEAP-SB) | C19: ORPC provides Low-income Energy Assistance (LEAP) support with assistance and cooperation from agency partners at the provincial level. LEAP is an emergency financial assistance program that is designed to assist low-income customers who encounter difficulty when paying their electricity bill payments. ORPC also promotes the Ontario Electricity Support Program (OESP). ORPC proactively engages with it's customers in-person, on the phone and online to notify them of the availability of OESP. Customers are kept informed on their applicaiton status (approved/rejected) in the event of an issue. When CEAP and CEAP-SB were introduced, ORPC proactively engaged it's customers to enroll them in the program. ORPC also spoke about the program on the radio and promoted it heavily online.
A20: E-billing, web presentment and on-line payment services | B20: ORPC provides both e-billing and web presentment which is accessible through the LDC's website. This helps customers identify usage trends and bring forward any concerns they might observe. Typically customer might notice a period of high usage, they will then engage with the LDC to seek assistance in determining the issue. | C20: ORPC will walk customers through their usage/bills when an inquiry is received. ORPC will also dispatch a service person to their home to help narrow down root causes of high electricity usage (faulty sump pumps, old appliances, electric heaters with fault thermostats etc.).
A45: Note: Use "ALT-ENTER" to go to the next line within a cell

Sheet App.2-B_Acctg Instructions (hidden)
A1: General Instructions to MIFRS Appendices
A2: Types of Schedules to File
A4: The purpose of this tab is to provide general instructions. The specific instructions to each appendix are listed in footnotes of each appendix.
A6: The typical applicant is expected to have made capitalization and depreciation policy changes under CGAAP as permitted by the OEB on January 1, 2012 or mandated by the OEB by January 1, 2013, and adopted IFRS for reporting purposes on January 1, 2015 (transition date January 1, 2014). Most distributors filing for 2021 rates have rebased with these accounting changes reflected in a prior rebasing application. If that is the case, information relating to pre-accounting policy changes is not generally required. Most distributors may have rebased under MIFRS. If that is the case, information related to the accounting standard used prior to IFRS is not generally required. The information to be provided by applicants will depend on when the accounting policy changes were made and when they last rebased. In general, applicants should provide the following information in the appendices:
E9: Reflecting Accounting Policy Changes in Current Application | G9: Reflected Accounting Policy Changes in Prior Application3 | H9: Rebased under MIFRS in Prior Application3
E10: Accounting Policy Changes in 2012 and Adopted IFRS in 2015 | F10: Accounting Policy Changes in 2013 and Adopted IFRS in 2015 | G10: Adopted IFRS in 2015 | H10: IFRS Since 2015
B11: 2021 | C11: Test | E11: MIFRS | F11: MIFRS | G11: MIFRS | H11: MIFRS
A12: Information to be filed in 2019 CoS Application | B12: 2020 | C12: Bridge | E12: MIFRS | F12: MIFRS | G12: MIFRS | H12: MIFRS
B13: 2019 | C13: Bridge | E13: MIFRS | F13: MIFRS | G13: MIFRS | H13: MIFRS
B14: 2018 | C14: Bridge | E14: MIFRS | F14: MIFRS | G14: MIFRS | H14: MIFRS
B15: 2017 | C15: Historical | E15: MIFRS | F15: MIFRS | G15: MIFRS | H15: MIFRS
B16: 2016 | C16: Historical | E16: MIFRS | F16: MIFRS | G16: MIFRS | H16: MIFRS
B17: 2015 | C17: Historical | E17: MIFRS and Revised CGAAP1 | F17: MIFRS and Revised CGAAP1 | G17: MIFRS and Revised CGAAP1 | H17: N/A
B18: 2014 | C18: Historical | E18: Revised CGAAP | F18: CGAAP and Revised CGAAP2 | G18: N/A | H18: N/A
B19: 2013 | C19: Historical | E19: CGAAP and Revised CGAAP2 | F19: N/A | G19: N/A | H19: N/A
A21: 1) For the transition year (2014), the applicant may file two appendices, one under Revised CGAAP and one under MIFRS, depending on the materiality of impacts. See the specific instructions under each appendix below for further details.
A22: 2) For applicants that are reflecting accounting policy changes for the first time in a rebasing application, the applicant must file two appendices in the year that the applicant implemented changes to its capitalization and depreciation policies (2012 or 2013), one before and one after the policy changes.
A23: 3) Applicants should provide CGAAP and Revised CGAAP schedules (i.e. as indicated in the first two columns of the above table) to support balances in Account 1576 if the account has yet to be disposed of.
A26: Appendix 2-BA - Fixed Asset Schedule
A28: Applicants are to provide Appendix 2-BA in accordance with the years and corresponding accounting standards noted in the above table to provide a year over year continuity in fixed assets.
A29: If this is the first application where the applicant is rebasing under MIFRS, the applicant should file two appendices, one under Revised CGAAP and one under MIFRS for the transition year (2014), if the change between Revised CGAAP and MIFRS is material. If the change from the accounting standards is not material, the applicant may choose to only provide one appendix under MIFRS. However, the applicant must also indicate the fixed asset net book value balance under Revised CGAAP, the total dollar value of the change and explain why it is not material.
A33: The applicant must establish the continuity of historical cost for gross assets and accumulated depreciation by asset class by ensuring that the opening balance in the year agrees to the closing balance in the prior year.
A36: Appendix 2-Cx - Depreciation and Amortization
A38: Applicants are to provide Appendix 2-C in accordance with the years and corresponding accounting standards listed in the above table.
A39: Appendix 2-C is to be used under all of the scenarios presented in the table above. In the appendix, the applicant will need to indicate which scenario applies. The appendix is to be duplicated for each year and for each accounting standard required as per the above table.
A40: Depreciation accounting policy changes were mandated by the OEB by January 1, 2013. In general, no further changes to an applicant's depreciation policy (i.e. assets' service lives) are expected after the OEB mandated changes by January 1, 2013, unless a change is determined to be necessary in accordance with the depreciation review required under IFRS. If the applicant has made any changes to its depreciation policy subsequent to the OEB mandated changes, for the year of the change, applicants must quantify the change in depreciation. If there are significant changes to multiple asset classes, the applicant must complete Appendix 2-C before and after the change. Applicants must also explain the nature of the change, the reason for the change, quantify the impact of the change.
A42: Appendix 2-E - Account 1575, IFRS-CGAAP Transitional PP&E Amounts (2-EA), Account 1576, Accounting Changes Under CGAAP (2-EB, 2-EC) CONTACT OEB STAFF IF TAB REQUIRED
A44: 1) For an applicant that has a balance in Account 1576 to dispose:
A45: · | B45: If an applicant changed capitalization and depreciation policies effective January 1, 2012, the applicant must complete Appendix 2-EB
A46: · | B46: If an applicant changed capitalization and depreciation policies effective January 1, 2013, the applicant must complete Appendix 2-EC
A48: 2) For an applicant that has a balance in Account 1575 to dispose:
A49: · | B49: The applicant must complete 2-EA
A50: If the applicant did not make any further PP&E accounting policy changes beyond the capitalization and depreciation policy changes as mandated by the OEB by January 1, 2013 (i.e. no further changes made on transition to IFRS), the applicant must indicate this and does not need to complete Appendix 2-EA.
A54: Appendix 2-Y - Summary of Impacts to Revenue Requirement from Transition to MIFRS CONTACT OEB STAFF IF TAB REQUIRED
A56: Applicants must complete Appendix 2-Y if this is the first rebasing application under MIFRS. An applicant must provide a summary of the dollar impacts of MIFRS to each component of the revenue requirement (e.g. rate base, operating costs, etc.), including the overall impact on the proposed revenue requirement. Accordingly, the applicant must identify financial differences and resulting revenue requirement impacts arising from the adoption of MIFRS as compared to CGAAP. If the applicant is reflecting the changes in capitalization and depreciation policies for the first time in a rebasing application as well, then a comparison between MIFRS and CGAAP before the change in accounting policies should be completed. If the applicant changed capitalization and depreciation policies and reflected these changes in a prior rebasing application, then a comparison between MIFRS and CGAAP after the change in accounting policies should be completed.

Sheet App.2-BA_Fixed Asset Cont
L1: File Number: | M1: =EBNUMBER -> EB-2021-0052
L2: Exhibit:
L3: Tab:
L4: Schedule:
L5: Page:
L7: Date:
A9: Appendix 2-BA
A10: Fixed Asset Continuity Schedule 1
E12: Accounting Standard | F12: CGAAP
E13: Year | F13: 2016 | G13: IFRS
D15: Gross Assets | J15: Accumulated Depreciation
A16: CCA Class | B16: OEB | C16: Description | D16: Opening Balance | E16: Additions | F16: Disposals | G16: Closing Balance | I16: Opening Balance | J16: Additions (Depr Exp must match 2.9) | K16: Disposals | L16: Closing Balance | M16: Net Book Value | O16: AVG Gross Bal | P16: AVG AccDep
A17: 12 | B17: 1611 | C17: Computer Software (Formally known as Account 1925) | D17: 202932.06 | E17: 21070 | G17: =D17+E17+F17 -> 224002.06 | I17: 159123.7 | J17: 31159.24 | L17: =I17+J17+K17 -> 190282.94 | M17: =G17-L17 -> 33719.12 | O17: =AVERAGE(G17,D17) -> 213467.06 | P17: =AVERAGE(L17,I17) -> 174703.32
A18: CEC | B18: 1612 | C18: Land Rights (Formally known as Account 1906 and 1806) | D18: 2747.84 | G18: =D18+E18+F18 -> 2747.84 | I18: 670 | J18: 335 | L18: =I18+J18+K18 -> 1005 | M18: =G18-L18 -> 1742.84 | O18: 2747.84 | P18: 837.5
A19: N/A | B19: 1805 | C19: Land | D19: 130499.26 | G19: =D19+E19+F19 -> 130499.26 | L19: =I19+J19+K19 -> 0 | M19: 130499.26 | O19: 130499.26 | P19: 0
A20: 47 | B20: 1808 | C20: Buildings | D20: 169065.84 | G20: =D20+E20+F20 -> 169065.84 | I20: 6915.88 | J20: 3457.94 | L20: =I20+J20+K20 -> 10373.82 | M20: 158692.02 | O20: 169065.84 | P20: 8644.85
A21: 13 | B21: 1810 | C21: Leasehold Improvements | D21: 229612.33 | E21: 54222.45 | G21: 283834.78 | I21: 24810.38 | J21: 14391.56 | L21: 39201.94 | M21: 244632.84 | O21: 256723.555 | P21: 32006.16
A22: 47 | B22: 1820 | C22: Distribution Station Equipment <50 kV | D22: =1201701.51+630 -> 1202331.51 | E22: 215585.51 | G22: 1417917.02 | I22: 127886.8 | J22: 69125 | L22: 197011.8 | M22: 1220905.22 | O22: 1310124.265 | P22: 162449.3
A23: 47 | B23: 1830 | C23: Poles, Towers & Fixtures | D23: 2013138.26 | E23: 269378.29 | G23: 2282516.55 | I23: 339533.12 | J23: 158181.73 | L23: 497714.85 | M23: 1784801.7 | O23: 2147827.405 | P23: 418623.985
A24: 47 | B24: 1835 | C24: Overhead Conductors & Devices | D24: 2751043.94 | E24: 189649.63 | G24: 2940693.57 | I24: 238488.52 | J24: 124892.05 | L24: 363380.57 | M24: 2577313 | O24: 2845868.755 | P24: 300934.545
A25: 47 | B25: 1840 | C25: Underground Conduit | D25: 684876.53 | E25: 10252.68 | G25: 695129.21 | I25: 175622.43 | J25: 77925.6 | L25: 253548.03 | M25: 441581.18 | O25: 690002.87 | P25: 214585.23
A26: 47 | B26: 1845 | C26: Underground Conductors & Devices | D26: 794240.16 | E26: 25027.79 | G26: 819267.95 | I26: 50007.02 | J26: 29495.5 | L26: 79502.52 | M26: 739765.43 | O26: 806754.055 | P26: 64754.77
A27: 47 | B27: 1850 | C27: Line Transformers | D27: =1500350.86 -> 1500350.86 | E27: =127653.03 -> 127653.03 | G27: 1628003.89 | I27: 187096.89 | J27: 89143.72 | L27: 276240.61 | M27: 1351763.28 | O27: 1564177.375 | P27: 231668.75
B28: 1850 | C28: Transformer Inventory | D28: 268760 | E28: -16389 | G28: 252371 | L28: 0 | M28: 252371 | O28: 260565.5 | P28: 0
A29: 47 | B29: 1855 | C29: Services (Overhead & Underground) | D29: 1121323.67 | E29: 93631.49 | G29: 1214955.16 | I29: 94884.32 | J29: 50923.17 | L29: 145807.49 | M29: 1069147.67 | O29: 1168139.415 | P29: 120345.905
A30: 47 | B30: 1860-15 | C30: Meters | D30: 1645231 | E30: =36172.07 -> 36172.07 | G30: 1681403.07 | I30: 654368 | J30: =109682+1205.74 -> 110887.74 | L30: 765255.74 | M30: 916147.33 | O30: 1663317.035 | P30: 709811.87
A31: 47 | B31: 1860-25 | C31: Meters >50 | D31: 97695.47 | E31: 3098.85 | G31: 100794.32 | I31: 8495.49 | J31: =4315.69+272.46 -> 4588.15 | L31: 13083.64 | M31: 87710.68 | O31: 99244.895 | P31: 10789.565
B32: 1860 | C32: Meter Inventory | D32: 87293.12 | E32: -32605.99 | G32: 54687.13 | I32: 0 | J32: 0 | L32: 0 | M32: 54687.13 | O32: 70990.125 | P32: 0
A33: 8 | B33: 1915 | C33: Office Furniture & Equipment (10 years) | D33: 13903.3 | E33: 27072.09 | G33: 40975.39 | I33: 2643.99 | J33: 3021.1 | L33: 5665.09 | M33: 35310.3 | O33: 27439.345 | P33: 4154.54
A34: 10 | B34: 1920-2 | C34: Computer Equipment - Hardware | D34: 84929.41 | E34: 1668.77 | G34: 86598.18 | I34: 56242.34 | J34: =15617.25+890 -> 16507.25 | L34: 72749.59 | M34: 13848.59 | O34: 85763.795 | P34: 64495.965
A35: 10 | B35: 1930-8 | C35: Transportation Equipment | D35: =821675.21+50078.2 -> 871753.41 | E35: 116565 | G35: 988318.41 | I35: =270511.2+50078.2 -> 320589.4 | J35: 136043.79 | L35: 456633.19 | M35: 531685.22 | O35: 930035.91 | P35: 388611.295
A36: 8 | B36: 1940 | C36: Tools, Shop & Garage Equipment | D36: 74405.91 | E36: 14006.95 | G36: 88412.86 | I36: 16322.63 | J36: 8284.34 | L36: 24606.97 | M36: 63805.89 | O36: 81409.385 | P36: 20464.8
A37: 8 | B37: 1945 | C37: Measurement & Testing Equipment | D37: 23637.8 | G37: 23637.8 | I37: 3940.62 | J37: 2454.23 | L37: 6394.85 | M37: 17242.95 | O37: 23637.8 | P37: 5167.735
A38: 8 | B38: 1955 | C38: Communications Equipment | D38: 26170.96 | G38: 26170.96 | I38: 5093.83 | J38: 4989.17 | L38: 10083 | M38: 16087.96 | O38: 26170.96 | P38: 7588.415
A39: 8 | B39: 1960 | C39: Miscellaneous Equipment | D39: 11498.8 | G39: =D39+E39+F39 -> 11498.8 | I39: 2420.8 | J39: 1210.4 | L39: 3631.2 | M39: 7867.6 | O39: 11498.8 | P39: 3026
A40: 47 | B40: 1980 | C40: System Supervisor Equipment | D40: 3088.72 | G40: =D40+E40+F40 -> 3088.72 | I40: 2699.19 | J40: 287.65 | L40: 2986.84 | M40: 101.88 | O40: 3088.72 | P40: 2843.015
A41: 47 | B41: 1995 | C41: Contributions & Grants | D41: -1526788.8 | G41: =D41+E41+F41 -> -1526788.8 | I41: -142363.35 | J41: -71181.67 | L41: -213545.02 | M41: -1313243.78 | O41: -1526788.8 | P41: -177954.185
A42: 47 | B42: 2440 | C42: Deferred Revenues | D42: -328404.66 | E42: -96899.3 | G42: =D42+E42+F42 -> -425303.96 | I42: -12216.53 | J42: -19904.69 | L42: -32121.22 | M42: -393182.74 | O42: -376854.31 | P42: -22168.875
G43: =D43+E43+F43 -> 0 | L43: 0 | M43: 0 | O43: 0 | P43: 0
C44: Sub-Total | D44: =SUM(D17:D43) -> 12155336.7 | E44: =SUM(E17:E43) -> 1059160.31 | F44: =SUM(F17:F43) -> 0 | G44: =SUM(G17:G43) -> 13214497.01 | I44: =SUM(I17:I43) -> 2323275.47 | J44: =SUM(J17:J43) -> 846217.97 | K44: =SUM(K17:K43) -> 0 | L44: =SUM(L17:L43) -> 3169493.44 | M44: =SUM(M17:M43) -> 10045003.57 | O44: =SUM(O17:O43) -> 12684916.86 | P44: =SUM(P17:P43) -> 2746384.455
C45: Less Socialized Renewable Energy Generation Investments (input as negative)Less Socialized Renewable Energy Generation Investments (input as negative) | G45: =D45+E45+F45 -> 0 | L45: =I45+J45+K45 -> 0 | M45: =G45+L45 -> 0
C46: Less Other Non Rate-Regulated Utility Assets (input as negative)Less Other Non Rate-Regulated Utility Assets (input as negative) | G46: 0 | L46: =I46+J46+K46 -> 0 | M46: =G46+L46 -> 0
C47: Total PP&E | D47: =SUM(D44:D46) -> 12155336.7 | E47: =SUM(E44:E46) -> 1059160.31 | F47: =SUM(F44:F46) -> 0 | G47: =SUM(G44:G46) -> 13214497.01 | I47: =SUM(I44:I46) -> 2323275.47 | J47: =SUM(J44:J46) -> 846217.97 | K47: =SUM(K44:K46) -> 0 | L47: =SUM(L44:L46) -> 3169493.44 | M47: =SUM(M44:M46) -> 10045003.57
C48: Depreciation Expense adj. from gain or loss on the retirement of assets (pool of like assets)
C49: Total | J49: =J47+J48 -> 846217.97
G51: Less: Fully Allocated Depreciation
A52: 10 | C52: Transportation | G52: Transportation
A53: 8 | C53: Stores Equipment | G53: Stores Equipment
A54: 8 | C54: Tools, Shop | G54: Tools, Shop
A55: 8 | C55: Meas/Testing | G55: Meas/Testing
A56: 8 | C56: Communication | G56: Communication
G57: Net Depreciation | J57: =J49+J52+J56+J53+J54+J55 -> 846217.97
E59: Year | F59: 2017 | G59: IFRS
D61: Gross Assets | J61: Accumulated Depreciation
A62: CCA Class | B62: OEB | C62: Description | D62: Opening Balance | E62: Additions | F62: Disposals | G62: Closing Balance | I62: Opening Balance | J62: Additions (Depr Exp must match 2.9) | K62: Disposals | L62: Closing Balance | M62: Net Book Value | O62: AVG Gross Bal | P62: AVG AccDep
A63: 12 | B63: 1611 | C63: Computer Software (Formally known as Account 1925) | D63: =G17 -> 224002.06 | E63: 33880.61 | G63: =D63+E63+F63 -> 257882.67 | I63: =L17 -> 190282.94 | J63: =10308.88+15411.01 -> 25719.89 | L63: =I63+J63+K63 -> 216002.83 | M63: =G63-L63 -> 41879.84 | O63: =AVERAGE(G63,D63) -> 240942.365 | P63: =AVERAGE(L63,I63) -> 203142.885
A64: CEC | B64: 1612 | C64: Land Rights (Formally known as Account 1906 and 1806) | D64: 2747.84 | G64: =D64+E64+F64 -> 2747.84 | I64: 1005 | J64: 335 | L64: =I64+J64+K64 -> 1340 | M64: =G64-L64 -> 1407.84 | O64: 2747.84 | P64: 1172.5
A65: N/A | B65: 1805 | C65: Land | D65: 130499.26 | E65: 39130 | G65: =D65+E65+F65 -> 169629.26 | I65: 0 | L65: =I65+J65+K65 -> 0 | M65: 169629.26 | O65: 150064.26 | P65: 0
A66: 47 | B66: 1808 | C66: Buildings | D66: 169065.84 | E66: 731.25 | G66: =D66+E66+F66 -> 169797.09 | I66: 10373.82 | J66: 3466.07 | L66: =I66+J66+K66 -> 13839.89 | M66: 155957.2 | O66: 169431.465 | P66: 12106.855
A67: 13 | B67: 1810 | C67: Leasehold Improvements | D67: 283834.78 | E67: =2894.74+383.53 -> 3278.27 | G67: 287113.05 | I67: 39201.94 | J67: 15541.58 | L67: 54743.52 | M67: 232369.53 | O67: 285473.915 | P67: 46972.73
A68: 47 | B68: 1820 | C68: Distribution Station Equipment <50 kV | D68: 1417917.02 | E68: =23511.13+4145.38+12316.2+8487 -> 48459.71 | G68: 1466376.73 | I68: 197011.8 | J68: =70457.45+1223.09 -> 71680.54 | L68: 268692.34 | M68: 1197684.39 | O68: 1442146.875 | P68: 232852.07
A69: 47 | B69: 1830 | C69: Poles, Towers & Fixtures | D69: 2282516.55 | E69: =130011.21+32867.86 -> 162879.07 | G69: 2445395.62 | I69: 497714.85 | J69: =21608.78+106124.54+20766.57+5188.7 -> 153688.59 | L69: 651403.44 | M69: 1793992.18 | O69: 2363956.085 | P69: 574559.145
A70: 47 | B70: 1835 | C70: Overhead Conductors & Devices | D70: 2940693.57 | E70: =248719.53+43086.73 -> 291806.26 | G70: 3232499.83 | I70: 363380.57 | J70: =10589.04+102777.57+10655.23+2899.82+2113.4 -> 129035.06 | L70: 492415.63 | M70: 2740084.2 | O70: 3086596.7 | P70: 427898.1
A71: 47 | B71: 1840 | C71: Underground Conduit | D71: 695129.21 | E71: =31940.21 -> 31940.21 | G71: 727069.42 | I71: 253548.03 | J71: =51752.58+16310.46 -> 68063.04 | L71: 321611.07 | M71: 405458.35 | O71: 711099.315 | P71: 287579.55
A72: 47 | B72: 1845 | C72: Underground Conductors & Devices | D72: 819267.95 | E72: =140969.86 -> 140969.86 | G72: 960237.81 | I72: 79502.52 | J72: =29915.07+1655.4 -> 31570.47 | L72: 111072.99 | M72: 849164.82 | O72: 889752.88 | P72: 95287.755
A73: 47 | B73: 1850 | C73: Line Transformers | D73: 1628003.89 | E73: =46986.49+93866.84 -> 140853.33 | G73: 1768857.22 | I73: 276240.61 | J73: =51981.84+24075.63+13178.29 -> 89235.76 | L73: 365476.37 | M73: 1403380.85 | O73: 1698430.555 | P73: 320858.49
B74: 1850 | C74: Transformer Inventory | D74: 252371 | E74: 68215 | G74: 320586 | I74: 0 | L74: 0 | M74: 320586 | O74: 286478.5 | P74: 0
A75: 47 | B75: 1855 | C75: Services (Overhead & Underground) | D75: 1214955.16 | E75: =47364.34+79089.27 -> 126453.61 | G75: 1341408.77 | I75: 145807.49 | J75: =2492.22+3515.4+19616.72+27683.5 -> 53307.84 | L75: 199115.33 | M75: 1142293.44 | O75: 1278181.965 | P75: 172461.41
A76: 47 | B76: 1860-15 | C76: Meters | D76: 1681403.07 | E76: 35397.2 | G76: 1716800.27 | I76: 765255.74 | J76: =109682+2411.48+1179.91 -> 113273.39 | L76: 878529.13 | M76: 838271.14 | O76: 1699101.67 | P76: 821892.435
A77: 47 | B77: 1860-25 | C77: Meters >50 | D77: 100794.32 | G77: 100794.32 | I77: 13083.64 | J77: =4292.26+252.27 -> 4544.53 | L77: 17628.17 | M77: 83166.15 | O77: 100794.32 | P77: 15355.905
B78: 1860 | C78: Meter Inventory | D78: 54687.13 | E78: 4011.67 | G78: 58698.8 | I78: 0 | L78: 0 | M78: 58698.8 | O78: 56692.965 | P78: 0
A79: 8 | B79: 1915 | C79: Office Furniture & Equipment (10 years) | D79: 40975.39 | E79: =4397.75 -> 4397.75 | G79: 45373.14 | I79: 5665.09 | J79: =4594.6 -> 4594.6 | L79: 10259.69 | M79: 35113.45 | O79: 43174.265 | P79: 7962.39
A80: 10 | B80: 1920-2 | C80: Computer Equipment - Hardware | D80: 86598.18 | E80: =6396.67 -> 6396.67 | G80: 92994.85 | I80: 72749.59 | J80: =10514.15+0.8 -> 10514.95 | L80: 83264.54 | M80: 9730.31 | O80: 89796.515 | P80: 78007.065
A81: 10 | B81: 1930-8 | C81: Transportation Equipment | D81: 988318.41 | E81: =322428.24 -> 322428.24 | G81: 1310746.65 | I81: 456633.19 | J81: 158892.08 | L81: 615525.27 | M81: 695221.38 | O81: 1149532.53 | P81: 536079.23
A82: 8 | B82: 1940 | C82: Tools, Shop & Garage Equipment | D82: 88412.86 | E82: =3354.45 -> 3354.45 | G82: 91767.31 | I82: 24606.97 | J82: =8943.02 -> 8943.02 | L82: 33549.99 | M82: 58217.32 | O82: 90090.085 | P82: 29078.48
A83: 8 | B83: 1945 | C83: Measurement & Testing Equipment | D83: 23637.8 | E83: =999 -> 999 | G83: 24636.8 | I83: 6394.85 | J83: =2504.18 -> 2504.18 | L83: 8899.03 | M83: 15737.77 | O83: 24137.3 | P83: 7646.94
A84: 8 | B84: 1955 | C84: Communications Equipment | D84: 26170.96 | G84: 26170.96 | I84: 10083 | J84: =4831.72 -> 4831.72 | L84: 14914.72 | M84: 11256.24 | O84: 26170.96 | P84: 12498.86
A85: 8 | B85: 1960 | C85: Miscellaneous Equipment | D85: 11498.8 | G85: 11498.8 | I85: 3631.2 | J85: =1210.4 -> 1210.4 | L85: 4841.6 | M85: 6657.2 | O85: 11498.8 | P85: 4236.4
A86: 47 | B86: 1980 | C86: System Supervisor Equipment | D86: 3088.72 | E86: =35234.31 -> 35234.31 | G86: 38323.03 | I86: 2986.84 | J86: =5974.28 -> 5974.28 | L86: 8961.12 | M86: 29361.91 | O86: 20705.875 | P86: 5973.98
A87: 47 | B87: 1995 | C87: Contributions & Grants | D87: -1526788.8 | G87: -1526788.8 | I87: -213545.02 | J87: -71181.67 | L87: -284726.69 | M87: -1242062.11 | O87: -1526788.8 | P87: -249135.855
A88: 47 | B88: 2440 | C88: Deferred Revenues | D88: -425303.96 | E88: -263532.76 | G88: -688836.72 | I88: -32121.22 | J88: -24410.09 | L88: -56531.31 | M88: -632305.41 | O88: -557070.34 | P88: -44326.265
G89: =D89+E89+F89 -> 0 | L89: 0 | M89: 0 | O89: 0 | P89: 0
C90: Sub-Total | D90: =SUM(D63:D89) -> 13214497.01 | E90: =SUM(E63:E89) -> 1237283.71 | F90: =SUM(F63:F89) -> 0 | G90: =SUM(G63:G89) -> 14451780.72 | I90: =SUM(I63:I89) -> 3169493.44 | J90: =SUM(J63:J89) -> 861335.23 | K90: =SUM(K63:K89) -> 0 | L90: =SUM(L63:L89) -> 4030828.67 | M90: =SUM(M63:M89) -> 10420952.05 | O90: =SUM(O63:O89) -> 13833138.87 | P90: =SUM(P63:P89) -> 3600161.055
C91: Less Socialized Renewable Energy Generation Investments (input as negative)Less Socialized Renewable Energy Generation Investments (input as negative) | G91: =D91+E91+F91 -> 0 | L91: =I91+J91+K91 -> 0 | M91: =G91+L91 -> 0
C92: Less Other Non Rate-Regulated Utility Assets (input as negative)Less Other Non Rate-Regulated Utility Assets (input as negative) | G92: =D92+E92+F92 -> 0 | L92: =I92+J92+K92 -> 0 | M92: =G92+L92 -> 0
C93: Total PP&E | D93: =SUM(D90:D92) -> 13214497.01 | E93: =SUM(E90:E92) -> 1237283.71 | F93: =SUM(F90:F92) -> 0 | G93: =SUM(G90:G92) -> 14451780.72 | I93: =SUM(I90:I92) -> 3169493.44 | J93: =SUM(J90:J92) -> 861335.23 | K93: =SUM(K90:K92) -> 0 | L93: =SUM(L90:L92) -> 4030828.67 | M93: =SUM(M90:M92) -> 10420952.05
C94: Depreciation Expense adj. from gain or loss on the retirement of assets (pool of like assets)
C95: Total | J95: =J93+J94 -> 861335.23
G97: Less: Fully Allocated Depreciation
A98: 10 | C98: Transportation | G98: Transportation
A99: 8 | C99: Stores Equipment | G99: Stores Equipment
A100: 8 | C100: Tools, Shop | G100: Tools, Shop
A101: 8 | C101: Meas/Testing | G101: Meas/Testing
A102: 8 | C102: Communication | G102: Communication
G103: Net Depreciation | J103: =J95+J98+J102+J99+J100+J101 -> 861335.23
E105: Year | F105: 2018 | G105: IFRS
D107: Gross Assets | J107: Accumulated Depreciation
A108: CCA Class | B108: OEB | C108: Description | D108: Opening Balance | E108: Additions | F108: Disposals | G108: Closing Balance | I108: Opening Balance | J108: Additions (Depr Exp must match 2.9) | K108: Disposals | L108: Closing Balance | M108: Net Book Value | O108: AVG Gross Bal | P108: AVG AccDep
A109: 12 | B109: 1611 | C109: Computer Software (Formally known as Account 1925) | D109: =G63 -> 257882.67 | E109: =1764+9710.01 -> 11474.01 | G109: =D109+E109+F109 -> 269356.68 | I109: =L63 -> 216002.83 | J109: =8005.09+15335.13 -> 23340.22 | L109: =I109+J109+K109 -> 239343.05 | M109: =G109-L109 -> 30013.63 | O109: =AVERAGE(G109,D109) -> 263619.675 | P109: =AVERAGE(L109,I109) -> 227672.94
A110: CEC | B110: 1612 | C110: Land Rights (Formally known as Account 1906 and 1806) | D110: 2747.84 | G110: =D110+E110+F110 -> 2747.84 | I110: 1340 | J110: 335 | L110: =I110+J110+K110 -> 1675 | M110: =G110-L110 -> 1072.84 | O110: 2747.84 | P110: 1507.5
A111: N/A | B111: 1805 | C111: Land | D111: 169629.26 | E111: 88721.06 | G111: =D111+E111+F111 -> 258350.32 | I111: 0 | L111: =I111+J111+K111 -> 0 | M111: 258350.32 | O111: 213989.79 | P111: 0
A112: 47 | B112: 1808 | C112: Buildings | D112: 169797.09 | E112: =1572.78 -> 1572.78 | G112: =D112+E112+F112 -> 171369.87 | I112: 13839.89 | J112: =3474.19 -> 3474.19 | L112: =I112+J112+K112 -> 17314.08 | M112: 154055.79 | O112: 170583.48 | P112: 15576.985
A113: 13 | B113: 1810 | C113: Leasehold Improvements | D113: 287113.05 | G113: 287113.05 | I113: 54743.52 | J113: =15638.6 -> 15638.6 | L113: 70382.12 | M113: 216730.93 | O113: 287113.05 | P113: 62562.82
A114: 47 | B114: 1820 | C114: Distribution Station Equipment <50 kV | D114: 1466376.73 | E114: =17277.94+18489.74+58851.18 -> 94618.86 | G114: 1560995.59 | I114: 268692.34 | J114: 72301.85 | L114: 340994.19 | M114: 1220001.4 | O114: 1513686.16 | P114: 304843.265
A115: 47 | B115: 1830 | C115: Poles, Towers & Fixtures | D115: 2445395.62 | E115: =153561.82+16056.86 -> 169618.68 | G115: 2615014.3 | I115: 651403.44 | J115: 147860.55 | L115: 799263.99 | M115: 1815750.31 | O115: 2530204.96 | P115: 725333.715
A116: 47 | B116: 1835 | C116: Overhead Conductors & Devices | D116: 3232499.83 | E116: =303051.09+7658.29 -> 310709.38 | G116: 3543209.21 | I116: 492415.63 | J116: 134223.98 | L116: 626639.61 | M116: 2916569.6 | O116: 3387854.52 | P116: 559527.62
A117: 47 | B117: 1840 | C117: Underground Conduit | D117: 727069.42 | E117: =42831.57 -> 42831.57 | G117: 769900.99 | I117: 321611.07 | J117: 62016.41 | L117: 383627.48 | M117: 386273.51 | O117: 748485.205 | P117: 352619.275
A118: 47 | B118: 1845 | C118: Underground Conductors & Devices | D118: 960237.81 | E118: =115159.44 -> 115159.44 | G118: 1075397.25 | I118: 111072.99 | J118: 34772.09 | L118: 145845.08 | M118: 929552.17 | O118: 1017817.53 | P118: 128459.035
A119: 47 | B119: 1850 | C119: Line Transformers | D119: 1768857.22 | E119: =392881.17+128518.5 -> 521399.67 | G119: 2290256.89 | I119: 365476.37 | J119: 52467.37 | L119: 417943.74 | M119: 1872313.15 | O119: 2029557.055 | P119: 391710.055
B120: 1850 | C120: Transformer Inventory | D120: 320586 | E120: 45552 | G120: 366138 | I120: 0 | L120: 0 | M120: 366138 | O120: 343362 | P120: 0
A121: 47 | B121: 1855 | C121: Services (Overhead & Underground) | D121: 1341408.77 | E121: =16508.75+49426.35 -> 65935.1 | G121: 1407343.87 | I121: 199115.33 | J121: 55446.56 | L121: 254561.89 | M121: 1152781.98 | O121: 1374376.32 | P121: 226838.61
A122: 47 | B122: 1860-15 | C122: Meters | D122: 1716800.27 | E122: 107964.17 | G122: 1824764.44 | I122: 878529.13 | J122: =109682+2411.48+2359.81+3598.81 -> 118052.1 | L122: 996581.23 | M122: 828183.21 | O122: 1770782.355 | P122: 937555.18
A123: 47 | B123: 1860-25 | C123: Meters >50 | D123: 100794.32 | G123: 100794.32 | I123: 17628.17 | J123: =4269.38+228.5 -> 4497.88 | L123: 22126.05 | M123: 78668.27 | O123: 100794.32 | P123: 19877.11
B124: 1860 | C124: Meter Inventory | D124: 58698.8 | E124: -692.59 | G124: 58006.21 | I124: 0 | L124: 0 | M124: 58006.21 | O124: 58352.505 | P124: 0
A125: 8 | B125: 1915 | C125: Office Furniture & Equipment (10 years) | D125: 45373.14 | E125: =4.57 -> 4.57 | G125: 45377.71 | I125: 10259.69 | J125: 4814.72 | L125: 15074.41 | M125: 30303.3 | O125: 45375.425 | P125: 12667.05
A126: 10 | B126: 1920-2 | C126: Computer Equipment - Hardware | D126: 92994.85 | E126: =5446.05 -> 5446.05 | G126: 98440.9 | I126: 83264.54 | J126: 7162.32 | L126: 90426.86 | M126: 8014.04 | O126: 95717.875 | P126: 86845.7
A127: 10 | B127: 1930-8 | C127: Transportation Equipment | D127: 1310746.65 | E127: =30997.23 -> 30997.23 | G127: 1341743.88 | I127: 615525.27 | J127: 161599.46 | L127: 777124.73 | M127: 564619.15 | O127: 1326245.265 | P127: 696325
A128: 8 | B128: 1940 | C128: Tools, Shop & Garage Equipment | D128: 91767.31 | E128: =368.11 -> 368.11 | G128: 92135.42 | I128: 33549.99 | J128: 9129.17 | L128: 42679.16 | M128: 49456.26 | O128: 91951.365 | P128: 38114.575
A129: 8 | B129: 1945 | C129: Measurement & Testing Equipment | D129: 24636.8 | E129: =3180.25 -> 3180.25 | G129: 27817.05 | I129: 8899.03 | J129: 2713.14 | L129: 11612.17 | M129: 16204.88 | O129: 26226.925 | P129: 10255.6
A130: 8 | B130: 1955 | C130: Communications Equipment | D130: 26170.96 | G130: 26170.96 | I130: 14914.72 | J130: 4674.3 | L130: 19589.02 | M130: 6581.94 | O130: 26170.96 | P130: 17251.87
A131: 8 | B131: 1960 | C131: Miscellaneous Equipment | D131: 11498.8 | G131: =D131+E131+F131 -> 11498.8 | I131: 4841.6 | J131: 1210.4 | L131: 6052 | M131: 5446.8 | O131: 11498.8 | P131: 5446.8
A132: 47 | B132: 1980 | C132: System Supervisor Equipment | D132: 38323.03 | E132: =12648.09 -> 12648.09 | G132: =D132+E132+F132 -> 50971.12 | I132: 8961.12 | J132: 13852.79 | L132: 22813.91 | M132: 28157.21 | O132: 44647.075 | P132: 15887.515
A133: 47 | B133: 1995 | C133: Contributions & Grants | D133: -1526788.8 | G133: =D133+E133+F133 -> -1526788.8 | I133: -284726.69 | J133: -71181.67 | L133: -355908.36 | M133: -1170880.44 | O133: -1526788.8 | P133: -320317.525
A134: 47 | B134: 2440 | C134: Deferred Revenues | D134: -688836.72 | E134: -136450 | G134: =D134+E134+F134 -> -825286.72 | I134: -56531.31 | J134: -23743.22 | L134: -80274.53 | M134: -745012.19 | O134: -757061.72 | P134: -68402.92
G135: =D135+E135+F135 -> 0 | L135: 0 | M135: =G135+L135 -> 0 | O135: 0 | P135: 0
C136: Sub-Total | D136: =SUM(D109:D135) -> 14451780.72 | E136: =SUM(E109:E135) -> 1491058.43 | F136: =SUM(F109:F135) -> 0 | G136: =SUM(G109:G135) -> 15942839.15 | I136: =SUM(I109:I135) -> 4030828.67 | J136: =SUM(J109:J135) -> 834658.21 | K136: =SUM(K109:K135) -> 0 | L136: =SUM(L109:L135) -> 4865486.88 | M136: =SUM(M109:M135) -> 11077352.27 | O136: =SUM(O109:O135) -> 15197309.94 | P136: =SUM(P109:P135) -> 4448157.775
C137: Less Socialized Renewable Energy Generation Investments (input as negative)Less Socialized Renewable Energy Generation Investments (input as negative) | G137: =D137+E137+F137 -> 0 | J137: 0 | K137: 0 | L137: =I137+J137+K137 -> 0 | M137: =G137+L137 -> 0
C138: Less Other Non Rate-Regulated Utility Assets (input as negative)Less Other Non Rate-Regulated Utility Assets (input as negative) | G138: =D138+E138+F138 -> 0 | L138: =I138+J138+K138 -> 0 | M138: =G138+L138 -> 0
C139: Total PP&E | D139: =SUM(D136:D138) -> 14451780.72 | E139: =SUM(E136:E138) -> 1491058.43 | F139: =SUM(F136:F138) -> 0 | G139: =SUM(G136:G138) -> 15942839.15 | I139: =SUM(I136:I138) -> 4030828.67 | J139: =SUM(J136:J138) -> 834658.21 | K139: =SUM(K136:K138) -> 0 | L139: =SUM(L136:L138) -> 4865486.88 | M139: =SUM(M136:M138) -> 11077352.27
C140: Depreciation Expense adj. from gain or loss on the retirement of assets (pool of like assets)
C141: Total | J141: =J139+J140 -> 834658.21
G143: Less: Fully Allocated Depreciation
A144: 10 | C144: Transportation | G144: Transportation
A145: 8 | C145: Stores Equipment | G145: Stores Equipment
A146: 8 | C146: Tools, Shop | G146: Tools, Shop
A147: 8 | C147: Meas/Testing | G147: Meas/Testing
A148: 8 | C148: Communication | G148: Communication
G149: Net Depreciation | J149: =J141+J144+J148+J145+J146+J147 -> 834658.21
E152: Year | F152: 2019 | G152: IFRS
D154: Gross Assets | J154: Accumulated Depreciation
A155: CCA Class | B155: OEB | C155: Description | D155: Opening Balance | E155: Additions | F155: Disposals | G155: Closing Balance | I155: Opening Balance | J155: Additions (Depr Exp must match 2.9) | K155: Disposals | L155: Closing Balance | M155: Net Book Value | O155: AVG Gross Bal | P155: AVG AccDep
A156: 12 | B156: 1611 | C156: Computer Software (Formally known as Account 1925) | D156: =G109 -> 269356.68 | E156: =11265.5+5394.66 -> 16660.16 | G156: =D156+E156+F156 -> 286016.84 | I156: =L109 -> 239343.05 | J156: =6689.09+13818.37+899.11 -> 21406.57 | L156: =I156+J156+K156 -> 260749.62 | M156: =G156-L156 -> 25267.22 | O156: =AVERAGE(G156,D156) -> 277686.76 | P156: =AVERAGE(L156,I156) -> 250046.335
A157: CEC | B157: 1612 | C157: Land Rights (Formally known as Account 1906 and 1806) | D157: 2747.84 | G157: =D157+E157+F157 -> 2747.84 | I157: 1675 | J157: 335 | L157: =I157+J157+K157 -> 2010 | M157: =G157-L157 -> 737.84 | O157: 2747.84 | P157: 1842.5
A158: N/A | B158: 1805 | C158: Land | D158: 258350.32 | G158: =D158+E158+F158 -> 258350.32 | I158: 0 | L158: =I158+J158+K158 -> 0 | M158: 258350.32 | O158: 258350.32 | P158: 0
A159: 47 | B159: 1808 | C159: Buildings | D159: 171369.87 | G159: =D159+E159+F159 -> 171369.87 | I159: 17314.08 | J159: 3474.19 | L159: =I159+J159+K159 -> 20788.27 | M159: 150581.6 | O159: 171369.87 | P159: 19051.175
A160: 13 | B160: 1810 | C160: Leasehold Improvements | D160: 287113.05 | E160: =4189.19 -> 4189.19 | G160: 291302.24 | I160: 70382.12 | J160: 15753.83 | L160: 86135.95 | M160: 205166.29 | O160: 289207.645 | P160: 78259.035
A161: 47 | B161: 1820 | C161: Distribution Station Equipment <50 kV | D161: 1560995.59 | E161: =-58854.18 -> -58854.18 | G161: 1502141.41 | I161: 340994.19 | J161: =71202.1+1685.33 -> 72887.43 | L161: 413881.62 | M161: 1088259.79 | O161: 1531568.5 | P161: 377437.905
A162: 47 | B162: 1830 | C162: Poles, Towers & Fixtures | D162: 2615014.3 | E162: =146335.97+909 -> 147244.97 | G162: 2762259.27 | I162: 799263.99 | J162: =99452.33+18211.11+17308.89+5188.7 -> 140161.03 | L162: 939425.02 | M162: 1822834.25 | O162: 2688636.785 | P162: 869344.505
A163: 47 | B163: 1835 | C163: Overhead Conductors & Devices | D163: 3543209.21 | E163: =219090.76 -> 219090.76 | G163: 3762299.97 | I163: 626639.61 | J163: =112040.09+2899.82+11150.04+10589.04+2113.4 -> 138792.39 | L163: 765432 | M163: 2996867.97 | O163: 3652754.59 | P163: 696035.805
A164: 47 | B164: 1840 | C164: Underground Conduit | D164: 769900.99 | E164: =22971.79 -> 22971.79 | G164: 792872.78 | I164: 383627.48 | J164: =45920.76+10824.03 -> 56744.79 | L164: 440372.27 | M164: 352500.51 | O164: 781386.885 | P164: 411999.875
A165: 47 | B165: 1845 | C165: Underground Conductors & Devices | D165: 1075397.25 | E165: =131837.42 -> 131837.42 | G165: 1207234.67 | I165: 145845.08 | J165: =36204.18+1655.4 -> 37859.58 | L165: 183704.66 | M165: 1023530.01 | O165: 1141315.96 | P165: 164774.87
A166: 47 | B166: 1850 | C166: Line Transformers | D166: 2290256.89 | E166: =156008.57+148774.7 -> 304783.27 | F166: -151106.64 | G166: 2443933.52 | I166: 417943.74 | J166: =100013.88+11281.27+29992.48 -> 141287.63 | L166: 559231.37 | M166: 1884702.15 | O166: 2367095.205 | P166: 488587.555
B167: 1850 | C167: Transformer Inventory | D167: 366138 | E167: 120624 | G167: 486762 | I167: 0 | L167: 0 | M167: 486762 | O167: 426450 | P167: 0
A168: 47 | B168: 1855 | C168: Services (Overhead) | D168: 1407343.87 | E168: =27802.63+139843.98 -> 167646.61 | G168: 1574990.48 | I168: 254561.89 | J168: =20518.3+31655.8+2492.22+3515.4 -> 58181.72 | L168: 312743.61 | M168: 1262246.87 | O168: 1491167.175 | P168: 283652.75
A169: 47 | B169: 1860-15 | C169: Meters | D169: 1824764.44 | E169: 66700.65 | G169: 1891465.09 | I169: 996581.23 | J169: =109682+2411.48+2359.81+7197.61+2223.36 -> 123874.26 | L169: 1120455.49 | M169: 771009.6 | O169: 1858114.765 | P169: 1058518.36
A170: 47 | B170: 1860-25 | C170: Meters >50 | D170: 100794.32 | G170: 100794.32 | I170: 22126.05 | J170: =171.05+4241.59 -> 4412.64 | L170: 26538.69 | M170: 74255.63 | O170: 100794.32 | P170: 24332.37
B171: 1860 | C171: Meter Inventory | D171: 58006.21 | E171: 34715.66 | G171: 92721.87 | I171: 0 | L171: 0 | M171: 92721.87 | O171: 75364.04 | P171: 0
A172: 8 | B172: 1915 | C172: Office Furniture & Equipment (10 years) | D172: 45377.71 | G172: 45377.71 | I172: 15074.41 | J172: 4814.95 | L172: 19889.36 | M172: 25488.35 | O172: 45377.71 | P172: 17481.885
A173: 10 | B173: 1920-2 | C173: Computer Equipment - Hardware | D173: 98440.9 | E173: =13428.49 -> 13428.49 | G173: 111869.39 | I173: 90426.86 | J173: 7162.33 | L173: 97589.19 | M173: 14280.2 | O173: 105155.145 | P173: 94008.025
A174: 10 | B174: 1930-8 | C174: Transportation Equipment | D174: 1341743.88 | E174: 390985 | F174: -277694.84 | G174: 1455034.04 | I174: 777124.73 | J174: 161268.15 | K174: -277694.84 | L174: 660698.04 | M174: 794336 | O174: 1398388.96 | P174: 718911.385
A175: 8 | B175: 1940 | C175: Tools, Shop & Garage Equipment | D175: 92135.42 | E175: =1834 -> 1834 | G175: 93969.42 | I175: 42679.16 | J175: 9239.26 | L175: 51918.42 | M175: 42051 | O175: 93052.42 | P175: 47298.79
A176: 8 | B176: 1945 | C176: Measurement & Testing Equipment | D176: 27817.05 | G176: 27817.05 | I176: 11612.17 | J176: 2872.16 | L176: 14484.33 | M176: 13332.72 | O176: 27817.05 | P176: 13048.25
A177: 8 | B177: 1955 | C177: Communications Equipment | D177: 26170.96 | G177: 26170.96 | I177: 19589.02 | J177: 4459.54 | L177: 24048.56 | M177: 2122.4 | O177: 26170.96 | P177: 21818.79
A178: 8 | B178: 1960 | C178: Miscellaneous Equipment | D178: 11498.8 | G178: 11498.8 | I178: 6052 | J178: 1210.4 | L178: 7262.4 | M178: 4236.4 | O178: 11498.8 | P178: 6657.2
A179: 47 | B179: 1980 | C179: System Supervisor Equipment | D179: 50971.12 | G179: 50971.12 | I179: 22813.91 | J179: 15960.8 | L179: 38774.71 | M179: 12196.41 | O179: 50971.12 | P179: 30794.31
A180: 47 | B180: 1995 | C180: Contributions & Grants | D180: -1526788.8 | G180: -1526788.8 | I180: -355908.36 | J180: -71181.67 | L180: -427090.03 | M180: -1099698.77 | O180: -1526788.8 | P180: -391499.195
A181: 47 | B181: 2440 | C181: Deferred Revenues | D181: -825286.72 | E181: -312299.72 | G181: -1137586.44 | I181: -80274.53 | J181: -23685.92 | L181: -103960.45 | M181: -1033625.99 | O181: -981436.58 | P181: -92117.49
G182: =D182+E182+F182 -> 0 | L182: 0 | M182: 0 | O182: 0 | P182: 0
C183: Sub-Total | D183: =SUM(D156:D182) -> 15942839.15 | E183: =SUM(E156:E182) -> 1271558.07 | F183: =SUM(F156:F182) -> -428801.48 | G183: =SUM(G156:G182) -> 16785595.74 | I183: =SUM(I156:I182) -> 4865486.88 | J183: =SUM(J156:J182) -> 927291.06 | K183: =SUM(K156:K182) -> -277694.84 | L183: =SUM(L156:L182) -> 5515083.1 | M183: =SUM(M156:M182) -> 11270512.64 | O183: =SUM(O156:O182) -> 16364217.45 | P183: =SUM(P156:P182) -> 5190284.99
C184: Less Socialized Renewable Energy Generation Investments (input as negative)Less Socialized Renewable Energy Generation Investments (input as negative) | G184: =D184+E184+F184 -> 0 | L184: =I184+J184+K184 -> 0 | M184: =G184+L184 -> 0
C185: Less Other Non Rate-Regulated Utility Assets (input as negative)Less Other Non Rate-Regulated Utility Assets (input as negative) | G185: =D185+E185+F185 -> 0 | L185: =I185+J185+K185 -> 0 | M185: =G185+L185 -> 0
C186: Total PP&E | D186: =SUM(D183:D185) -> 15942839.15 | E186: =SUM(E183:E185) -> 1271558.07 | F186: =SUM(F183:F185) -> -428801.48 | G186: =SUM(G183:G185) -> 16785595.74 | I186: =SUM(I183:I185) -> 4865486.88 | J186: =SUM(J183:J185) -> 927291.06 | K186: =SUM(K183:K185) -> -277694.84 | L186: =SUM(L183:L185) -> 5515083.1 | M186: =SUM(M183:M185) -> 11270512.64
C187: Depreciation Expense adj. from gain or loss on the retirement of assets (pool of like assets)
C188: Total | J188: =J186+J187 -> 927291.06
G190: Less: Fully Allocated Depreciation
A191: 10 | C191: Transportation | G191: Transportation
A192: 8 | C192: Stores Equipment | G192: Stores Equipment
A193: 8 | C193: Tools, Shop | G193: Tools, Shop
A194: 8 | C194: Meas/Testing | G194: Meas/Testing
A195: 8 | C195: Communication | G195: Communication
G196: Net Depreciation | J196: =J188+J191+J195+J192+J193+J194 -> 927291.06
A198: Incremental Capital Module - Almonte MS#4 | E198: Year | F198: 2019 | G198: IFRS
D200: Gross Assets | J200: Accumulated Depreciation
A201: CCA Class | B201: OEB | C201: Description | D201: Opening Balance | E201: Additions | F201: Disposals | G201: Closing Balance | I201: Opening Balance | J201: Additions (Depr Exp must match 2.9) | K201: Disposals | L201: Closing Balance | M201: Net Book Value | O201: AVG Gross Bal | P201: AVG AccDep
A202: 47 | B202: 1508-1820 | C202: Distribution Station Equipment <50 kV | D202: 0 | E202: =1337463.65 -> 1337463.65 | G202: =D202+E202+F202 -> 1337463.65 | I202: 0 | L202: =I202+J202+K202 -> 0 | M202: =G202-L202 -> 1337463.65 | O202: =AVERAGE(G202,D202) -> 668731.825 | P202: =AVERAGE(L202,I202) -> 0
A203: 47 | B203: 1508-1830 | C203: Poles, Towers & Fixtures | D203: 0 | E203: =674.62+17087.03 -> 17761.65 | G203: 17761.65 | I203: 0 | L203: 0 | M203: =G203-L203 -> 17761.65 | O203: 8880.825 | P203: 0
A204: 47 | B204: 1508-1835 | C204: Overhead Conductors & Devices | D204: 0 | E204: =7521.64+151.96 -> 7673.6 | G204: 7673.6 | I204: 0 | L204: 0 | M204: 7673.6 | O204: 3836.8 | P204: 0
A205: 47 | B205: 1508-1840 | C205: Underground Conduit | D205: 0 | E205: =494.66 -> 494.66 | G205: 494.66 | I205: 0 | L205: 0 | M205: 494.66 | O205: 247.33 | P205: 0
A206: 47 | B206: 1508-1845 | C206: Underground Conductors & Devices | D206: 0 | E206: =485.14 -> 485.14 | G206: 485.14 | I206: 0 | L206: 0 | M206: 485.14 | O206: 242.57 | P206: 0
A207: 47 | B207: 1508-1850 | C207: Line Transformers | D207: 0 | G207: 0 | I207: 0 | L207: 0 | M207: 0 | O207: 0 | P207: 0
A208: 47 | B208: 1508-1980 | C208: System Supervisory Equipment | D208: 0 | G208: 0 | I208: 0 | L208: 0 | M208: 0 | O208: 0 | P208: 0
C209: Sub-Total | D209: =SUM(D202:D208) -> 0 | E209: =SUM(E202:E208) -> 1363878.7 | F209: =SUM(F202:F208) -> 0 | G209: =SUM(G202:G208) -> 1363878.7 | I209: =SUM(I202:I208) -> 0 | J209: =SUM(J202:J208) -> 0 | K209: =SUM(K202:K208) -> 0 | L209: =SUM(L202:L208) -> 0 | M209: =SUM(M202:M208) -> 1363878.7 | O209: =SUM(O202:O208) -> 681939.35 | P209: =SUM(P202:P208) -> 0
E211: Year | F211: 2020 | G211: IFRS
D213: Gross Assets | J213: Accumulated Depreciation
A214: CCA Class | B214: OEB | C214: Description | D214: Opening Balance | E214: Additions | F214: Disposals | G214: Closing Balance | I214: Opening Balance | J214: Additions (Depr Exp must match 2.9) | K214: Disposals | L214: Closing Balance | M214: Net Book Value | O214: AVG Gross Bal | P214: AVG AccDep
A215: 12 | B215: 1611 | C215: Computer Software (Formally known as Account 1925) | D215: =G156 -> 286016.84 | E215: 5473.34 | F215: -103007.47 | G215: =D215+E215+F215 -> 188482.71 | I215: =L156 -> 260749.62 | J215: 15937.04 | K215: -103007.47 | L215: =I215+J215+K215 -> 173679.19 | M215: =G215-L215 -> 14803.52 | O215: =AVERAGE(G215,D215) -> 237249.775 | P215: =AVERAGE(L215,I215) -> 217214.405
A216: CEC | B216: 1612 | C216: Land Rights (Formally known as Account 1906 and 1806) | D216: 2747.84 | E216: 0 | F216: 0 | G216: =D216+E216+F216 -> 2747.84 | I216: 2010 | J216: 335 | K216: 0 | L216: =I216+J216+K216 -> 2345 | M216: =G216-L216 -> 402.84 | O216: 2747.84 | P216: 2177.5
A217: N/A | B217: 1805 | C217: Land | D217: 258350.32 | E217: 0 | F217: 0 | G217: =D217+E217+F217 -> 258350.32 | I217: 0 | J217: 0 | K217: 0 | L217: =I217+J217+K217 -> 0 | M217: 258350.32 | O217: 258350.32 | P217: 0
A218: 47 | B218: 1808 | C218: Buildings | D218: 171369.87 | E218: 0 | F218: 0 | G218: =D218+E218+F218 -> 171369.87 | I218: 20788.27 | J218: 13559.55 | K218: 0 | L218: =I218+J218+K218 -> 34347.82 | M218: 137022.05 | O218: 171369.87 | P218: 27568.045
A219: 13 | B219: 1810 | C219: Leasehold Improvements | D219: 291302.24 | E219: 50191.89 | F219: 0 | G219: 341494.13 | I219: 86135.95 | J219: 14396.47 | K219: 0 | L219: 100532.42 | M219: 240961.71 | O219: 316398.185 | P219: 93334.185
... 157 more rows

Sheet Appendix 2-BB Service Life
N1: File Number: | P1: ='LDC Info'!E16 -> EB-2021-0052
N2: Exhibit:
N3: Tab:
N4: Schedule:
N5: Page:
N7: Date:
A9: Appendix 2-BB
A10: Service Life Comparison
A11: Table F-1 from Kinetrics Report1
C15: Asset Details | F15: Useful Life | J15: USoA Account Number | K15: USoA Account Description | L15: Current | N15: Proposed | P15: Outside Range of Min, Max TUL?
A16: Parent* | B16: # | C16: Category| Component | Type | F16: MIN UL | G16: TUL | H16: MAX UL | L16: Years | M16: Rate | N16: Years | O16: Rate | P16: Below Min TUL | Q16: Above Max TUL
A17: OH | B17: 1 | C17: Fully Dressed Wood Poles | D17: Overall | F17: 35 | G17: 45 | H17: 75 | J17: 1830 | K17: Poles, Towers and Fixtures | L17: 45 | M17: =IF(ISERROR(1/L17), "", 1/L17) -> 0.02222222222 | N17: 45 | O17: =IF(ISERROR(1/N17), "", 1/N17) -> 0.02222222222 | P17: =IF(ISBLANK(N17),"",IF(N17<F17,"Yes","No")) -> No | Q17: =IF(ISBLANK(N17),"",IF(N17>H17,"Yes","No")) -> No
D18: Cross Arm | E18: Wood | F18: 20 | G18: 40 | H18: 55 | J18: 1830 | K18: Poles, Towers and Fixtures | L18: 45 | M18: =IF(ISERROR(1/L18), "", 1/L18) -> 0.02222222222 | N18: 45 | O18: =IF(ISERROR(1/N18), "", 1/N18) -> 0.02222222222 | P18: =IF(ISBLANK(N18),"",IF(N18<F18,"Yes","No")) -> No | Q18: =IF(ISBLANK(N18),"",IF(N18>H18,"Yes","No")) -> No
E19: Steel | F19: 30 | G19: 70 | H19: 95 | J19: 1830 | K19: Poles, Towers and Fixtures | L19: 45 | M19: 0.02222222222 | N19: 45 | O19: 0.02222222222 | P19: No | Q19: No
B20: 2 | C20: Fully Dressed Concrete Poles | D20: Overall | F20: 50 | G20: 60 | H20: 80 | J20: 1830 | K20: Poles, Towers and Fixtures | L20: 60 | M20: 0.01666666667 | N20: 60 | O20: 0.01666666667 | P20: No | Q20: No
D21: Cross Arm | E21: Wood | F21: 20 | G21: 40 | H21: 55 | J21: 1830 | K21: Poles, Towers and Fixtures | L21: 40 | M21: 0.025 | N21: 40 | O21: 0.025 | P21: No | Q21: No
E22: Steel | F22: 30 | G22: 70 | H22: 95 | J22: 1830 | K22: Poles, Towers and Fixtures | L22: 60 | M22: 0.01666666667 | N22: 60 | O22: 0.01666666667 | P22: No | Q22: No
B23: 3 | C23: Fully Dressed Steel Poles | D23: Overall | F23: 60 | G23: 60 | H23: 80 | J23: 1830 | K23: Poles, Towers and Fixtures | L23: 60 | M23: 0.01666666667 | N23: 60 | O23: 0.01666666667 | P23: No | Q23: No
D24: Cross Arm | E24: Wood | F24: 20 | G24: 40 | H24: 55 | J24: 1830 | K24: Poles, Towers and Fixtures | L24: 40 | M24: 0.025 | N24: 40 | O24: 0.025 | P24: No | Q24: No
E25: Steel | F25: 30 | G25: 70 | H25: 95 | J25: 1830 | K25: Poles, Towers and Fixtures | L25: 60 | M25: 0.01666666667 | N25: 60 | O25: 0.01666666667 | P25: No | Q25: No
B26: 4 | C26: OH Line Switch | F26: 30 | G26: 45 | H26: 55 | J26: 1835 | K26: Overhead Conductors & Fixtures | L26: 45 | M26: 0.02222222222 | N26: 45 | O26: 0.02222222222 | P26: No | Q26: No
B27: 5 | C27: OH Line Switch Motor | F27: 15 | G27: 25 | H27: 25 | J27: 1835 | K27: Overhead Conductors & Fixtures | L27: 25 | M27: 0.04 | N27: 25 | O27: 0.04 | P27: No | Q27: No
B28: 6 | C28: OH Line Switch RTU | F28: 15 | G28: 20 | H28: 20 | J28: 1835 | K28: Overhead Conductors & Fixtures | L28: 20 | M28: 0.05 | N28: 20 | O28: 0.05 | P28: No | Q28: No
B29: 7 | C29: OH Integral Switches | F29: 35 | G29: 45 | H29: 60 | J29: 1835 | K29: Overhead Conductors & Fixtures | L29: 45 | M29: 0.02222222222 | N29: 45 | O29: 0.02222222222 | P29: No | Q29: No
B30: 8 | C30: OH Conductors | F30: 50 | G30: 60 | H30: 75 | J30: 1835 | K30: Overhead Conductors & Fixtures | L30: 60 | M30: 0.01666666667 | N30: 60 | O30: 0.01666666667 | P30: No | Q30: No
B31: 9 | C31: OH Transformers & Voltage Regulators | F31: 30 | G31: 40 | H31: 60 | J31: 1850 | K31: Line Transformers | L31: 40 | M31: 0.025 | N31: 40 | O31: 0.025 | P31: No | Q31: No
B32: 10 | C32: OH Shunt Capacitor Banks | F32: 25 | G32: 30 | H32: 40 | J32: N/A
B33: 11 | C33: Reclosers | F33: 25 | G33: 40 | H33: 55 | J33: N/A
A34: TS & MS | B34: 12 | C34: Power Transformers | D34: Overall | F34: 30 | G34: 45 | H34: 60 | J34: 1850 | K34: Line Transformers | L34: 40 | M34: 0.025 | N34: 40 | O34: 0.025 | P34: No | Q34: No
D35: Bushing | F35: 10 | G35: 20 | H35: 30
D36: Tap Changer | F36: 20 | G36: 30 | H36: 60
B37: 13 | C37: Station Service Transformer | F37: 30 | G37: 45 | H37: 55
B38: 14 | C38: Station Grounding Transformer | F38: 30 | G38: 40 | H38: 40 | J38: 1820 | K38: Distribution Station Equipment | L38: 40 | M38: 0.025 | N38: 40 | O38: 0.025 | P38: No | Q38: No
B39: 15 | C39: Station DC System | D39: Overall | F39: 10 | G39: 20 | H39: 30 | J39: 1820 | K39: Distribution Station Equipment | L39: 20 | M39: 0.05 | N39: 20 | O39: 0.05 | P39: No | Q39: No
D40: Battery Bank | F40: 10 | G40: 15 | H40: 15 | J40: 1820 | K40: Distribution Station Equipment | L40: 15 | M40: 0.06666666667 | N40: 15 | O40: 0.06666666667 | P40: No | Q40: No
D41: Charger | F41: 20 | G41: 20 | H41: 30 | J41: 1820 | K41: Distribution Station Equipment | L41: 20 | M41: 0.05 | N41: 20 | O41: 0.05 | P41: No | Q41: No
B42: 16 | C42: Station Metal Clad Switchgear | D42: Overall | F42: 30 | G42: 40 | H42: 60 | J42: 1820 | K42: Distribution Station Equipment | L42: 40 | M42: 0.025 | N42: 40 | O42: 0.025 | P42: No | Q42: No
D43: Removable Breaker | F43: 25 | G43: 40 | H43: 60
B44: 17 | C44: Station Independent Breakers | F44: 35 | G44: 45 | H44: 65 | J44: 1820 | K44: Distribution Station Equipment | L44: 45 | M44: 0.02222222222 | N44: 45 | O44: 0.02222222222 | P44: No | Q44: No
B45: 18 | C45: Station Switch | F45: 30 | G45: 50 | H45: 60 | J45: 1820 | K45: Distribution Station Equipment | L45: 50 | M45: 0.02 | N45: 50 | O45: 0.02 | P45: No | Q45: No
B46: 19 | C46: Electromechanical Relays | F46: 25 | G46: 35 | H46: 50 | J46: 1820 | K46: Distribution Station Equipment | L46: 35 | M46: 0.02857142857 | N46: 35 | O46: 0.02857142857 | P46: No | Q46: No
B47: 20 | C47: Solid State Relays | F47: 10 | G47: 30 | H47: 45 | J47: 1820 | K47: Distribution Station Equipment | L47: 30 | M47: 0.03333333333 | N47: 30 | O47: 0.03333333333 | P47: No | Q47: No
B48: 21 | C48: Digital & Numeric Relays | F48: 15 | G48: 20 | H48: 20 | J48: 1820 | K48: Distribution Station Equipment | L48: 20 | M48: 0.05 | N48: 20 | O48: 0.05 | P48: No | Q48: No
B49: 22 | C49: Rigid Busbars | F49: 30 | G49: 55 | H49: 60 | J49: 1820 | K49: Distribution Station Equipment | L49: 55 | M49: 0.01818181818 | N49: 55 | O49: 0.01818181818 | P49: No | Q49: No
B50: 23 | C50: Steel Structure | F50: 35 | G50: 50 | H50: 90 | J50: 1820 | K50: Distribution Station Equipment | L50: 50 | M50: 0.02 | N50: 50 | O50: 0.02 | P50: No | Q50: No
A51: UG | B51: 24 | C51: Primary Paper Insulated Lead Covered (PILC) Cables | F51: 60 | G51: 65 | H51: 75 | J51: N/A
B52: 25 | C52: Primary Ethylene-Propylene Rubber (EPR) Cables | F52: 20 | G52: 25 | H52: 25 | J52: 1845 | K52: Underground Conductors & Devices | L52: 25 | M52: 0.04 | N52: 25 | O52: 0.04 | P52: No | Q52: No
B53: 26 | C53: Primary Non-Tree Retardant (TR) Cross Linked Polyethylene (XLPE) Cables Direct Buried | F53: 20 | G53: 25 | H53: 30 | J53: 1845 | K53: Underground Conductors & Devices | L53: 25 | M53: 0.04 | N53: 25 | O53: 0.04 | P53: No | Q53: No
B54: 27 | C54: Primary Non-TR XLPE Cables in Duct | F54: 20 | G54: 25 | H54: 30 | J54: 1845 | K54: Underground Conductors & Devices | L54: 25 | M54: 0.04 | N54: 25 | O54: 0.04 | P54: No | Q54: No
B55: 30 | C55: Secondary PILC Cables | F55: 70 | G55: 75 | H55: 80
B56: 31 | C56: Secondary Cables Direct Buried | F56: 25 | G56: 35 | H56: 40 | J56: 1855 | K56: Services | L56: 35 | M56: 0.02857142857 | N56: 35 | O56: 0.02857142857 | P56: No | Q56: No
B57: 32 | C57: Secondary Cables in Duct | F57: 35 | G57: 40 | H57: 60 | J57: 1855 | K57: Services | L57: 40 | M57: 0.025 | N57: 40 | O57: 0.025 | P57: No | Q57: No
B58: 33 | C58: Network Tranformers | D58: Overall | F58: 20 | G58: 35 | H58: 50
D59: Protector | F59: 20 | G59: 35 | H59: 40
B60: 34 | C60: Pad-Mounted Transformers | F60: 25 | G60: 40 | H60: 45 | J60: 1850 | K60: Line Transformers | L60: 40 | M60: 0.025 | N60: 40 | O60: 0.025 | P60: No | Q60: No
B61: 35 | C61: Submersible/Vault Transformers | F61: 25 | G61: 35 | H61: 45 | J61: 1850 | K61: Line Transformers | L61: 35 | M61: 0.02857142857 | N61: 35 | O61: 0.02857142857 | P61: No | Q61: No
B62: 36 | C62: UG Foundation | F62: 35 | G62: 55 | H62: 70 | J62: 1840 | K62: Underground Conduit | L62: 55 | M62: 0.01818181818 | N62: 55 | O62: 0.01818181818 | P62: No | Q62: No
B63: 37 | C63: UG Vaults | D63: Overall | F63: 40 | G63: 60 | H63: 80
D64: Roof | F64: 20 | G64: 30 | H64: 45
B65: 38 | C65: UG Vault Switches | F65: 20 | G65: 35 | H65: 50 | J65: 1845 | K65: Underground Conductors & Devices | L65: 35 | M65: 0.02857142857 | N65: 35 | O65: 0.02857142857 | P65: No | Q65: No
B66: 39 | C66: Pad-Mounted Switchgear | F66: 20 | G66: 30 | H66: 45 | J66: 1845 | K66: Underground Conductors & Devices | L66: 30 | M66: 0.03333333333 | N66: 30 | O66: 0.03333333333 | P66: No | Q66: No
B67: 40 | C67: Ducts | F67: 30 | G67: 50 | H67: 85 | J67: 1840 | K67: Underground Conduit | L67: 50 | M67: 0.02 | N67: 50 | O67: 0.02 | P67: No | Q67: No
B68: 41 | C68: Concrete Encased Duct Banks | F68: 35 | G68: 55 | H68: 80 | J68: 1840 | K68: Underground Conduit | L68: 55 | M68: 0.01818181818 | N68: 55 | O68: 0.01818181818 | P68: No | Q68: No
B69: 42 | C69: Cable Chambers | F69: 50 | G69: 60 | H69: 80 | J69: 1840 | K69: Underground Conduit | L69: 60 | M69: 0.01666666667 | N69: 60 | O69: 0.01666666667 | P69: No | Q69: No
A70: S | B70: 43 | C70: Remote SCADA | F70: 15 | G70: 20 | H70: 30
A73: Table F-2 from Kinetrics Report1
C75: Asset Details | F75: Useful Life Range | J75: USoA Account Number | K75: USoA Account Description | L75: Current | N75: Proposed | P75: Outside Range of Min, Max TUL?
B76: # | C76: Category| Component | Type | L76: Years | M76: Rate | N76: Years | O76: Rate | P76: Below Min Range | Q76: Above Max Range
B77: 1 | C77: Office Equipment | F77: 5 | G77: 15 | J77: 1915 | K77: Office Furiniture & Equipment | L77: 8 | M77: =IF(ISERROR(1/L77), "", 1/L77) -> 0.125 | N77: 8 | O77: =IF(ISERROR(1/N77), "", 1/N77) -> 0.125 | P77: =IF(ISBLANK(N77),"",IF(N77<F77,"Yes","No")) -> No | Q77: =IF(ISBLANK(N77),"",IF(N77>G77,"Yes","No")) -> No
B78: 2 | C78: Vehicles | D78: Trucks & Buckets | F78: 5 | G78: 15 | J78: 1930 | K78: Transportation Equipment | L78: 12 | M78: =IF(ISERROR(1/L78), "", 1/L78) -> 0.08333333333 | N78: 12 | O78: =IF(ISERROR(1/N78), "", 1/N78) -> 0.08333333333 | P78: =IF(ISBLANK(N78),"",IF(N78<F78,"Yes","No")) -> No | Q78: =IF(ISBLANK(N78),"",IF(N78>G78,"Yes","No")) -> No
D79: Trailers | F79: 5 | G79: 20 | J79: 1930 | K79: Transportation Equipment | L79: 10 | M79: 0.1 | N79: 10 | O79: 0.1 | P79: No | Q79: No
D80: Vans | F80: 5 | G80: 10 | J80: 1930 | K80: Transportation Equipment | L80: 5 | M80: 0.2 | N80: 5 | O80: 0.2 | P80: No | Q80: No
B81: 3 | C81: Administrative Buildings | F81: 50 | G81: 75 | J81: 200/201 | K81: Building & Fixtures | L81: 60 | M81: 0.01666666667 | N81: 60 | O81: 0.01666666667 | P81: No | Q81: No
B82: 4 | C82: Leasehold Improvements | F82: Lease dependent | P82: =IF(ISBLANK(N82),"",IF(N82<F82,"Yes","No")) ->  | Q82: =IF(ISBLANK(N82),"",IF(N82>G82,"Yes","No")) -> 
B83: 5 | C83: Station Buildings | D83: Station Buildings | F83: 50 | G83: 75 | J83: 1808 | K83: Building & Fixtures | L83: 60 | M83: 0.01666666667 | N83: 60 | O83: 0.01666666667 | P83: No | Q83: No
D84: Parking | F84: 25 | G84: 30 | J84: 1808 | K84: Building & Fixtures | L84: 25 | M84: 0.04 | N84: 25 | O84: 0.04 | P84: No | Q84: No
D85: Fence | F85: 25 | G85: 60 | J85: 1808 | K85: Building & Fixtures | L85: 25 | M85: 0.04 | N85: 25 | O85: 0.04 | P85: No | Q85: No
D86: Roof | F86: 20 | G86: 30 | J86: 1808 | K86: Building & Fixtures | L86: 25 | M86: 0.04 | N86: 25 | O86: 0.04 | P86: No | Q86: No
B87: 6 | C87: Computer Equipment | D87: Hardware | F87: 3 | G87: 5 | J87: 1920 | K87: Computer Equipment - Hardware | L87: 5 | M87: 0.2 | N87: 5 | O87: 0.2 | P87: No | Q87: No
D88: Software | F88: 2 | G88: 5 | J88: 1925 | K88: Computer Equipment - Software | L88: 5 | M88: 0.2 | N88: 5 | O88: 0.2 | P88: No | Q88: No
B89: 7 | C89: Equipment | D89: Power Operated | F89: 5 | G89: 10
D90: Stores | F90: 5 | G90: 10 | J90: 1935 | K90: Stores, Equipment | L90: 8 | M90: 0.125 | N90: 8 | O90: 0.125 | P90: No | Q90: No
D91: Tools, Shop, Garage Equipment | F91: 5 | G91: 10 | J91: 1940 | K91: Tools, Shops Garage Equipment | L91: 8 | M91: 0.125 | N91: 8 | O91: 0.125 | P91: No | Q91: No
D92: Measurement & Testing Equipment | F92: 5 | G92: 10 | J92: 1945 | K92: Measurement and Testing Equipment | L92: 8 | M92: 0.125 | N92: 8 | O92: 0.125 | P92: No | Q92: No
B93: 8 | C93: Communication | D93: Towers | F93: 60 | G93: 70
D94: Wireless | F94: 2 | G94: 10 | J94: 1955 | K94: Communication Equipment | L94: 10 | M94: 0.1 | N94: 10 | O94: 0.1 | P94: No | Q94: No
B95: 9 | C95: Residential Energy Meters | F95: 25 | G95: 35 | J95: 1860 | K95: Meters - Mechanical | L95: 25 | M95: 0.04 | N95: 25 | O95: 0.04 | P95: No | Q95: No
B96: 10 | C96: Industrial/Commercial Energy Meters | F96: 25 | G96: 35 | J96: 1860 | K96: Industrial/Commercial Energy Meters | L96: 25 | M96: 0.04 | N96: 25 | O96: 0.04 | P96: No | Q96: No
B97: 11 | C97: Wholesale Energy Meters | F97: 15 | G97: 30 | J97: 1860 | K97: Wholesale Energy Meters | L97: 15 | M97: 0.06666666667 | N97: 15 | O97: 0.06666666667 | P97: No | Q97: No
B98: 12 | C98: Current & Potential Transformer (CT & PT) | F98: 35 | G98: 50 | J98: 1860 | K98: Current & Potential Transformer (CT & PT) | L98: 40 | M98: 0.025 | N98: 40 | O98: 0.025 | P98: No | Q98: No
B99: 13 | C99: Smart Meters | F99: 5 | G99: 15 | J99: 1860 | K99: Smart Meters | L99: 15 | M99: 0.06666666667 | N99: 15 | O99: 0.06666666667 | P99: No | Q99: No
B100: 14 | C100: Repeaters - Smart Metering | F100: 10 | G100: 15 | J100: 1860 | K100: Repeaters - Smart Metering | L100: 15 | M100: 0.06666666667 | N100: 15 | O100: 0.06666666667 | P100: No | Q100: No
B101: 15 | C101: Data Collectors - Smart Metering | F101: 15 | G101: 20 | J101: 1860 | K101: Data Collectors - Smart Metering | L101: 15 | M101: 0.06666666667 | N101: 15 | O101: 0.06666666667 | P101: No | Q101: No
A104: * TS & MS = Transformer and Municipal Stations UG = Underground Systems S = Monitoring and Control Systems
A106: Note 1: | B106: Tables F-1 and F-2 above are to be used as a reference in order to complete columns J, K, L and N.
B107: See pages 17-19 of Kinetrics Report

Sheet App.2-C_DepExp
A9: Appendix 2-C | Y9: CGAAP
A10: Depreciation and Amortization Expense | Y10: Revised CGAAP
Y11: MIFRS
A12: This appendix is to be completed in conjunction with the accounting instructions in Appendix 2-B
C14: Year | D14: 2016 | E14: CGAAP - with changes to policies
A16: Account | B16: Description | C16: Opening Regulatory Gross PP&E as at Jan 1, 2016 | D16: Less Fully Depreciated | E16: Net for Depreciation | F16: Additions | G16: Total for Depreciation | H16: Years | I16: Depreciation Rate | J16: 2016 Depreciation Expense | K16: 2016 Depreciation Expense per Appendix 2-B Fixed Assets, Column K (l) | L16: Variance 2
C17: (a) | D17: (b) | E17: (c) | F17: (d) | G17: (e) = (c) + ½ x (d) 1 | H17: (f) | I17: (g) = 1 / (f) | J17: (h) = (e) / (f) | L17: (m) = (h) - (l)
A18: 1611 | B18: Computer Software (Formally known as Account 1925) | C18: 202931.53 | D18: 96678.82 | E18: =C18-D18 -> 106252.71 | F18: 21070 | G18: =E18+0.5*F18 -> 116787.71 | H18: 3 | I18: =IF(H18=0,"",1/H18) -> 0.3333333333 | J18: =IF(H18=0,0,G18/H18) -> 38929.23667 | K18: 31159.24 | L18: =IF(ISERROR(+J18-K18), "", +J18-K18) -> 7769.996667
A19: 1612 | B19: Land Rights (Formally known as Account 1906) | C19: 2747.84 | E19: 2747.84 | G19: 2747.84 | H19: 8 | I19: 0.125 | J19: 343.48 | K19: 335 | L19: =IF(ISERROR(+J19-K19), "", +J19-K19) -> 8.48
A20: 1805 | B20: Land | C20: 130499.26 | E20: 130499.26 | G20: 130499.26 | H20: 0 | J20: 0 | K20: 0 | L20: 0
A21: 1808 | B21: Buildings | C21: -11864.69 | D21: -11864.69 | E21: 0 | G21: 0 | H21: 25 | I21: 0.04 | J21: 0 | K21: 0
A22: 1808 | B22: Buildings | C22: 7846 | E22: 7846 | G22: 7846 | H22: 30 | I22: 0.03333333333 | J22: 261.5333333 | K22: 245 | L22: 16.53333333
A23: 1808 | B23: Buildings | C23: 91038.35 | E23: 91038.35 | G23: 91038.35 | H23: 50 | I23: 0.02 | J23: 1820.767 | K23: 1820.94 | L23: -0.173
A24: 1808 | B24: Buildings | C24: 83618.96 | E24: 83618.96 | G24: 83618.96 | H24: 60 | I24: 0.01666666667 | J24: 1393.649333 | K24: 1392 | L24: 1.649333333
A25: 1810 | B25: Leasehold Improvements | C25: 228040 | D25: -104655.61 | E25: 332695.61 | F25: 54222.45 | G25: 359806.835 | H25: 25 | I25: 0.04 | J25: 14392.2734 | K25: 14391.5554 | L25: 0.718
A26: 1820 | B26: Distribution Station Equipment <50 kV | C26: 31185 | E26: 31185 | G26: 31185 | H26: 15 | I26: 0.06666666667 | J26: 2079 | K26: 2078.99 | L26: 0.01
A27: 1820 | B27: Distribution Station Equipment <50 kV | C27: 922753.51 | D27: -763675.16 | E27: 1686428.67 | G27: 1686428.67 | H27: 30 | I27: 0.03333333333 | J27: 56214.289 | K27: 56205.38 | L27: 8.909
A28: 1820 | B28: Distribution Station Equipment <50 kV | C28: -65477.28 | D28: -94553.2 | E28: 29075.92 | G28: 29075.92 | H28: 34 | I28: 0.02941176471 | J28: 855.1741176 | K28: 855 | L28: 0.1741176471
A29: 1820 | B29: Distribution Station Equipment <50 kV | C29: 123386.89 | E29: 123386.89 | F29: 121525.29 | G29: 184149.535 | H29: 40 | I29: 0.025 | J29: 4603.738375 | K29: 4603.736125 | L29: 0.00225
A30: 1820 | B30: Distribution Station Equipment <50 kV | C30: 163045.5 | E30: 163045.5 | F30: 94060.22 | G30: 210075.61 | H30: 45 | I30: 0.02222222222 | J30: 4668.346889 | K30: 4833.148667 | L30: -164.8017778
A31: 1820 | B31: Distribution Station Equipment <50 kV | C31: 27437.89 | E31: 27437.89 | G31: 27437.89 | H31: 50 | I31: 0.02 | J31: 548.7578 | K31: 548.76 | L31: -0.0022
A32: 1830 | B32: Poles, Towers & Fixtures | C32: 1503377.48 | D32: -2341214.02 | E32: 3844591.5 | G32: 3844591.5 | H32: 25 | I32: 0.04 | J32: 153783.66 | K32: 143860.9 | L32: 9922.76
A33: 1830 | B33: Poles, Towers & Fixtures | C33: 509760.78 | E33: 509760.78 | F33: 269378.29 | G33: 644449.925 | H33: 45 | I33: 0.02222222222 | J33: 14321.10944 | K33: 14321.09567 | L33: 0.01377777778
A34: 1835 | B34: Overhead Conductors & Devices | C34: 1624906.73 | D34: -972605.63 | E34: 2597512.36 | G34: 2597512.36 | H34: 25 | I34: 0.04 | J34: 103900.4944 | K34: 103900.7076 | L34: -0.2132
A35: 1835 | B35: Overhead Conductors & Devices | C35: 9059.05 | E35: 9059.05 | F35: 1702.17 | G35: 9910.135 | H35: 40 | I35: 0.025 | J35: 247.753375 | K35: 247.754625 | L35: -0.00125
A36: 1835 | B36: Overhead Conductors & Devices | C36: 92543.06 | E36: 92543.06 | F36: 16291.18 | G36: 100688.65 | H36: 45 | I36: 0.02222222222 | J36: 2237.525556 | K36: 2237.536444 | L36: -0.01088888889
A37: 1835 | B37: Overhead Conductors & Devices | C37: 1024535.09 | E37: 1024535.09 | F37: 171656.28 | G37: 1110363.23 | H37: 60 | I37: 0.01666666667 | J37: 18506.05383 | K37: 18506.05367 | L37: 0.0001666666649
A38: 1840 | B38: Underground Conduit | C38: 1694521.98 | D38: 227255.55 | E38: 1467266.43 | G38: 1467266.43 | H38: 25 | I38: 0.04 | J38: 58690.6572 | K38: 61218.38 | L38: -2527.7228
A39: 1840 | B39: Underground Conduit | C39: -1174814.95 | D39: -1630734.4 | E39: =C39-D39 -> 455919.45 | G39: =E39+0.5*F39 -> 455919.45 | H39: 35 | I39: =IF(H39=0,"",1/H39) -> 0.02857142857 | J39: =IF(H39=0,0,G39/H39) -> 13026.27 | K39: 13031.19 | L39: =IF(ISERROR(+J39-K39), "", +J39-K39) -> -4.92
A40: 1840 | B40: Underground Conduit | C40: 54124.86 | D40: 0 | E40: =C40-D40 -> 54124.86 | G40: =E40+0.5*F40 -> 54124.86 | H40: 40 | I40: =IF(H40=0,"",1/H40) -> 0.025 | J40: =IF(H40=0,0,G40/H40) -> 1353.1215 | K40: 1353 | L40: =IF(ISERROR(+J40-K40), "", +J40-K40) -> 0.1215
A41: 1840 | B41: Underground Conduit | C41: 111044.64 | E41: =C41-D41 -> 111044.64 | F41: 10252.68 | G41: =E41+0.5*F41 -> 116170.98 | H41: 50 | I41: =IF(H41=0,"",1/H41) -> 0.02 | J41: =IF(H41=0,0,G41/H41) -> 2323.4196 | K41: 2323.4268 | L41: =IF(ISERROR(+J41-K41), "", +J41-K41) -> -0.0072
A42: 1845 | B42: Underground Conductors & Devices | C42: 276675.21 | D42: -129412.36 | E42: 406087.57 | G42: 406087.57 | H42: 25 | I42: 0.04 | J42: 16243.5028 | K42: 16243.53 | L42: -0.0272
A43: 1845 | B43: Underground Conductors & Devices | C43: 517564.95 | E43: =C43-D43 -> 517564.95 | F43: 25027.79 | G43: =E43+0.5*F43 -> 530078.845 | H43: 40 | I43: =IF(H43=0,"",1/H43) -> 0.025 | J43: =IF(H43=0,0,G43/H43) -> 13251.97113 | K43: 13251.9765 | L43: =IF(ISERROR(+J43-K43), "", +J43-K43) -> -0.005374999999
A44: 1850 | B44: Line Transformers | C44: 866182.05 | D44: -743946.35 | E44: =C44-D44 -> 1610128.4 | G44: =E44+0.5*F44 -> 1610128.4 | H44: 25 | I44: =IF(H44=0,"",1/H44) -> 0.04 | J44: =IF(H44=0,0,G44/H44) -> 64405.136 | K44: 71693.8412 | L44: =IF(ISERROR(+J44-K44), "", +J44-K44) -> -7288.7052
A45: 1850 | B45: Line Transformers | C45: 634168.81 | E45: =C45-D45 -> 634168.81 | F45: 127653.03 | G45: =E45+0.5*F45 -> 697995.325 | H45: 40 | I45: =IF(H45=0,"",1/H45) -> 0.025 | J45: =IF(H45=0,0,G45/H45) -> 17449.88313 | K45: 17449.88313 | L45: =IF(ISERROR(+J45-K45), "", +J45-K45) -> 0
A46: 1855 | B46: Services (Overhead & Underground) | C46: 657447.41 | D46: -324028.17 | E46: 981475.58 | G46: 981475.58 | H46: 25 | I46: 0.04 | J46: 39259.0232 | K46: 39259.0208 | L46: 0.002399999998
A47: 1855 | B47: Services (Overhead & Underground) | C47: 351785.49 | E47: 351785.49 | F47: 53057.99 | G47: 378314.485 | H47: 40 | I47: 0.025 | J47: 9457.862125 | K47: 9457.86075 | L47: 0.001375
A48: 1855 | B48: Services (Overhead & Underground) | C48: 112090.77 | E48: 112090.77 | F48: 40573.5 | G48: 132377.52 | H48: 60 | I48: 0.01666666667 | J48: 2206.292 | K48: 2206.290833 | L48: 0.001166666667
A49: 1860 | B49: Meters | C49: 98768.36 | D49: -5814.43 | E49: 104582.79 | F49: 0 | G49: 104582.79 | H49: 25 | I49: 0.04 | J49: 4183.3116 | K49: 4315.694743 | L49: -132.3831428
A50: 1860 | B50: Meters | C50: 2025.96 | D50: -1453.93 | E50: 3479.89 | F50: 36172.07 | G50: 21565.925 | H50: 15 | I50: 0.06666666667 | J50: 1437.728333 | K50: 1478.2 | L50: -40.47166667
A51: 1860 | B51: Meters (Smart Meters) | C51: 1645231 | E51: 1645231 | G51: 1645231 | H51: 15 | I51: 0.06666666667 | J51: 109682.0667 | K51: 109682 | L51: 0.06666666668
A52: 1915 | B52: Office Furniture & Equipment (10 years) | C52: 13903.3 | D52: -2771.64 | E52: 16674.94 | F52: 27072.09 | G52: 30210.985 | H52: 10 | I52: 0.1 | J52: 3021.0985 | K52: 3021.1045 | L52: -0.006000000002
A53: 1920 | B53: Computer Equipment - Hardware | C53: 84929.63 | D53: 52975.82 | E53: 31953.81 | F53: 1668.77 | G53: 32788.195 | H53: 3 | I53: 0.3333333333 | J53: 10929.39833 | K53: 16507.24833 | L53: -5577.85
A54: 1930 | B54: Transportation Equipment - automobiles | C54: 77377.31 | D54: 49141.31 | E54: 28236 | F54: 0 | G54: 28236 | H54: 4 | I54: 0.25 | J54: 7059 | K54: 7059 | L54: 0
A55: 1930 | B55: Transportation Equipment - under 3 Tons | C55: 129889.71 | D55: 22318.6 | E55: 107571.11 | F55: 0 | G55: 107571.11 | H55: 5 | I55: 0.2 | J55: 21514.222 | K55: 18705.42 | L55: 2808.802
A56: 1930 | B56: Transportation Equipment - 3 Tons & Over | C56: 664486.39 | D56: -216228.42 | E56: 880714.81 | F56: 116565 | G56: 938997.31 | H56: 8 | I56: =IF(H56=0,"",1/H56) -> 0.125 | J56: 117374.6638 | K56: 110279.37 | L56: 7095.29375
A57: 1940 | B57: Tools, Shop & Garage Equipment | C57: 74405.91 | D57: -1434.03 | E57: 75839.94 | F57: 14006.95 | G57: 82843.415 | H57: 10 | I57: =IF(H57=0,"",1/H57) -> 0.1 | J57: 8284.3415 | K57: 8284.3325 | L57: 0.009
A58: 1945 | B58: Measurement & Testing Equipment | C58: 23637.8 | D58: -904.5 | E58: 24542.3 | G58: 24542.3 | H58: 10 | I58: 0.1 | J58: 2454.23 | K58: 2454.23 | L58: 0
A59: 1955 | B59: Communication Equipment 5 yrs | C59: 26170.96 | D59: 1225.117 | E59: 24945.843 | G59: 24945.843 | H59: 5 | I59: 0.2 | J59: 4989.1686 | K59: 4989.172 | L59: -0.003400000001
A60: 1955 | B60: Communication Equipment 10 yrs | E60: =C60-D60 -> 0 | G60: =E60+0.5*F60 -> 0 | I60: =IF(H60=0,"",1/H60) ->  | J60: =IF(H60=0,0,G60/H60) -> 0 | K60: 0 | L60: =IF(ISERROR(+J60-K60), "", +J60-K60) -> 0
A61: 1960 | B61: Miscellaneous Equipment | C61: 11498.8 | D61: -605.2 | E61: 12104 | G61: 12104 | H61: 10 | I61: 0.1 | J61: 1210.4 | K61: 1210.4 | L61: 0
A62: 1980 | B62: System Supervisor Equipment | C62: 74735.46 | D62: 73620.86 | E62: 1114.6 | G62: 1114.6 | H62: 3 | I62: 0.3333333333 | J62: 371.5333333 | K62: 287.65 | L62: 83.88333333
A63: 1980 | B63: System Supervisor Equipment | C63: 8100 | D63: 8100 | E63: =C63-D63 -> 0 | G63: =E63+0.5*F63 -> 0 | H63: 5 | I63: =IF(H63=0,"",1/H63) -> 0.2 | J63: 0 | K63: 0 | L63: =IF(ISERROR(+J63-K63), "", +J63-K63) -> 0
A64: 1980 | B64: System Supervisor Equipment | C64: 50708.16 | D64: 50708.16 | E64: =C64-D64 -> 0 | G64: =E64+0.5*F64 -> 0 | H64: 10 | I64: =IF(H64=0,"",1/H64) -> 0.1 | J64: 0 | K64: 0 | L64: =IF(ISERROR(+J64-K64), "", +J64-K64) -> 0
A65: 1980 | B65: System Supervisor Equipment | C65: -130454.9 | D65: -130454.9 | E65: =C65-D65 -> 0 | G65: =E65+0.5*F65 -> 0 | H65: 15 | I65: =IF(H65=0,"",1/H65) -> 0.06666666667 | J65: 0 | K65: 0 | L65: =IF(ISERROR(+J65-K65), "", +J65-K65) -> 0
A66: 1995 | B66: Contributions & Grants | C66: -892619.01 | D66: 489090.42 | E66: -1381709.43 | G66: -1381709.43 | H66: 25 | I66: 0.04 | J66: -55268.3772 | K66: -55268.36 | L66: -0.01719999999
A67: 1995 | B67: Contributions & Grants | C67: -634169.79 | E67: -634169.79 | G67: -634169.79 | H67: 40 | I67: 0.025 | J67: -15854.24475 | K67: -15913.31 | L67: 59.06525
A68: 2040 | B68: Contributions & Grants | C68: -34000 | E68: -34000 | G68: -34000 | H68: 3 | I68: 0.3333333333 | J68: -11333.33333 | K68: -11333.33 | L68: -0.003333333334
A69: 2040 | B69: Contributions & Grants | C69: -294404.66 | E69: -294404.66 | F69: -96899.3 | G69: -342854.31 | H69: 40 | I69: 0.025 | J69: -8571.35775 | K69: -8571.36 | L69: 0.00225
E70: 0 | G70: 0 | J70: 0 | L70: 0
B71: Total | C71: =SUM(C18:C70) -> 11802382.56 | D71: =SUM(D18:D70) -> -6405241.983 | E71: =SUM(E18:E70) -> 18207624.54 | F71: =SUM(F18:F70) -> 1105056.45 | G71: =SUM(G18:G70) -> 18760152.77 | J71: =SUM(J18:J70) -> 858257.8308 | K71: =SUM(K18:K70) -> 846218.6603 | L71: =SUM(L18:L70) -> 12039.1705
C75: Year | D75: 2017 | E75: IFRS
A77: Account | B77: Description | C77: Opening Regulatory Gross PP&E as at Jan 1, 2017 | D77: Less Fully Depreciated | E77: Net for Depreciation | F77: Additions | G77: Total for Depreciation | H77: Years | I77: Depreciation Rate | J77: 2017 Depreciation Expense | K77: 2017 Depreciation Expense per Appendix 2-B Fixed Assets, Column K (l) | L77: Variance 2
C78: (a) | D78: (b) | E78: (c) | F78: (d) | G78: (e) = (c) + ½ x (d) 1 | H78: (f) | I78: (g) = 1 / (f) | J78: (h) = (e) / (f) | L78: (m) = (h) - (l)
A79: 1611 | B79: Computer Software (Formally known as Account 1925) | C79: 224001.53 | D79: 143298.82 | E79: =C79-D79 -> 80702.71 | F79: 33880.61 | G79: =E79+0.5*F79 -> 97643.015 | H79: 3 | I79: =IF(H79=0,"",1/H79) -> 0.3333333333 | J79: =IF(H79=0,0,G79/H79) -> 32547.67167 | K79: 25719.89 | L79: =IF(ISERROR(+J79-K79), "", +J79-K79) -> 6827.781667
A80: 1612 | B80: Land Rights (Formally known as Account 1906) | C80: 2747.84 | D80: 0 | E80: =C80-D80 -> 2747.84 | F80: 0 | G80: =E80+0.5*F80 -> 2747.84 | H80: 8 | I80: 0.125 | J80: 343.48 | K80: 335 | L80: =IF(ISERROR(+J80-K80), "", +J80-K80) -> 8.48
A81: 1805 | B81: Land | C81: 130499.26 | D81: 0 | E81: 130499.26 | F81: 39130 | G81: 150064.26 | H81: 0 | J81: 0 | K81: 0 | L81: 0
A82: 1808 | B82: Buildings | C82: -11864.69 | D82: -11864.69 | E82: 0 | F82: 0 | G82: 0 | H82: 25 | I82: 0.04 | J82: 0 | K82: 0 | L82: 0
A83: 1808 | B83: Buildings | C83: 7846 | E83: 7846 | F83: 0 | G83: 7846 | H83: 30 | I83: 0.03333333333 | J83: 261.5333333 | K83: 245 | L83: 16.53333333
A84: 1808 | B84: Buildings | C84: 0 | D84: 0 | E84: 0 | F84: 731.25 | G84: =E84+0.5*F84 -> 365.625 | H84: 45 | I84: 0.02222222222 | J84: 8.125 | K84: 8.13 | L84: -0.005
A85: 1808 | B85: Buildings | C85: 91038.35 | D85: 0 | E85: 91038.35 | F85: 0 | G85: =E85+0.5*F85 -> 91038.35 | H85: 50 | I85: 0.02 | J85: 1820.767 | K85: 1820.94 | L85: -0.173
A86: 1808 | B86: Buildings | C86: 83618.96 | D86: 0 | E86: 83618.96 | F86: 0 | G86: =E86+0.5*F86 -> 83618.96 | H86: 60 | I86: 0.01666666667 | J86: 1393.649333 | K86: 1392 | L86: 1.649333333
A87: 1810 | B87: Leasehold Improvements | C87: 282262.45 | D87: -104655.61 | E87: 386918.06 | F87: 3278.27 | G87: 388557.195 | H87: 25 | I87: 0.04 | J87: 15542.2878 | K87: 15541.578 | L87: 0.7098
A88: 1820 | B88: Distribution Station Equipment <50 kV | C88: 31185 | D88: 0 | E88: 31185 | F88: 0 | G88: 31185 | H88: 15 | I88: 0.06666666667 | J88: 2079 | K88: 2078.99 | L88: 0.01
A89: 1820 | B89: Distribution Station Equipment <50 kV | C89: 922753.51 | D89: -750348.01 | E89: 1673101.52 | F89: 8487 | G89: 1677345.02 | H89: 30 | I89: 0.03333333333 | J89: 55911.50067 | K89: 55899.68 | L89: 11.82066667
A90: 1820 | B90: Distribution Station Equipment <50 kV | C90: -65477.28 | D90: -94553.2 | E90: 29075.92 | F90: 0 | G90: =E90+0.5*F90 -> 29075.92 | H90: 34 | I90: 0.02941176471 | J90: 855.1741176 | K90: 871.08 | L90: -15.90588235
A91: 1820 | B91: Distribution Station Equipment <50 kV | C91: 244912.18 | D91: 0 | E91: 244912.18 | F91: 12316.2 | G91: 251070.28 | H91: 40 | I91: 0.025 | J91: 6276.757 | K91: 6276.74225 | L91: 0.01475
A92: 1820 | B92: Distribution Station Equipment <50 kV | C92: 257105.72 | D92: 696.27 | E92: 256409.45 | F92: 27656.51 | G92: 270237.705 | H92: 45 | I92: 0.02222222222 | J92: 6005.282333 | K92: 6005.287111 | L92: -0.004777777778
A93: 1820 | B93: Distribution Station Equipment <50 kV | C93: 27437.89 | D93: 0 | E93: 27437.89 | F93: 0 | G93: 27437.89 | H93: 50 | I93: 0.02 | J93: 548.7578 | K93: 548.76 | L93: -0.0022
A94: 1830 | B94: Poles, Towers & Fixtures | C94: 1503377.48 | D94: -2149743.53 | E94: 3653121.01 | F94: 0 | G94: 3653121.01 | H94: 25 | I94: 0.04 | J94: 146124.8404 | K94: 134564.64 | L94: 11560.2004
A95: 1830 | B95: Poles, Towers & Fixtures | C95: 779139.07 | D95: 0 | E95: 779139.07 | F95: 162879.07 | G95: 860578.605 | H95: 45 | I95: 0.02222222222 | J95: 19123.969 | K95: 19123.95422 | L95: 0.01477777778
A96: 1835 | B96: Overhead Conductors & Devices | C96: 1624906.73 | D96: -972605.63 | E96: 2597512.36 | F96: 0 | G96: 2597512.36 | H96: 25 | I96: 0.04 | J96: 103900.4944 | K96: 103900.7076 | L96: -0.2132
A97: 1835 | B97: Overhead Conductors & Devices | C97: 10761.22 | D97: 0 | E97: 10761.22 | F97: 2487.2 | G97: 12004.82 | H97: 40 | I97: 0.025 | J97: 300.1205 | K97: 300.12425 | L97: -0.00375
A98: 1835 | B98: Overhead Conductors & Devices | C98: 108834.24 | D98: 0 | E98: 108834.24 | F98: 24539.1 | G98: 121103.79 | H98: 45 | I98: 0.02222222222 | J98: 2691.195333 | K98: 2691.204667 | L98: -0.009333333333
A99: 1835 | B99: Overhead Conductors & Devices | C99: 1196191.37 | D99: 0 | E99: 1196191.37 | F99: 264779.97 | G99: 1328581.355 | H99: 60 | I99: 0.01666666667 | J99: 22143.02258 | K99: 22143.01967 | L99: 0.002916666665
A100: 1840 | B100: Underground Conduit | C100: 1694521.98 | D100: 336655.28 | E100: 1357866.7 | F100: 0 | G100: 1357866.7 | H100: 25 | I100: 0.04 | J100: 54314.668 | K100: 53852.11 | L100: 462.558
A101: 1840 | B101: Underground Conduit | C101: -1174814.95 | D101: -1528249.21 | E101: 353434.26 | F101: 0 | G101: 353434.26 | H101: 35 | I101: 0.02857142857 | J101: 10098.12171 | K101: 10112.58 | L101: -14.45828571
A102: 1840 | B102: Underground Conduit | C102: 54124.86 | D102: 0 | E102: 54124.86 | F102: 0 | G102: 54124.86 | H102: 40 | I102: 0.025 | J102: 1353.1215 | K102: 1353 | L102: 0.1215
A103: 1840 | B103: Underground Conduit | C103: 121297.32 | D103: 0 | E103: 121297.32 | F103: 31940.21 | G103: 137267.425 | H103: 50 | I103: 0.02 | J103: 2745.3485 | K103: 2745.3536 | L103: -0.0051
A104: 1845 | B104: Underground Conductors & Devices | C104: 276675.21 | D104: -129412.36 | E104: 406087.57 | F104: 0 | G104: 406087.57 | H104: 25 | I104: 0.04 | J104: 16243.5028 | K104: 16243.53 | L104: -0.0272
A105: 1845 | B105: Underground Conductors & Devices | C105: 542592.74 | D105: 0 | E105: 542592.74 | F105: 140969.86 | G105: 613077.67 | H105: 40 | I105: 0.025 | J105: 15326.94175 | K105: 15326.94475 | L105: -0.002999999999
A106: 1850 | B106: Line Transformers | C106: 866182.05 | D106: -743946.35 | E106: 1610128.4 | F106: 0 | G106: 1610128.4 | H106: 25 | I106: 0.04 | J106: 64405.136 | K106: 68429.5412 | L106: -4024.4052
A107: 1850 | B107: Line Transformers | C107: 761821.84 | D107: 0 | E107: 761821.84 | F107: 140853.33 | G107: 832248.505 | H107: 40 | I107: 0.025 | J107: 20806.21263 | K107: 20806.21575 | L107: -0.003124999996
A108: 1855 | B108: Services (Overhead & Underground) | C108: 657447.41 | D108: -324028.17 | E108: 981475.58 | F108: 0 | G108: 981475.58 | H108: 25 | I108: 0.04 | J108: 39259.0232 | K108: 39259.0208 | L108: 0.002399999998
A109: 1855 | B109: Services (Overhead & Underground) | C109: 404843.48 | D109: 0 | E109: 404843.48 | F109: 79089.27 | G109: 444388.115 | H109: 40 | I109: 0.025 | J109: 11109.70287 | K109: 11109.70975 | L109: -0.006875000003
A110: 1855 | B110: Services (Overhead & Underground) | C110: 152664.27 | D110: 0 | E110: 152664.27 | F110: 47364.34 | G110: 176346.44 | H110: 60 | I110: 0.01666666667 | J110: 2939.107333 | K110: 2939.105 | L110: 0.002333333334
A111: 1860 | B111: Meters | C111: 98768.36 | D111: -5814.43 | E111: =C111-D111 -> 104582.79 | F111: 0 | G111: =E111+0.5*F111 -> 104582.79 | H111: 25 | I111: =IF(H111=0,"",1/H111) -> 0.04 | J111: =IF(H111=0,0,G111/H111) -> 4183.3116 | K111: 4292.256039 | L111: =IF(ISERROR(+J111-K111), "", +J111-K111) -> -108.944439
A112: 1860 | B112: Meters | C112: 38198.03 | D112: -1453.93 | E112: =C112-D112 -> 39651.96 | F112: 35397.2 | G112: =E112+0.5*F112 -> 57350.56 | H112: 15 | I112: =IF(H112=0,"",1/H112) -> 0.06666666667 | J112: =IF(H112=0,0,G112/H112) -> 3823.370667 | K112: 3843.66 | L112: =IF(ISERROR(+J112-K112), "", +J112-K112) -> -20.28933333
A113: 1860 | B113: Meters (Smart Meters) | C113: 1645231 | D113: 0 | E113: 1645231 | F113: 0 | G113: 1645231 | H113: 15 | I113: 0.06666666667 | J113: 109682.0667 | K113: 109682 | L113: 0.06666666668
A114: 1915 | B114: Office Furniture & Equipment (10 years) | C114: 40975.39 | D114: -2771.64 | E114: 43747.03 | F114: 4397.75 | G114: 45945.905 | H114: 10 | I114: 0.1 | J114: 4594.5905 | K114: 4594.599 | L114: -0.0085
A115: 1920 | B115: Computer Equipment - Hardware | C115: 86598.4 | D115: 52975.84 | E115: 33622.56 | F115: 6396.67 | G115: 36820.895 | H115: 3 | I115: 0.3333333333 | J115: 12273.63167 | K115: 10514.15333 | L115: 1759.478333
A116: 1930 | B116: Transportation Equipment - Automobiles | C116: 77377.31 | D116: 49141.31 | E116: 28236 | F116: 0 | G116: 28236 | H116: 4 | I116: 0.25 | J116: 7059 | K116: 7059 | L116: 0
A117: 1930 | B117: Transportation Equipment - under 3 Tons | C117: 129889.71 | D117: 50406.61 | E117: 79483.1 | F117: 0 | G117: 79483.1 | H117: 5 | I117: 0.2 | J117: 15896.62 | K117: 15896.62 | L117: -1.818989404e-12
A118: 1930 | B118: Transportation Equipment - 3 Tons & Over | C118: 781051.39 | D118: -201988.78 | E118: =C118-D118 -> 983040.17 | F118: 322428.24 | G118: =E118+0.5*F118 -> 1144254.29 | H118: 8 | I118: =IF(H118=0,"",1/H118) -> 0.125 | J118: =IF(H118=0,0,G118/H118) -> 143031.7863 | K118: 135936.46 | L118: =IF(ISERROR(+J118-K118), "", +J118-K118) -> 7095.32625
A119: 1940 | B119: Tools, Shop & Garage Equipment | C119: 88412.86 | D119: 659.86 | E119: 87753 | F119: 3354.45 | G119: 89430.225 | H119: 10 | I119: 0.1 | J119: 8943.0225 | K119: 8943.02 | L119: 0.002500000002
A120: 1945 | B120: Measurement & Testing Equipment | C120: 23637.8 | D120: -904.5 | E120: 24542.3 | F120: 999 | G120: 25041.8 | H120: 10 | I120: 0.1 | J120: 2504.18 | K120: 2504.18 | L120: 0
A121: 1955 | B121: Communications Equipment | C121: 26170.96 | D121: 1225.12 | E121: 24945.84 | F121: 0 | G121: 24945.84 | H121: 5 | I121: 0.2 | J121: 4989.168 | K121: 4831.722 | L121: 157.446
A122: 1960 | B122: Miscellaneous Equipment | C122: 11498.8 | D122: -605.2 | E122: 12104 | F122: 0 | G122: 12104 | H122: 10 | I122: 0.1 | J122: 1210.4 | K122: 1210.4 | L122: 0
A123: 1980 | B123: System Supervisor Equipment | C123: 74735.46 | D123: 74124.13 | E123: 611.33 | F123: 35234.31 | G123: 18228.485 | H123: 3 | I123: 0.3333333333 | J123: 6076.161667 | K123: 5974.278333 | L123: 101.8833333
A124: 1980 | B124: System Supervisor Equipment | C124: 8100 | D124: 8100 | E124: 0 | F124: 0 | G124: 0 | H124: 5 | I124: 0.2 | J124: 0 | K124: 0 | L124: 0
A125: 1980 | B125: System Supervisor Equipment | C125: 50708.16 | D125: 50708.16 | E125: 0 | F125: 0 | G125: 0 | H125: 10 | I125: 0.1 | J125: 0 | K125: 0 | L125: 0
A126: 1980 | B126: System Supervisor Equipment | C126: -130454.9 | D126: -130454.9 | E126: 0 | F126: 0 | G126: 0 | H126: 15 | I126: 0.06666666667 | J126: 0 | K126: 0 | L126: 0
A127: 1995 | B127: Contributions & Grants | C127: -892619.01 | D127: 489090.42 | E127: -1381709.43 | G127: -1381709.43 | H127: 25 | I127: 0.04 | J127: =IF(H127=0,0,G127/H127) -> -55268.3772 | K127: -55268.36 | L127: -0.01719999999
A128: 1995 | B128: Contributions & Grants | C128: -634169.79 | E128: -634169.79 | G128: -634169.79 | H128: 40 | I128: 0.025 | J128: =IF(H128=0,0,G128/H128) -> -15854.24475 | K128: -15913.31 | L128: 59.06525
A129: 2040 | B129: Contributions & Grants | C129: -34000 | E129: -34000 | G129: -34000 | H129: 3 | I129: 0.3333333333 | J129: =IF(H129=0,0,G129/H129) -> -11333.33333 | K129: -11333.33 | L129: -0.003333333334
A130: 2040 | B130: Contributions & Grants | C130: -391303.96 | E130: -391303.96 | F130: -263532.76 | G130: -523070.34 | H130: 40 | I130: 0.025 | J130: =IF(H130=0,0,G130/H130) -> -13076.7585 | K130: -13076.76 | L130: 0.0015
E131: 0 | G131: 0 | J131: 0 | L131: 0
B132: Total | C132: =SUM(C79:C131) -> 12907439.01 | D132: =SUM(D79:D131) -> -5896318.32 | E132: =SUM(E79:E131) -> 18803757.33 | F132: =SUM(F79:F131) -> 1165057.05 | G132: =SUM(G79:G131) -> 19386285.86 | J132: =SUM(J79:J131) -> 885213.1103 | K132: =SUM(K79:K131) -> 861334.4273 | L132: =SUM(L79:L131) -> 23878.68298
C136: Year | D136: 2018 | E136: IFRS
A138: Account | B138: Description | C138: Opening Regulatory Gross PP&E as at Jan 1, 2018 | D138: Less Fully Depreciated | E138: Net for Depreciation | F138: Additions | G138: Total for Depreciation | H138: Years | I138: Depreciation Rate | J138: 2018 Depreciation Expense | K138: 2018 Depreciation Expense per Appendix 2-B Fixed Assets, Column K (l) | L138: Variance 2
C139: (a) | D139: (b) | E139: (c) | F139: (d) | G139: (e) = (c) + ½ x (d) 1 | H139: (f) | I139: (g) = 1 / (f) | J139: (h) = (e) / (f) | L139: (m) = (h) - (l)
A140: 1611 | B140: Computer Software (Formally known as Account 1925) | C140: 257882.14 | D140: 184265.53 | E140: =C140-D140 -> 73616.61 | F140: 11474.01 | G140: =E140+0.5*F140 -> 79353.615 | H140: 3 | I140: =IF(H140=0,"",1/H140) -> 0.3333333333 | J140: =IF(H140=0,0,G140/H140) -> 26451.205 | K140: 23340.22 | L140: =IF(ISERROR(+J140-K140), "", +J140-K140) -> 3110.985
A141: 1612 | B141: Land Rights (Formally known as Account 1906) | C141: 2747.84 | D141: 0 | E141: =C141-D141 -> 2747.84 | F141: 0 | G141: =E141+0.5*F141 -> 2747.84 | H141: 8 | I141: 0.125 | J141: 343.48 | K141: 335 | L141: =IF(ISERROR(+J141-K141), "", +J141-K141) -> 8.48
A142: 1805 | B142: Land | C142: 169629.26 | D142: 0 | E142: 169629.26 | F142: 88721.06 | G142: 213989.79 | H142: 0 | J142: 0 | K142: 0 | L142: 0
A143: 1808 | B143: Buildings | C143: -11864.69 | D143: -11864.69 | E143: 0 | F143: 0 | G143: 0 | H143: 25 | I143: 0.04 | J143: 0 | K143: 0 | L143: 0
A144: 1808 | B144: Buildings | C144: 7846 | D144: 0 | E144: 7846 | F144: 0 | G144: 7846 | H144: 30 | I144: 0.03333333333 | J144: 261.5333333 | K144: 245 | L144: 16.53333333
A145: 1808 | B145: Buildings | C145: 731.25 | E145: 731.25 | F145: 0 | G145: 731.25 | H145: 45 | I145: 0.02222222222 | J145: 16.25 | K145: 16.25 | L145: 0
A146: 1808 | B146: Buildings | C146: 91038.35 | D146: 0 | E146: 91038.35 | F146: 0 | G146: 91038.35 | H146: 50 | I146: 0.02 | J146: 1820.767 | K146: 1820.94 | L146: -0.173
A147: 1808 | B147: Buildings | C147: 83618.96 | D147: 0 | E147: 83618.96 | F147: 0 | G147: 83618.96 | H147: 60 | I147: 0.01666666667 | J147: 1393.649333 | K147: 1392 | L147: 1.649333333
A148: 1810 | B148: Leasehold Improvements | C148: 285540.72 | D148: -104655.61 | E148: 390196.33 | F148: 1572.78 | G148: 390982.72 | H148: 25 | I148: 0.04 | J148: 15639.3088 | K148: 15638.6 | L148: 0.7088
A149: 1820 | B149: Distribution Station Equipment <50 kV | C149: 31185 | D149: 0 | E149: 31185 | F149: 0 | G149: 31185 | H149: 15 | I149: 0.06666666667 | J149: 2079 | K149: 2078.99 | L149: 0.01
A150: 1820 | B150: Distribution Station Equipment <50 kV | C150: 931240.51 | D150: -750348.01 | E150: 1681588.52 | F150: 0 | G150: 1681588.52 | H150: 30 | I150: 0.03333333333 | J150: 56052.95067 | K150: 56030.37 | L150: 22.58066667
A151: 1820 | B151: Distribution Station Equipment <50 kV | C151: -65477.28 | D151: -80937.12 | E151: 15459.84 | F151: 0 | G151: 15459.84 | H151: 34 | I151: 0.02941176471 | J151: 454.7011765 | K151: 453.35 | L151: 1.351176471
A152: 1820 | B152: Distribution Station Equipment <50 kV | C152: 257228.38 | D152: 0 | E152: 257228.38 | F152: 35767.68 | G152: 275112.22 | H152: 40 | I152: 0.025 | J152: 6877.8055 | K152: 6877.79 | L152: 0.0155
A153: 1820 | B153: Distribution Station Equipment <50 kV | C153: 284762.23 | D153: 696.27 | E153: 284065.96 | F153: 0 | G153: 284065.96 | H153: 45 | I153: 0.02222222222 | J153: 6312.576889 | K153: 6312.59 | L153: -0.01311111111
A154: 1820 | B154: Distribution Station Equipment <50 kV | C154: 27437.89 | D154: 0 | E154: 27437.89 | F154: 0 | G154: 27437.89 | H154: 50 | I154: 0.02 | J154: 548.7578 | K154: 548.76 | L154: -0.0022
A155: 1825 | B155: Storage Battery Equipment | C155: 0 | D155: 0 | E155: 0 | F155: 0 | G155: 0 | J155: 0 | K155: 0 | L155: 0
A156: 1830 | B156: Poles, Towers & Fixtures | C156: 1503377.48 | D156: -1929603.28 | E156: 3432980.76 | F156: 0 | G156: 3432980.76 | H156: 25 | I156: 0.04 | J156: 137319.2304 | K156: 125042.18 | L156: 12277.0504
A157: 1830 | B157: Poles, Towers & Fixtures | C157: 942018.14 | D157: 0 | E157: 942018.14 | F157: 169618.68 | G157: 1026827.48 | H157: 45 | I157: 0.02222222222 | J157: 22818.38844 | K157: 22818.37 | L157: 0.01844444444
A158: 1835 | B158: Overhead Conductors & Devices | C158: 1624906.73 | D158: -972605.63 | E158: 2597512.36 | F158: 0 | G158: 2597512.36 | H158: 25 | I158: 0.04 | J158: 103900.4944 | K158: 103900.7076 | L158: -0.2132
A159: 1835 | B159: Overhead Conductors & Devices | C159: 13248.42 | D159: 0 | E159: 13248.42 | F159: 3030.51 | G159: 14763.675 | H159: 40 | I159: 0.025 | J159: 369.091875 | K159: 369.09 | L159: 0.001875
A160: 1835 | B160: Overhead Conductors & Devices | C160: 133373.34 | D160: 0 | E160: 133373.34 | F160: 27657.51 | G160: 147202.095 | H160: 45 | I160: 0.02222222222 | J160: 3271.157667 | K160: 3271.15 | L160: 0.007666666666
A161: 1835 | B161: Overhead Conductors & Devices | C161: 1460971.34 | D161: 0 | E161: 1460971.34 | F161: 280021.36 | G161: 1600982.02 | H161: 60 | I161: 0.01666666667 | J161: 26683.03367 | K161: 26683.03 | L161: 0.00366666666
A162: 1840 | B162: Underground Conduit | C162: 1694521.98 | D162: 393689.63 | E162: 1300832.35 | F162: 0 | G162: 1300832.35 | H162: 25 | I162: 0.04 | J162: 52033.294 | K162: 48680.27 | L162: 3353.024
A163: 1840 | B163: Underground Conduit | C163: -1174814.95 | D163: -1471954.63 | E163: 297139.68 | F163: 0 | G163: 297139.68 | H163: 35 | I163: 0.02857142857 | J163: 8489.705143 | K163: 8490.07 | L163: -0.3648571429
A164: 1840 | B164: Underground Conduit | C164: 54124.86 | D164: 0 | E164: 54124.86 | F164: 0 | G164: 54124.86 | H164: 40 | I164: 0.025 | J164: 1353.1215 | K164: 1353 | L164: 0.1215
A165: 1840 | B165: Underground Conduit | C165: 153237.53 | D165: 0 | E165: 153237.53 | F165: 42831.57 | G165: 174653.315 | H165: 50 | I165: 0.02 | J165: 3493.0663 | K165: 3493.07 | L165: -0.0037
A166: 1845 | B166: Underground Conductors & Devices | C166: 276675.21 | D166: -129412.36 | E166: 406087.57 | F166: 0 | G166: 406087.57 | H166: 25 | I166: 0.04 | J166: 16243.5028 | K166: 16243.53 | L166: -0.0272
A167: 1845 | B167: Underground Conductors & Devices | C167: 683562.6 | D167: 0 | E167: 683562.6 | F167: 115159.44 | G167: 741142.32 | H167: 40 | I167: 0.025 | J167: 18528.558 | K167: 18528.56 | L167: -0.002
A168: 1850 | B168: Line Transformers | C168: 866182.05 | D168: -743946.35 | E168: 1610128.4 | F168: 0 | G168: 1610128.4 | H168: 25 | I168: 0.04 | J168: 64405.136 | K168: 23382.9212 | L168: 41022.2148
A169: 1850 | B169: Line Transformers | C169: 902675.17 | D169: 0 | E169: 902675.17 | F169: 521399.67 | G169: 1163375.005 | H169: 40 | I169: 0.025 | J169: 29084.37513 | K169: 29084.45 | L169: -0.07487499999
A170: 1855 | B170: Services (Overhead & Underground) | C170: 657447.41 | D170: -324028.17 | E170: 981475.58 | F170: 0 | G170: 981475.58 | H170: 25 | I170: 0.04 | J170: 39259.0232 | K170: 39259.0208 | L170: 0.002399999998
A171: 1855 | B171: Services (Overhead & Underground) | C171: 483932.75 | D171: 0 | E171: 483932.75 | F171: 49426.35 | G171: 508645.925 | H171: 40 | I171: 0.025 | J171: 12716.14812 | K171: 12716.15 | L171: -0.001875000002
A172: 1855 | B172: Services (Overhead & Underground) | C172: 200028.61 | D172: 0 | E172: 200028.61 | F172: 16508.75 | G172: 208282.985 | H172: 60 | I172: 0.01666666667 | J172: 3471.383083 | K172: 3471.39 | L172: -0.006916666666
A173: 1860 | B173: Meters | C173: 98768.36 | D173: -5814.43 | E173: =C173-D173 -> 104582.79 | F173: 0 | G173: =E173+0.5*F173 -> 104582.79 | H173: 25 | I173: =IF(H173=0,"",1/H173) -> 0.04 | J173: =IF(H173=0,0,G173/H173) -> 4183.3116 | K173: 4269.3773 | L173: =IF(ISERROR(+J173-K173), "", +J173-K173) -> -86.06570011
A174: 1860 | B174: Meters | C174: 73595.23 | D174: -1453.93 | E174: =C174-D174 -> 75049.16 | F174: 107964.17 | G174: =E174+0.5*F174 -> 129031.245 | H174: 15 | I174: =IF(H174=0,"",1/H174) -> 0.06666666667 | J174: =IF(H174=0,0,G174/H174) -> 8602.083 | K174: 8598.61 | L174: =IF(ISERROR(+J174-K174), "", +J174-K174) -> 3.473
A175: 1860 | B175: Meters (Smart Meters) | C175: 1645231 | D175: 0 | E175: 1645231 | F175: 0 | G175: 1645231 | H175: 15 | I175: 0.06666666667 | J175: 109682.0667 | K175: 109682 | L175: 0.06666666668
A176: 1915 | B176: Office Furniture & Equipment (10 years) | C176: 45373.14 | D176: -2771.64 | E176: 48144.78 | F176: 4.58 | G176: 48147.07 | H176: 10 | I176: 0.1 | J176: 4814.707 | K176: 4814.72 | L176: -0.013
A177: 1920 | B177: Computer Equipment - Hardware | C177: 92995.07 | D177: 63532.7 | E177: 29462.37 | F177: 5446.05 | G177: 32185.395 | H177: 3 | I177: 0.3333333333 | J177: 10728.465 | K177: 7162.315 | L177: 3566.15
A178: 1930 | B178: Transportation Equipment | C178: 77377.31 | D178: 49141.31 | E178: 28236 | F178: 0 | G178: 28236 | H178: 4 | I178: 0.25 | J178: 7059 | K178: 3529.5 | L178: 3529.5
A179: 1930 | B179: Transportation Equipment | C179: 129889.71 | D179: 50406.61 | E179: 79483.1 | F179: 0 | G179: 79483.1 | H179: 5 | I179: 0.2 | J179: 15896.62 | K179: 10305.01 | L179: 5591.61
A180: 1930 | B180: Transportation Equipment | C180: 1103479.63 | D180: -201988.78 | E180: 1305468.41 | F180: 30997.23 | G180: 1320967.025 | H180: 8 | I180: 0.125 | J180: 165120.8781 | K180: 147764.98 | L180: 17355.89812
A181: 1940 | B181: Tools, Shop & Garage Equipment | C181: 91767.31 | D181: 659.86 | E181: 91107.45 | F181: 368.11 | G181: 91291.505 | H181: 10 | I181: 0.1 | J181: 9129.1505 | K181: 9129.18 | L181: -0.0295
A182: 1945 | B182: Measurement & Testing Equipment | C182: 24636.8 | D182: -904.5 | E182: 25541.3 | F182: 3180.25 | G182: 27131.425 | H182: 10 | I182: 0.1 | J182: 2713.1425 | K182: 2713.14 | L182: 0.0025
A183: 1955 | B183: Communications Equipment | C183: 26170.96 | D183: 2799.45 | E183: 23371.51 | F183: 0 | G183: 23371.51 | H183: 5 | I183: 0.2 | J183: 4674.302 | K183: 4674.302 | L183: 0
A184: 1960 | B184: Miscellaneous Equipment | C184: 11498.8 | D184: -605.2 | E184: 12104 | F184: 0 | G184: 12104 | H184: 10 | I184: 0.1 | J184: 1210.4 | K184: 1210.4 | L184: 0
A185: 1980 | B185: System Supervisor Equipment | C185: 109969.77 | D185: 74735.46 | E185: 35234.31 | F185: 12648.09 | G185: 41558.355 | H185: 3 | I185: 0.3333333333 | J185: 13852.785 | K185: 13852.79 | L185: -0.005000000003
A186: 1980 | B186: System Supervisor Equipment | C186: 8100 | D186: 8100 | E186: 0 | F186: 0 | G186: 0 | H186: 5 | I186: 0.2 | J186: 0 | K186: 0 | L186: 0
A187: 1980 | B187: System Supervisor Equipment | C187: 50708.16 | D187: 50708.16 | E187: 0 | F187: 0 | G187: 0 | H187: 10 | I187: 0.1 | J187: 0 | K187: 0 | L187: 0
A188: 1980 | B188: System Supervisor Equipment | C188: -130454.9 | D188: -130454.9 | E188: 0 | F188: 0 | G188: 0 | H188: 15 | I188: 0.06666666667 | J188: 0 | K188: 0 | L188: 0
A189: 1995 | B189: Contributions & Grants | C189: -892619.01 | D189: 489090.42 | E189: -1381709.43 | G189: -1381709.43 | H189: 25 | I189: 0.04 | J189: =IF(H189=0,0,G189/H189) -> -55268.3772 | K189: -55268.36 | L189: -0.01719999999
A190: 1995 | B190: Contributions & Grants | C190: -634169.79 | E190: -634169.79 | G190: -634169.79 | H190: 40 | I190: 0.025 | J190: =IF(H190=0,0,G190/H190) -> -15854.24475 | K190: -15913.31 | L190: 59.06525
A191: 2040 | B191: Contributions & Grants | C191: -34000 | E191: -34000 | G191: -34000 | H191: 3 | I191: 0.3333333333 | J191: =IF(H191=0,0,G191/H191) -> -11333.33333 | K191: -5666.67 | L191: -5666.663333
A192: 2040 | B192: Contributions & Grants | C192: -654836.72 | E192: -654836.72 | F192: -136450 | G192: -723061.72 | H192: 40 | I192: 0.025 | J192: =IF(H192=0,0,G192/H192) -> -18076.543 | K192: -18076.55 | L192: 0.007000000001
E193: 0 | G193: 0 | J193: =IF(H193=0,0,G193/H193) -> 0 | K193: 0 | L193: 0
B194: Total | C194: =SUM(C140:C193) -> 14072496.06 | D194: =SUM(D140:D193) -> -5495523.83 | E194: =SUM(E140:E193) -> 19568019.89 | F194: =SUM(F140:F193) -> 1387347.85 | G194: =SUM(G140:G193) -> 20261693.82 | J194: =SUM(J140:J193) -> 918825.1083 | K194: =SUM(K140:K193) -> 834658.2539 | L194: =SUM(L140:L193) -> 84166.85444
C198: Year | D198: 2019 | E198: IFRS
A200: Account | B200: Description | C200: Opening Regulatory Gross PP&E as at Jan 1, 2019 | D200: Less Fully Depreciated | E200: Net for Depreciation | F200: Additions | G200: Total for Depreciation | H200: Years | I200: Depreciation Rate | J200: 2019 Depreciation Expense | K200: 2019 Depreciation Expense per Appendix 2-B Fixed Assets, Column K (l) | L200: Variance 2
C201: (a) | D201: (b) | E201: (c) | F201: (d) | G201: (e) = (c) + ½ x (d) 1 | H201: (f) | I201: (g) = 1 / (f) | J201: (h) = (e) / (f) | L201: (m) = (h) - (l)
A202: 1611 | B202: Computer Software (Formally known as Account 1925) | C202: 269356.15 | D202: 202931.5183 | E202: =C202-D202 -> 66424.63167 | F202: 16660.16 | G202: =E202+0.5*F202 -> 74754.71167 | H202: 3 | I202: =IF(H202=0,"",1/H202) -> 0.3333333333 | J202: =IF(H202=0,0,G202/H202) -> 24918.23722 | K202: 21406.57 | L202: =IF(ISERROR(+J202-K202),"",+J202-K202) -> 3511.667222
A203: 1612 | B203: Land Rights (Formally known as Account 1906) | C203: 2747.84 | D203: 0 | E203: =C203-D203 -> 2747.84 | F203: 0 | G203: =E203+0.5*F203 -> 2747.84 | H203: 8 | I203: =IF(H203=0,"",1/H203) -> 0.125 | J203: =IF(H203=0,0,G203/H203) -> 343.48 | K203: 335 | L203: =IF(ISERROR(+J203-K203),"",+J203-K203) -> 8.48
A204: 1805 | B204: Land | C204: 258350.32 | D204: 0 | E204: 258350.32 | F204: 0 | G204: 258350.32 | H204: 0 | J204: =IF(H204=0,0,G204/H204) -> 0 | K204: 0 | L204: 0
A205: 1808 | B205: Buildings | C205: -11864.69 | D205: -11864.69 | E205: 0 | F205: 0 | G205: 0 | H205: 25 | I205: 0.04 | J205: 0 | K205: 0 | L205: 0
A206: 1808 | B206: Buildings | C206: 7846 | D206: 0 | E206: 7846 | F206: 0 | G206: 7846 | H206: 30 | I206: 0.03333333333 | J206: 261.5333333 | K206: 245 | L206: 16.53333333
A207: 1808 | B207: Buildings | C207: 731.25 | D207: 0 | E207: 731.25 | F207: 0 | G207: 731.25 | H207: 45 | I207: 0.02222222222 | J207: 16.25 | K207: 16.25 | L207: 0
A208: 1808 | B208: Buildings | C208: 91038.35 | D208: 0 | E208: 91038.35 | F208: 0 | G208: 91038.35 | H208: 50 | I208: 0.02 | J208: 1820.767 | K208: 1820.94 | L208: -0.173
A209: 1808 | B209: Buildings | C209: 83618.96 | E209: 83618.96 | F209: 0 | G209: 83618.96 | H209: 60 | I209: 0.01666666667 | J209: 1393.649333 | K209: 1392 | L209: 1.649333333
A210: 1810 | B210: Leasehold Improvements | C210: 287113.5 | D210: -104655.61 | E210: 391769.11 | F210: 4189.19 | G210: 393863.705 | H210: 25 | I210: 0.04 | J210: 15754.5482 | K210: 15753.83 | L210: 0.7182
A211: 1820 | B211: Distribution Station Equipment <50 kV | C211: 31185 | D211: 0 | E211: 31185 | F211: 0 | G211: 31185 | H211: 15 | I211: 0.06666666667 | J211: 2079 | K211: 2078.99 | L211: 0.01
A212: 1820 | B212: Distribution Station Equipment <50 kV | C212: 931240.51 | D212: -745828.77 | E212: 1677069.28 | F212: 0 | G212: 1677069.28 | H212: 30 | I212: 0.03333333333 | J212: 55902.30933 | K212: 56226.71 | L212: -324.4006667
A213: 1820 | B213: Distribution Station Equipment <50 kV | C213: -65477.28 | D213: -79204.77 | E213: 13727.49 | F213: 0 | G213: 13727.49 | H213: 34 | I213: 0.02941176471 | J213: 403.7497059 | K213: 395.49 | L213: 8.259705882
A214: 1820 | B214: Distribution Station Equipment <50 kV | C214: 292996.06 | D214: 0 | E214: 292996.06 | F214: 0 | G214: 292996.06 | H214: 40 | I214: 0.025 | J214: 7324.9015 | K214: 7324.89 | L214: 0.0115
A215: 1820 | B215: Distribution Station Equipment <50 kV | C215: 284762.23 | D215: 696.27 | E215: 284065.96 | F215: 0 | G215: 284065.96 | H215: 45 | I215: 0.02222222222 | J215: 6312.576889 | K215: 6312.59 | L215: -0.01311111111
A216: 1820 | B216: Distribution Station Equipment <50 kV | C216: 27437.89 | D216: 0 | E216: 27437.89 | F216: 0 | G216: 27437.89 | H216: 50 | I216: 0.02 | J216: 548.7578 | K216: 548.76 | L216: -0.0022
A217: 1830 | B217: Poles, Towers & Fixtures | C217: 1503377.48 | D217: -1718053.06 | E217: 3221430.54 | F217: 0 | G217: 3221430.54 | H217: 25 | I217: 0.04 | J217: 128857.2216 | K217: 113821.95 | L217: 15035.2716
A218: 1830 | B218: Poles, Towers & Fixtures | C218: 1111636.82 | D218: 0 | E218: 1111636.82 | F218: 147244.97 | G218: 1185259.305 | H218: 45 | I218: 0.02222222222 | J218: 26339.09567 | K218: 26339.08 | L218: 0.01566666666
A219: 1835 | B219: Overhead Conductors & Devices | C219: 1624906.73 | D219: -972605.63 | E219: 2597512.36 | F219: 0 | G219: 2597512.36 | H219: 25 | I219: 0.04 | J219: 103900.4944 | K219: 103900.7076 | L219: -0.2132
A220: 1835 | B220: Overhead Conductors & Devices | C220: 16278.93 | D220: 0 | E220: 16278.93 | F220: 2190.91 | G220: 17374.385 | H220: 40 | I220: 0.025 | J220: 434.359625 | K220: 434.36 | L220: -0.0003749999999
A221: 1835 | B221: Overhead Conductors & Devices | C221: 161030.85 | D221: 0 | E221: 161030.85 | F221: 19718.17 | G221: 170889.935 | H221: 45 | I221: 0.02222222222 | J221: 3797.554111 | K221: 3797.55 | L221: 0.004111111112
A222: 1835 | B222: Overhead Conductors & Devices | C222: 1740992.7 | D222: 0 | E222: 1740992.7 | F222: 197181.68 | G222: 1839583.54 | H222: 60 | I222: 0.01666666667 | J222: 30659.72567 | K222: 30659.73 | L222: -0.004333333341
... 208 more rows

Sheet App.2-D_Overhead
G1: File Number: | H1: =EBNUMBER -> EB-2021-0052
G2: Exhibit:
G3: Tab:
G4: Schedule:
G5: Page:
G7: Date:
A9: Appendix 2-D
A10: Overhead Expense
A12: Applicants are to provide a breakdown of OM&A before capitalization in the below table. OM&A before capitalization may be broken down by cost center, program, drivers or another format best suited to focus on capitalized vs. uncapitalized OM&A.
A14: OM&A Before Capitalization
B15: =F15-4 -> 2018 | C15: =F15-3 -> 2019 | D15: =F15-2 -> 2020 | E15: =F15-1 -> 2021 | F15: =TestYear -> 2022
B16: Historical Year | C16: Historical Year | D16: Historical Year | E16: Bridge Year | F16: Test Year
A17: Operations | B17: 484252.12 | C17: 513327.29 | D17: 785740.61 | E17: 815322.4547 | F17: 901090.53
A18: Maintenance | B18: 500383.53 | C18: 645567.21 | D18: 501235.76 | E18: 562975.48 | F18: 576746.94
A19: Billing and Collecting | B19: 668040.86 | C19: 748224.19 | D19: 837379.93 | E19: 951322.46 | F19: 962860.32
A20: Community Relations | B20: 71838.16 | C20: 64146.95 | D20: 30337.83 | E20: 41361.55 | F20: 42318.43
A21: Administrative and General | B21: =1076915.34+B34 -> 1255891.27 | C21: =1235809.86+C34 -> 1341688.01 | D21: =1203797.37+D34 -> 1278551.75 | E21: =1158155.46+E34 -> 1270067.27 | F21: =1225378.1142+F34 -> 1340251.394
A27: Total OM&A Before Capitalization (B) | B27: =SUM(B17:B26) -> 2980405.94 | C27: =SUM(C17:C26) -> 3312953.65 | D27: =SUM(D17:D26) -> 3433245.88 | E27: =SUM(E17:E26) -> 3641049.215 | F27: =SUM(F17:F26) -> 3823267.614
A29: Applicants are to provide a breakdown of capitalized OM&A in the below table. Capitalized OM&A may be broken down using the categories listed in the table below if possible. Otherwise, applicants are to provide its own break down of capitalized OM&A.
A31: Capitalized OM&A | G31: Directly | H31: Explanation for Change in Overhead Capitalized
B32: =F32-4 -> 2018 | C32: =F32-3 -> 2019 | D32: =F32-2 -> 2020 | E32: =F32-1 -> 2021 | F32: =TestYear -> 2022 | G32: Attributable?
B33: Historical Year | C33: Historical Year | D33: Historical Year | E33: Bridge Year | F33: Test Year | G33: (Yes/No)
A34: employee benefits | B34: 178975.93 | C34: 105878.15 | D34: 74754.38 | E34: =4070.65+107841.16 -> 111911.81 | F34: =4178.36+110694.92 -> 114873.28 | G34: Yes
A35: costs of site preparation | B35: 0 | C35: 0 | D35: 0 | E35: 0 | F35: 0
A36: initial delivery and handling costs | B36: 0 | C36: 0 | D36: 0 | E36: 0 | F36: 0
A37: costs of testing whether the asset is functioning properly | B37: 0 | C37: 0 | D37: 0 | E37: 0 | F37: 0
A38: professional fees | B38: 0 | C38: 0 | D38: 0 | E38: 0 | F38: 0
A40: costs of opening a new facility | B40: 0 | C40: 0 | D40: 0 | E40: 0 | F40: 0
A41: costs of introducing a new product or service (including costs of advertising and promotional activities) | B41: 0 | C41: 0 | D41: 0 | E41: 0 | F41: 0
A42: costs of conducting business in a new location or with a new class of customer (including costs of staff training) | B42: 0 | C42: 0 | D42: 0 | E42: 0 | F42: 0
A43: administration and other general overhead costs | B43: 0 | C43: 0 | D43: 0 | E43: 0 | F43: 0
A47: Total Capitalized OM&A (A) | B47: =SUM(B34:B46) -> 178975.93 | C47: =SUM(C34:C46) -> 105878.15 | D47: =SUM(D34:D46) -> 74754.38 | E47: =SUM(E34:E46) -> 111911.81 | F47: =SUM(F34:F46) -> 114873.28
A49: % of Capitalized OM&A (=A/B) | B49: =IF(ISERROR(B47/B27),"0%",B47/B27) -> 0.0600508567 | C49: =IF(ISERROR(C47/C27),"0%",C47/C27) -> 0.0319588383 | D49: =IF(ISERROR(D47/D27),"0%",D47/D27) -> 0.021773675 | E49: =IF(ISERROR(E47/E27),"0%",E47/E27) -> 0.03073614318 | F49: =IF(ISERROR(F47/F27),"0%",F47/F27) -> 0.03004583817

Sheet App.2-EA_Account 1575 (2015) (hidden)
H1: File Number: | I1: =EBNUMBER -> EB-2021-0052
H2: Exhibit:
H3: Tab:
H4: Schedule:
H5: Page:
H7: Date:
A9: Appendix 2-EA
A10: Account 1575 - IFRS-CGAAP Transitional PP&E Amounts
A11: 2015 Adopters of IFRS for Financial Reporting Purposes
A13: For applicants that adopted IFRS on January 1, 2015 for financial reporting purposes
B17: 2014 | C17: =TestYear-3 -> 2019 | D17: =TestYear-2 -> 2020 | E17: =CONCATENATE(TestYear-1," Bridge Year") -> 2021 Bridge Year | F17: =CONCATENATE(TestYear," Rebasing Year") -> 2022 Rebasing Year
A18: Reporting Basis | B18: CGAAP | C18: CGAAP | D18: CGAAP | E18: MIFRS | F18: MIFRS
B19: Actual | C19: Actual | D19: Actual | E19: Forecast | F19: Forecast
D20: $ | E20: $
A21: PP&E Values under CGAAP
A22: Opening net PP&E - Note 1 | C22: =+B25 -> 0 | D22: =+C25 -> 0 | E22: =+D25 -> 0
A23: Net Additions - Note 4
A24: Net Depreciation (amounts should be negative) - Note 4
A25: Closing net PP&E (1) | B25: =SUM(B22:B24) -> 0 | C25: =SUM(C22:C24) -> 0 | D25: =SUM(D22:D24) -> 0 | E25: =SUM(E22:E24) -> 0
A27: PP&E Values under MIFRS (Starts from 2014, the transition year)
A28: Opening net PP&E - Note 1 | C28: =+B31 -> 0 | D28: =+C31 -> 0 | E28: =+D31 -> 0
A29: Net Additions - Note 4
A30: Net Depreciation (amounts should be negative) - Note 4
A31: Closing net PP&E (2) | B31: =SUM(B28:B30) -> 0 | C31: =SUM(C28:C30) -> 0 | D31: =SUM(D28:D30) -> 0 | E31: =SUM(E28:E30) -> 0
A33: Difference in Closing net PP&E, former CGAAP vs. revised CGAAP | B33: =B25-B31 -> 0 | C33: =C25-C31 -> 0 | D33: =D25-D31 -> 0 | E33: =E25-E31 -> 0
A36: Effect on Deferral and Variance Account Rate Riders
A37: Closing balance in Account 1575 | F37: =IF(ISERROR(E33), 0, E33) -> 0 | H37: WACC
A38: Return on Rate Base Associated with Account 1575 balance at WACC - Note 2 | F38: =E33*I37*I38 -> 0 | G38: # of years of rate rider disposition period
A39: Amount included in Deferral and Variance Account Rate Rider Calculation | F39: =F37+F38 -> 0
A41: Notes:
A42: 1 For an applicant that adopted IFRS on January 1, 2015, the PP&E values as of January 1, 2014 under both CGAAP and MIFRS should be the same.
A43: 2 Return on rate base associated with deferred balance is calculated as:
A44: the deferral account closing balance as of 2017 x WACC X # of years of rate rider disposition period
A45: * Please note that the calculation should be adjusted once WACC is updated and finalized in the rate application.
A46: 3 The PP&E deferral account is cleared by including the total balance in the deferral and variance account rate rider calculation.
A47: 4 Net additions are additions net of disposals; Net depreciation is additions to depreciation net of disposals.

Sheet App.2-EB_Account 1576 (2012) (hidden)
K1: File Number: | L1: =EBNUMBER -> EB-2021-0052
K2: Exhibit:
K3: Tab:
K4: Schedule:
K5: Page:
K7: Date:
A9: Appendix 2-EB
A10: Account 1576 - Accounting Changes under CGAAP
A11: 2012 Changes in Accounting Policies under CGAAP
A13: For applicants with a balance in Account 1576 and made capitalization and depreciation expense accounting policy changes under CGAAP effective January 1, 2012. This is the first time the applicant is rebasing with changes in these accounting policies.
B17: Prior Years Rebasing | C17: 2012 | D17: 2013 | E17: 2014 | F17: 2015 | G17: 2016 | H17: 2017 | I17: 2018 Rebasing Year
A18: Reporting Basis | B18: CGAAP | C18: CGAAP | D18: CGAAP | E18: CGAAP | F18: MIFRS - Note 5 | G18: MIFRS | H18: MIFRS | I18: MIFRS
B19: Forecast | C19: Actual | D19: Actual | E19: Actual | F19: Actual | G19: Actual | H19: Forecast | I19: Forecast
C20: $ | D20: $ | E20: $ | F20: $ | G20: $ | H20: $
A21: PP&E Values under former CGAAP
A22: Opening net PP&E - Note 1 | D22: =+C25 -> 0 | E22: =+D25 -> 0 | F22: =+E25 -> 0 | G22: =+F25 -> 0 | H22: =+G25 -> 0
A23: Net Additions - Note 4
A24: Net Depreciation (amounts should be negative) - Note 4
A25: Closing net PP&E (1) | C25: =C22+C23+C24 -> 0 | D25: 0 | E25: 0 | F25: 0 | G25: 0 | H25: 0
A27: PP&E Values under revised CGAAP (Starts from 2012)
A28: Opening net PP&E - Note 1 | D28: =+C31 -> 0 | E28: =+D31 -> 0 | F28: =+E31 -> 0 | G28: =+F31 -> 0 | H28: =+G31 -> 0
A29: Net Additions - Note 4
A30: Net Depreciation (amounts should be negative) - Note 4
A31: Closing net PP&E (2) | C31: =SUM(C28:C30) -> 0 | D31: 0 | E31: 0 | F31: 0 | G31: 0 | H31: 0
A33: Difference in Closing net PP&E, former CGAAP vs. revised CGAAP | C33: =C25-C31 -> 0 | D33: 0 | E33: 0 | F33: 0 | G33: 0 | H33: 0
A36: Effect on Deferral and Variance Account Rate Riders
A37: Closing balance in Account 1576 | I37: =IF(ISERROR(H33), 0, H33) -> 0 | K37: WACC
A38: Return on Rate Base Associated with Account 1576 balance at WACC - Note 2 | I38: =H33*L37*L38 -> 0 | J38: # of years of rate rider disposition period
A39: Amount included in Deferral and Variance Account Rate Rider Calculation | I39: =I37+I38 -> 0
A41: Notes:
A42: 1 For an applicant that made the capitalization and depreciation expense accounting policy changes on January 1, 2012, the PP&E values as of January 1, 2012 under both former CGAAP and revised CGAAP should be the same.
A43: 2 Return on rate base associated with Account 1576 balance is calculated as:
A44: the variance account ending balance as of 2017 x WACC X # of years of rate rider disposition period
A45: * Please note that the calculation should be adjusted once WACC is updated and finalized in the rate application.
A46: 3 Account 1576 is cleared by including the total balance in the deferral and variance account rate rider calculation.
A47: 4 Net additions are additions net of disposals; Net depreciation is additions to depreciation net of disposals.
A48: 5 Differences due to the adoption of MIFRS are to be shown separately in Account 1575 in Appendix 2-EA as Accounts 1575 and 1576 cannot be used interchangably.

Sheet App.2-EC_Account 1576 (2013) (hidden)
J1: File Number: | K1: =EBNUMBER -> EB-2021-0052
J2: Exhibit:
J3: Tab:
J4: Schedule:
J5: Page:
J7: Date:
A9: Appendix 2-EC
A10: Account 1576 - Accounting Changes under CGAAP
A11: 2013 Changes in Accounting Policies under CGAAP
A13: For applicants with a balance in Account 1576 and made capitalization and depreciation expense accounting policy changes under CGAAP effective January 1, 2013. This is the first time the applicant is rebasing with changes in these accounting policies.
B17: Prior Years Rebasing | C17: 2013 | D17: 2014 | E17: 2015 | F17: 2016 | G17: 2017 | H17: 2018 Rebasing Year
A18: Reporting Basis | B18: CGAAP | C18: CGAAP | D18: CGAAP | E18: MIFRS - Note 5 | F18: MIFRS | G18: MIFRS | H18: MIFRS
B19: Actual | C19: Actual | D19: Actual | E19: Actual | F19: Actual | G19: Forecast | H19: Forecast
C20: $ | D20: $ | F20: $
A21: PP&E Values under former CGAAP
A22: Opening net PP&E - Note 1 | D22: =+C25 -> 0 | E22: =+D25 -> 0 | F22: =+E25 -> 0 | G22: =+F25 -> 0
A23: Net Additions - Note 4
A24: Net Depreciation (amounts should be negative) - Note 4
A25: Closing net PP&E (1) | C25: =C22+C23+C24 -> 0 | D25: =D22+D23+D24 -> 0 | E25: =E22+E23+E24 -> 0 | F25: =F22+F23+F24 -> 0 | G25: =G22+G23+G24 -> 0
A27: PP&E Values under revised CGAAP (Starts from 2012)
A28: Opening net PP&E - Note 1 | D28: =+C31 -> 0 | E28: =+D31 -> 0 | F28: =+E31 -> 0 | G28: =+F31 -> 0
A29: Net Additions - Note 4
A30: Net Depreciation (amounts should be negative) - Note 4
A31: Closing net PP&E (2) | C31: =SUM(C28:C30) -> 0 | D31: =SUM(D28:D30) -> 0 | E31: =SUM(E28:E30) -> 0 | F31: =SUM(F28:F30) -> 0 | G31: =SUM(G28:G30) -> 0
A33: Difference in Closing net PP&E, former CGAAP vs. revised CGAAP | C33: =C25-C31 -> 0 | D33: =D25-D31 -> 0 | E33: =E25-E31 -> 0 | F33: =F25-F31 -> 0 | G33: =G25-G31 -> 0
A36: Effect on Deferral and Variance Account Rate Riders
A37: Closing balance in Account 1576 | H37: =IF(ISERROR(G33), 0, G33) -> 0 | J37: WACC
A38: Return on Rate Base Associated with Account 1576 balance at WACC - Note 2 | H38: =G33*K37*K38 -> 0 | I38: # of years of rate rider disposition period
A39: Amount included in Deferral and Variance Account Rate Rider Calculation | H39: =H37+H38 -> 0
A41: Notes:
A42: 1 For an applicant that made the capitalization and depreciation expense accounting policy changes on January 1, 2013, the PP&E values as of January 1, 2013 under both former CGAAP and revised CGAAP should be the same.
A43: 2 Return on rate base associated with Account 1576 balance is calculated as:
A44: the variance account ending balance as of 2017 x WACC X # of years of rate rider disposition period
A45: * Please note that the calculation should be adjusted once WACC is updated and finalized in the rate application.
A46: 3 Account 1576 is cleared by including the total balance in the deferral and variance account rate rider calculation.
A47: 4 Net additions are additions net of disposals; Net depreciation is additions to depreciation net of disposals.
A48: 5 Differences due to the adoption of MIFRS are to be shown separately in Account 1575 in Appendix 2-EA as Accounts 1575 and 1576 cannot be used interchangably.

Sheet Hidden_REG Invest. (hidden)
A1: Utility Name | B1: EB Number | C1: Test Year | D1: Bridge Year | E1: Last Rebasing Year | F1: Renewable Generation Connection Investment Summary | G1: Year | H1: Amount
A2: ='LDC Info'!$E$14 -> Ottawa River Power Corporation | B2: =EBNUMBER -> EB-2021-0052 | C2: =TestYear -> 2022 | D2: =BridgeYear -> 2021 | E2: =RebaseYear -> 2016 | F2: REI Investments_A_Total Capital Costs | G2: ='App.2-FA Proposed REG Invest.'!$C$31 -> 2017 | H2: ='App.2-FA Proposed REG Invest.'!C62 -> 0
A3: ='LDC Info'!$E$14 -> Ottawa River Power Corporation | B3: EB-2021-0052 | C3: 2022 | D3: 2021 | E3: 2016 | F3: REI Investments_A_Total OM&A Start-Up | G3: ='App.2-FA Proposed REG Invest.'!$C$31 -> 2017 | H3: ='App.2-FA Proposed REG Invest.'!$C63 -> 0
A4: ='LDC Info'!$E$14 -> Ottawa River Power Corporation | B4: EB-2021-0052 | C4: 2022 | D4: 2021 | E4: 2016 | F4: REI Investments_A_Total OM&A Ongoing | G4: ='App.2-FA Proposed REG Invest.'!$C$31 -> 2017 | H4: ='App.2-FA Proposed REG Invest.'!$C64 -> 0
A5: ='LDC Info'!$E$14 -> Ottawa River Power Corporation | B5: EB-2021-0052 | C5: 2022 | D5: 2021 | E5: 2016 | F5: REI Investments_A_Total Capital Costs | G5: ='App.2-FA Proposed REG Invest.'!$D$31 -> 2018 | H5: ='App.2-FA Proposed REG Invest.'!D62 -> 0
A6: ='LDC Info'!$E$14 -> Ottawa River Power Corporation | B6: EB-2021-0052 | C6: 2022 | D6: 2021 | E6: 2016 | F6: REI Investments_A_Total OM&A Start-Up | G6: ='App.2-FA Proposed REG Invest.'!$D$31 -> 2018 | H6: ='App.2-FA Proposed REG Invest.'!D63 -> 0
A7: ='LDC Info'!$E$14 -> Ottawa River Power Corporation | B7: EB-2021-0052 | C7: 2022 | D7: 2021 | E7: 2016 | F7: REI Investments_A_Total OM&A Ongoing | G7: ='App.2-FA Proposed REG Invest.'!$D$31 -> 2018 | H7: ='App.2-FA Proposed REG Invest.'!D64 -> 0
A8: ='LDC Info'!$E$14 -> Ottawa River Power Corporation | B8: EB-2021-0052 | C8: 2022 | D8: 2021 | E8: 2016 | F8: REI Investments_A_Total Capital Costs | G8: ='App.2-FA Proposed REG Invest.'!$E$31 -> 2019 | H8: ='App.2-FA Proposed REG Invest.'!E62 -> 0
A9: ='LDC Info'!$E$14 -> Ottawa River Power Corporation | B9: EB-2021-0052 | C9: 2022 | D9: 2021 | E9: 2016 | F9: REI Investments_A_Total OM&A Start-Up | G9: ='App.2-FA Proposed REG Invest.'!$E$31 -> 2019 | H9: ='App.2-FA Proposed REG Invest.'!E63 -> 0
A10: ='LDC Info'!$E$14 -> Ottawa River Power Corporation | B10: EB-2021-0052 | C10: 2022 | D10: 2021 | E10: 2016 | F10: REI Investments_A_Total OM&A Ongoing | G10: ='App.2-FA Proposed REG Invest.'!$E$31 -> 2019 | H10: ='App.2-FA Proposed REG Invest.'!E64 -> 0
A11: ='LDC Info'!$E$14 -> Ottawa River Power Corporation | B11: EB-2021-0052 | C11: 2022 | D11: 2021 | E11: 2016 | F11: REI Investments_A_Total Capital Costs | G11: ='App.2-FA Proposed REG Invest.'!$F$31 -> 2020 | H11: ='App.2-FA Proposed REG Invest.'!F62 -> 0
A12: ='LDC Info'!$E$14 -> Ottawa River Power Corporation | B12: EB-2021-0052 | C12: 2022 | D12: 2021 | E12: 2016 | F12: REI Investments_A_Total OM&A Start-Up | G12: ='App.2-FA Proposed REG Invest.'!$F$31 -> 2020 | H12: ='App.2-FA Proposed REG Invest.'!F63 -> 0
A13: ='LDC Info'!$E$14 -> Ottawa River Power Corporation | B13: EB-2021-0052 | C13: 2022 | D13: 2021 | E13: 2016 | F13: REI Investments_A_Total OM&A Ongoing | G13: ='App.2-FA Proposed REG Invest.'!$F$31 -> 2020 | H13: ='App.2-FA Proposed REG Invest.'!F64 -> 0
A14: ='LDC Info'!$E$14 -> Ottawa River Power Corporation | B14: EB-2021-0052 | C14: 2022 | D14: 2021 | E14: 2016 | F14: REI Investments_A_Total Capital Costs | G14: ='App.2-FA Proposed REG Invest.'!$G$31 -> 2021 | H14: ='App.2-FA Proposed REG Invest.'!G62 -> 0
A15: ='LDC Info'!$E$14 -> Ottawa River Power Corporation | B15: EB-2021-0052 | C15: 2022 | D15: 2021 | E15: 2016 | F15: REI Investments_A_Total OM&A Start-Up | G15: ='App.2-FA Proposed REG Invest.'!$G$31 -> 2021 | H15: ='App.2-FA Proposed REG Invest.'!G63 -> 0
A16: ='LDC Info'!$E$14 -> Ottawa River Power Corporation | B16: EB-2021-0052 | C16: 2022 | D16: 2021 | E16: 2016 | F16: REI Investments_A_Total OM&A Ongoing | G16: ='App.2-FA Proposed REG Invest.'!$G$31 -> 2021 | H16: ='App.2-FA Proposed REG Invest.'!G64 -> 0
A17: ='LDC Info'!$E$14 -> Ottawa River Power Corporation | B17: EB-2021-0052 | C17: 2022 | D17: 2021 | E17: 2016 | F17: REI Investments_A_Total Capital Costs | G17: ='App.2-FA Proposed REG Invest.'!$H$31 -> 2022 | H17: ='App.2-FA Proposed REG Invest.'!H62 -> 0
A18: ='LDC Info'!$E$14 -> Ottawa River Power Corporation | B18: EB-2021-0052 | C18: 2022 | D18: 2021 | E18: 2016 | F18: REI Investments_A_Total OM&A Start-Up | G18: ='App.2-FA Proposed REG Invest.'!$H$31 -> 2022 | H18: ='App.2-FA Proposed REG Invest.'!H63 -> 0
A19: ='LDC Info'!$E$14 -> Ottawa River Power Corporation | B19: EB-2021-0052 | C19: 2022 | D19: 2021 | E19: 2016 | F19: REI Investments_A_Total OM&A Ongoing | G19: ='App.2-FA Proposed REG Invest.'!$H$31 -> 2022 | H19: ='App.2-FA Proposed REG Invest.'!H64 -> 0
A20: ='LDC Info'!$E$14 -> Ottawa River Power Corporation | B20: EB-2021-0052 | C20: 2022 | D20: 2021 | E20: 2016 | F20: REI Investments_A_Total Capital Costs | G20: ='App.2-FA Proposed REG Invest.'!$I$31 -> 2023 | H20: ='App.2-FA Proposed REG Invest.'!I62 -> 0
A21: ='LDC Info'!$E$14 -> Ottawa River Power Corporation | B21: EB-2021-0052 | C21: 2022 | D21: 2021 | E21: 2016 | F21: REI Investments_A_Total OM&A Start-Up | G21: ='App.2-FA Proposed REG Invest.'!$I$31 -> 2023 | H21: ='App.2-FA Proposed REG Invest.'!I63 -> 0
A22: ='LDC Info'!$E$14 -> Ottawa River Power Corporation | B22: EB-2021-0052 | C22: 2022 | D22: 2021 | E22: 2016 | F22: REI Investments_A_Total OM&A Ongoing | G22: ='App.2-FA Proposed REG Invest.'!$I$31 -> 2023 | H22: ='App.2-FA Proposed REG Invest.'!I64 -> 0
A23: ='LDC Info'!$E$14 -> Ottawa River Power Corporation | B23: EB-2021-0052 | C23: 2022 | D23: 2021 | E23: 2016 | F23: REI Investments_A_Total Capital Costs | G23: ='App.2-FA Proposed REG Invest.'!$J$31 -> 2024 | H23: ='App.2-FA Proposed REG Invest.'!J62 -> 0
A24: ='LDC Info'!$E$14 -> Ottawa River Power Corporation | B24: EB-2021-0052 | C24: 2022 | D24: 2021 | E24: 2016 | F24: REI Investments_A_Total OM&A Start-Up | G24: ='App.2-FA Proposed REG Invest.'!$J$31 -> 2024 | H24: ='App.2-FA Proposed REG Invest.'!J63 -> 0
A25: ='LDC Info'!$E$14 -> Ottawa River Power Corporation | B25: EB-2021-0052 | C25: 2022 | D25: 2021 | E25: 2016 | F25: REI Investments_A_Total OM&A Ongoing | G25: ='App.2-FA Proposed REG Invest.'!$J$31 -> 2024 | H25: ='App.2-FA Proposed REG Invest.'!J64 -> 0
A26: ='LDC Info'!$E$14 -> Ottawa River Power Corporation | B26: EB-2021-0052 | C26: 2022 | D26: 2021 | E26: 2016 | F26: REI Investments_A_Total Capital Costs | G26: ='App.2-FA Proposed REG Invest.'!$K$31 -> 2025 | H26: ='App.2-FA Proposed REG Invest.'!K62 -> 0
A27: ='LDC Info'!$E$14 -> Ottawa River Power Corporation | B27: EB-2021-0052 | C27: 2022 | D27: 2021 | E27: 2016 | F27: REI Investments_A_Total OM&A Start-Up | G27: ='App.2-FA Proposed REG Invest.'!$K$31 -> 2025 | H27: ='App.2-FA Proposed REG Invest.'!K63 -> 0
A28: ='LDC Info'!$E$14 -> Ottawa River Power Corporation | B28: EB-2021-0052 | C28: 2022 | D28: 2021 | E28: 2016 | F28: REI Investments_A_Total OM&A Ongoing | G28: ='App.2-FA Proposed REG Invest.'!$K$31 -> 2025 | H28: ='App.2-FA Proposed REG Invest.'!K64 -> 0
A29: ='LDC Info'!$E$14 -> Ottawa River Power Corporation | B29: EB-2021-0052 | C29: 2022 | D29: 2021 | E29: 2016 | F29: REI Investments_A_Total Capital Costs | G29: ='App.2-FA Proposed REG Invest.'!$L$31 -> 2026 | H29: ='App.2-FA Proposed REG Invest.'!L62 -> 0
A30: ='LDC Info'!$E$14 -> Ottawa River Power Corporation | B30: EB-2021-0052 | C30: 2022 | D30: 2021 | E30: 2016 | F30: REI Investments_A_Total OM&A Start-Up | G30: ='App.2-FA Proposed REG Invest.'!$L$31 -> 2026 | H30: ='App.2-FA Proposed REG Invest.'!L63 -> 0
A31: ='LDC Info'!$E$14 -> Ottawa River Power Corporation | B31: EB-2021-0052 | C31: 2022 | D31: 2021 | E31: 2016 | F31: REI Investments_A_Total OM&A Ongoing | G31: ='App.2-FA Proposed REG Invest.'!$L$31 -> 2026 | H31: ='App.2-FA Proposed REG Invest.'!L64 -> 0
A32: ='LDC Info'!$E$14 -> Ottawa River Power Corporation | B32: EB-2021-0052 | C32: 2022 | D32: 2021 | E32: 2016 | F32: Expansion Investments_B_Total Capital Costs | G32: ='App.2-FA Proposed REG Invest.'!$C$31 -> 2017 | H32: ='App.2-FA Proposed REG Invest.'!C99 -> 0
A33: ='LDC Info'!$E$14 -> Ottawa River Power Corporation | B33: EB-2021-0052 | C33: 2022 | D33: 2021 | E33: 2016 | F33: Expansion Investments_B_Total OM&A Start-Up | G33: ='App.2-FA Proposed REG Invest.'!$C$31 -> 2017 | H33: ='App.2-FA Proposed REG Invest.'!C100 -> 0
A34: ='LDC Info'!$E$14 -> Ottawa River Power Corporation | B34: EB-2021-0052 | C34: 2022 | D34: 2021 | E34: 2016 | F34: Expansion Investments_B_Total OM&A Ongoing | G34: ='App.2-FA Proposed REG Invest.'!$C$31 -> 2017 | H34: ='App.2-FA Proposed REG Invest.'!C101 -> 0
A35: ='LDC Info'!$E$14 -> Ottawa River Power Corporation | B35: EB-2021-0052 | C35: 2022 | D35: 2021 | E35: 2016 | F35: Expansion Investments_B_Total Capital Costs | G35: ='App.2-FA Proposed REG Invest.'!$D$31 -> 2018 | H35: ='App.2-FA Proposed REG Invest.'!D99 -> 0
A36: ='LDC Info'!$E$14 -> Ottawa River Power Corporation | B36: EB-2021-0052 | C36: 2022 | D36: 2021 | E36: 2016 | F36: Expansion Investments_B_Total OM&A Start-Up | G36: ='App.2-FA Proposed REG Invest.'!$D$31 -> 2018 | H36: ='App.2-FA Proposed REG Invest.'!D100 -> 0
A37: ='LDC Info'!$E$14 -> Ottawa River Power Corporation | B37: EB-2021-0052 | C37: 2022 | D37: 2021 | E37: 2016 | F37: Expansion Investments_B_Total OM&A Ongoing | G37: ='App.2-FA Proposed REG Invest.'!$D$31 -> 2018 | H37: ='App.2-FA Proposed REG Invest.'!D101 -> 0
A38: ='LDC Info'!$E$14 -> Ottawa River Power Corporation | B38: EB-2021-0052 | C38: 2022 | D38: 2021 | E38: 2016 | F38: Expansion Investments_B_Total Capital Costs | G38: ='App.2-FA Proposed REG Invest.'!$E$31 -> 2019 | H38: ='App.2-FA Proposed REG Invest.'!E99 -> 0
A39: ='LDC Info'!$E$14 -> Ottawa River Power Corporation | B39: EB-2021-0052 | C39: 2022 | D39: 2021 | E39: 2016 | F39: Expansion Investments_B_Total OM&A Start-Up | G39: ='App.2-FA Proposed REG Invest.'!$E$31 -> 2019 | H39: ='App.2-FA Proposed REG Invest.'!E100 -> 0
A40: ='LDC Info'!$E$14 -> Ottawa River Power Corporation | B40: EB-2021-0052 | C40: 2022 | D40: 2021 | E40: 2016 | F40: Expansion Investments_B_Total OM&A Ongoing | G40: ='App.2-FA Proposed REG Invest.'!$E$31 -> 2019 | H40: ='App.2-FA Proposed REG Invest.'!E101 -> 0
A41: ='LDC Info'!$E$14 -> Ottawa River Power Corporation | B41: EB-2021-0052 | C41: 2022 | D41: 2021 | E41: 2016 | F41: Expansion Investments_B_Total Capital Costs | G41: ='App.2-FA Proposed REG Invest.'!$F$31 -> 2020 | H41: ='App.2-FA Proposed REG Invest.'!F99 -> 0
A42: ='LDC Info'!$E$14 -> Ottawa River Power Corporation | B42: EB-2021-0052 | C42: 2022 | D42: 2021 | E42: 2016 | F42: Expansion Investments_B_Total OM&A Start-Up | G42: ='App.2-FA Proposed REG Invest.'!$F$31 -> 2020 | H42: ='App.2-FA Proposed REG Invest.'!F100 -> 0
A43: ='LDC Info'!$E$14 -> Ottawa River Power Corporation | B43: EB-2021-0052 | C43: 2022 | D43: 2021 | E43: 2016 | F43: Expansion Investments_B_Total OM&A Ongoing | G43: ='App.2-FA Proposed REG Invest.'!$F$31 -> 2020 | H43: ='App.2-FA Proposed REG Invest.'!F101 -> 0
A44: ='LDC Info'!$E$14 -> Ottawa River Power Corporation | B44: EB-2021-0052 | C44: 2022 | D44: 2021 | E44: 2016 | F44: Expansion Investments_B_Total Capital Costs | G44: ='App.2-FA Proposed REG Invest.'!$G$31 -> 2021 | H44: ='App.2-FA Proposed REG Invest.'!G99 -> 0
A45: ='LDC Info'!$E$14 -> Ottawa River Power Corporation | B45: EB-2021-0052 | C45: 2022 | D45: 2021 | E45: 2016 | F45: Expansion Investments_B_Total OM&A Start-Up | G45: ='App.2-FA Proposed REG Invest.'!$G$31 -> 2021 | H45: ='App.2-FA Proposed REG Invest.'!G100 -> 0
A46: ='LDC Info'!$E$14 -> Ottawa River Power Corporation | B46: EB-2021-0052 | C46: 2022 | D46: 2021 | E46: 2016 | F46: Expansion Investments_B_Total OM&A Ongoing | G46: ='App.2-FA Proposed REG Invest.'!$G$31 -> 2021 | H46: ='App.2-FA Proposed REG Invest.'!G101 -> 0
A47: ='LDC Info'!$E$14 -> Ottawa River Power Corporation | B47: EB-2021-0052 | C47: 2022 | D47: 2021 | E47: 2016 | F47: Expansion Investments_B_Total Capital Costs | G47: ='App.2-FA Proposed REG Invest.'!$H$31 -> 2022 | H47: ='App.2-FA Proposed REG Invest.'!H99 -> 0
A48: ='LDC Info'!$E$14 -> Ottawa River Power Corporation | B48: EB-2021-0052 | C48: 2022 | D48: 2021 | E48: 2016 | F48: Expansion Investments_B_Total OM&A Start-Up | G48: ='App.2-FA Proposed REG Invest.'!$H$31 -> 2022 | H48: ='App.2-FA Proposed REG Invest.'!H100 -> 0
A49: ='LDC Info'!$E$14 -> Ottawa River Power Corporation | B49: EB-2021-0052 | C49: 2022 | D49: 2021 | E49: 2016 | F49: Expansion Investments_B_Total OM&A Ongoing | G49: ='App.2-FA Proposed REG Invest.'!$H$31 -> 2022 | H49: ='App.2-FA Proposed REG Invest.'!H101 -> 0
A50: ='LDC Info'!$E$14 -> Ottawa River Power Corporation | B50: EB-2021-0052 | C50: 2022 | D50: 2021 | E50: 2016 | F50: Expansion Investments_B_Total Capital Costs | G50: ='App.2-FA Proposed REG Invest.'!$I$31 -> 2023 | H50: ='App.2-FA Proposed REG Invest.'!I99 -> 0
A51: ='LDC Info'!$E$14 -> Ottawa River Power Corporation | B51: EB-2021-0052 | C51: 2022 | D51: 2021 | E51: 2016 | F51: Expansion Investments_B_Total OM&A Start-Up | G51: ='App.2-FA Proposed REG Invest.'!$I$31 -> 2023 | H51: ='App.2-FA Proposed REG Invest.'!I100 -> 0
A52: ='LDC Info'!$E$14 -> Ottawa River Power Corporation | B52: EB-2021-0052 | C52: 2022 | D52: 2021 | E52: 2016 | F52: Expansion Investments_B_Total OM&A Ongoing | G52: ='App.2-FA Proposed REG Invest.'!$I$31 -> 2023 | H52: ='App.2-FA Proposed REG Invest.'!I101 -> 0
A53: ='LDC Info'!$E$14 -> Ottawa River Power Corporation | B53: EB-2021-0052 | C53: 2022 | D53: 2021 | E53: 2016 | F53: Expansion Investments_B_Total Capital Costs | G53: ='App.2-FA Proposed REG Invest.'!$J$31 -> 2024 | H53: ='App.2-FA Proposed REG Invest.'!J99 -> 0
A54: ='LDC Info'!$E$14 -> Ottawa River Power Corporation | B54: EB-2021-0052 | C54: 2022 | D54: 2021 | E54: 2016 | F54: Expansion Investments_B_Total OM&A Start-Up | G54: ='App.2-FA Proposed REG Invest.'!$J$31 -> 2024 | H54: ='App.2-FA Proposed REG Invest.'!J100 -> 0
A55: ='LDC Info'!$E$14 -> Ottawa River Power Corporation | B55: EB-2021-0052 | C55: 2022 | D55: 2021 | E55: 2016 | F55: Expansion Investments_B_Total OM&A Ongoing | G55: ='App.2-FA Proposed REG Invest.'!$J$31 -> 2024 | H55: ='App.2-FA Proposed REG Invest.'!J101 -> 0
A56: ='LDC Info'!$E$14 -> Ottawa River Power Corporation | B56: EB-2021-0052 | C56: 2022 | D56: 2021 | E56: 2016 | F56: Expansion Investments_B_Total Capital Costs | G56: ='App.2-FA Proposed REG Invest.'!$K$31 -> 2025 | H56: ='App.2-FA Proposed REG Invest.'!K99 -> 0
A57: ='LDC Info'!$E$14 -> Ottawa River Power Corporation | B57: EB-2021-0052 | C57: 2022 | D57: 2021 | E57: 2016 | F57: Expansion Investments_B_Total OM&A Start-Up | G57: ='App.2-FA Proposed REG Invest.'!$K$31 -> 2025 | H57: ='App.2-FA Proposed REG Invest.'!K100 -> 0
A58: ='LDC Info'!$E$14 -> Ottawa River Power Corporation | B58: EB-2021-0052 | C58: 2022 | D58: 2021 | E58: 2016 | F58: Expansion Investments_B_Total OM&A Ongoing | G58: ='App.2-FA Proposed REG Invest.'!$K$31 -> 2025 | H58: ='App.2-FA Proposed REG Invest.'!K101 -> 0
A59: ='LDC Info'!$E$14 -> Ottawa River Power Corporation | B59: EB-2021-0052 | C59: 2022 | D59: 2021 | E59: 2016 | F59: Expansion Investments_B_Total Capital Costs | G59: ='App.2-FA Proposed REG Invest.'!$L$31 -> 2026 | H59: ='App.2-FA Proposed REG Invest.'!L99 -> 0
A60: ='LDC Info'!$E$14 -> Ottawa River Power Corporation | B60: EB-2021-0052 | C60: 2022 | D60: 2021 | E60: 2016 | F60: Expansion Investments_B_Total OM&A Start-Up | G60: ='App.2-FA Proposed REG Invest.'!$L$31 -> 2026 | H60: ='App.2-FA Proposed REG Invest.'!L100 -> 0
A61: ='LDC Info'!$E$14 -> Ottawa River Power Corporation | B61: EB-2021-0052 | C61: 2022 | D61: 2021 | E61: 2016 | F61: Expansion Investments_B_Total OM&A Ongoing | G61: ='App.2-FA Proposed REG Invest.'!$L$31 -> 2026 | H61: ='App.2-FA Proposed REG Invest.'!L101 -> 0

Sheet Hidden_REG Improvement (hidden)
A1: Utility Name | B1: EB Number | C1: Test Year | D1: Bridge Year | E1: Last Rebasing Year | F1: Renewable Generation Connection Direct Benefits/Provincial Amount Renewable Enabling Improvement Investments | G1: Year | H1: Amount
A2: ='LDC Info'!$E$14 -> Ottawa River Power Corporation | B2: =EBNUMBER -> EB-2021-0052 | C2: =TestYear -> 2022 | D2: =BridgeYear -> 2021 | E2: =RebaseYear -> 2016 | F2: Provincial Rate Protection | G2: ='App.2-FB Calc of REG Improvemnt'!D17 -> 2017 | H2: ='App.2-FB Calc of REG Improvemnt'!F$44 -> 0
A3: ='LDC Info'!$E$14 -> Ottawa River Power Corporation | B3: EB-2021-0052 | C3: 2022 | D3: 2021 | E3: 2016 | F3: Provincial Rate Protection | G3: ='App.2-FB Calc of REG Improvemnt'!G17 -> 2018 | H3: ='App.2-FB Calc of REG Improvemnt'!I$44 -> 0
A4: ='LDC Info'!$E$14 -> Ottawa River Power Corporation | B4: EB-2021-0052 | C4: 2022 | D4: 2021 | E4: 2016 | F4: Provincial Rate Protection | G4: ='App.2-FB Calc of REG Improvemnt'!J17 -> 2019 | H4: ='App.2-FB Calc of REG Improvemnt'!L$44 -> 0
A5: ='LDC Info'!$E$14 -> Ottawa River Power Corporation | B5: EB-2021-0052 | C5: 2022 | D5: 2021 | E5: 2016 | F5: Provincial Rate Protection | G5: ='App.2-FB Calc of REG Improvemnt'!M17 -> 2020 | H5: ='App.2-FB Calc of REG Improvemnt'!O$44 -> 0
A6: ='LDC Info'!$E$14 -> Ottawa River Power Corporation | B6: EB-2021-0052 | C6: 2022 | D6: 2021 | E6: 2016 | F6: Provincial Rate Protection | G6: ='App.2-FB Calc of REG Improvemnt'!P17 -> 2021 | H6: ='App.2-FB Calc of REG Improvemnt'!R$44 -> 0
A7: ='LDC Info'!$E$14 -> Ottawa River Power Corporation | B7: EB-2021-0052 | C7: 2022 | D7: 2021 | E7: 2016 | F7: Provincial Rate Protection | G7: ='App.2-FB Calc of REG Improvemnt'!S17 -> 2022 | H7: ='App.2-FB Calc of REG Improvemnt'!U$44 -> 0
A8: ='LDC Info'!$E$14 -> Ottawa River Power Corporation | B8: EB-2021-0052 | C8: 2022 | D8: 2021 | E8: 2016 | F8: Provincial Rate Protection | G8: ='App.2-FB Calc of REG Improvemnt'!V17 -> 2023 | H8: ='App.2-FB Calc of REG Improvemnt'!X$44 -> 0
A9: ='LDC Info'!$E$14 -> Ottawa River Power Corporation | B9: EB-2021-0052 | C9: 2022 | D9: 2021 | E9: 2016 | F9: Provincial Rate Protection | G9: ='App.2-FB Calc of REG Improvemnt'!Y17 -> 2024 | H9: ='App.2-FB Calc of REG Improvemnt'!AA$44 -> 0
A10: ='LDC Info'!$E$14 -> Ottawa River Power Corporation | B10: EB-2021-0052 | C10: 2022 | D10: 2021 | E10: 2016 | F10: Provincial Rate Protection | G10: ='App.2-FB Calc of REG Improvemnt'!AB17 -> 2025 | H10: ='App.2-FB Calc of REG Improvemnt'!AD$44 -> 0
A11: ='LDC Info'!$E$14 -> Ottawa River Power Corporation | B11: EB-2021-0052 | C11: 2022 | D11: 2021 | E11: 2016 | F11: Provincial Rate Protection | G11: ='App.2-FB Calc of REG Improvemnt'!AE17 -> 2026 | H11: ='App.2-FB Calc of REG Improvemnt'!AG$44 -> 0

Sheet Hidden_REG Expansion (hidden)
A1: Utility Name | B1: EB Number | C1: Test Year | D1: Bridge Year | E1: Last Rebasing Year | F1: Calculation of Renewable Generation Connection Direct Benefits/Provincial Amount Renewable Expansion Investments | G1: Year | H1: Amount
A2: ='LDC Info'!$E$14 -> Ottawa River Power Corporation | B2: =EBNUMBER -> EB-2021-0052 | C2: =TestYear -> 2022 | D2: =BridgeYear -> 2021 | E2: =RebaseYear -> 2016 | F2: Provincial Rate Protection | G2: ='App.2-FC Calc of REG Expansion'!D$17 -> 2017 | H2: ='App.2-FC Calc of REG Expansion'!F$44 -> 0
A3: ='LDC Info'!$E$14 -> Ottawa River Power Corporation | B3: EB-2021-0052 | C3: 2022 | D3: 2021 | E3: 2016 | F3: Provincial Rate Protection | G3: ='App.2-FC Calc of REG Expansion'!G$17 -> 2018 | H3: ='App.2-FC Calc of REG Expansion'!I$44 -> 0
A4: ='LDC Info'!$E$14 -> Ottawa River Power Corporation | B4: EB-2021-0052 | C4: 2022 | D4: 2021 | E4: 2016 | F4: Provincial Rate Protection | G4: ='App.2-FC Calc of REG Expansion'!J$17 -> 2019 | H4: ='App.2-FC Calc of REG Expansion'!L$44 -> 0
A5: ='LDC Info'!$E$14 -> Ottawa River Power Corporation | B5: EB-2021-0052 | C5: 2022 | D5: 2021 | E5: 2016 | F5: Provincial Rate Protection | G5: ='App.2-FC Calc of REG Expansion'!M$17 -> 2020 | H5: ='App.2-FC Calc of REG Expansion'!O$44 -> 0
A6: ='LDC Info'!$E$14 -> Ottawa River Power Corporation | B6: EB-2021-0052 | C6: 2022 | D6: 2021 | E6: 2016 | F6: Provincial Rate Protection | G6: ='App.2-FC Calc of REG Expansion'!P$17 -> 2021 | H6: ='App.2-FC Calc of REG Expansion'!R$44 -> 0
A7: ='LDC Info'!$E$14 -> Ottawa River Power Corporation | B7: EB-2021-0052 | C7: 2022 | D7: 2021 | E7: 2016 | F7: Provincial Rate Protection | G7: ='App.2-FC Calc of REG Expansion'!S$17 -> 2022 | H7: ='App.2-FC Calc of REG Expansion'!U$44 -> 0
A8: ='LDC Info'!$E$14 -> Ottawa River Power Corporation | B8: EB-2021-0052 | C8: 2022 | D8: 2021 | E8: 2016 | F8: Provincial Rate Protection | G8: ='App.2-FC Calc of REG Expansion'!V$17 -> 2023 | H8: ='App.2-FC Calc of REG Expansion'!X$44 -> 0
A9: ='LDC Info'!$E$14 -> Ottawa River Power Corporation | B9: EB-2021-0052 | C9: 2022 | D9: 2021 | E9: 2016 | F9: Provincial Rate Protection | G9: ='App.2-FC Calc of REG Expansion'!Y$17 -> 2024 | H9: ='App.2-FC Calc of REG Expansion'!AA$44 -> 0
A10: ='LDC Info'!$E$14 -> Ottawa River Power Corporation | B10: EB-2021-0052 | C10: 2022 | D10: 2021 | E10: 2016 | F10: Provincial Rate Protection | G10: ='App.2-FC Calc of REG Expansion'!AB$17 -> 2025 | H10: ='App.2-FC Calc of REG Expansion'!AD$44 -> 0
A11: ='LDC Info'!$E$14 -> Ottawa River Power Corporation | B11: EB-2021-0052 | C11: 2022 | D11: 2021 | E11: 2016 | F11: Provincial Rate Protection | G11: ='App.2-FC Calc of REG Expansion'!AE$17 -> 2026 | H11: ='App.2-FC Calc of REG Expansion'!AG$44 -> 0

Sheet App.2-FA Proposed REG Invest.
K1: File Number: | L1: 0
K2: Exhibit:
K3: Tab:
A4: TO BE UPDATED AT DRAFT RATE ORDER STAGE | K4: Schedule:
K5: Page:
K7: Date:
A9: Appendix 2-FA
A10: Renewable Generation Connection Investment Summary (past investments or over the future rate setting period)
A12: Enter the details of the Renewable Generation Connection projects as described in the appropriate section of the Filing Requirements.
A13: All costs entered on this page will be transferred to the appropriate cells in the appendices that follow.
A14: For Part A, Renewable Enabling Improvements (REI), these amounts will be transferred to Appendix 2 - FB
A15: For Part B, Expansions, these amounts will be transferred to Appendix 2 - FC
A17: If there are more than five projects proposed to be in-service in a certain year, please amend the tables below and ensure that the formulae for the Total Amounts in any given rate year are updated.
A18: Based on the current methodology and allocation, amounts allocated represent 6% for REI Connection Investments and 17% for Expansion Investments. (EB-2009-0349, 6-10-2010, p. 15, note 9)
A19: Ensure that OM&A costs below are not included in Recoverable OM&A (App. 2-JA)
A20: There are two scenarios described below. Separate sets of spreadsheets (2-FA, 2-FB, 2-FC) should be submited for each scenario as required.
A21: Scenario 1: | B21: Past Investments with No Recovery. The distributor has made investments in the past (during the IRM Years), but has not received approval for these projects and therefore did not receive
B22: revenue from the IESO under Regulation 330/09 and did not receive ratepayer revenue for the direct benefit portion of the investment.
B23: The WCA percentage, debt percentages, interest rates, kWh, tax rates, amortization period, CCA Class and percentage should correspond to the distributor's last Cost of Service approval.
B24: The Direct Benefit portion of the calculated Revenue Requirement for each year should be summed and can be applied for recovery from the distributor's ratepayers through a rate rider.
B25: The Provincial Recovery portion of the calculated Revenue Requirement for each year should be summed and can be applied for recovery from the IESO through a separate order.
A27: Scenario 2: | B27: Investments in the Test Year and Beyond. Distributor plans to make investments in 2022 and/or beyond. These investments should be added to 2-FA in the appropriate year.
B28: The WCA percentage, debt percentages, interest rates, kWh, tax rates, amortization period, CCA Class and percentage should correspond to the distributor's current application.
A30: Part A | H30: Test Year
A31: REI Investments (Direct Benefit at 6%) | C31: =D31-1 -> 2017 | D31: =E31-1 -> 2018 | E31: =F31-1 -> 2019 | F31: =G31-1 -> 2020 | G31: =H31-1 -> 2021 | H31: ='LDC Info'!$E$24 -> 2022 | I31: =H31+1 -> 2023 | J31: =I31+1 -> 2024 | K31: =J31+1 -> 2025 | L31: =K31+1 -> 2026
A32: Project 1
A33: Name: REI Connection Project
A34: Capital Costs | C34: 0 | D34: 0 | E34: 0 | F34: 0 | G34: 0 | H34: 0 | I34: 0 | J34: 0 | K34: 0 | L34: 0
A35: Incremental OM&A (Start-Up) | C35: 0 | D35: 0 | E35: 0 | F35: 0 | G35: 0 | H35: 0 | I35: 0 | J35: 0 | K35: 0 | L35: 0
A36: Incremental OM&A (Ongoing) | C36: 0 | D36: 0 | E36: 0 | F36: 0 | G36: 0 | H36: 0 | I36: 0 | J36: 0 | K36: 0 | L36: 0
A38: Project 2
A39: Name: REI Connection Project
A40: Capital Costs | C40: 0 | D40: 0 | E40: 0 | F40: 0 | G40: 0 | H40: 0 | I40: 0 | J40: 0 | K40: 0 | L40: 0
A41: Incremental OM&A (Start-Up) | C41: 0 | D41: 0 | E41: 0 | F41: 0 | G41: 0 | H41: 0 | I41: 0 | J41: 0 | K41: 0 | L41: 0
A42: Incremental OM&A (Ongoing) | C42: 0 | D42: 0 | E42: 0 | F42: 0 | G42: 0 | H42: 0 | I42: 0 | J42: 0 | K42: 0 | L42: 0
A44: Project 3
A45: Name: REI Connection Project
A46: Capital Costs | C46: 0 | D46: 0 | E46: 0 | F46: 0 | G46: 0 | H46: 0 | I46: 0 | J46: 0 | K46: 0 | L46: 0
A47: Incremental OM&A (Start-Up) | C47: 0 | D47: 0 | E47: 0 | F47: 0 | G47: 0 | H47: 0 | I47: 0 | J47: 0 | K47: 0 | L47: 0
A48: Incremental OM&A (Ongoing) | C48: 0 | D48: 0 | E48: 0 | F48: 0 | G48: 0 | H48: 0 | I48: 0 | J48: 0 | K48: 0 | L48: 0
A50: Project 4
A51: Name: REI Connection Project
A52: Capital Costs | C52: 0 | D52: 0 | E52: 0 | F52: 0 | G52: 0 | H52: 0 | I52: 0 | J52: 0 | K52: 0 | L52: 0
A53: Incremental OM&A (Start-Up) | C53: 0 | D53: 0 | E53: 0 | F53: 0 | G53: 0 | H53: 0 | I53: 0 | J53: 0 | K53: 0 | L53: 0
A54: Incremental OM&A (Ongoing) | C54: 0 | D54: 0 | E54: 0 | F54: 0 | G54: 0 | H54: 0 | I54: 0 | J54: 0 | K54: 0 | L54: 0
A56: Project 5
A57: Name: REI Connection Project
A58: Capital Costs | C58: 0 | D58: 0 | E58: 0 | F58: 0 | G58: 0 | H58: 0 | I58: 0 | J58: 0 | K58: 0 | L58: 0
A59: Incremental OM&A (Start-Up) | C59: 0 | D59: 0 | E59: 0 | F59: 0 | G59: 0 | H59: 0 | I59: 0 | J59: 0 | K59: 0 | L59: 0
A60: Incremental OM&A (Ongoing) | C60: 0 | D60: 0 | E60: 0 | F60: 0 | G60: 0 | H60: 0 | I60: 0 | J60: 0 | K60: 0 | L60: 0
A62: Total Capital Costs | C62: =SUM(C58,C52,C46,C40,C34) -> 0 | D62: 0 | E62: 0 | F62: 0 | G62: 0 | H62: 0 | I62: 0 | J62: 0 | K62: 0 | L62: 0
A63: Total Incremental OM&A (Start-Up) | C63: 0 | D63: 0 | E63: 0 | F63: 0 | G63: 0 | H63: 0 | I63: 0 | J63: 0 | K63: 0 | L63: 0
A64: Total Incremental OM&A (Ongoing) | C64: 0 | D64: 0 | E64: 0 | F64: 0 | G64: 0 | H64: 0 | I64: 0 | J64: 0 | K64: 0 | L64: 0
A67: Part B | H67: Test Year
A68: Expansion Investments (Direct Benefit at 17%) | C68: =D68-1 -> 2017 | D68: =E68-1 -> 2018 | E68: =F68-1 -> 2019 | F68: =G68-1 -> 2020 | G68: =H68-1 -> 2021 | H68: =H31 -> 2022 | I68: =H68+1 -> 2023 | J68: =I68+1 -> 2024 | K68: =J68+1 -> 2025 | L68: =K68+1 -> 2026
A69: Project 1
A70: Name: Expansion Connection Project
A71: Capital Costs | C71: 0 | D71: 0 | E71: 0 | F71: 0 | G71: 0 | H71: 0 | I71: 0 | J71: 0 | K71: 0 | L71: 0
A72: Incremental OM&A (Start-Up) | C72: 0 | D72: 0 | E72: 0 | F72: 0 | G72: 0 | H72: 0 | I72: 0 | J72: 0 | K72: 0 | L72: 0
A73: Incremental OM&A (Ongoing) | C73: 0 | D73: 0 | E73: 0 | F73: 0 | G73: 0 | H73: 0 | I73: 0 | J73: 0 | K73: 0 | L73: 0
A75: Project 2
A76: Name: Expansion Connection Project
A77: Capital Costs | C77: 0 | D77: 0 | E77: 0 | F77: 0 | G77: 0 | H77: 0 | I77: 0 | J77: 0 | K77: 0 | L77: 0
A78: Incremental OM&A (Start-Up) | C78: 0 | D78: 0 | E78: 0 | F78: 0 | G78: 0 | H78: 0 | I78: 0 | J78: 0 | K78: 0 | L78: 0
A79: Incremental OM&A (Ongoing) | C79: 0 | D79: 0 | E79: 0 | F79: 0 | G79: 0 | H79: 0 | I79: 0 | J79: 0 | K79: 0 | L79: 0
A81: Project 3
A82: Name: Expansion Connection Project
A83: Capital Costs | C83: 0 | D83: 0 | E83: 0 | F83: 0 | G83: 0 | H83: 0 | I83: 0 | J83: 0 | K83: 0 | L83: 0
A84: Incremental OM&A (Start-Up) | C84: 0 | D84: 0 | E84: 0 | F84: 0 | G84: 0 | H84: 0 | I84: 0 | J84: 0 | K84: 0 | L84: 0
A85: Incremental OM&A (Ongoing) | C85: 0 | D85: 0 | E85: 0 | F85: 0 | G85: 0 | H85: 0 | I85: 0 | J85: 0 | K85: 0 | L85: 0
A87: Project 4
A88: Name: Expansion Connection Project
A89: Capital Costs | C89: 0 | D89: 0 | E89: 0 | F89: 0 | G89: 0 | H89: 0 | I89: 0 | J89: 0 | K89: 0 | L89: 0
A90: Incremental OM&A (Start-Up) | C90: 0 | D90: 0 | E90: 0 | F90: 0 | G90: 0 | H90: 0 | I90: 0 | J90: 0 | K90: 0 | L90: 0
A91: Incremental OM&A (Ongoing) | C91: 0 | D91: 0 | E91: 0 | F91: 0 | G91: 0 | H91: 0 | I91: 0 | J91: 0 | K91: 0 | L91: 0
A93: Project 5
A94: Name: Expansion Connection Project
A95: Capital Costs | C95: 0 | D95: 0 | E95: 0 | F95: 0 | G95: 0 | H95: 0 | I95: 0 | J95: 0 | K95: 0 | L95: 0
A96: Incremental OM&A (Start-Up) | C96: 0 | D96: 0 | E96: 0 | F96: 0 | G96: 0 | H96: 0 | I96: 0 | J96: 0 | K96: 0 | L96: 0
A97: Incremental OM&A (Ongoing) | C97: 0 | D97: 0 | E97: 0 | F97: 0 | G97: 0 | H97: 0 | I97: 0 | J97: 0 | K97: 0 | L97: 0
A99: Total Capital Costs | C99: =SUM(C95,C89,C83,C77,C71) -> 0 | D99: 0 | E99: 0 | F99: 0 | G99: 0 | H99: 0 | I99: 0 | J99: 0 | K99: 0 | L99: 0
A100: Total Incremental OM&A (Start-Up) | C100: 0 | D100: 0 | E100: 0 | F100: 0 | G100: 0 | H100: 0 | I100: 0 | J100: 0 | K100: 0 | L100: 0
A101: Total Incremental OM&A (Ongoing) | C101: 0 | D101: 0 | E101: 0 | F101: 0 | G101: 0 | H101: 0 | I101: 0 | J101: 0 | K101: 0 | L101: 0

Sheet App.2-FB Calc of REG Improvemnt
R1: File Number: | S1: 0
R2: Exhibit:
R3: Tab:
A4: TO BE UPDATED AT DRAFT RATE ORDER STAGE | R4: Schedule:
R5: Page:
R7: Date:
A9: Appendix 2-FB
A10: Calculation of Renewable Generation Connection Direct Benefits/Provincial Amount: Renewable Enabling Improvement Investments
A12: This table will calculate the distributor/provincial shares of the investments entered in Part A of Appendix 2-FA.
A13: Enter values in green shaded cells: WCA percentage, debt percentages, interest rates, kWh, tax rates, amortization period, CCA Class and percentage.
A14: For historical investments, enter these variables that were approved in your last cost of service test year. For 2021 and beyond, enter variables as in the application.
A15: Rate Riders related to the direct benefit portion of the renewable investments are not calculated for the Test Year as these assets and costs are already in the distributor's rate base/revenue requirement.
S16: Test Year
D17: =G17-1 -> 2017 | G17: =J17-1 -> 2018 | J17: =M17-1 -> 2019 | M17: =P17-1 -> 2020 | P17: =S17-1 -> 2021 | S17: ='LDC Info'!$E$24 -> 2022 | V17: =S17+1 -> 2023 | Y17: =V17+1 -> 2024 | Z17: 2016 | AB17: =Y17+1 -> 2025 | AE17: =AB17+1 -> 2026 | AH17: =AE17+1 -> 2027
E18: Direct Benefit | F18: Provincial | H18: Direct Benefit | I18: Provincial | K18: Direct Benefit | L18: Provincial | N18: Direct Benefit | O18: Provincial | Q18: Direct Benefit | R18: Provincial | T18: Direct Benefit | U18: Provincial | W18: Direct Benefit | X18: Provincial | Z18: Direct Benefit | AA18: Provincial | AC18: Direct Benefit | AD18: Provincial | AF18: Direct Benefit | AG18: Provincial | AI18: Direct Benefit | AJ18: Provincial
D19: Total | E19: 0.06 | F19: 0.94 | G19: Total | H19: 0.06 | I19: 0.94 | J19: Total | K19: 0.06 | L19: 0.94 | M19: Total | N19: 0.06 | O19: 0.94 | P19: Total | Q19: 0.06 | R19: 0.94 | S19: Total | T19: 0.06 | U19: 0.94 | V19: Total | W19: 0.06 | X19: 0.94 | Y19: Total | Z19: 0.06 | AA19: 0.94 | AB19: Total | AC19: 0.06 | AD19: 0.94 | AE19: Total | AF19: 0.06 | AG19: 0.94 | AH19: Total | AI19: 0.06 | AJ19: 0.94
A20: Net Fixed Assets (average) | D20: =E83 -> 0 | E20: =D20*E19 -> 0 | F20: =D20*F19 -> 0 | G20: =F83 -> 0 | H20: =G20*H19 -> 0 | I20: =G20*I19 -> 0 | J20: =G83 -> 0 | K20: =J20*K19 -> 0 | L20: =J20*L19 -> 0 | M20: =H83 -> 0 | N20: =M20*N19 -> 0 | O20: =M20*O19 -> 0 | P20: =I83 -> 0 | Q20: =P20*Q19 -> 0 | R20: =P20*R19 -> 0 | S20: =J83 -> 0 | T20: =S20*T19 -> 0 | U20: =S20*U19 -> 0 | V20: =K83 -> 0 | W20: =V20*W19 -> 0 | X20: =V20*X19 -> 0 | Y20: =L83 -> 0 | Z20: =Y20*Z19 -> 0 | AA20: =Y20*AA19 -> 0 | AB20: =M83 -> 0 | AC20: =AB20*AC19 -> 0 | AD20: =AB20*AD19 -> 0 | AE20: =N83 -> 0 | AF20: =AE20*AF19 -> 0 | AG20: =AE20*AG19 -> 0 | AH20: =O83 -> 0 | AI20: =AH20*AI19 -> 0 | AJ20: =AH20*AJ19 -> 0
A21: Incremental OM&A (on-going, N/A for Provincial Recovery) | D21: 0 | E21: =D21*E19 -> 0 | F21: =D21*F19 -> 0 | G21: 0 | H21: =G21*H19 -> 0 | I21: =G21*I19 -> 0 | J21: 0 | K21: =J21*K19 -> 0 | L21: =J21*L19 -> 0 | M21: 0 | N21: =M21*N19 -> 0 | O21: =M21*O19 -> 0 | P21: 0 | Q21: =P21*Q19 -> 0 | R21: =P21*R19 -> 0 | S21: 0 | T21: =S21*T19 -> 0 | U21: =S21*U19 -> 0 | V21: 0 | W21: =V21*W19 -> 0 | X21: =V21*X19 -> 0 | Y21: 0 | Z21: =Y21*Z19 -> 0 | AA21: =Y21*AA19 -> 0 | AB21: 0 | AC21: =AB21*AC19 -> 0 | AD21: =AB21*AD19 -> 0 | AE21: 0 | AF21: =AE21*AF19 -> 0 | AG21: =AE21*AG19 -> 0 | AH21: 0 | AI21: =AH21*AI19 -> 0 | AJ21: =AH21*AJ19 -> 0
A22: Incremental OM&A (start-up, applicable for Provincial Recovery) | D22: 0 | E22: =D22*E19 -> 0 | F22: =D22*F19 -> 0 | G22: 0 | H22: =G22*H19 -> 0 | I22: =G22*I19 -> 0 | J22: 0 | K22: =J22*K19 -> 0 | L22: =J22*L19 -> 0 | M22: 0 | N22: =M22*N19 -> 0 | O22: =M22*O19 -> 0 | P22: 0 | Q22: =P22*Q19 -> 0 | R22: =P22*R19 -> 0 | S22: 0 | T22: =S22*T19 -> 0 | U22: =S22*U19 -> 0 | V22: 0 | W22: =V22*W19 -> 0 | X22: =V22*X19 -> 0 | Y22: 0 | Z22: =Y22*Z19 -> 0 | AA22: =Y22*AA19 -> 0 | AB22: 0 | AC22: =AB22*AC19 -> 0 | AD22: =AB22*AD19 -> 0 | AE22: 0 | AF22: =AE22*AF19 -> 0 | AG22: =AE22*AG19 -> 0 | AH22: 0 | AI22: =AH22*AI19 -> 0 | AJ22: =AH22*AJ19 -> 0
A23: Rebasing Year vs. Test Year | B23: ='LDC Info'!E28 -> 2016 | C23: ='LDC Info'!E24 -> 2022
A24: Allowance for Working Capital (enter rate) | E24: =IF(AND(D$17>=$B$23, D$17<$C$23),(E21+E22)*$B$24,(E21+E22)*$C$24) -> 0 | F24: =IF(AND(D$17>=$B$23, D$17<$C$23),(F22)*$B$24,(F22)*$C$24) -> 0 | H24: =IF(AND(G$17>=$B$23, G$17<$C$23),(H21+H22)*$B$24,(H21+H22)*$C$24) -> 0 | I24: =IF(AND(G$17>=$B$23, G$17<$C$23),(I22)*$B$24,(I22)*$C$24) -> 0 | K24: =IF(AND(J$17>=$B$23, J$17<$C$23),(K21+K22)*$B$24,(K21+K22)*$C$24) -> 0 | L24: =IF(AND(J$17>=$B$23, J$17<$C$23),(L22)*$B$24,(L22)*$C$24) -> 0 | N24: =IF(AND(M$17>=$B$23, M$17<$C$23),(N21+N22)*$B$24,(N21+N22)*$C$24) -> 0 | O24: =IF(AND(M$17>=$B$23, M$17<$C$23),(O22)*$B$24,(O22)*$C$24) -> 0 | Q24: =IF(AND(P$17>=$B$23, P$17<$C$23),(Q21+Q22)*$B$24,(Q21+Q22)*$C$24) -> 0 | R24: =IF(AND(P$17>=$B$23, P$17<$C$23),(R22)*$B$24,(R22)*$C$24) -> 0 | T24: =IF(AND(S$17>=$B$23, S$17<$C$23),(T21+T22)*$B$24,(T21+T22)*$C$24) -> 0 | U24: =IF(AND(S$17>=$B$23, S$17<$C$23),(U22)*$B$24,(U22)*$C$24) -> 0 | W24: =IF(AND(V$17>=$B$23, V$17<$C$23),(W21+W22)*$B$24,(W21+W22)*$C$24) -> 0 | X24: =IF(AND(V$17>=$B$23, V$17<$C$23),(X22)*$B$24,(X22)*$C$24) -> 0 | Z24: =IF(AND(Y$17>=$B$23, Y$17<$C$23),(Z21+Z22)*$B$24,(Z21+Z22)*$C$24) -> 0 | AA24: =IF(AND(Y$17>=$B$23, Y$17<$C$23),(AA22)*$B$24,(AA22)*$C$24) -> 0 | AC24: =IF(AND(AB$17>=$B$23, AB$17<$C$23),(AC21+AC22)*$B$24,(AC21+AC22)*$C$24) -> 0 | AD24: =IF(AND(AB$17>=$B$23, AB$17<$C$23),(AD22)*$B$24,(AD22)*$C$24) -> 0 | AF24: =IF(AND(AE$17>=$B$23, AE$17<$C$23),(AF21+AF22)*$B$24,(AF21+AF22)*$C$24) -> 0 | AG24: =IF(AND(AE$17>=$B$23, AE$17<$C$23),(AG22)*$B$24,(AG22)*$C$24) -> 0 | AI24: =IF(AND(AH$17>=$B$23, AH$17<$C$23),(AI21+AI22)*$B$24,(AI21+AI22)*$C$24) -> 0 | AJ24: =IF(AND(AH$17>=$B$23, AH$17<$C$23),(AJ22)*$B$24,(AJ22)*$C$24) -> 0
A25: Rate Base | E25: =SUM(E20+E24) -> 0 | F25: =SUM(F20+F24) -> 0 | H25: =SUM(H20+H24) -> 0 | I25: =SUM(I20+I24) -> 0 | K25: =SUM(K20+K24) -> 0 | L25: =SUM(L20+L24) -> 0 | N25: =SUM(N20+N24) -> 0 | O25: =SUM(O20+O24) -> 0 | Q25: =SUM(Q20+Q24) -> 0 | R25: =SUM(R20+R24) -> 0 | T25: =SUM(T20+T24) -> 0 | U25: =SUM(U20+U24) -> 0 | W25: =SUM(W20+W24) -> 0 | X25: =SUM(X20+X24) -> 0 | Z25: =SUM(Z20+Z24) -> 0 | AA25: =SUM(AA20+AA24) -> 0 | AC25: =SUM(AC20+AC24) -> 0 | AD25: =SUM(AD20+AD24) -> 0 | AF25: =SUM(AF20+AF24) -> 0 | AG25: =SUM(AG20+AG24) -> 0 | AI25: =SUM(AI20+AI24) -> 0 | AJ25: =SUM(AJ20+AJ24) -> 0
A27: Rebasing Year vs. Test Year | B27: =B23 -> 2016 | C27: =C23 -> 2022
A28: Deemed ST Debt | B28: 0.04 | C28: 0.04 | E28: =E25*$B$28 -> 0 | F28: =F25*$B$28 -> 0 | H28: =H25*$B$28 -> 0 | I28: =I25*$B$28 -> 0 | K28: =K25*$B$28 -> 0 | L28: =L25*$B$28 -> 0 | N28: =N25*$B$28 -> 0 | O28: =O25*$B$28 -> 0 | Q28: =Q25*$B$28 -> 0 | R28: =R25*$B$28 -> 0 | T28: =T25*$C$28 -> 0 | U28: =U25*$C$28 -> 0 | W28: =W25*$C$28 -> 0 | X28: =X25*$C$28 -> 0 | Z28: =Z25*$C$28 -> 0 | AA28: =AA25*$C$28 -> 0 | AC28: =AC25*$C$28 -> 0 | AD28: =AD25*$C$28 -> 0 | AF28: =AF25*$C$28 -> 0 | AG28: =AG25*$C$28 -> 0 | AI28: =AI25*$C$28 -> 0 | AJ28: =AJ25*$C$28 -> 0
A29: Deemed LT Debt | B29: 0.56 | C29: 0.56 | E29: =E25*$B$29 -> 0 | F29: =F25*$B$29 -> 0 | H29: =H25*$B$29 -> 0 | I29: =I25*$B$29 -> 0 | K29: =K25*$B$29 -> 0 | L29: =L25*$B$29 -> 0 | N29: =N25*$B$29 -> 0 | O29: =O25*$B$29 -> 0 | Q29: =Q25*$B$29 -> 0 | R29: =R25*$B$29 -> 0 | T29: =T25*$C$29 -> 0 | U29: =U25*$C$29 -> 0 | W29: =W25*$C$29 -> 0 | X29: =X25*$C$29 -> 0 | Z29: =Z25*$C$29 -> 0 | AA29: =AA25*$C$29 -> 0 | AC29: =AC25*$C$29 -> 0 | AD29: =AD25*$C$29 -> 0 | AF29: =AF25*$C$29 -> 0 | AG29: =AG25*$C$29 -> 0 | AI29: =AI25*$C$29 -> 0 | AJ29: =AJ25*$C$29 -> 0
A30: Deemed Equity | B30: 0.4 | C30: 0.4 | E30: =E25*$B$30 -> 0 | F30: =F25*$B$30 -> 0 | H30: =H25*$B$30 -> 0 | I30: =I25*$B$30 -> 0 | K30: =K25*$B$30 -> 0 | L30: =L25*$B$30 -> 0 | N30: =N25*$B$30 -> 0 | O30: =O25*$B$30 -> 0 | Q30: =Q25*$B$30 -> 0 | R30: =R25*$B$30 -> 0 | T30: =T25*$C$30 -> 0 | U30: =U25*$C$30 -> 0 | W30: =W25*$C$30 -> 0 | X30: =X25*$C$30 -> 0 | Z30: =Z25*$C$30 -> 0 | AA30: =AA25*$C$30 -> 0 | AC30: =AC25*$C$30 -> 0 | AD30: =AD25*$C$30 -> 0 | AF30: =AF25*$C$30 -> 0 | AG30: =AG25*$C$30 -> 0 | AI30: =AI25*$C$30 -> 0 | AJ30: =AJ25*$C$30 -> 0
A32: ST Interest (enter rate) | E32: =E28*$B32 -> 0 | F32: 0 | H32: 0 | I32: 0 | K32: 0 | L32: 0 | N32: 0 | O32: 0 | Q32: 0 | R32: 0 | T32: =T28*$C32 -> 0 | U32: 0 | W32: =W28*$C32 -> 0 | X32: 0 | Z32: =Z28*$C32 -> 0 | AA32: 0 | AC32: =AC28*$C32 -> 0 | AD32: 0 | AF32: =AF28*$C32 -> 0 | AG32: 0 | AI32: =AI28*$C32 -> 0 | AJ32: 0
A33: LT Interest (enter rate) | E33: 0 | F33: 0 | H33: 0 | I33: 0 | K33: 0 | L33: 0 | N33: 0 | O33: 0 | Q33: 0 | R33: 0 | T33: 0 | U33: 0 | W33: 0 | X33: 0 | Z33: 0 | AA33: 0 | AC33: 0 | AD33: 0 | AF33: 0 | AG33: 0 | AI33: =AI29*$C33 -> 0 | AJ33: 0
A34: Return on Equity (enter rate) | E34: 0 | F34: 0 | H34: 0 | I34: 0 | K34: 0 | L34: 0 | N34: 0 | O34: 0 | Q34: 0 | R34: 0 | T34: 0 | U34: 0 | W34: 0 | X34: 0 | Z34: 0 | AA34: 0 | AC34: 0 | AD34: 0 | AF34: 0 | AG34: 0 | AI34: =AI30*$C34 -> 0 | AJ34: 0
A35: Cost of Capital Total | E35: =SUM(E32:E34) -> 0 | F35: =SUM(F32:F34) -> 0 | H35: =SUM(H32:H34) -> 0 | I35: =SUM(I32:I34) -> 0 | K35: =SUM(K32:K34) -> 0 | L35: =SUM(L32:L34) -> 0 | N35: =SUM(N32:N34) -> 0 | O35: =SUM(O32:O34) -> 0 | Q35: =SUM(Q32:Q34) -> 0 | R35: =SUM(R32:R34) -> 0 | T35: =SUM(T32:T34) -> 0 | U35: =SUM(U32:U34) -> 0 | W35: =SUM(W32:W34) -> 0 | X35: =SUM(X32:X34) -> 0 | Z35: =SUM(Z32:Z34) -> 0 | AA35: =SUM(AA32:AA34) -> 0 | AC35: =SUM(AC32:AC34) -> 0 | AD35: =SUM(AD32:AD34) -> 0 | AF35: =SUM(AF32:AF34) -> 0 | AG35: =SUM(AG32:AG34) -> 0 | AI35: =SUM(AI32:AI34) -> 0 | AJ35: =SUM(AJ32:AJ34) -> 0
A37: OM&A | E37: =E21+E22 -> 0 | F37: =F22 -> 0 | H37: =H21+H22 -> 0 | I37: =I22 -> 0 | K37: =K21+K22 -> 0 | L37: =L22 -> 0 | N37: =N21+N22 -> 0 | O37: =O22 -> 0 | Q37: =Q21+Q22 -> 0 | R37: =R22 -> 0 | T37: =T21+T22 -> 0 | U37: =U22 -> 0 | W37: =W21+W22 -> 0 | X37: =X22 -> 0 | Z37: =Z21+Z22 -> 0 | AA37: =AA22 -> 0 | AC37: =AC21+AC22 -> 0 | AD37: =AD22 -> 0 | AF37: =AF21+AF22 -> 0 | AG37: =AG22 -> 0 | AI37: =AI21+AI22 -> 0 | AJ37: =AJ22 -> 0
A38: Amortization | D38: =+E77+E78 -> 0 | E38: =D38*E$19 -> 0 | F38: =D38*F$19 -> 0 | G38: =+F77+F78 -> 0 | H38: =G38*H$19 -> 0 | I38: =G38*I$19 -> 0 | J38: =+G77+G78 -> 0 | K38: =J38*K$19 -> 0 | L38: =J38*L$19 -> 0 | M38: =+H77+H78 -> 0 | N38: =M38*N$19 -> 0 | O38: =M38*O$19 -> 0 | P38: =+I77+I78 -> 0 | Q38: =P38*Q$19 -> 0 | R38: =P38*R$19 -> 0 | S38: =+J77+J78 -> 0 | T38: =S38*T$19 -> 0 | U38: =S38*U$19 -> 0 | V38: =+K77+K78 -> 0 | W38: =V38*W$19 -> 0 | X38: =V38*X$19 -> 0 | Y38: =+L77+L78 -> 0 | Z38: =Y38*Z$19 -> 0 | AA38: =Y38*AA$19 -> 0 | AB38: =+M77+M78 -> 0 | AC38: =AB38*AC$19 -> 0 | AD38: =AB38*AD$19 -> 0 | AE38: =+N77+N78 -> 0 | AF38: =AE38*AF$19 -> 0 | AG38: =AE38*AG$19 -> 0 | AH38: =+O77+O78 -> 0 | AI38: =AH38*AI$19 -> 0 | AJ38: =AH38*AJ$19 -> 0
A39: Grossed-up PILs | E39: =+E66 -> 0 | F39: =+F66 -> 0 | H39: =+H66 -> 0 | I39: =+I66 -> 0 | K39: =+K66 -> 0 | L39: =+L66 -> 0 | N39: =+N66 -> 0 | O39: =+O66 -> 0 | Q39: =+Q66 -> 0 | R39: =+R66 -> 0 | T39: =+T66 -> 0 | U39: =+U66 -> 0 | W39: =+W66 -> 0 | X39: =+X66 -> 0 | Z39: =+Z66 -> 0 | AA39: =+AA66 -> 0 | AC39: =+AC66 -> 0 | AD39: =+AD66 -> 0 | AF39: =+AF66 -> 0 | AG39: =+AG66 -> 0 | AI39: =+AI66 -> 0 | AJ39: =+AJ66 -> 0
A41: Revenue Requirement | E41: =SUM(E35:E39) -> 0 | F41: =SUM(F35:F39) -> 0 | H41: =SUM(H35:H39) -> 0 | I41: 0 | K41: =SUM(K35:K39) -> 0 | L41: 0 | N41: =SUM(N35:N39) -> 0 | O41: 0 | Q41: =SUM(Q35:Q39) -> 0 | R41: 0 | T41: =SUM(T35:T39) -> 0 | U41: 0 | W41: =SUM(W35:W39) -> 0 | X41: 0 | Z41: =SUM(Z35:Z39) -> 0 | AA41: 0 | AC41: =SUM(AC35:AC39) -> 0 | AD41: 0 | AF41: =SUM(AF35:AF39) -> 0 | AG41: 0 | AI41: =SUM(AI35:AI39) -> 0 | AJ41: 0
A44: Provincial Rate Protection | F44: =F41 -> 0 | I44: =I41 -> 0 | L44: =L41 -> 0 | O44: =O41 -> 0 | R44: =R41 -> 0 | U44: =U41 -> 0 | X44: =X41 -> 0 | AA44: =AA41 -> 0 | AD44: =AD41 -> 0 | AG44: =AG41 -> 0 | AJ44: =AJ41 -> 0
A46: Monthly Amount Paid by IESO | F46: =F44/12 -> 0 | I46: =I44/12 -> 0 | L46: =L44/12 -> 0 | O46: =O44/12 -> 0 | R46: =R44/12 -> 0 | U46: =U44/12 -> 0 | X46: =X44/12 -> 0 | AA46: =AA44/12 -> 0 | AD46: =AD44/12 -> 0 | AG46: =AG44/12 -> 0 | AJ46: =AJ44/12 -> 0
A48: Note 1: The distributor should follow the regulatory accounting set out in the Accounting Procedure Handbook Guidance FAQs issued in March 2015. Q10 of the APH FAQs states that: “For approved eligible investments as defined under O.Reg. 330/09 under the OEB Act, a variance account will continue to be used for the purpose of recording variances between the revenue requirement based on actual costs of approved eligible investments and the revenue received from the IESO.” The answer for Q10 provides the accounting guidance for this variance account: “Distributors that have included eligible investments to connect qualifying facilities in their DS plans are to establish the variance Account 1533 Renewable Generation Connection Funding Adder Deferral Account, Sub-account Provincial Rate Protection Payment Variances following OEB approval for investments forecast to enter service beyond the test year for purposes of implementing rate protection pursuant to O.Reg. 330/09. The purpose of this variance account is to track the variance between the distributor’s revenue requirement associated with the portion of the actual capital and/or operating costs that are eligible for rate protection, as incurred by the distributor for eligible renewable enabling and expansion investments, and the rate protection payments collected from the IESO.” The answer further provides the journal entries to record the variances. Distributors should follow the instructions in the answer for recording the journal entries in the variance account 1533.
A50: Note 2: For the Test Year, Costs and Revenues of the Direct Benefit are to be included in the test year applicant Rate Base and Revenues.
A52: PILs Calculation | T52: Test Year
E53: =G17-1 -> 2017 | H53: =G17 -> 2018 | K53: =J17 -> 2019 | N53: =M17 -> 2020 | Q53: =P17 -> 2021 | T53: =S17 -> 2022 | W53: =V17 -> 2023 | Z53: =Y17 -> 2024 | AC53: =AB17 -> 2025 | AF53: =AE17 -> 2026 | AI53: =AH17 -> 2027
A54: Income Tax | E54: Direct Benefit | F54: Provincial | H54: Direct Benefit | I54: Provincial | K54: Direct Benefit | L54: Provincial | N54: Direct Benefit | O54: Provincial | Q54: Direct Benefit | R54: Provincial | T54: Direct Benefit | U54: Provincial | W54: Direct Benefit | X54: Provincial | Z54: Direct Benefit | AA54: Provincial | AC54: Direct Benefit | AD54: Provincial | AF54: Direct Benefit | AG54: Provincial | AI54: Direct Benefit | AJ54: Provincial
AB55: Total | AE55: Total | AH55: Total
A56: Net Income - ROE on Rate Base | E56: =E34 -> 0 | F56: =F34 -> 0 | H56: =H34 -> 0 | I56: =I34 -> 0 | K56: =K34 -> 0 | L56: =L34 -> 0 | N56: =N34 -> 0 | O56: =O34 -> 0 | Q56: =Q34 -> 0 | R56: =R34 -> 0 | T56: =T34 -> 0 | U56: =U34 -> 0 | W56: =W34 -> 0 | X56: =X34 -> 0 | Z56: =Z34 -> 0 | AA56: =AA34 -> 0 | AC56: =AC34 -> 0 | AD56: =AD34 -> 0 | AF56: =AF34 -> 0 | AG56: =AG34 -> 0 | AI56: =AI34 -> 0 | AJ56: =AJ34 -> 0
A57: Amortization (6% DB and 94% P) | E57: =E38 -> 0 | F57: =F38 -> 0 | H57: =H38 -> 0 | I57: =I38 -> 0 | K57: =K38 -> 0 | L57: =L38 -> 0 | N57: =N38 -> 0 | O57: =O38 -> 0 | Q57: =Q38 -> 0 | R57: =R38 -> 0 | T57: =T38 -> 0 | U57: =U38 -> 0 | W57: =W38 -> 0 | X57: =X38 -> 0 | Z57: =Z38 -> 0 | AA57: =AA38 -> 0 | AC57: =AC38 -> 0 | AD57: =AD38 -> 0 | AF57: =AF38 -> 0 | AG57: =AG38 -> 0 | AI57: =AI38 -> 0 | AJ57: =AJ38 -> 0
A58: CCA (6% DB and 94% P) | E58: =-E95*$E$19 -> 0 | F58: =-E95*$F$19 -> 0 | H58: =-F95*$E$19 -> 0 | I58: =-F95*$F$19 -> 0 | K58: =-G95*$E$19 -> 0 | L58: =-G95*$F$19 -> 0 | N58: =-H95*$E$19 -> 0 | O58: =-H95*$F$19 -> 0 | Q58: =-I95*$E$19 -> 0 | R58: =-I95*$F$19 -> 0 | T58: =-J95*$E$19 -> 0 | U58: =-J95*$F$19 -> 0 | W58: =-K95*$E$19 -> 0 | X58: =-K95*$F$19 -> 0 | Z58: =-L95*$E$19 -> 0 | AA58: =-L95*$F$19 -> 0 | AC58: =-M95*$E$19 -> 0 | AD58: =-M95*$F$19 -> 0 | AF58: =-N95*$E$19 -> 0 | AG58: =-N95*$F$19 -> 0 | AI58: =-Q95*$E$19 -> 0 | AJ58: =-Q95*$F$19 -> 0
A59: Taxable income | E59: =SUM(E56:E58) -> 0 | F59: =SUM(F56:F58) -> 0 | H59: =SUM(H56:H58) -> 0 | I59: 0 | K59: =SUM(K56:K58) -> 0 | L59: 0 | N59: =SUM(N56:N58) -> 0 | O59: 0 | Q59: =SUM(Q56:Q58) -> 0 | R59: 0 | T59: =SUM(T56:T58) -> 0 | U59: 0 | W59: =SUM(W56:W58) -> 0 | X59: 0 | Z59: =SUM(Z56:Z58) -> 0 | AA59: =SUM(AA56:AA58) -> 0 | AC59: =SUM(AC56:AC58) -> 0 | AD59: =SUM(AD56:AD58) -> 0 | AF59: =SUM(AF56:AF58) -> 0 | AG59: =SUM(AG56:AG58) -> 0 | AI59: =SUM(AI56:AI58) -> 0 | AJ59: =SUM(AJ56:AJ58) -> 0
B60: =B27 -> 2016 | C60: =C27 -> 2022
A61: Tax Rate (to be entered) | E61: =IF(AND(E$53>=$B$60, E$53<$C$60),$B$61,$C$61) -> 0 | F61: =IF(AND(E$53>=$B$60, E$53<$C$60),$B$61,$C$61) -> 0 | H61: =IF(AND(H$53>=$B$60, H$53<$C$60),$B$61,$C$61) -> 0 | I61: =IF(AND(H$53>=$B$60, H$53<$C$60),$B$61,$C$61) -> 0 | K61: =IF(AND(K$53>=$B$60, K$53<$C$60),$B$61,$C$61) -> 0 | L61: =IF(AND(K$53>=$B$60, K$53<$C$60),$B$61,$C$61) -> 0 | N61: =IF(AND(N$53>=$B$60, N$53<$C$60),$B$61,$C$61) -> 0 | O61: =IF(AND(N$53>=$B$60, N$53<$C$60),$B$61,$C$61) -> 0 | Q61: =IF(AND(Q$53>=$B$60, Q$53<$C$60),$B$61,$C$61) -> 0 | R61: =IF(AND(Q$53>=$B$60, Q$53<$C$60),$B$61,$C$61) -> 0 | T61: =IF(AND(T$53>=$B$60, T$53<$C$60),$B$61,$C$61) -> 0 | U61: =IF(AND(T$53>=$B$60, T$53<$C$60),$B$61,$C$61) -> 0 | W61: =IF(AND(W$53>=$B$60, W$53<$C$60),$B$61,$C$61) -> 0 | X61: =IF(AND(W$53>=$B$60, W$53<$C$60),$B$61,$C$61) -> 0 | Z61: =IF(AND(Z$53>=$B$60, Z$53<$C$60),$B$61,$C$61) -> 0 | AA61: =IF(AND(Z$53>=$B$60, Z$53<$C$60),$B$61,$C$61) -> 0 | AC61: =IF(AND(AC$53>=$B$60, AC$53<$C$60),$B$61,$C$61) -> 0 | AD61: =IF(AND(AC$53>=$B$60, AC$53<$C$60),$B$61,$C$61) -> 0 | AF61: =IF(AND(AF$53>=$B$60, AF$53<$C$60),$B$61,$C$61) -> 0 | AG61: =IF(AND(AF$53>=$B$60, AF$53<$C$60),$B$61,$C$61) -> 0 | AI61: =IF(AND(AI$53>=$B$60, AI$53<$C$60),$B$61,$C$61) -> 0 | AJ61: =IF(AND(AI$53>=$B$60, AI$53<$C$60),$B$61,$C$61) -> 0
A63: Income Taxes Payable | E63: =E59*E61 -> 0 | F63: =F59*F61 -> 0 | H63: =H59*H61 -> 0 | I63: =I59*I61 -> 0 | K63: =K59*K61 -> 0 | L63: =L59*L61 -> 0 | N63: =N59*N61 -> 0 | O63: =O59*O61 -> 0 | Q63: =Q59*Q61 -> 0 | R63: =R59*R61 -> 0 | T63: =T59*T61 -> 0 | U63: =U59*U61 -> 0 | W63: =W59*W61 -> 0 | X63: =X59*X61 -> 0 | Z63: =Z59*Z61 -> 0 | AA63: =AA59*AA61 -> 0 | AC63: =AC59*AC61 -> 0 | AD63: =AD59*AD61 -> 0 | AF63: =AF59*AF61 -> 0 | AG63: =AG59*AG61 -> 0 | AI63: =AI59*AI61 -> 0 | AJ63: =AJ59*AJ61 -> 0
A64: Gross Up
A65: Income Taxes Payable | E65: =E63/(1-E61) -> 0 | F65: =F63/(1-F61) -> 0 | H65: =H63/(1-H61) -> 0 | I65: =I63/(1-I61) -> 0 | K65: =K63/(1-K61) -> 0 | L65: =L63/(1-L61) -> 0 | N65: =N63/(1-N61) -> 0 | O65: =O63/(1-O61) -> 0 | Q65: =Q63/(1-Q61) -> 0 | R65: =R63/(1-R61) -> 0 | T65: =T63/(1-T61) -> 0 | U65: =U63/(1-U61) -> 0 | W65: =W63/(1-W61) -> 0 | X65: =X63/(1-X61) -> 0 | Z65: =Z63/(1-Z61) -> 0 | AA65: =AA63/(1-AA61) -> 0 | AC65: =AC63/(1-AC61) -> 0 | AD65: =AD63/(1-AD61) -> 0 | AF65: =AF63/(1-AF61) -> 0 | AG65: =AG63/(1-AG61) -> 0 | AI65: =AI63/(1-AI61) -> 0 | AJ65: =AJ63/(1-AJ61) -> 0
A66: Grossed Up PILs | E66: =+E65 -> 0 | F66: =+F65 -> 0 | H66: =+H65 -> 0 | I66: =+I65 -> 0 | K66: =+K65 -> 0 | L66: 0 | N66: =+N65 -> 0 | O66: 0 | Q66: =+Q65 -> 0 | R66: 0 | T66: =+T65 -> 0 | U66: 0 | W66: =+W65 -> 0 | X66: 0 | Z66: =+Z65 -> 0 | AA66: 0 | AC66: =+AC65 -> 0 | AD66: 0 | AF66: =+AF65 -> 0 | AG66: 0 | AI66: =+AI65 -> 0 | AJ66: 0
J68: Test Year
E69: =F69-1 -> 2017 | F69: =G69-1 -> 2018 | G69: =H69-1 -> 2019 | H69: =I69-1 -> 2020 | I69: =J69-1 -> 2021 | J69: ='LDC Info'!E24 -> 2022 | K69: =J69+1 -> 2023 | L69: =K69+1 -> 2024 | M69: =L69+1 -> 2025 | N69: =M69+1 -> 2026 | O69: =N69+1 -> 2027
A70: Net Fixed Assets
A71: Enter applicable amortization in years: | B71: 40
A72: Opening Gross Fixed Assets | F72: =E74 -> 0 | G72: 0 | H72: 0 | I72: 0 | J72: 0 | K72: 0 | L72: 0 | M72: 0 | N72: 0 | O72: 0
A73: Capital Additions | E73: ='App.2-FA Proposed REG Invest.'!C62 -> 0 | F73: ='App.2-FA Proposed REG Invest.'!D62 -> 0 | G73: ='App.2-FA Proposed REG Invest.'!E62 -> 0 | H73: ='App.2-FA Proposed REG Invest.'!F62 -> 0 | I73: ='App.2-FA Proposed REG Invest.'!G62 -> 0 | J73: ='App.2-FA Proposed REG Invest.'!H62 -> 0 | K73: ='App.2-FA Proposed REG Invest.'!I62 -> 0 | L73: ='App.2-FA Proposed REG Invest.'!J62 -> 0 | M73: ='App.2-FA Proposed REG Invest.'!K62 -> 0 | N73: ='App.2-FA Proposed REG Invest.'!L62 -> 0 | O73: ='App.2-FA Proposed REG Invest.'!M62 -> 0
A74: Closing Gross Fixed Assets | E74: =SUM(E72:E73) -> 0 | F74: 0 | G74: 0 | H74: 0 | I74: 0 | J74: 0 | K74: 0 | L74: 0 | M74: 0 | N74: 0 | O74: =SUM(O72:O73) -> 0
A76: Opening Accumulated Amortization | F76: =+E79 -> 0 | G76: =+F79 -> 0 | H76: 0 | I76: 0 | J76: 0 | K76: 0 | L76: 0 | M76: 0 | N76: 0 | O76: 0
A77: Current Year Amortization (before additions) | E77: =IF(ISERROR(E72/$B$71), 0, E72/$B$71) -> 0 | F77: =IF(ISERROR(F72/$B$71), 0, F72/$B$71) -> 0 | G77: 0 | H77: 0 | I77: 0 | J77: 0 | K77: 0 | L77: 0 | M77: 0 | N77: 0 | O77: =IF(ISERROR(O72/$B$71), 0, O72/$B$71) -> 0
A78: Capital Additions Amortization (half year) | E78: =E73/$B$71/2 -> 0 | F78: =F73/$B$71/2 -> 0 | G78: 0 | H78: 0 | I78: 0 | J78: 0 | K78: 0 | L78: 0 | M78: 0 | N78: 0 | O78: =O73/$B$71/2 -> 0
A79: Closing Accumulated Amortization | E79: =SUM(E76+E77+E78) -> 0 | F79: 0 | G79: 0 | H79: 0 | I79: 0 | J79: 0 | K79: 0 | L79: 0 | M79: 0 | N79: 0 | O79: =SUM(O76+O77+O78) -> 0
A81: Opening Net Fixed Assets | E81: =E72-E76 -> 0 | F81: 0 | G81: 0 | H81: 0 | I81: 0 | J81: 0 | K81: 0 | L81: 0 | M81: 0 | N81: 0 | O81: =O72-O76 -> 0
A82: Closing Net Fixed Assets | E82: =E74-E79 -> 0 | F82: 0 | G82: 0 | H82: 0 | I82: 0 | J82: 0 | K82: 0 | L82: 0 | M82: 0 | N82: 0 | O82: =O74-O79 -> 0
A83: Average Net Fixed Assets | E83: =SUM(E81:E82)/2 -> 0 | F83: 0 | G83: 0 | H83: 0 | I83: 0 | J83: 0 | K83: 0 | L83: 0 | M83: 0 | N83: 0 | O83: =SUM(O81:O82)/2 -> 0
A85: UCC for PILs Calculation | J85: Test Year
E86: =E69 -> 2017 | F86: =F69 -> 2018 | G86: =G69 -> 2019 | H86: 2020 | I86: 2021 | J86: 2022 | K86: 2023 | L86: 2024 | M86: 2025 | N86: 2026 | O86: =O69 -> 2027
A88: Opening UCC | E88: =E72 -> 0 | F88: =E96 -> 0 | G88: 0 | H88: 0 | I88: 0 | J88: 0 | K88: 0 | L88: 0 | M88: 0 | N88: 0 | O88: 0
A89: Capital Additions | E89: =E73 -> 0 | F89: 0 | G89: 0 | H89: 0 | I89: 0 | J89: 0 | K89: 0 | L89: 0 | M89: 0 | N89: 0 | O89: =O73 -> 0
A90: UCC Before Half Year Rule | E90: =SUM(E88:E89) -> 0 | F90: 0 | G90: 0 | H90: 0 | I90: 0 | J90: 0 | K90: 0 | L90: 0 | M90: 0 | N90: 0 | O90: =SUM(O88:O89) -> 0
A91: Capital Additions (half year) | E91: =E89/2 -> 0 | F91: 0 | G91: 0 | H91: 0 | I91: 0 | J91: 0 | K91: 0 | L91: 0 | M91: 0 | N91: 0 | O91: =O89/2 -> 0
A92: Reduced UCC | E92: =E90-E91 -> 0 | F92: 0 | G92: 0 | H92: 0 | I92: 0 | J92: 0 | K92: 0 | L92: 0 | M92: 0 | N92: 0 | O92: =O90-O91 -> 0
A93: CCA Rate Class (to be entered)
A94: CCA Rate (to be entered)
A95: CCA | E95: =E92*$B$94 -> 0 | F95: =F92*$B$94 -> 0 | G95: 0 | H95: 0 | I95: 0 | J95: 0 | K95: 0 | L95: 0 | M95: 0 | N95: 0 | O95: =O92*$B$94 -> 0
A96: Closing UCC | E96: =E90-E95 -> 0 | F96: 0 | G96: 0 | H96: 0 | I96: 0 | J96: 0 | K96: 0 | L96: 0 | M96: 0 | N96: 0 | O96: =O90-O95 -> 0

Sheet App.2-FC Calc of REG Expansion
R1: File Number: | S1: 0
R2: Exhibit:
R3: Tab:
A4: TO BE UPDATED AT DRAFT RATE ORDER STAGE | R4: Schedule:
R5: Page:
R7: Date:
A9: Appendix 2-FC
A10: Calculation of Renewable Generation Connection Direct Benefits/Provincial Amount: Renewable Expansion Investments
A12: This table will calculate the distributor/provincial shares of the investments entered in Part B of Appendix 2-FA.
A13: Enter values in green shaded cells: WCA percentage, debt percentages, interest rates, kWh, tax rates, amortization period, CCA Class and percentage.
A14: For historical investments, enter these variables that were approved in your last cost of service test year. For 2021 and beyond, enter variables as in the application.
A15: Rate Riders related to the direct benefit portion of the renewable investments are not calculated for the Test Year as these assets and costs are already in the distributor's rate base/revenue requirement.
S16: Test Year
D17: =G17-1 -> 2017 | G17: =J17-1 -> 2018 | J17: =M17-1 -> 2019 | M17: =P17-1 -> 2020 | P17: =S17-1 -> 2021 | S17: ='LDC Info'!$E$24 -> 2022 | V17: =S17+1 -> 2023 | Y17: =V17+1 -> 2024 | Z17: 2016 | AB17: =Y17+1 -> 2025 | AE17: =AB17+1 -> 2026 | AH17: =AE17+1 -> 2027
E18: Direct Benefit | F18: Provincial | H18: Direct Benefit | I18: Provincial | K18: Direct Benefit | L18: Provincial | N18: Direct Benefit | O18: Provincial | Q18: Direct Benefit | R18: Provincial | T18: Direct Benefit | U18: Provincial | W18: Direct Benefit | X18: Provincial | Z18: Direct Benefit | AA18: Provincial | AC18: Direct Benefit | AD18: Provincial | AF18: Direct Benefit | AG18: Provincial | AI18: Direct Benefit | AJ18: Provincial
D19: Total | E19: 0.17 | F19: 0.83 | G19: Total | H19: 0.17 | I19: 0.83 | J19: Total | K19: 0.17 | L19: 0.83 | M19: Total | N19: 0.17 | O19: 0.83 | P19: Total | Q19: 0.17 | R19: 0.83 | S19: Total | T19: 0.17 | U19: 0.83 | V19: Total | W19: 0.17 | X19: 0.83 | Y19: Total | Z19: 0.17 | AA19: 0.83 | AB19: Total | AC19: 0.17 | AD19: 0.83 | AE19: Total | AF19: 0.17 | AG19: 0.83 | AH19: Total | AI19: 0.17 | AJ19: 0.83
A20: Net Fixed Assets (average) | D20: =E83 -> 0 | E20: =D20*E19 -> 0 | F20: =D20*F19 -> 0 | G20: =F83 -> 0 | H20: =G20*H19 -> 0 | I20: =G20*I19 -> 0 | J20: =G83 -> 0 | K20: =J20*K19 -> 0 | L20: =J20*L19 -> 0 | M20: =H83 -> 0 | N20: =M20*N19 -> 0 | O20: =M20*O19 -> 0 | P20: =I83 -> 0 | Q20: =P20*Q19 -> 0 | R20: =P20*R19 -> 0 | S20: =J83 -> 0 | T20: =S20*T19 -> 0 | U20: =S20*U19 -> 0 | V20: =K83 -> 0 | W20: =V20*W19 -> 0 | X20: =V20*X19 -> 0 | Y20: =L83 -> 0 | Z20: =Y20*Z19 -> 0 | AA20: =Y20*AA19 -> 0 | AB20: =M83 -> 0 | AC20: =AB20*AC19 -> 0 | AD20: =AB20*AD19 -> 0 | AE20: =N83 -> 0 | AF20: =AE20*AF19 -> 0 | AG20: =AE20*AG19 -> 0 | AH20: =O83 -> 0 | AI20: =AH20*AI19 -> 0 | AJ20: =AH20*AJ19 -> 0
A21: Incremental OM&A (on-going, N/A for Provincial Recovery) | D21: 0 | E21: =D21*E19 -> 0 | F21: =D21*F19 -> 0 | G21: 0 | H21: =G21*H19 -> 0 | I21: =G21*I19 -> 0 | J21: 0 | K21: =J21*K19 -> 0 | L21: =J21*L19 -> 0 | M21: 0 | N21: =M21*N19 -> 0 | O21: =M21*O19 -> 0 | P21: 0 | Q21: =P21*Q19 -> 0 | R21: =P21*R19 -> 0 | S21: 0 | T21: =S21*T19 -> 0 | U21: =S21*U19 -> 0 | V21: 0 | W21: =V21*W19 -> 0 | X21: =V21*X19 -> 0 | Y21: 0 | Z21: =Y21*Z19 -> 0 | AA21: =Y21*AA19 -> 0 | AB21: 0 | AC21: =AB21*AC19 -> 0 | AD21: =AB21*AD19 -> 0 | AE21: 0 | AF21: =AE21*AF19 -> 0 | AG21: =AE21*AG19 -> 0 | AH21: 0 | AI21: =AH21*AI19 -> 0 | AJ21: =AH21*AJ19 -> 0
A22: Incremental OM&A (start-up, applicable for Provincial Recovery) | D22: 0 | E22: =D22*E19 -> 0 | F22: =D22*F19 -> 0 | G22: 0 | H22: =G22*H19 -> 0 | I22: =G22*I19 -> 0 | J22: 0 | K22: =J22*K19 -> 0 | L22: =J22*L19 -> 0 | M22: 0 | N22: =M22*N19 -> 0 | O22: =M22*O19 -> 0 | P22: 0 | Q22: =P22*Q19 -> 0 | R22: =P22*R19 -> 0 | S22: 0 | T22: =S22*T19 -> 0 | U22: =S22*U19 -> 0 | V22: 0 | W22: =V22*W19 -> 0 | X22: =V22*X19 -> 0 | Y22: 0 | Z22: =Y22*Z19 -> 0 | AA22: =Y22*AA19 -> 0 | AB22: 0 | AC22: =AB22*AC19 -> 0 | AD22: =AB22*AD19 -> 0 | AE22: 0 | AF22: =AE22*AF19 -> 0 | AG22: =AE22*AG19 -> 0 | AH22: 0 | AI22: =AH22*AI19 -> 0 | AJ22: =AH22*AJ19 -> 0
A23: Rebasing Year vs. Test Year | B23: ='LDC Info'!E28 -> 2016 | C23: ='LDC Info'!E24 -> 2022
A24: Allowance for Working Capital (enter rate) | E24: =IF(AND(D$17>=$B$23, D$17<$C$23),(E21+E22)*$B$24,(E21+E22)*$C$24) -> 0 | F24: =IF(AND(D$17>=$B$23, D$17<$C$23),(F22)*$B$24,(F22)*$C$24) -> 0 | H24: =IF(AND(G$17>=$B$23, G$17<$C$23),(H21+H22)*$B$24,(H21+H22)*$C$24) -> 0 | I24: =IF(AND(G$17>=$B$23, G$17<$C$23),(I22)*$B$24,(I22)*$C$24) -> 0 | K24: =IF(AND(J$17>=$B$23, J$17<$C$23),(K21+K22)*$B$24,(K21+K22)*$C$24) -> 0 | L24: =IF(AND(J$17>=$B$23, J$17<$C$23),(L22)*$B$24,(L22)*$C$24) -> 0 | N24: =IF(AND(M$17>=$B$23, M$17<$C$23),(N21+N22)*$B$24,(N21+N22)*$C$24) -> 0 | O24: =IF(AND(M$17>=$B$23, M$17<$C$23),(O22)*$B$24,(O22)*$C$24) -> 0 | Q24: =IF(AND(P$17>=$B$23, P$17<$C$23),(Q21+Q22)*$B$24,(Q21+Q22)*$C$24) -> 0 | R24: =IF(AND(P$17>=$B$23, P$17<$C$23),(R22)*$B$24,(R22)*$C$24) -> 0 | T24: =IF(AND(S$17>=$B$23, S$17<$C$23),(T21+T22)*$B$24,(T21+T22)*$C$24) -> 0 | U24: =IF(AND(S$17>=$B$23, S$17<$C$23),(U22)*$B$24,(U22)*$C$24) -> 0 | W24: =IF(AND(V$17>=$B$23, V$17<$C$23),(W21+W22)*$B$24,(W21+W22)*$C$24) -> 0 | X24: =IF(AND(V$17>=$B$23, V$17<$C$23),(X22)*$B$24,(X22)*$C$24) -> 0 | Z24: =IF(AND(Y$17>=$B$23, Y$17<$C$23),(Z21+Z22)*$B$24,(Z21+Z22)*$C$24) -> 0 | AA24: =IF(AND(Y$17>=$B$23, Y$17<$C$23),(AA22)*$B$24,(AA22)*$C$24) -> 0 | AC24: =IF(AND(AB$17>=$B$23, AB$17<$C$23),(AC21+AC22)*$B$24,(AC21+AC22)*$C$24) -> 0 | AD24: =IF(AND(AB$17>=$B$23, AB$17<$C$23),(AD22)*$B$24,(AD22)*$C$24) -> 0 | AF24: =IF(AND(AE$17>=$B$23, AE$17<$C$23),(AF21+AF22)*$B$24,(AF21+AF22)*$C$24) -> 0 | AG24: =IF(AND(AE$17>=$B$23, AE$17<$C$23),(AG22)*$B$24,(AG22)*$C$24) -> 0 | AI24: =IF(AND(AH$17>=$B$23, AH$17<$C$23),(AI21+AI22)*$B$24,(AI21+AI22)*$C$24) -> 0 | AJ24: =IF(AND(AH$17>=$B$23, AH$17<$C$23),(AJ22)*$B$24,(AJ22)*$C$24) -> 0
A25: Rate Base | E25: =SUM(E20+E24) -> 0 | F25: =SUM(F20+F24) -> 0 | H25: =SUM(H20+H24) -> 0 | I25: =SUM(I20+I24) -> 0 | K25: =SUM(K20+K24) -> 0 | L25: =SUM(L20+L24) -> 0 | N25: =SUM(N20+N24) -> 0 | O25: =SUM(O20+O24) -> 0 | Q25: =SUM(Q20+Q24) -> 0 | R25: =SUM(R20+R24) -> 0 | T25: =SUM(T20+T24) -> 0 | U25: =SUM(U20+U24) -> 0 | W25: =SUM(W20+W24) -> 0 | X25: =SUM(X20+X24) -> 0 | Z25: =SUM(Z20+Z24) -> 0 | AA25: =SUM(AA20+AA24) -> 0 | AC25: =SUM(AC20+AC24) -> 0 | AD25: =SUM(AD20+AD24) -> 0 | AF25: =SUM(AF20+AF24) -> 0 | AG25: =SUM(AG20+AG24) -> 0 | AI25: =SUM(AI20+AI24) -> 0 | AJ25: =SUM(AJ20+AJ24) -> 0
B27: =B23 -> 2016 | C27: =C23 -> 2022
A28: Deemed ST Debt | B28: 0.04 | C28: 0.04 | E28: =E25*$B$28 -> 0 | F28: =F25*$B$28 -> 0 | H28: =H25*$B$28 -> 0 | I28: =I25*$B$28 -> 0 | K28: =K25*$B$28 -> 0 | L28: =L25*$B$28 -> 0 | N28: =N25*$B$28 -> 0 | O28: =O25*$B$28 -> 0 | Q28: =Q25*$B$28 -> 0 | R28: =R25*$B$28 -> 0 | T28: =T25*$C$28 -> 0 | U28: =U25*$C$28 -> 0 | W28: =W25*$C$28 -> 0 | X28: =X25*$C$28 -> 0 | Z28: =Z25*$C$28 -> 0 | AA28: =AA25*$C$28 -> 0 | AC28: =AC25*$C$28 -> 0 | AD28: =AD25*$C$28 -> 0 | AF28: =AF25*$C$28 -> 0 | AG28: =AG25*$C$28 -> 0 | AI28: =AI25*$C$28 -> 0 | AJ28: =AJ25*$C$28 -> 0
A29: Deemed LT Debt | B29: 0.56 | C29: 0.56 | E29: =E25*$B$29 -> 0 | F29: =F25*$B$29 -> 0 | H29: =H25*$B$29 -> 0 | I29: =I25*$B$29 -> 0 | K29: =K25*$B$29 -> 0 | L29: =L25*$B$29 -> 0 | N29: =N25*$B$29 -> 0 | O29: =O25*$B$29 -> 0 | Q29: =Q25*$B$29 -> 0 | R29: =R25*$B$29 -> 0 | T29: =T25*$C$29 -> 0 | U29: =U25*$C$29 -> 0 | W29: =W25*$C$29 -> 0 | X29: =X25*$C$29 -> 0 | Z29: =Z25*$C$29 -> 0 | AA29: =AA25*$C$29 -> 0 | AC29: =AC25*$C$29 -> 0 | AD29: =AD25*$C$29 -> 0 | AF29: =AF25*$C$29 -> 0 | AG29: =AG25*$C$29 -> 0 | AI29: =AI25*$C$29 -> 0 | AJ29: =AJ25*$C$29 -> 0
A30: Deemed Equity | B30: 0.4 | C30: 0.4 | E30: =E25*$B$30 -> 0 | F30: =F25*$B$30 -> 0 | H30: =H25*$B$30 -> 0 | I30: =I25*$B$30 -> 0 | K30: =K25*$B$30 -> 0 | L30: =L25*$B$30 -> 0 | N30: =N25*$B$30 -> 0 | O30: =O25*$B$30 -> 0 | Q30: =Q25*$B$30 -> 0 | R30: =R25*$B$30 -> 0 | T30: =T25*$C$30 -> 0 | U30: =U25*$C$30 -> 0 | W30: =W25*$C$30 -> 0 | X30: =X25*$C$30 -> 0 | Z30: =Z25*$C$30 -> 0 | AA30: =AA25*$C$30 -> 0 | AC30: =AC25*$C$30 -> 0 | AD30: =AD25*$C$30 -> 0 | AF30: =AF25*$C$30 -> 0 | AG30: =AG25*$C$30 -> 0 | AI30: =AI25*$C$30 -> 0 | AJ30: =AJ25*$C$30 -> 0
A32: ST Interest (enter rate) | E32: =E28*$B32 -> 0 | F32: 0 | H32: 0 | I32: 0 | K32: 0 | L32: 0 | N32: 0 | O32: 0 | Q32: 0 | R32: 0 | T32: =T28*$C32 -> 0 | U32: 0 | W32: =W28*$C32 -> 0 | X32: 0 | Z32: =Z28*$C32 -> 0 | AA32: 0 | AC32: =AC28*$C32 -> 0 | AD32: 0 | AF32: =AF28*$C32 -> 0 | AG32: 0 | AI32: =AI28*$C32 -> 0 | AJ32: 0
A33: LT Interest (enter rate) | E33: 0 | F33: 0 | H33: 0 | I33: 0 | K33: 0 | L33: 0 | N33: 0 | O33: 0 | Q33: 0 | R33: 0 | T33: 0 | U33: 0 | W33: 0 | X33: 0 | Z33: 0 | AA33: 0 | AC33: 0 | AD33: 0 | AF33: 0 | AG33: 0 | AI33: =AI29*$C33 -> 0 | AJ33: 0
A34: Return on Equity (enter rate) | E34: 0 | F34: 0 | H34: 0 | I34: 0 | K34: 0 | L34: 0 | N34: 0 | O34: 0 | Q34: 0 | R34: 0 | T34: 0 | U34: 0 | W34: 0 | X34: 0 | Z34: 0 | AA34: 0 | AC34: 0 | AD34: 0 | AF34: 0 | AG34: 0 | AI34: =AI30*$C34 -> 0 | AJ34: 0
A35: Cost of Capital Total | E35: =SUM(E32:E34) -> 0 | F35: =SUM(F32:F34) -> 0 | H35: =SUM(H32:H34) -> 0 | I35: =SUM(I32:I34) -> 0 | K35: =SUM(K32:K34) -> 0 | L35: =SUM(L32:L34) -> 0 | N35: =SUM(N32:N34) -> 0 | O35: =SUM(O32:O34) -> 0 | Q35: =SUM(Q32:Q34) -> 0 | R35: =SUM(R32:R34) -> 0 | T35: =SUM(T32:T34) -> 0 | U35: =SUM(U32:U34) -> 0 | W35: =SUM(W32:W34) -> 0 | X35: =SUM(X32:X34) -> 0 | Z35: =SUM(Z32:Z34) -> 0 | AA35: =SUM(AA32:AA34) -> 0 | AC35: =SUM(AC32:AC34) -> 0 | AD35: =SUM(AD32:AD34) -> 0 | AF35: =SUM(AF32:AF34) -> 0 | AG35: =SUM(AG32:AG34) -> 0 | AI35: =SUM(AI32:AI34) -> 0 | AJ35: =SUM(AJ32:AJ34) -> 0
A37: OM&A | E37: =E21+E22 -> 0 | F37: =F22 -> 0 | H37: =H21+H22 -> 0 | I37: =I22 -> 0 | K37: =K21+K22 -> 0 | L37: =L22 -> 0 | N37: =N21+N22 -> 0 | O37: =O22 -> 0 | Q37: =Q21+Q22 -> 0 | R37: =R22 -> 0 | T37: =T21+T22 -> 0 | U37: =U22 -> 0 | W37: =W21+W22 -> 0 | X37: =X22 -> 0 | Z37: =Z21+Z22 -> 0 | AA37: =AA22 -> 0 | AC37: =AC21+AC22 -> 0 | AD37: =AD22 -> 0 | AF37: =AF21+AF22 -> 0 | AG37: =AG22 -> 0 | AI37: =AI21+AI22 -> 0 | AJ37: =AJ22 -> 0
A38: Amortization | D38: =+E77+E78 -> 0 | E38: =D38*E$19 -> 0 | F38: =D38*F$19 -> 0 | G38: =+F77+F78 -> 0 | H38: =G38*H$19 -> 0 | I38: =G38*I$19 -> 0 | J38: =+G77+G78 -> 0 | K38: =J38*K$19 -> 0 | L38: =J38*L$19 -> 0 | M38: =+H77+H78 -> 0 | N38: =M38*N$19 -> 0 | O38: =M38*O$19 -> 0 | P38: =+I77+I78 -> 0 | Q38: =P38*Q$19 -> 0 | R38: =P38*R$19 -> 0 | S38: =+J77+J78 -> 0 | T38: =S38*T$19 -> 0 | U38: =S38*U$19 -> 0 | V38: =+K77+K78 -> 0 | W38: =V38*W$19 -> 0 | X38: =V38*X$19 -> 0 | Y38: =+L77+L78 -> 0 | Z38: =Y38*Z$19 -> 0 | AA38: =Y38*AA$19 -> 0 | AB38: =+M77+M78 -> 0 | AC38: =AB38*AC$19 -> 0 | AD38: =AB38*AD$19 -> 0 | AE38: =+N77+N78 -> 0 | AF38: =AE38*AF$19 -> 0 | AG38: =AE38*AG$19 -> 0 | AH38: =+O77+O78 -> 0 | AI38: =AH38*AI$19 -> 0 | AJ38: =AH38*AJ$19 -> 0
A39: Grossed-up PILs | E39: =+E66 -> 0 | F39: =+F66 -> 0 | H39: =+H66 -> 0 | I39: =+I66 -> 0 | K39: =+K66 -> 0 | L39: =+L66 -> 0 | N39: =+N66 -> 0 | O39: =+O66 -> 0 | Q39: =+Q66 -> 0 | R39: =+R66 -> 0 | T39: =+T66 -> 0 | U39: =+U66 -> 0 | W39: =+W66 -> 0 | X39: =+X66 -> 0 | Z39: =+Z66 -> 0 | AA39: =+AA66 -> 0 | AC39: =+AC66 -> 0 | AD39: =+AD66 -> 0 | AF39: =+AF66 -> 0 | AG39: =+AG66 -> 0 | AI39: =+AI66 -> 0 | AJ39: =+AJ66 -> 0
A41: Revenue Requirement | E41: =SUM(E35:E39) -> 0 | F41: =SUM(F35:F39) -> 0 | H41: =SUM(H35:H39) -> 0 | I41: 0 | K41: =SUM(K35:K39) -> 0 | L41: 0 | N41: =SUM(N35:N39) -> 0 | O41: 0 | Q41: =SUM(Q35:Q39) -> 0 | R41: 0 | T41: =SUM(T35:T39) -> 0 | U41: 0 | W41: =SUM(W35:W39) -> 0 | X41: 0 | Z41: =SUM(Z35:Z39) -> 0 | AA41: 0 | AC41: =SUM(AC35:AC39) -> 0 | AD41: 0 | AF41: =SUM(AF35:AF39) -> 0 | AG41: 0 | AI41: =SUM(AI35:AI39) -> 0 | AJ41: 0
A44: Provincial Rate Protection | F44: =F41 -> 0 | I44: =I41 -> 0 | L44: =L41 -> 0 | O44: =O41 -> 0 | R44: =R41 -> 0 | U44: =U41 -> 0 | X44: =X41 -> 0 | AA44: =AA41 -> 0 | AD44: =AD41 -> 0 | AG44: =AG41 -> 0 | AJ44: =AJ41 -> 0
A46: Monthly Amount Paid by IESO | F46: =F44/12 -> 0 | I46: =I44/12 -> 0 | L46: =L44/12 -> 0 | O46: =O44/12 -> 0 | R46: =R44/12 -> 0 | U46: =U44/12 -> 0 | X46: =X44/12 -> 0 | AA46: =AA44/12 -> 0 | AD46: =AD44/12 -> 0 | AG46: =AG44/12 -> 0 | AJ46: =AJ44/12 -> 0
A48: Note 1: The distributor should follow the regulatory accounting set out in the Accounting Procedure Handbook Guidance FAQs issued in March 2015. Q10 of the APH FAQs states that: “For approved eligible investments as defined under O.Reg. 330/09 under the OEB Act, a variance account will continue to be used for the purpose of recording variances between the revenue requirement based on actual costs of approved eligible investments and the revenue received from the IESO.” The answer for Q10 provides the accounting guidance for this variance account: “Distributors that have included eligible investments to connect qualifying facilities in their DS plans are to establish the variance Account 1533 Renewable Generation Connection Funding Adder Deferral Account, Sub-account Provincial Rate Protection Payment Variances following OEB approval for investments forecast to enter service beyond the test year for purposes of implementing rate protection pursuant to O.Reg. 330/09. The purpose of this variance account is to track the variance between the distributor’s revenue requirement associated with the portion of the actual capital and/or operating costs that are eligible for rate protection, as incurred by the distributor for eligible renewable enabling and expansion investments, and the rate protection payments collected from the IESO.” The answer further provides the journal entries to record the variances. Distributors should follow the instructions in the answer for recording the journal entries in the variance account 1533.
A50: Note 2: For the Test Year, Costs and Revenues of the Direct Benefit are to be included in the test year applicant Rate Base and Revenues.
A52: PILs Calculation | T52: Test Year
E53: =G17-1 -> 2017 | H53: =G17 -> 2018 | K53: =J17 -> 2019 | N53: =M17 -> 2020 | Q53: =P17 -> 2021 | T53: =S17 -> 2022 | W53: =V17 -> 2023 | Z53: =Y17 -> 2024 | AC53: =AB17 -> 2025 | AF53: =AE17 -> 2026 | AI53: =AH17 -> 2027
A54: Income Tax | E54: Direct Benefit | F54: Provincial | H54: Direct Benefit | I54: Provincial | K54: Direct Benefit | L54: Provincial | N54: Direct Benefit | O54: Provincial | Q54: Direct Benefit | R54: Provincial | T54: Direct Benefit | U54: Provincial | W54: Direct Benefit | X54: Provincial | Z54: Direct Benefit | AA54: Provincial | AC54: Direct Benefit | AD54: Provincial | AF54: Direct Benefit | AG54: Provincial | AI54: Direct Benefit | AJ54: Provincial
AB55: Total | AE55: Total | AH55: Total
A56: Net Income - ROE on Rate Base | E56: =E34 -> 0 | F56: =F34 -> 0 | H56: =H34 -> 0 | I56: =I34 -> 0 | K56: =K34 -> 0 | L56: =L34 -> 0 | N56: =N34 -> 0 | O56: =O34 -> 0 | Q56: =Q34 -> 0 | R56: =R34 -> 0 | T56: =T34 -> 0 | U56: =U34 -> 0 | W56: =W34 -> 0 | X56: =X34 -> 0 | Z56: =Z34 -> 0 | AA56: =AA34 -> 0 | AC56: =AC34 -> 0 | AD56: =AD34 -> 0 | AF56: =AF34 -> 0 | AG56: =AG34 -> 0 | AI56: =AI34 -> 0 | AJ56: =AJ34 -> 0
A57: Amortization (6% DB and 94% P) | E57: =E38 -> 0 | F57: =F38 -> 0 | H57: =H38 -> 0 | I57: =I38 -> 0 | K57: =K38 -> 0 | L57: =L38 -> 0 | N57: =N38 -> 0 | O57: =O38 -> 0 | Q57: =Q38 -> 0 | R57: =R38 -> 0 | T57: =T38 -> 0 | U57: =U38 -> 0 | W57: =W38 -> 0 | X57: =X38 -> 0 | Z57: =Z38 -> 0 | AA57: =AA38 -> 0 | AC57: =AC38 -> 0 | AD57: =AD38 -> 0 | AF57: =AF38 -> 0 | AG57: =AG38 -> 0 | AI57: =AI38 -> 0 | AJ57: =AJ38 -> 0
A58: CCA (6% DB and 94% P) | E58: =-E95*$E$19 -> 0 | F58: =-E95*$F$19 -> 0 | H58: =-F95*$E$19 -> 0 | I58: =-F95*$F$19 -> 0 | K58: =-G95*$E$19 -> 0 | L58: =-G95*$F$19 -> 0 | N58: =-H95*$E$19 -> 0 | O58: =-H95*$F$19 -> 0 | Q58: =-I95*$E$19 -> 0 | R58: =-I95*$F$19 -> 0 | T58: =-J95*$E$19 -> 0 | U58: =-J95*$F$19 -> 0 | W58: =-K95*$E$19 -> 0 | X58: =-K95*$F$19 -> 0 | Z58: =-L95*$E$19 -> 0 | AA58: =-L95*$F$19 -> 0 | AC58: =-M95*$E$19 -> 0 | AD58: =-M95*$F$19 -> 0 | AF58: =-N95*$E$19 -> 0 | AG58: =-N95*$F$19 -> 0 | AI58: =-Q95*$E$19 -> 0 | AJ58: =-Q95*$F$19 -> 0
A59: Taxable income | E59: =SUM(E56:E58) -> 0 | F59: =SUM(F56:F58) -> 0 | H59: =SUM(H56:H58) -> 0 | I59: 0 | K59: =SUM(K56:K58) -> 0 | L59: 0 | N59: =SUM(N56:N58) -> 0 | O59: 0 | Q59: =SUM(Q56:Q58) -> 0 | R59: 0 | T59: =SUM(T56:T58) -> 0 | U59: 0 | W59: =SUM(W56:W58) -> 0 | X59: 0 | Z59: =SUM(Z56:Z58) -> 0 | AA59: =SUM(AA56:AA58) -> 0 | AC59: =SUM(AC56:AC58) -> 0 | AD59: =SUM(AD56:AD58) -> 0 | AF59: =SUM(AF56:AF58) -> 0 | AG59: =SUM(AG56:AG58) -> 0 | AI59: =SUM(AI56:AI58) -> 0 | AJ59: =SUM(AJ56:AJ58) -> 0
B60: =B27 -> 2016 | C60: =C27 -> 2022
A61: Tax Rate (to be entered) | E61: =IF(AND(E$53>=$B$60, E$53<$C$60),$B$61,$C$61) -> 0 | F61: =IF(AND(E$53>=$B$60, E$53<$C$60),$B$61,$C$61) -> 0 | H61: =IF(AND(H$53>=$B$60, H$53<$C$60),$B$61,$C$61) -> 0 | I61: =IF(AND(H$53>=$B$60, H$53<$C$60),$B$61,$C$61) -> 0 | K61: =IF(AND(K$53>=$B$60, K$53<$C$60),$B$61,$C$61) -> 0 | L61: =IF(AND(K$53>=$B$60, K$53<$C$60),$B$61,$C$61) -> 0 | N61: =IF(AND(N$53>=$B$60, N$53<$C$60),$B$61,$C$61) -> 0 | O61: =IF(AND(N$53>=$B$60, N$53<$C$60),$B$61,$C$61) -> 0 | Q61: =IF(AND(Q$53>=$B$60, Q$53<$C$60),$B$61,$C$61) -> 0 | R61: =IF(AND(Q$53>=$B$60, Q$53<$C$60),$B$61,$C$61) -> 0 | T61: =IF(AND(T$53>=$B$60, T$53<$C$60),$B$61,$C$61) -> 0 | U61: =IF(AND(T$53>=$B$60, T$53<$C$60),$B$61,$C$61) -> 0 | W61: =IF(AND(W$53>=$B$60, W$53<$C$60),$B$61,$C$61) -> 0 | X61: =IF(AND(W$53>=$B$60, W$53<$C$60),$B$61,$C$61) -> 0 | Z61: =IF(AND(Z$53>=$B$60, Z$53<$C$60),$B$61,$C$61) -> 0 | AA61: =IF(AND(Z$53>=$B$60, Z$53<$C$60),$B$61,$C$61) -> 0 | AC61: =IF(AND(AC$53>=$B$60, AC$53<$C$60),$B$61,$C$61) -> 0 | AD61: =IF(AND(AC$53>=$B$60, AC$53<$C$60),$B$61,$C$61) -> 0 | AF61: =IF(AND(AF$53>=$B$60, AF$53<$C$60),$B$61,$C$61) -> 0 | AG61: =IF(AND(AF$53>=$B$60, AF$53<$C$60),$B$61,$C$61) -> 0 | AI61: =IF(AND(AI$53>=$B$60, AI$53<$C$60),$B$61,$C$61) -> 0 | AJ61: =IF(AND(AI$53>=$B$60, AI$53<$C$60),$B$61,$C$61) -> 0
A63: Income Taxes Payable | E63: =E59*E61 -> 0 | F63: =F59*F61 -> 0 | H63: =H59*H61 -> 0 | I63: =I59*I61 -> 0 | K63: =K59*K61 -> 0 | L63: =L59*L61 -> 0 | N63: =N59*N61 -> 0 | O63: =O59*O61 -> 0 | Q63: =Q59*Q61 -> 0 | R63: =R59*R61 -> 0 | T63: =T59*T61 -> 0 | U63: =U59*U61 -> 0 | W63: =W59*W61 -> 0 | X63: =X59*X61 -> 0 | Z63: =Z59*Z61 -> 0 | AA63: =AA59*AA61 -> 0 | AC63: =AC59*AC61 -> 0 | AD63: =AD59*AD61 -> 0 | AF63: =AF59*AF61 -> 0 | AG63: =AG59*AG61 -> 0 | AI63: =AI59*AI61 -> 0 | AJ63: =AJ59*AJ61 -> 0
A64: Gross Up
A65: Income Taxes Payable | E65: =E63/(1-E61) -> 0 | F65: =F63/(1-F61) -> 0 | H65: =H63/(1-H61) -> 0 | I65: =I63/(1-I61) -> 0 | K65: =K63/(1-K61) -> 0 | L65: =L63/(1-L61) -> 0 | N65: =N63/(1-N61) -> 0 | O65: =O63/(1-O61) -> 0 | Q65: =Q63/(1-Q61) -> 0 | R65: =R63/(1-R61) -> 0 | T65: =T63/(1-T61) -> 0 | U65: =U63/(1-U61) -> 0 | W65: =W63/(1-W61) -> 0 | X65: =X63/(1-X61) -> 0 | Z65: =Z63/(1-Z61) -> 0 | AA65: =AA63/(1-AA61) -> 0 | AC65: =AC63/(1-AC61) -> 0 | AD65: =AD63/(1-AD61) -> 0 | AF65: =AF63/(1-AF61) -> 0 | AG65: =AG63/(1-AG61) -> 0 | AI65: =AI63/(1-AI61) -> 0 | AJ65: =AJ63/(1-AJ61) -> 0
A66: Grossed Up PILs | E66: =+E65 -> 0 | F66: =+F65 -> 0 | H66: =+H65 -> 0 | I66: =+I65 -> 0 | K66: =+K65 -> 0 | L66: 0 | N66: =+N65 -> 0 | O66: 0 | Q66: =+Q65 -> 0 | R66: 0 | T66: =+T65 -> 0 | U66: 0 | W66: =+W65 -> 0 | X66: 0 | Z66: =+Z65 -> 0 | AA66: 0 | AC66: =+AC65 -> 0 | AD66: 0 | AF66: =+AF65 -> 0 | AG66: 0 | AI66: =+AI65 -> 0 | AJ66: 0
J68: Test Year
E69: =F69-1 -> 2017 | F69: =G69-1 -> 2018 | G69: =H69-1 -> 2019 | H69: =I69-1 -> 2020 | I69: =J69-1 -> 2021 | J69: ='LDC Info'!E24 -> 2022 | K69: =J69+1 -> 2023 | L69: =K69+1 -> 2024 | M69: =L69+1 -> 2025 | N69: =M69+1 -> 2026 | O69: =N69+1 -> 2027
A70: Net Fixed Assets
A71: Enter applicable amortization in years: | B71: 40
A72: Opening Gross Fixed Assets | F72: =E74 -> 0 | G72: 0 | H72: 0 | I72: 0 | J72: 0 | K72: 0 | L72: 0 | M72: 0 | N72: 0 | O72: 0
A73: Capital Additions | E73: ='App.2-FA Proposed REG Invest.'!C99 -> 0 | F73: ='App.2-FA Proposed REG Invest.'!D99 -> 0 | G73: ='App.2-FA Proposed REG Invest.'!E99 -> 0 | H73: ='App.2-FA Proposed REG Invest.'!F99 -> 0 | I73: ='App.2-FA Proposed REG Invest.'!G99 -> 0 | J73: ='App.2-FA Proposed REG Invest.'!H99 -> 0 | K73: ='App.2-FA Proposed REG Invest.'!I99 -> 0 | L73: ='App.2-FA Proposed REG Invest.'!J99 -> 0 | M73: ='App.2-FA Proposed REG Invest.'!K99 -> 0 | N73: ='App.2-FA Proposed REG Invest.'!L99 -> 0 | O73: ='App.2-FA Proposed REG Invest.'!M99 -> 0
A74: Closing Gross Fixed Assets | E74: =SUM(E72:E73) -> 0 | F74: 0 | G74: 0 | H74: 0 | I74: 0 | J74: 0 | K74: 0 | L74: 0 | M74: 0 | N74: 0 | O74: =SUM(O72:O73) -> 0
A76: Opening Accumulated Amortization | E76: 0 | F76: =+E79 -> 0 | G76: =+F79 -> 0 | H76: 0 | I76: 0 | J76: 0 | K76: 0 | L76: 0 | M76: 0 | N76: 0 | O76: 0
A77: Current Year Amortization (before additions) | E77: =IF(ISERROR(E72/$B$71), 0, E72/$B$71) -> 0 | F77: =IF(ISERROR(F72/$B$71), 0, F72/$B$71) -> 0 | G77: 0 | H77: 0 | I77: 0 | J77: 0 | K77: 0 | L77: 0 | M77: 0 | N77: 0 | O77: =IF(ISERROR(O72/$B$71), 0, O72/$B$71) -> 0
A78: Capital Additions Amortization (half year) | E78: =E73/$B$71/2 -> 0 | F78: =F73/$B$71/2 -> 0 | G78: 0 | H78: 0 | I78: 0 | J78: 0 | K78: 0 | L78: 0 | M78: 0 | N78: 0 | O78: =O73/$B$71/2 -> 0
A79: Closing Accumulated Amortization | E79: =SUM(E76+E77+E78) -> 0 | F79: 0 | G79: 0 | H79: 0 | I79: 0 | J79: 0 | K79: 0 | L79: 0 | M79: 0 | N79: 0 | O79: =SUM(O76+O77+O78) -> 0
A81: Opening Net Fixed Assets | E81: =E72-E76 -> 0 | F81: 0 | G81: 0 | H81: 0 | I81: 0 | J81: 0 | K81: 0 | L81: 0 | M81: 0 | N81: 0 | O81: =O72-O76 -> 0
A82: Closing Net Fixed Assets | E82: =E74-E79 -> 0 | F82: 0 | G82: 0 | H82: 0 | I82: 0 | J82: 0 | K82: 0 | L82: 0 | M82: 0 | N82: 0 | O82: =O74-O79 -> 0
A83: Average Net Fixed Assets | E83: =SUM(E81:E82)/2 -> 0 | F83: 0 | G83: 0 | H83: 0 | I83: 0 | J83: 0 | K83: 0 | L83: 0 | M83: 0 | N83: 0 | O83: =SUM(O81:O82)/2 -> 0
A85: UCC for PILs Calculation | J85: =J68 -> Test Year
E86: =E69 -> 2017 | F86: =F69 -> 2018 | G86: =G69 -> 2019 | H86: 2020 | I86: 2021 | J86: 2022 | K86: 2023 | L86: 2024 | M86: 2025 | N86: 2026 | O86: =O69 -> 2027
A88: Opening UCC | E88: =E72 -> 0 | F88: =E96 -> 0 | G88: 0 | H88: 0 | I88: 0 | J88: 0 | K88: 0 | L88: 0 | M88: 0 | N88: 0 | O88: 0
A89: Capital Additions | E89: =E73 -> 0 | F89: 0 | G89: 0 | H89: 0 | I89: 0 | J89: 0 | K89: 0 | L89: 0 | M89: 0 | N89: 0 | O89: =O73 -> 0
A90: UCC Before Half Year Rule | E90: =SUM(E88:E89) -> 0 | F90: 0 | G90: 0 | H90: 0 | I90: 0 | J90: 0 | K90: 0 | L90: 0 | M90: 0 | N90: 0 | O90: =SUM(O88:O89) -> 0
A91: Capital Additions (half year) | E91: =E89/2 -> 0 | F91: 0 | G91: 0 | H91: 0 | I91: 0 | J91: 0 | K91: 0 | L91: 0 | M91: 0 | N91: 0 | O91: =O89/2 -> 0
A92: Reduced UCC | E92: =E90-E91 -> 0 | F92: 0 | G92: 0 | H92: 0 | I92: 0 | J92: 0 | K92: 0 | L92: 0 | M92: 0 | N92: 0 | O92: =O90-O91 -> 0
A93: CCA Rate Class (to be entered)
A94: CCA Rate (to be entered)
A95: CCA | E95: =E92*$B$94 -> 0 | F95: =F92*$B$94 -> 0 | G95: 0 | H95: 0 | I95: 0 | J95: 0 | K95: 0 | L95: 0 | M95: 0 | N95: 0 | O95: =O92*$B$94 -> 0
A96: Closing UCC | E96: =E90-E95 -> 0 | F96: 0 | G96: 0 | H96: 0 | I96: 0 | J96: 0 | K96: 0 | L96: 0 | M96: 0 | N96: 0 | O96: =O90-O95 -> 0

Sheet App.2-G SQI
M1: File Number: | O1: =EBNUMBER -> EB-2021-0052
M2: Exhibit:
M3: Tab:
M4: Schedule:
M5: Page:
M7: Date:
A9: Appendix 2-G
A10: Service Reliability and Quality Indicators
A12: Service Reliability
A14: Index | B14: Excluding Loss of Supply and Major Event Days | G14: Including Major Event Days, Excluding Loss of Supply | L14: Including Los of Supply, Excluding Major Event Days | Q14: Including Loss of Supply and Major Event Days
B16: =TestYear-6 -> 2016 | C16: =TestYear-5 -> 2017 | D16: =TestYear-4 -> 2018 | E16: =TestYear-3 -> 2019 | F16: =TestYear-2 -> 2020 | G16: =B16 -> 2016 | H16: 2017 | I16: 2018 | J16: 2019 | K16: 2020 | L16: 2016 | M16: 2017 | N16: 2018 | O16: 2019 | P16: 2020 | Q16: =L16 -> 2016 | R16: =M16 -> 2017 | S16: =N16 -> 2018 | T16: =O16 -> 2019 | U16: =P16 -> 2020
A17: SAIDI | B17: =VLOOKUP('LDC Info'!$E$14,'2016 Adjusted SAIDI and SAIFI'!$A:$Q,6,FALSE) -> 1.548684515 | C17: =VLOOKUP('LDC Info'!$E$14,'2017 Adjusted SAIDI and SAIFI'!$A:$Q,6,FALSE) -> 0.9463248249 | D17: =VLOOKUP('LDC Info'!$E$14,'2018 Adjusted SAIDI and SAIFI'!$A:$Q,6,FALSE) -> 0.5295208421 | E17: =VLOOKUP('LDC Info'!$E$14,'2019 Adjusted SAIDI and SAIFI'!$A:$Q,6,FALSE) -> 7.530665375 | F17: =VLOOKUP('LDC Info'!$E$14,'2020'!$A:$P,6,FALSE) -> 0.5648374376 | G17: =VLOOKUP('LDC Info'!$E$14,'2016 Adjusted SAIDI and SAIFI'!$A:$Q,7,FALSE) -> 3.311359294 | H17: =VLOOKUP('LDC Info'!$E$14,'2017 Adjusted SAIDI and SAIFI'!$A:$Q,7,FALSE) -> 0.9463248249 | I17: =VLOOKUP('LDC Info'!$E$14,'2018 Adjusted SAIDI and SAIFI'!$A:$Q,7,FALSE) -> 0.5295208421 | J17: =VLOOKUP('LDC Info'!$E$14,'2019 Adjusted SAIDI and SAIFI'!$A:$Q,7,FALSE) -> 7.530665375 | K17: =VLOOKUP('LDC Info'!$E$14,'2020'!$A:$P,7,FALSE) -> 0.5648374376 | L17: =VLOOKUP('LDC Info'!$E$14,'2016 Adjusted SAIDI and SAIFI'!$A:$Q,8,FALSE) -> 1.593982963 | M17: =VLOOKUP('LDC Info'!$E$14,'2017 Adjusted SAIDI and SAIFI'!$A:$Q,8,FALSE) -> 4.354012198 | N17: =VLOOKUP('LDC Info'!$E$14,'2018 Adjusted SAIDI and SAIFI'!$A:$Q,8,FALSE) -> 1.729032114 | O17: =VLOOKUP('LDC Info'!$E$14,'2019 Adjusted SAIDI and SAIFI'!$A:$Q,8,FALSE) -> 21.59398411 | P17: =VLOOKUP('LDC Info'!$E$14,'2020'!$A:$P,8,FALSE) -> 2.633665761 | Q17: =VLOOKUP('LDC Info'!$E$14,'2016 Adjusted SAIDI and SAIFI'!$A:$Q,9,FALSE) -> 3.356657743 | R17: =VLOOKUP('LDC Info'!$E$14,'2017 Adjusted SAIDI and SAIFI'!$A:$Q,9,FALSE) -> 4.354012198 | S17: =VLOOKUP('LDC Info'!$E$14,'2018 Adjusted SAIDI and SAIFI'!$A:$Q,9,FALSE) -> 1.729032114 | T17: =VLOOKUP('LDC Info'!$E$14,'2019 Adjusted SAIDI and SAIFI'!$A:$Q,9,FALSE) -> 21.59398411 | U17: =VLOOKUP('LDC Info'!$E$14,'2020'!$A:$Q,9,FALSE) -> 2.633665761
A18: SAIFI | B18: =VLOOKUP('LDC Info'!$E$14,'2016 Adjusted SAIDI and SAIFI'!$A:$Q,14,FALSE) -> 0.835655613 | C18: =VLOOKUP('LDC Info'!$E$14,'2017 Adjusted SAIDI and SAIFI'!$A:$Q,14,FALSE) -> 0.6156765304 | D18: =VLOOKUP('LDC Info'!$E$14,'2018 Adjusted SAIDI and SAIFI'!$A:$Q,14,FALSE) -> 0.2427614448 | E18: =VLOOKUP('LDC Info'!$E$14,'2019 Adjusted SAIDI and SAIFI'!$A:$Q,14,FALSE) -> 1.346510246 | F18: =VLOOKUP('LDC Info'!$E$14,'2020'!$A:$P,14,FALSE) -> 0.5329068443 | G18: =VLOOKUP('LDC Info'!$E$14,'2016 Adjusted SAIDI and SAIFI'!$A:$Q,15,FALSE) -> 1.148615759 | H18: =VLOOKUP('LDC Info'!$E$14,'2017 Adjusted SAIDI and SAIFI'!$A:$Q,15,FALSE) -> 0.6156765304 | I18: =VLOOKUP('LDC Info'!$E$14,'2018 Adjusted SAIDI and SAIFI'!$A:$Q,15,FALSE) -> 0.2427614448 | J18: =VLOOKUP('LDC Info'!$E$14,'2019 Adjusted SAIDI and SAIFI'!$A:$Q,15,FALSE) -> 1.346510246 | K18: =VLOOKUP('LDC Info'!$E$14,'2020'!$A:$P,15,FALSE) -> 0.5329068443 | L18: =VLOOKUP('LDC Info'!$E$14,'2016 Adjusted SAIDI and SAIFI'!$A:$Q,16,FALSE) -> 0.8699726194 | M18: =VLOOKUP('LDC Info'!$E$14,'2017 Adjusted SAIDI and SAIFI'!$A:$Q,16,FALSE) -> 2.545922747 | N18: =VLOOKUP('LDC Info'!$E$14,'2018 Adjusted SAIDI and SAIFI'!$A:$Q,16,FALSE) -> 1.28876327 | O18: =VLOOKUP('LDC Info'!$E$14,'2019 Adjusted SAIDI and SAIFI'!$A:$Q,16,FALSE) -> 3.328329628 | P18: =VLOOKUP('LDC Info'!$E$14,'2020'!$A:$P,16,FALSE) -> 6.08044869 | Q18: =VLOOKUP('LDC Info'!$E$14,'2016 Adjusted SAIDI and SAIFI'!$A:$Q,17,FALSE) -> 1.182932765 | R18: =VLOOKUP('LDC Info'!$E$14,'2017 Adjusted SAIDI and SAIFI'!$A:$Q,17,FALSE) -> 2.545922747 | S18: =VLOOKUP('LDC Info'!$E$14,'2018 Adjusted SAIDI and SAIFI'!$A:$Q,17,FALSE) -> 1.28876327 | T18: =VLOOKUP('LDC Info'!$E$14,'2019 Adjusted SAIDI and SAIFI'!$A:$Q,17,FALSE) -> 3.328329628 | U18: =VLOOKUP('LDC Info'!$E$14,'2020'!$A:$Q,17,FALSE) -> 6.08044869
A20: 5 Year Historical Average
A21: SAIDI | F21: =IF(ISERROR(AVERAGE(B17:F17)), "", AVERAGE(B17:F17)) -> 2.224006599 | K21: =IF(ISERROR(AVERAGE(G17:K17)), "", AVERAGE(G17:K17)) -> 2.576541555 | P21: =IF(ISERROR(AVERAGE(L17:P17)), "", AVERAGE(L17:P17)) -> 6.380935429 | U21: =IF(ISERROR(AVERAGE(Q17:U17)), "", AVERAGE(Q17:U17)) -> 6.733470385
A22: SAIFI | F22: =IF(ISERROR(AVERAGE(B18:F18)), "", AVERAGE(B18:F18)) -> 0.7147021357 | K22: =IF(ISERROR(AVERAGE(G18:K18)), "", AVERAGE(G18:K18)) -> 0.7772941649 | P22: =IF(ISERROR(AVERAGE(L18:P18)), "", AVERAGE(L18:P18)) -> 2.822687391 | U22: =IF(ISERROR(AVERAGE(Q18:U18)), "", AVERAGE(Q18:U18)) -> 2.88527942
A24: SAIDI = System Average Interruption Duration Index
A25: SAIFI = System Average Interruption Frequency Index
A27: Service Quality
A29: Indicator | E29: OEB Minimum Standard | G29: =B16 -> 2016 | H29: =C16 -> 2017 | I29: =D16 -> 2018 | J29: =E16 -> 2019 | K29: =F16 -> 2020
A30: Low Voltage Connections | E30: 0.9 | G30: =IFERROR(VLOOKUP('LDC Info'!$E$14,'2.1.4_ServiceQuality'!$A:$FY,4,FALSE),"") -> 1 | H30: =IFERROR(VLOOKUP('LDC Info'!$E$14,'2.1.4_ServiceQuality'!$A:$FY,40,FALSE),"") -> 0.9857 | I30: =IFERROR(VLOOKUP('LDC Info'!$E$14,'2.1.4_ServiceQuality'!$A:$FY,76,FALSE),"") -> 1 | J30: =IFERROR(VLOOKUP('LDC Info'!$E$14,'2.1.4_ServiceQuality'!$A:$FY,112,FALSE),"") -> 1 | K30: =IFERROR(VLOOKUP('LDC Info'!$E$14,'2.1.4_ServiceQuality'!$A:$FY,148,FALSE),"") -> 1
A31: High Voltage Connections | E31: 0.9 | G31: =IFERROR(VLOOKUP('LDC Info'!$E$14,'2.1.4_ServiceQuality'!$A:$FY,7,FALSE),"") -> N/A | H31: =IFERROR(VLOOKUP('LDC Info'!$E$14,'2.1.4_ServiceQuality'!$A:$FY,43,FALSE),"") -> 1 | I31: =IFERROR(VLOOKUP('LDC Info'!$E$14,'2.1.4_ServiceQuality'!$A:$FY,79,FALSE),"") -> 1 | J31: =IFERROR(VLOOKUP('LDC Info'!$E$14,'2.1.4_ServiceQuality'!$A:$FY,115,FALSE),"") -> N/A | K31: =IFERROR(VLOOKUP('LDC Info'!$E$14,'2.1.4_ServiceQuality'!$A:$FY,151,FALSE),"") -> N/A
A32: Telephone Accessibility | E32: 0.65 | G32: =IFERROR(VLOOKUP('LDC Info'!$E$14,'2.1.4_ServiceQuality'!$A:$FY,19,FALSE),"") -> 0.999 | H32: =IFERROR(VLOOKUP('LDC Info'!$E$14,'2.1.4_ServiceQuality'!$A:$FY,55,FALSE),"") -> 0.9987 | I32: =IFERROR(VLOOKUP('LDC Info'!$E$14,'2.1.4_ServiceQuality'!$A:$FY,91,FALSE),"") -> 0.9992 | J32: =IFERROR(VLOOKUP('LDC Info'!$E$14,'2.1.4_ServiceQuality'!$A:$FY,127,FALSE),"") -> 0.9995 | K32: =IFERROR(VLOOKUP('LDC Info'!$E$14,'2.1.4_ServiceQuality'!$A:$FY,163,FALSE),"") -> 0.9763
A33: Appointments Met | E33: 0.9 | G33: =IFERROR(VLOOKUP('LDC Info'!$E$14,'2.1.4_ServiceQuality'!$A:$FY,13,FALSE),"") -> 1 | H33: =IFERROR(VLOOKUP('LDC Info'!$E$14,'2.1.4_ServiceQuality'!$A:$FY,49,FALSE),"") -> 0.9914 | I33: =IFERROR(VLOOKUP('LDC Info'!$E$14,'2.1.4_ServiceQuality'!$A:$FY,85,FALSE),"") -> 0.9864 | J33: =IFERROR(VLOOKUP('LDC Info'!$E$14,'2.1.4_ServiceQuality'!$A:$FY,121,FALSE),"") -> 0.9815 | K33: =IFERROR(VLOOKUP('LDC Info'!$E$14,'2.1.4_ServiceQuality'!$A:$FY,157,FALSE),"") -> 0.9829
A34: Written Response to Enquires | E34: 0.8 | G34: =IFERROR(VLOOKUP('LDC Info'!$E$14,'2.1.4_ServiceQuality'!$A:$FY,25,FALSE),"") -> 1 | H34: =IFERROR(VLOOKUP('LDC Info'!$E$14,'2.1.4_ServiceQuality'!$A:$FY,61,FALSE),"") -> 1 | I34: =IFERROR(VLOOKUP('LDC Info'!$E$14,'2.1.4_ServiceQuality'!$A:$FY,97,FALSE),"") -> 1 | J34: =IFERROR(VLOOKUP('LDC Info'!$E$14,'2.1.4_ServiceQuality'!$A:$FY,133,FALSE),"") -> 1 | K34: =IFERROR(VLOOKUP('LDC Info'!$E$14,'2.1.4_ServiceQuality'!$A:$FY,169,FALSE),"") -> 0.9863
A35: Emergency Urban Response | E35: 0.8 | G35: =IFERROR(VLOOKUP('LDC Info'!$E$14,'2.1.4_ServiceQuality'!$A:$FY,28,FALSE),"") -> 1 | H35: =IFERROR(VLOOKUP('LDC Info'!$E$14,'2.1.4_ServiceQuality'!$A:$FY,64,FALSE),"") -> 1 | I35: =IFERROR(VLOOKUP('LDC Info'!$E$14,'2.1.4_ServiceQuality'!$A:$FY,100,FALSE),"") -> 1 | J35: =IFERROR(VLOOKUP('LDC Info'!$E$14,'2.1.4_ServiceQuality'!$A:$FY,136,FALSE),"") -> 1 | K35: =IFERROR(VLOOKUP('LDC Info'!$E$14,'2.1.4_ServiceQuality'!$A:$FY,172,FALSE),"") -> 1
A36: Emergency Rural Response | E36: 0.8 | G36: =IFERROR(VLOOKUP('LDC Info'!$E$14,'2.1.4_ServiceQuality'!$A:$FY,31,FALSE),"") -> 1 | H36: =IFERROR(VLOOKUP('LDC Info'!$E$14,'2.1.4_ServiceQuality'!$A:$FY,67,FALSE),"") -> 1 | I36: =IFERROR(VLOOKUP('LDC Info'!$E$14,'2.1.4_ServiceQuality'!$A:$FY,103,FALSE),"") -> 1 | J36: =IFERROR(VLOOKUP('LDC Info'!$E$14,'2.1.4_ServiceQuality'!$A:$FY,139,FALSE),"") -> N/A | K36: =IFERROR(VLOOKUP('LDC Info'!$E$14,'2.1.4_ServiceQuality'!$A:$FY,175,FALSE),"") -> N/A
A37: Telephone Call Abandon Rate | E37: 0.1 | G37: =IFERROR(VLOOKUP('LDC Info'!$E$14,'2.1.4_ServiceQuality'!$A:$FY,22,FALSE),"") -> 0 | H37: =IFERROR(VLOOKUP('LDC Info'!$E$14,'2.1.4_ServiceQuality'!$A:$FY,58,FALSE),"") -> 0 | I37: =IFERROR(VLOOKUP('LDC Info'!$E$14,'2.1.4_ServiceQuality'!$A:$FY,94,FALSE),"") -> 0 | J37: =IFERROR(VLOOKUP('LDC Info'!$E$14,'2.1.4_ServiceQuality'!$A:$FY,130,FALSE),"") -> 0.0005 | K37: =IFERROR(VLOOKUP('LDC Info'!$E$14,'2.1.4_ServiceQuality'!$A:$FY,166,FALSE),"") -> 0.0237
A38: Appointment Scheduling | E38: 0.9 | G38: =IFERROR(VLOOKUP('LDC Info'!$E$14,'2.1.4_ServiceQuality'!$A:$FY,10,FALSE),"") -> 0.9964438081 | H38: =IFERROR(VLOOKUP('LDC Info'!$E$14,'2.1.4_ServiceQuality'!$A:$FY,46,FALSE),"") -> 0.9985220432 | I38: =IFERROR(VLOOKUP('LDC Info'!$E$14,'2.1.4_ServiceQuality'!$A:$FY,82,FALSE),"") -> 0.9980947375 | J38: =IFERROR(VLOOKUP('LDC Info'!$E$14,'2.1.4_ServiceQuality'!$A:$FY,118,FALSE),"") -> 0.9794431329 | K38: =IFERROR(VLOOKUP('LDC Info'!$E$14,'2.1.4_ServiceQuality'!$A:$FY,154,FALSE),"") -> 0.9804275632
A39: Rescheduling a Missed Appointment | E39: 1 | G39: =IFERROR(VLOOKUP('LDC Info'!$E$14,'2.1.4_ServiceQuality'!$A:$FY,16,FALSE),"") -> N/A | H39: =IFERROR(VLOOKUP('LDC Info'!$E$14,'2.1.4_ServiceQuality'!$A:$FY,52,FALSE),"") -> 1 | I39: =IFERROR(VLOOKUP('LDC Info'!$E$14,'2.1.4_ServiceQuality'!$A:$FY,88,FALSE),"") -> 1 | J39: =IFERROR(VLOOKUP('LDC Info'!$E$14,'2.1.4_ServiceQuality'!$A:$FY,124,FALSE),"") -> 1 | K39: =IFERROR(VLOOKUP('LDC Info'!$E$14,'2.1.4_ServiceQuality'!$A:$FY,160,FALSE),"") -> 1
A40: Reconnection Performance Standard | E40: 0.85 | G40: =IFERROR(VLOOKUP('LDC Info'!$E$14,'2.1.4_ServiceQuality'!$A:$FY,34,FALSE),"") -> 1 | H40: =IFERROR(VLOOKUP('LDC Info'!$E$14,'2.1.4_ServiceQuality'!$A:$FY,70,FALSE),"") -> 1 | I40: =IFERROR(VLOOKUP('LDC Info'!$E$14,'2.1.4_ServiceQuality'!$A:$FY,106,FALSE),"") -> 1 | J40: =IFERROR(VLOOKUP('LDC Info'!$E$14,'2.1.4_ServiceQuality'!$A:$FY,142,FALSE),"") -> 1 | K40: =IFERROR(VLOOKUP('LDC Info'!$E$14,'2.1.4_ServiceQuality'!$A:$FY,178,FALSE),"") -> 1

Sheet 2.1.4_ServiceQuality (hidden)
A1: Low Voltage Services
A2: Time run: 5/31/2021 2:22:17 PM
B4: 2017 | AL4: 2018 | BV4: 2019 | DF4: 2020 | EP4: 2021
B5: January 1, 2016 - December 31, 2016 | AL5: January 1, 2017 - December 31, 2017 | BV5: January 1, 2018 - December 31, 2018 | DF5: January 1, 2019 - December 31, 2019 | EP5: January 1, 2020 - December 31, 2020
A6: Company Name | B6: LV services connected within 5 days | C6: New LV services requested | D6: Low Voltage Connections (OEB Min. Standard: 90%) | E6: HV services connected within 10 days | F6: New HV services requested | G6: High Voltage Connections (OEB Min. Standard: 90%) | H6: Number of appointments scheduled | I6: Number of appointments requested | J6: Appointments Scheduling (OEB Min. Standard: 90%) | K6: Number of appointments completed | L6: Number of appointments scheduled with customer / rep | M6: Appointments met (OEB Min Standard: 90%) | N6: Number of appointments rescheduled as required | O6: Number of missed appointments | P6: Rescheduled a Missed Appointment (OEB Standard: 100%) | Q6: Qualified incoming calls answered within 30 sec | R6: Qualified incoming calls | S6: Telephone Accessibility (OEB Min. Standard: 65%) | T6: Qualified incoming calls in each month that were abandoned after 30 sec | U6: Number of qualified incoming calls | V6: Telephone Call Abandon Rate (OEB Standard: not exceed 10%) | W6: Written responses provided within 10 days | X6: Number of qualified enquiries received | Y6: Written Responses to Enquiries (OEB Min. Standard: 80%) | Z6: Number of emergency urban calls responded within 60 min | AA6: Number of emergency urban calls received | AB6: Emergency Urban Response (OEB Min. Standard: 80%) | AC6: Number of emergency rural calls responded within 120 min | AD6: Number of emergency rural calls received | AE6: Emergency Rural Response (OEB Min. Standard: 80%) | AF6: Number of reconnections completed in 2 days | AG6: Number of reconnections for customers disconnected for non payment | AH6: Reconnection Performance Standards (OEB Min. Standard: 85%) | AI6: Micro-embedded generation facilities connected within 5 days | AJ6: Number of new micro-embedded generation facilities connected | AK6: New Micro-embedded Generation Facilities Connected (OEB Min. Standard: 90%) | AL6: LV services connected within 5 days | AM6: New LV services requested | AN6: Low Voltage Connections (OEB Min. Standard: 90%) | AO6: HV services connected within 10 days | AP6: New HV services requested | AQ6: High Voltage Connections (OEB Min. Standard: 90%) | AR6: Number of appointments scheduled | AS6: Number of appointments requested | AT6: Appointments Scheduling (OEB Min. Standard: 90%) | AU6: Number of appointments completed | AV6: Number of appointments scheduled with customer / rep | AW6: Appointments met (OEB Min Standard: 90%) | AX6: Number of appointments rescheduled as required | AY6: Number of missed appointments | AZ6: Rescheduled a Missed Appointment (OEB Standard: 100%) | BA6: Qualified incoming calls answered within 30 sec | BB6: Qualified incoming calls | BC6: Telephone Accessibility (OEB Min. Standard: 65%) | BD6: Qualified incoming calls in each month that were abandoned after 30 sec | BE6: Number of qualified incoming calls | BF6: Telephone Call Abandon Rate (OEB Standard: not exceed 10%) | BG6: Written responses provided within 10 days | BH6: Number of qualified enquiries received | BI6: Written Responses to Enquiries (OEB Min. Standard: 80%) | BJ6: Number of emergency urban calls responded within 60 min | BK6: Number of emergency urban calls received | BL6: Emergency Urban Response (OEB Min. Standard: 80%) | BM6: Number of emergency rural calls responded within 120 min | BN6: Number of emergency rural calls received | BO6: Emergency Rural Response (OEB Min. Standard: 80%) | BP6: Number of reconnections completed in 2 days | BQ6: Number of reconnections for customers disconnected for non payment | BR6: Reconnection Performance Standards (OEB Min. Standard: 85%) | BS6: Micro-embedded generation facilities connected within 5 days | BT6: Number of new micro-embedded generation facilities connected | BU6: New Micro-embedded Generation Facilities Connected (OEB Min. Standard: 90%) | BV6: LV services connected within 5 days | BW6: New LV services requested | BX6: Low Voltage Connections (OEB Min. Standard: 90%) | BY6: HV services connected within 10 days | BZ6: New HV services requested | CA6: High Voltage Connections (OEB Min. Standard: 90%) | CB6: Number of appointments scheduled | CC6: Number of appointments requested | CD6: Appointments Scheduling (OEB Min. Standard: 90%) | CE6: Number of appointments completed | CF6: Number of appointments scheduled with customer / rep | CG6: Appointments met (OEB Min Standard: 90%) | CH6: Number of appointments rescheduled as required | CI6: Number of missed appointments | CJ6: Rescheduled a Missed Appointment (OEB Standard: 100%) | CK6: Qualified incoming calls answered within 30 sec | CL6: Qualified incoming calls | CM6: Telephone Accessibility (OEB Min. Standard: 65%) | CN6: Qualified incoming calls in each month that were abandoned after 30 sec | CO6: Number of qualified incoming calls | CP6: Telephone Call Abandon Rate (OEB Standard: not exceed 10%) | CQ6: Written responses provided within 10 days | CR6: Number of qualified enquiries received | CS6: Written Responses to Enquiries (OEB Min. Standard: 80%) | CT6: Number of emergency urban calls responded within 60 min | CU6: Number of emergency urban calls received | CV6: Emergency Urban Response (OEB Min. Standard: 80%) | CW6: Number of emergency rural calls responded within 120 min | CX6: Number of emergency rural calls received | CY6: Emergency Rural Response (OEB Min. Standard: 80%) | CZ6: Number of reconnections completed in 2 days | DA6: Number of reconnections for customers disconnected for non payment | DB6: Reconnection Performance Standards (OEB Min. Standard: 85%) | DC6: Micro-embedded generation facilities connected within 5 days | DD6: Number of new micro-embedded generation facilities connected | DE6: New Micro-embedded Generation Facilities Connected (OEB Min. Standard: 90%) | DF6: LV services connected within 5 days | DG6: New LV services requested | DH6: Low Voltage Connections (OEB Min. Standard: 90%) | DI6: HV services connected within 10 days | DJ6: New HV services requested | DK6: High Voltage Connections (OEB Min. Standard: 90%) | DL6: Number of appointments scheduled | DM6: Number of appointments requested | DN6: Appointments Scheduling (OEB Min. Standard: 90%) | DO6: Number of appointments completed | DP6: Number of appointments scheduled with customer / rep | DQ6: Appointments met (OEB Min Standard: 90%) | DR6: Number of appointments rescheduled as required | DS6: Number of missed appointments | DT6: Rescheduled a Missed Appointment (OEB Standard: 100%) | DU6: Qualified incoming calls answered within 30 sec | DV6: Qualified incoming calls | DW6: Telephone Accessibility (OEB Min. Standard: 65%) | DX6: Qualified incoming calls in each month that were abandoned after 30 sec | DY6: Number of qualified incoming calls | DZ6: Telephone Call Abandon Rate (OEB Standard: not exceed 10%) | EA6: Written responses provided within 10 days | EB6: Number of qualified enquiries received | EC6: Written Responses to Enquiries (OEB Min. Standard: 80%) | ED6: Number of emergency urban calls responded within 60 min | EE6: Number of emergency urban calls received | EF6: Emergency Urban Response (OEB Min. Standard: 80%) | EG6: Number of emergency rural calls responded within 120 min | EH6: Number of emergency rural calls received | EI6: Emergency Rural Response (OEB Min. Standard: 80%) | EJ6: Number of reconnections completed in 2 days | EK6: Number of reconnections for customers disconnected for non payment | EL6: Reconnection Performance Standards (OEB Min. Standard: 85%) | EM6: Micro-embedded generation facilities connected within 5 days | EN6: Number of new micro-embedded generation facilities connected | EO6: New Micro-embedded Generation Facilities Connected (OEB Min. Standard: 90%) | EP6: LV services connected within 5 days | EQ6: New LV services requested | ER6: Low Voltage Connections (OEB Min. Standard: 90%) | ES6: HV services connected within 10 days | ET6: New HV services requested | EU6: High Voltage Connections (OEB Min. Standard: 90%) | EV6: Number of appointments scheduled | EW6: Number of appointments requested | EX6: Appointments Scheduling (OEB Min. Standard: 90%) | EY6: Number of appointments completed | EZ6: Number of appointments scheduled with customer / rep | FA6: Appointments met (OEB Min Standard: 90%) | FB6: Number of appointments rescheduled as required | FC6: Number of missed appointments | FD6: Rescheduled a Missed Appointment (OEB Standard: 100%) | FE6: Qualified incoming calls answered within 30 sec | FF6: Qualified incoming calls | FG6: Telephone Accessibility (OEB Min. Standard: 65%) | FH6: Qualified incoming calls in each month that were abandoned after 30 sec | FI6: Number of qualified incoming calls | FJ6: Telephone Call Abandon Rate (OEB Standard: not exceed 10%) | FK6: Written responses provided within 10 days | FL6: Number of qualified enquiries received | FM6: Written Responses to Enquiries (OEB Min. Standard: 80%) | FN6: Number of emergency urban calls responded within 60 min | FO6: Number of emergency urban calls received | FP6: Emergency Urban Response (OEB Min. Standard: 80%) | FQ6: Number of emergency rural calls responded within 120 min | FR6: Number of emergency rural calls received | FS6: Emergency Rural Response (OEB Min. Standard: 80%) | FT6: Number of reconnections completed in 2 days | FU6: Number of reconnections for customers disconnected for non payment | FV6: Reconnection Performance Standards (OEB Min. Standard: 85%) | FW6: Micro-embedded generation facilities connected within 5 days | FX6: Number of new micro-embedded generation facilities connected | FY6: New Micro-embedded Generation Facilities Connected (OEB Min. Standard: 90%)
A7: 1937680 Ontario Inc. | B7: 324 | C7: 334 | D7: 0.97 | E7: 4 | F7: 4 | G7: 1 | H7: 5913 | I7: 6315 | J7: 0.9363420606 | K7: 1404 | L7: 1410 | M7: 0.996 | N7: 402 | O7: 402 | P7: 1 | Q7: 57774 | R7: 68322 | S7: 0.846 | T7: 900 | U7: 68322 | V7: 0.013 | W7: 960 | X7: 960 | Y7: 1 | Z7: 13 | AA7: 13 | AB7: 1 | AC7: 0 | AD7: 0 | AE7: N/A | AF7: 1007 | AG7: 1007 | AH7: 1 | AI7: 20 | AJ7: 17 | AK7: 0.85 | AL7: 393 | AM7: 403 | AN7: 0.9752 | AO7: 2 | AP7: 2 | AQ7: 1 | AR7: 5046 | AS7: 5601 | AT7: 0.9009105563 | AU7: 975 | AV7: 976 | AW7: 0.999 | AX7: 555 | AY7: 555 | AZ7: 1 | BA7: 51109 | BB7: 56521 | BC7: 0.9042 | BD7: 424 | BE7: 56521 | BF7: 0.0075 | BG7: 1126 | BH7: 1126 | BI7: 1 | BJ7: 11 | BK7: 11 | BL7: 1 | BM7: 0 | BN7: 0 | BO7: N/A | BP7: 627 | BQ7: 627 | BR7: 1 | BS7: 21 | BT7: 20 | BU7: 0.9524 | BV7: 245 | BW7: 247 | BX7: 0.9919 | BY7: 3 | BZ7: 3 | CA7: 1 | CB7: 5272 | CC7: 6017 | CD7: 0.8761841655 | CE7: 1120 | CF7: 1121 | CG7: 0.9991 | CH7: 609 | CI7: 745 | CJ7: 0.8174 | CK7: 45830 | CL7: 52394 | CM7: 0.8747 | CN7: 623 | CO7: 52394 | CP7: 0.0119 | CQ7: 970 | CR7: 970 | CS7: 1 | CT7: 36 | CU7: 36 | CV7: 1 | CW7: 0 | CX7: 0 | CY7: N/A | CZ7: 564 | DA7: 564 | DB7: 1 | DC7: 37 | DD7: 37 | DE7: 1 | DF7: 228 | DG7: 234 | DH7: 0.9744 | DI7: 4 | DJ7: 4 | DK7: 1 | DL7: 6218 | DM7: 6957 | DN7: 0.8937760592 | DO7: 765 | DP7: 765 | DQ7: 1 | DR7: 739 | DS7: 739 | DT7: 1 | DU7: 48838 | DV7: 64604 | DW7: 0.756 | DX7: 1875 | DY7: 64604 | DZ7: 0.029 | EA7: 1191 | EB7: 1191 | EC7: 1 | ED7: 29 | EE7: 31 | EF7: 0.9355 | EG7: 0 | EH7: 0 | EI7: N/A | EJ7: 569 | EK7: 569 | EL7: 1 | EM7: 0 | EN7: 0 | EO7: N/A | EP7: 232 | EQ7: 236 | ER7: 0.9831 | ES7: 13 | ET7: 13 | EU7: 1 | EV7: 5682 | EW7: 6114 | EX7: 0.9293425083 | EY7: 558 | EZ7: 559 | FA7: 0.9982 | FB7: 432 | FC7: 432 | FD7: 1 | FE7: 46164 | FF7: 54947 | FG7: 0.8402 | FH7: 925 | FI7: 54947 | FJ7: 0.0168 | FK7: 2731 | FL7: 2731 | FM7: 1 | FN7: 26 | FO7: 26 | FP7: 1 | FQ7: 0 | FR7: 0 | FS7: N/A | FT7: 0 | FU7: 0 | FV7: N/A | FW7: 1 | FX7: 1 | FY7: 1
A8: Alectra Utilities Corporation | D8: N/A | G8: N/A | J8: N/A | M8: N/A | P8: N/A | S8: N/A | V8: N/A | Y8: N/A | AB8: N/A | AE8: N/A | AH8: N/A | AK8: N/A | AL8: 15779 | AM8: 16263 | AN8: 0.9702 | AO8: 11 | AP8: 11 | AQ8: 1 | AR8: 174399 | AS8: 182193 | AT8: 0.95722121 | AU8: 22869 | AV8: 23036 | AW8: 0.9928 | AX8: 81 | AY8: 81 | AZ8: 1 | BA8: 610848 | BB8: 771885 | BC8: 0.7914 | BD8: 11663 | BE8: 771885 | BF8: 0.0151 | BG8: 72704 | BH8: 73496 | BI8: 0.9892 | BJ8: 810 | BK8: 859 | BL8: 0.943 | BM8: 0 | BN8: 0 | BO8: N/A | BP8: 4764 | BQ8: 4793 | BR8: 0.9939 | BS8: 901 | BT8: 886 | BU8: 0.9834 | BV8: 11779 | BW8: 12438 | BX8: 0.947 | BY8: 9 | BZ8: 9 | CA8: 1 | CB8: 158185 | CC8: 175278 | CD8: 0.9024806023 | CE8: 19729 | CF8: 19805 | CG8: 0.9962 | CH8: 14393 | CI8: 14416 | CJ8: 0.9984 | CK8: 567239 | CL8: 727400 | CM8: 0.7798 | CN8: 11310 | CO8: 727400 | CP8: 0.0155 | CQ8: 115387 | CR8: 118999 | CS8: 0.9696 | CT8: 942 | CU8: 989 | CV8: 0.9525 | CW8: 0 | CX8: 0 | CY8: N/A | CZ8: 5183 | DA8: 5243 | DB8: 0.9886 | DC8: 737 | DD8: 713 | DE8: 0.9674 | DF8: 7448 | DG8: 8044 | DH8: 0.9259 | DI8: 4 | DJ8: 4 | DK8: 1 | DL8: 164856 | DM8: 186943 | DN8: 0.8818516731 | DO8: 10391 | DP8: 10523 | DQ8: 0.9875 | DR8: 20716 | DS8: 20749 | DT8: 0.9984 | DU8: 583422 | DV8: 769870 | DW8: 0.7578 | DX8: 16047 | DY8: 769870 | DZ8: 0.0208 | EA8: 104527 | EB8: 120888 | EC8: 0.8647 | ED8: 864 | EE8: 894 | EF8: 0.9664 | EG8: 0 | EH8: 0 | EI8: N/A | EJ8: 4915 | EK8: 4934 | EL8: 0.9961 | EM8: 23 | EN8: 18 | EO8: 0.7826 | EP8: 6329 | EQ8: 7006 | ER8: 0.9034 | ES8: 1 | ET8: 1 | EU8: 1 | EV8: 172361 | EW8: 176198 | EX8: 0.9782233834 | EY8: 10534 | EZ8: 10701 | FA8: 0.9844 | FB8: 3401 | FC8: 3401 | FD8: 1 | FE8: 409953 | FF8: 612466 | FG8: 0.6693 | FH8: 26252 | FI8: 612466 | FJ8: 0.0429 | FK8: 135616 | FL8: 146999 | FM8: 0.9226 | FN8: 815 | FO8: 896 | FP8: 0.9096 | FQ8: 0 | FR8: 0 | FS8: N/A | FT8: 628 | FU8: 631 | FV8: 0.9952 | FW8: 62 | FX8: 61 | FY8: 0.9839
A9: Algoma Power Inc. | B9: 161 | C9: 162 | D9: 0.994 | E9: 0 | F9: 0 | G9: N/A | H9: 1289 | I9: 1313 | J9: 0.9817212224 | K9: 364 | L9: 364 | M9: 1 | N9: 0 | O9: 0 | P9: N/A | Q9: 13092 | R9: 15125 | S9: 0.866 | T9: 570 | U9: 15125 | V9: 0.038 | W9: 276 | X9: 276 | Y9: 1 | Z9: 0 | AA9: 0 | AB9: N/A | AC9: 13 | AD9: 13 | AE9: 1 | AF9: 139 | AG9: 139 | AH9: 1 | AI9: 2 | AJ9: 2 | AK9: 1 | AL9: 131 | AM9: 132 | AN9: 0.9924 | AO9: 0 | AP9: 0 | AQ9: N/A | AR9: 1410 | AS9: 1452 | AT9: 0.9710744023 | AU9: 342 | AV9: 342 | AW9: 1 | AX9: 0 | AY9: 0 | AZ9: N/A | BA9: 14613 | BB9: 18253 | BC9: 0.8006 | BD9: 1349 | BE9: 18253 | BF9: 0.0739 | BG9: 324 | BH9: 389 | BI9: 0.8329 | BJ9: 0 | BK9: 0 | BL9: N/A | BM9: 17 | BN9: 17 | BO9: 1 | BP9: 59 | BQ9: 59 | BR9: 1 | BS9: 1 | BT9: 1 | BU9: 1 | BV9: 144 | BW9: 146 | BX9: 0.9863 | BY9: 0 | BZ9: 0 | CA9: N/A | CB9: 1109 | CC9: 1120 | CD9: 0.9901785851 | CE9: 220 | CF9: 220 | CG9: 1 | CH9: 0 | CI9: 0 | CJ9: N/A | CK9: 12263 | CL9: 14250 | CM9: 0.8606 | CN9: 1188 | CO9: 14250 | CP9: 0.0834 | CQ9: 539 | CR9: 664 | CS9: 0.8117 | CT9: 0 | CU9: 0 | CV9: N/A | CW9: 22 | CX9: 23 | CY9: 0.9565 | CZ9: 52 | DA9: 52 | DB9: 1 | DC9: 1 | DD9: 1 | DE9: 1 | DF9: 134 | DG9: 138 | DH9: 0.971 | DI9: 0 | DJ9: 0 | DK9: N/A | DL9: 1233 | DM9: 1236 | DN9: 0.9975728393 | DO9: 112 | DP9: 112 | DQ9: 1 | DR9: 0 | DS9: 0 | DT9: N/A | DU9: 12376 | DV9: 15164 | DW9: 0.8161 | DX9: 1020 | DY9: 15164 | DZ9: 0.0673 | EA9: 308 | EB9: 308 | EC9: 1 | ED9: 0 | EE9: 0 | EF9: N/A | EG9: 14 | EH9: 15 | EI9: 0.9333 | EJ9: 73 | EK9: 73 | EL9: 1 | EM9: 0 | EN9: 0 | EO9: N/A | EP9: 205 | EQ9: 205 | ER9: 1 | ES9: 0 | ET9: 0 | EU9: N/A | EV9: 1464 | EW9: 1466 | EX9: 0.9986357689 | EY9: 170 | EZ9: 170 | FA9: 1 | FB9: 0 | FC9: 0 | FD9: N/A | FE9: 9355 | FF9: 11026 | FG9: 0.8484 | FH9: 224 | FI9: 11026 | FJ9: 0.0203 | FK9: 1121 | FL9: 1121 | FM9: 1 | FN9: 0 | FO9: 0 | FP9: N/A | FQ9: 17 | FR9: 18 | FS9: 0.9444 | FT9: 27 | FU9: 27 | FV9: 1 | FW9: 0 | FX9: 0 | FY9: N/A
A10: Atikokan Hydro Inc. | B10: 1 | C10: 1 | D10: 1 | E10: 0 | F10: 0 | G10: N/A | H10: 220 | I10: 220 | J10: 1 | K10: 0 | L10: 0 | M10: N/A | N10: 0 | O10: 0 | P10: N/A | Q10: 1715 | R10: 1715 | S10: 1 | T10: 0 | U10: 1715 | V10: 0 | W10: 21 | X10: 21 | Y10: 1 | Z10: 3 | AA10: 3 | AB10: 1 | AC10: 0 | AD10: 0 | AE10: N/A | AF10: 4 | AG10: 4 | AH10: 1 | AI10: 0 | AJ10: 0 | AK10: N/A | AL10: 4 | AM10: 4 | AN10: 1 | AO10: 0 | AP10: 0 | AQ10: N/A | AR10: 263 | AS10: 263 | AT10: 1 | AU10: 0 | AW10: N/A | AX10: 0 | AY10: 0 | AZ10: N/A | BA10: 1500 | BB10: 1500 | BC10: 1 | BD10: 0 | BE10: 1500 | BF10: 0 | BG10: 15 | BH10: 15 | BI10: 1 | BJ10: 0 | BK10: 0 | BL10: N/A | BM10: 0 | BN10: 0 | BO10: N/A | BP10: 1 | BQ10: 1 | BR10: 1 | BS10: 0 | BT10: 0 | BU10: N/A | BV10: 3 | BW10: 3 | BX10: 1 | BY10: 0 | BZ10: 0 | CA10: N/A | CB10: 161 | CC10: 161 | CD10: 1 | CE10: 0 | CF10: 0 | CG10: N/A | CH10: 0 | CI10: 0 | CJ10: N/A | CK10: 996 | CL10: 996 | CM10: 1 | CN10: 0 | CO10: 0 | CP10: N/A | CQ10: 22 | CR10: 22 | CS10: 1 | CT10: 0 | CU10: 0 | CV10: N/A | CW10: 0 | CX10: 0 | CY10: N/A | CZ10: 0 | DA10: 0 | DB10: N/A | DC10: 0 | DD10: 0 | DE10: N/A | DF10: 2 | DG10: 2 | DH10: 1 | DI10: 0 | DJ10: 0 | DK10: N/A | DL10: 186 | DM10: 186 | DN10: 1 | DO10: 0 | DP10: 0 | DQ10: N/A | DR10: 0 | DS10: 0 | DT10: N/A | DU10: 1275 | DV10: 1275 | DW10: 1 | DX10: 0 | DY10: 1275 | DZ10: 0 | EA10: 19 | EB10: 19 | EC10: 1 | ED10: 0 | EE10: 0 | EF10: N/A | EG10: 1 | EH10: 1 | EI10: 1 | EJ10: 1 | EK10: 1 | EL10: 1 | EM10: 0 | EN10: 0 | EO10: N/A | EP10: 4 | EQ10: 4 | ER10: 1 | ES10: 0 | ET10: 0 | EU10: N/A | EV10: 162 | EW10: 162 | EX10: 1 | EY10: 0 | EZ10: 0 | FA10: N/A | FB10: 0 | FC10: 0 | FD10: N/A | FE10: 1854 | FF10: 1854 | FG10: 1 | FH10: 0 | FI10: 1854 | FJ10: 0 | FK10: 39 | FL10: 39 | FM10: 1 | FN10: 0 | FO10: 0 | FP10: N/A | FQ10: 1 | FR10: 1 | FS10: 1 | FT10: 0 | FU10: 0 | FV10: N/A | FW10: 0 | FX10: 0 | FY10: N/A
A11: Bluewater Power Distribution Corporation | B11: 474 | C11: 482 | D11: 0.983 | E11: 0 | F11: 0 | G11: N/A | H11: 7206 | I11: 7235 | J11: 0.9959917068 | K11: 475 | L11: 477 | M11: 0.996 | N11: 2 | O11: 2 | P11: 1 | Q11: 33399 | R11: 48319 | S11: 0.691 | T11: 2332 | U11: 48319 | V11: 0.048 | W11: 6225 | X11: 6225 | Y11: 1 | Z11: 25 | AA11: 25 | AB11: 1 | AC11: 1 | AD11: 1 | AE11: 1 | AF11: 159 | AG11: 159 | AH11: 1 | AI11: 28 | AJ11: 27 | AK11: 0.9643 | AL11: 406 | AM11: 409 | AN11: 0.9927 | AO11: 0 | AP11: 0 | AQ11: N/A | AR11: 8801 | AS11: 8804 | AT11: 0.9996592402 | AU11: 567 | AV11: 568 | AW11: 0.9982 | AX11: 4 | AY11: 4 | AZ11: 1 | BA11: 33491 | BB11: 42933 | BC11: 0.7801 | BD11: 1554 | BE11: 42933 | BF11: 0.0362 | BG11: 7070 | BH11: 7071 | BI11: 0.9999 | BJ11: 26 | BK11: 26 | BL11: 1 | BM11: 3 | BN11: 3 | BO11: 1 | BP11: 162 | BQ11: 163 | BR11: 0.9939 | BS11: 22 | BT11: 22 | BU11: 1 | BV11: 218 | BW11: 225 | BX11: 0.9689 | BY11: 0 | BZ11: 0 | CA11: N/A | CB11: 8467 | CC11: 8476 | CD11: 0.9989382029 | CE11: 719 | CF11: 721 | CG11: 0.9972 | CH11: 9 | CI11: 9 | CJ11: 1 | CK11: 29035 | CL11: 35274 | CM11: 0.8231 | CN11: 1049 | CO11: 35274 | CP11: 0.0297 | CQ11: 6842 | CR11: 6854 | CS11: 0.9982 | CT11: 14 | CU11: 14 | CV11: 1 | CW11: 0 | CX11: 0 | CY11: N/A | CZ11: 136 | DA11: 136 | DB11: 1 | DC11: 5 | DD11: 5 | DE11: 1 | DF11: 443 | DG11: 444 | DH11: 0.9977 | DI11: 0 | DJ11: 0 | DK11: N/A | DL11: 8035 | DM11: 8100 | DN11: 0.9919753075 | DO11: 278 | DP11: 278 | DQ11: 1 | DR11: 65 | DS11: 65 | DT11: 1 | DU11: 28607 | DV11: 32730 | DW11: 0.874 | DX11: 934 | DY11: 32730 | DZ11: 0.0285 | EA11: 8163 | EB11: 8197 | EC11: 0.9959 | ED11: 11 | EE11: 11 | EF11: 1 | EG11: 0 | EH11: 0 | EI11: N/A | EJ11: 155 | EK11: 155 | EL11: 1 | EM11: 0 | EN11: 0 | EO11: N/A | EP11: 158 | EQ11: 158 | ER11: 1 | ES11: 0 | ET11: 0 | EU11: N/A | EV11: 8867 | EW11: 8972 | EX11: 0.988296926 | EY11: 402 | EZ11: 402 | FA11: 1 | FB11: 105 | FC11: 105 | FD11: 1 | FE11: 24356 | FF11: 29462 | FG11: 0.8267 | FH11: 782 | FI11: 29462 | FJ11: 0.0265 | FK11: 11103 | FL11: 11121 | FM11: 0.9984 | FN11: 6 | FO11: 6 | FP11: 1 | FQ11: 2 | FR11: 2 | FS11: 1 | FT11: 120 | FU11: 120 | FV11: 1 | FW11: 0 | FX11: 0 | FY11: N/A
A12: Brantford Power Inc. | B12: 286 | C12: 287 | D12: 0.997 | E12: 1 | F12: 1 | G12: 1 | H12: 14962 | I12: 14965 | J12: 0.9997995496 | K12: 1086 | L12: 1088 | M12: 0.998 | N12: 2 | O12: 2 | P12: 1 | Q12: 25316 | R12: 37736 | S12: 0.671 | T12: 1929 | U12: 37736 | V12: 0.051 | W12: 3976 | X12: 4005 | Y12: 0.993 | Z12: 35 | AA12: 35 | AB12: 1 | AC12: 0 | AD12: 0 | AE12: N/A | AF12: 292 | AG12: 292 | AH12: 1 | AI12: 11 | AJ12: 11 | AK12: 1 | AL12: 243 | AM12: 244 | AN12: 0.9959 | AO12: 0 | AP12: 0 | AQ12: N/A | AR12: 14392 | AS12: 14394 | AT12: 0.9998610616 | AU12: 765 | AV12: 765 | AW12: 1 | AX12: 0 | AY12: 0 | AZ12: N/A | BA12: 27676 | BB12: 37819 | BC12: 0.7318 | BD12: 1444 | BE12: 37819 | BF12: 0.0382 | BG12: 5131 | BH12: 5142 | BI12: 0.9979 | BJ12: 29 | BK12: 29 | BL12: 1 | BM12: 0 | BN12: 0 | BO12: N/A | BP12: 232 | BQ12: 232 | BR12: 1 | BS12: 25 | BT12: 25 | BU12: 1 | BV12: 206 | BW12: 207 | BX12: 0.9952 | BY12: 0 | BZ12: 0 | CA12: N/A | CB12: 14169 | CC12: 14169 | CD12: 1 | CE12: 672 | CF12: 672 | CG12: 1 | CH12: 0 | CI12: 0 | CJ12: N/A | CK12: 30227 | CL12: 35459 | CM12: 0.8524 | CN12: 650 | CO12: 35459 | CP12: 0.0183 | CQ12: 4703 | CR12: 4723 | CS12: 0.9958 | CT12: 51 | CU12: 52 | CV12: 0.9808 | CW12: 0 | CX12: 0 | CY12: N/A | CZ12: 107 | DA12: 107 | DB12: 1 | DC12: 5 | DD12: 5 | DE12: 1 | DF12: 406 | DG12: 406 | DH12: 1 | DI12: 0 | DJ12: 0 | DK12: N/A | DL12: 6945 | DM12: 6951 | DN12: 0.9991368055 | DO12: 568 | DP12: 569 | DQ12: 0.9982 | DR12: 1 | DS12: 1 | DT12: 1 | DU12: 27053 | DV12: 37814 | DW12: 0.7154 | DX12: 1545 | DY12: 37814 | DZ12: 0.0409 | EA12: 4432 | EB12: 4432 | EC12: 1 | ED12: 51 | EE12: 51 | EF12: 1 | EG12: 0 | EH12: 0 | EI12: N/A | EJ12: 27 | EK12: 27 | EL12: 1 | EM12: 0 | EN12: 0 | EO12: N/A | EP12: 515 | EQ12: 515 | ER12: 1 | ES12: 0 | ET12: 0 | EU12: N/A | EV12: 4608 | EW12: 4608 | EX12: 1 | EY12: 803 | EZ12: 804 | FA12: 0.9988 | FB12: 1 | FC12: 1 | FD12: 1 | FE12: 27903 | FF12: 34404 | FG12: 0.811 | FH12: 716 | FI12: 34404 | FJ12: 0.0208 | FK12: 5567 | FL12: 5577 | FM12: 0.9982 | FN12: 23 | FO12: 23 | FP12: 1 | FQ12: 0 | FR12: 0 | FS12: N/A | FT12: 85 | FU12: 85 | FV12: 1 | FW12: 0 | FX12: 0 | FY12: N/A
A13: Burlington Hydro Inc. | B13: 235 | C13: 243 | D13: 0.9671 | E13: 0 | F13: 0 | G13: N/A | H13: 672 | I13: 672 | J13: 1 | K13: 81 | L13: 81 | M13: 1 | N13: 0 | O13: 0 | P13: N/A | Q13: 38312 | R13: 51304 | S13: 0.7468 | T13: 3274 | U13: 51304 | V13: 0.0638 | W13: 9434 | X13: 9434 | Y13: 1 | Z13: 802 | AA13: 836 | AB13: 0.9593 | AC13: 802 | AD13: 836 | AE13: 0.9593 | AF13: 219 | AG13: 219 | AH13: 1 | AI13: 12 | AJ13: 12 | AK13: 1 | AL13: 257 | AM13: 263 | AN13: 0.9772 | AO13: 0 | AP13: 0 | AQ13: N/A | AR13: 734 | AS13: 734 | AT13: 1 | AU13: 142 | AV13: 142 | AW13: 1 | AX13: 0 | AY13: 0 | AZ13: N/A | BA13: 37620 | BB13: 46951 | BC13: 0.8013 | BD13: 2346 | BE13: 46951 | BF13: 0.05 | BG13: 9740 | BH13: 9740 | BI13: 1 | BJ13: 1118 | BK13: 1165 | BL13: 0.9597 | BM13: 1118 | BN13: 1165 | BO13: 0.9597 | BP13: 316 | BQ13: 316 | BR13: 1 | BS13: 47 | BT13: 46 | BU13: 0.9787 | BV13: 872 | BW13: 887 | BX13: 0.9831 | BY13: 0 | BZ13: 0 | CA13: N/A | CB13: 13648 | CC13: 15073 | CD13: 0.9054601192 | CE13: 1608 | CF13: 1611 | CG13: 0.9981 | CH13: 1142 | CI13: 1145 | CJ13: 0.9974 | CK13: 35423 | CL13: 42533 | CM13: 0.8328 | CN13: 2498 | CO13: 42533 | CP13: 0.0587 | CQ13: 11507 | CR13: 11622 | CS13: 0.9901 | CT13: 72 | CU13: 78 | CV13: 0.9231 | CW13: 0 | CX13: 0 | CY13: N/A | CZ13: 446 | DA13: 446 | DB13: 1 | DC13: 38 | DD13: 37 | DE13: 0.9737 | DF13: 400 | DG13: 400 | DH13: 1 | DI13: 3 | DJ13: 3 | DK13: 1 | DL13: 6356 | DM13: 13856 | DN13: 0.4587182403 | DO13: 1121 | DP13: 1121 | DQ13: 1 | DR13: 7458 | DS13: 7458 | DT13: 1 | DU13: 35279 | DV13: 43324 | DW13: 0.8143 | DX13: 2300 | DY13: 43324 | DZ13: 0.0531 | EA13: 10519 | EB13: 10643 | EC13: 0.9883 | ED13: 42 | EE13: 45 | EF13: 0.9333 | EG13: 0 | EH13: 0 | EI13: N/A | EJ13: 198 | EK13: 198 | EL13: 1 | EM13: 4 | EN13: 4 | EO13: 1 | EP13: 605 | EQ13: 605 | ER13: 1 | ES13: 0 | ET13: 0 | EU13: N/A | EV13: 13454 | EW13: 13548 | EX13: 0.9930617213 | EY13: 904 | EZ13: 904 | FA13: 1 | FB13: 88 | FC13: 88 | FD13: 1 | FE13: 33079 | FF13: 53223 | FG13: 0.6215 | FH13: 4341 | FI13: 53223 | FJ13: 0.0816 | FK13: 16385 | FL13: 16420 | FM13: 0.9979 | FN13: 58 | FO13: 60 | FP13: 0.9667 | FQ13: 0 | FR13: 0 | FS13: N/A | FT13: 95 | FU13: 95 | FV13: 1 | FW13: 4 | FX13: 4 | FY13: 1
A14: Canadian Niagara Power Inc. | B14: 247 | C14: 271 | D14: 0.911 | E14: 0 | F14: 0 | G14: N/A | H14: 7411 | I14: 7413 | J14: 0.9997302294 | K14: 37 | L14: 37 | M14: 1 | N14: 0 | O14: 0 | P14: N/A | Q14: 33678 | R14: 44492 | S14: 0.757 | T14: 2369 | U14: 44492 | V14: 0.053 | W14: 541 | X14: 541 | Y14: 1 | Z14: 25 | AA14: 25 | AB14: 1 | AC14: 2 | AD14: 2 | AE14: 1 | AF14: 277 | AG14: 277 | AH14: 1 | AI14: 18 | AJ14: 18 | AK14: 1 | AL14: 326 | AM14: 359 | AN14: 0.9081 | AO14: 0 | AP14: 0 | AQ14: N/A | AR14: 6518 | AS14: 7188 | AT14: 0.9067890644 | AU14: 57 | AV14: 57 | AW14: 1 | AX14: 0 | AY14: 0 | AZ14: N/A | BA14: 36135 | BB14: 46729 | BC14: 0.7733 | BD14: 3087 | BE14: 46729 | BF14: 0.0661 | BG14: 539 | BH14: 558 | BI14: 0.9659 | BJ14: 20 | BK14: 20 | BL14: 1 | BM14: 3 | BN14: 3 | BO14: 1 | BP14: 186 | BQ14: 186 | BR14: 1 | BS14: 10 | BT14: 10 | BU14: 1 | BV14: 292 | BW14: 323 | BX14: 0.904 | BY14: 0 | BZ14: 0 | CA14: N/A | CB14: 7032 | CC14: 7986 | CD14: 0.880540967 | CE14: 63 | CF14: 63 | CG14: 1 | CH14: 0 | CI14: 0 | CJ14: N/A | CK14: 29020 | CL14: 35837 | CM14: 0.8098 | CN14: 1804 | CO14: 35837 | CP14: 0.0503 | CQ14: 721 | CR14: 864 | CS14: 0.8345 | CT14: 33 | CU14: 33 | CV14: 1 | CW14: 13 | CX14: 13 | CY14: 1 | CZ14: 190 | DA14: 190 | DB14: 1 | DC14: 35 | DD14: 35 | DE14: 1 | DF14: 277 | DG14: 297 | DH14: 0.9327 | DI14: 0 | DJ14: 0 | DK14: N/A | DL14: 6908 | DM14: 8246 | DN14: 0.8377395272 | DO14: 56 | DP14: 56 | DQ14: 1 | DR14: 0 | DS14: 0 | DT14: N/A | DU14: 27026 | DV14: 33897 | DW14: 0.7973 | DX14: 2251 | DY14: 33897 | DZ14: 0.0664 | EA14: 1054 | EB14: 1271 | EC14: 0.8293 | ED14: 23 | EE14: 23 | EF14: 1 | EG14: 10 | EH14: 11 | EI14: 0.9091 | EJ14: 236 | EK14: 236 | EL14: 1 | EM14: 0 | EN14: 0 | EO14: N/A | EP14: 317 | EQ14: 334 | ER14: 0.9491 | ES14: 0 | ET14: 0 | EU14: N/A | EV14: 8640 | EW14: 8668 | EX14: 0.9967697263 | EY14: 38 | EZ14: 38 | FA14: 1 | FB14: 0 | FC14: 0 | FD14: N/A | FE14: 21464 | FF14: 26900 | FG14: 0.7979 | FH14: 433 | FI14: 26900 | FJ14: 0.0161 | FK14: 846 | FL14: 1037 | FM14: 0.8158 | FN14: 41 | FO14: 42 | FP14: 0.9762 | FQ14: 7 | FR14: 7 | FS14: 1 | FT14: 120 | FU14: 120 | FV14: 1 | FW14: 0 | FX14: 0 | FY14: N/A
A15: Centre Wellington Hydro Ltd. | B15: 150 | C15: 151 | D15: 0.993 | E15: 0 | F15: 0 | G15: N/A | H15: 3332 | I15: 3356 | J15: 0.9928486347 | K15: 280 | L15: 283 | M15: 0.989 | N15: 3 | O15: 3 | P15: 1 | Q15: 6891 | R15: 6938 | S15: 0.993 | T15: 0 | U15: 2495 | V15: 0 | W15: 637 | X15: 637 | Y15: 1 | Z15: 6 | AA15: 6 | AB15: 1 | AC15: 0 | AD15: 0 | AE15: N/A | AF15: 39 | AG15: 40 | AH15: 0.975 | AI15: 4 | AJ15: 4 | AK15: 1 | AL15: 219 | AM15: 219 | AN15: 1 | AO15: 0 | AP15: 0 | AQ15: N/A | AR15: 3201 | AS15: 3256 | AT15: 0.9831081033 | AU15: 149 | AV15: 149 | AW15: 1 | AX15: 4 | AY15: 4 | AZ15: 1 | BA15: 5471 | BB15: 5537 | BC15: 0.9881 | BD15: 1 | BE15: 5537 | BF15: 0.0002 | BG15: 394 | BH15: 394 | BI15: 1 | BJ15: 2 | BK15: 2 | BL15: 1 | BM15: 0 | BN15: 0 | BO15: N/A | BP15: 26 | BQ15: 26 | BR15: 1 | BS15: 1 | BT15: 1 | BU15: 1 | BV15: 213 | BW15: 214 | BX15: 0.9953 | BY15: 0 | BZ15: 0 | CA15: N/A | CB15: 1849 | CC15: 2286 | CD15: 0.8088364005 | CE15: 202 | CF15: 203 | CG15: 0.9951 | CH15: 1 | CI15: 1 | CJ15: 1 | CK15: 5503 | CL15: 5622 | CM15: 0.9788 | CN15: 0 | CO15: 5622 | CP15: 0 | CQ15: 486 | CR15: 486 | CS15: 1 | CT15: 1 | CU15: 1 | CV15: 1 | CW15: 0 | CX15: 0 | CY15: N/A | CZ15: 18 | DA15: 18 | DB15: 1 | DC15: 1 | DD15: 1 | DE15: 1 | DF15: 209 | DG15: 209 | DH15: 1 | DI15: 1 | DJ15: 1 | DK15: 1 | DL15: 1500 | DM15: 1844 | DN15: 0.8134490252 | DO15: 329 | DP15: 329 | DQ15: 1 | DR15: 8 | DS15: 8 | DT15: 1 | DU15: 5665 | DV15: 5771 | DW15: 0.9816 | DX15: 5 | DY15: 5771 | DZ15: 0.0009 | EA15: 343 | EB15: 343 | EC15: 1 | ED15: 1 | EE15: 1 | EF15: 1 | EG15: 0 | EH15: 0 | EI15: N/A | EJ15: 29 | EK15: 29 | EL15: 1 | EM15: 0 | EN15: 0 | EO15: N/A | EP15: 218 | EQ15: 218 | ER15: 1 | ES15: 0 | ET15: 0 | EU15: N/A | EV15: 1888 | EW15: 1892 | EX15: 0.9978858232 | EY15: 319 | EZ15: 320 | FA15: 0.9969 | FB15: 0 | FC15: 0 | FD15: N/A | FE15: 3455 | FF15: 4943 | FG15: 0.699 | FH15: 4 | FI15: 4943 | FJ15: 0.0008 | FK15: 442 | FL15: 442 | FM15: 1 | FN15: 2 | FO15: 2 | FP15: 1 | FQ15: 0 | FR15: 0 | FS15: N/A | FT15: 11 | FU15: 11 | FV15: 1 | FW15: 0 | FX15: 0 | FY15: N/A
A16: Chapleau Public Utilities Corporation | B16: 11 | C16: 11 | D16: 1 | E16: 0 | F16: 0 | G16: N/A | H16: 48 | I16: 48 | J16: 1 | K16: 11 | L16: 11 | M16: 1 | N16: 0 | O16: 0 | P16: N/A | Q16: 765 | R16: 765 | S16: 1 | T16: 0 | U16: 0 | V16: N/A | W16: 8 | X16: 8 | Y16: 1 | Z16: 0 | AA16: 0 | AB16: N/A | AC16: 0 | AD16: 0 | AE16: N/A | AF16: 3 | AG16: 3 | AH16: 1 | AI16: 0 | AJ16: 0 | AK16: N/A | AL16: 10 | AM16: 10 | AN16: 1 | AO16: 0 | AP16: 0 | AQ16: N/A | AR16: 47 | AS16: 47 | AT16: 1 | AU16: 10 | AV16: 10 | AW16: 1 | AX16: 0 | AY16: 0 | AZ16: N/A | BA16: 620 | BB16: 622 | BC16: 0.9968 | BD16: 0 | BE16: 622 | BF16: 0 | BG16: 36 | BH16: 36 | BI16: 1 | BJ16: 0 | BK16: 0 | BL16: N/A | BM16: 0 | BN16: 0 | BO16: N/A | BP16: 11 | BQ16: 11 | BR16: 1 | BS16: 0 | BT16: 0 | BU16: N/A | BV16: 8 | BW16: 8 | BX16: 1 | BY16: 0 | BZ16: 0 | CA16: N/A | CB16: 51 | CC16: 51 | CD16: 1 | CE16: 8 | CF16: 8 | CG16: 1 | CH16: 0 | CI16: 0 | CJ16: N/A | CK16: 333 | CL16: 345 | CM16: 0.9652 | CN16: 0 | CO16: 345 | CP16: 0 | CQ16: 39 | CR16: 39 | CS16: 1 | CT16: 0 | CU16: 0 | CV16: N/A | CW16: 0 | CX16: 0 | CY16: N/A | CZ16: 4 | DA16: 4 | DB16: 1 | DC16: 0 | DD16: 0 | DE16: N/A | DF16: 11 | DG16: 11 | DH16: 1 | DI16: 0 | DJ16: 0 | DK16: N/A | DL16: 17 | DM16: 17 | DN16: 1 | DO16: 11 | DP16: 11 | DQ16: 1 | DR16: 0 | DS16: 0 | DT16: N/A | DU16: 326 | DV16: 333 | DW16: 0.979 | DX16: 0 | DY16: 333 | DZ16: 0 | EA16: 35 | EB16: 35 | EC16: 1 | ED16: 1 | EE16: 1 | EF16: 1 | EG16: 0 | EH16: 0 | EI16: N/A | EJ16: 9 | EK16: 9 | EL16: 1 | EM16: 0 | EN16: 0 | EO16: N/A | EP16: 6 | EQ16: 6 | ER16: 1 | ES16: 0 | ET16: 0 | EU16: N/A | EV16: 78 | EW16: 78 | EX16: 1 | EY16: 6 | EZ16: 6 | FA16: 1 | FB16: 0 | FC16: 0 | FD16: N/A | FE16: 482 | FF16: 494 | FG16: 0.9757 | FH16: 0 | FI16: 494 | FJ16: 0 | FK16: 41 | FL16: 41 | FM16: 1 | FN16: 1 | FO16: 1 | FP16: 1 | FQ16: 0 | FR16: 0 | FS16: N/A | FT16: 0 | FU16: 0 | FV16: N/A | FW16: 0 | FX16: 0 | FY16: N/A
A17: Cooperative Hydro Embrun Inc. | B17: 92 | C17: 92 | D17: 1 | E17: 0 | F17: 0 | G17: N/A | H17: 11 | I17: 11 | J17: 1 | K17: 11 | L17: 11 | M17: 1 | N17: 0 | O17: 0 | P17: N/A | Q17: 1361 | R17: 1429 | S17: 0.952 | T17: 68 | U17: 1429 | V17: 0.048 | W17: 249 | X17: 249 | Y17: 1 | Z17: 2 | AA17: 2 | AB17: 1 | AC17: 2 | AD17: 2 | AE17: 1 | AF17: 2 | AG17: 2 | AH17: 1 | AI17: 1 | AJ17: 1 | AK17: 1 | AL17: 112 | AM17: 112 | AN17: 1 | AO17: 0 | AP17: 0 | AQ17: N/A | AR17: 4 | AS17: 4 | AT17: 1 | AU17: 4 | AV17: 4 | AW17: 1 | AX17: 0 | AY17: 0 | AZ17: N/A | BA17: 1448 | BB17: 1550 | BC17: 0.9342 | BD17: 102 | BE17: 1550 | BF17: 0.0658 | BG17: 368 | BH17: 368 | BI17: 1 | BJ17: 5 | BK17: 5 | BL17: 1 | BM17: 0 | BN17: 0 | BO17: N/A | BP17: 3 | BQ17: 3 | BR17: 1 | BS17: 1 | BT17: 1 | BU17: 1 | BV17: 112 | BW17: 112 | BX17: 1 | BY17: 0 | BZ17: 0 | CA17: N/A | CB17: 4 | CC17: 4 | CD17: 1 | CE17: 4 | CF17: 4 | CG17: 1 | CH17: 0 | CI17: 0 | CJ17: N/A | CK17: 1479 | CL17: 1569 | CM17: 0.9426 | CN17: 90 | CO17: 1569 | CP17: 0.0574 | CQ17: 364 | CR17: 364 | CS17: 1 | CT17: 7 | CU17: 7 | CV17: 1 | CW17: 0 | CX17: 0 | CY17: N/A | CZ17: 5 | DA17: 5 | DB17: 1 | DC17: 0 | DD17: 0 | DE17: N/A | DF17: 27 | DG17: 27 | DH17: 1 | DI17: 0 | DJ17: 0 | DK17: N/A | DL17: 4 | DM17: 4 | DN17: 1 | DO17: 4 | DP17: 4 | DQ17: 1 | DR17: 0 | DS17: 0 | DT17: N/A | DU17: 1491 | DV17: 1547 | DW17: 0.9638 | DX17: 56 | DY17: 1547 | DZ17: 0.0362 | EA17: 419 | EB17: 419 | EC17: 1 | ED17: 7 | EE17: 7 | EF17: 1 | EG17: 0 | EH17: 0 | EI17: N/A | EJ17: 3 | EK17: 3 | EL17: 1 | EM17: 0 | EN17: 0 | EO17: N/A | EP17: 49 | EQ17: 49 | ER17: 1 | ES17: 0 | ET17: 0 | EU17: N/A | EV17: 7 | EW17: 7 | EX17: 1 | EY17: 8 | EZ17: 8 | FA17: 1 | FB17: 0 | FC17: 0 | FD17: N/A | FE17: 1346 | FF17: 1410 | FG17: 0.9546 | FH17: 64 | FI17: 1410 | FJ17: 0.0454 | FK17: 463 | FL17: 463 | FM17: 1 | FN17: 5 | FO17: 6 | FP17: 0.8333 | FQ17: 0 | FR17: 0 | FS17: N/A | FT17: 0 | FU17: 0 | FV17: N/A | FW17: 0 | FX17: 0 | FY17: N/A
